Workbook

Sheet Dukovany
A1: Roky | B1: 1984 | C1: 1985 | D1: 1986 | E1: 1987 | F1: 1988 | G1: 1989 | H1: 1990 | I1: 1991 | J1: 1992 | K1: 1993 | L1: 1994 | M1: 1995 | N1: 1996 | O1: 1997 | P1: 1998 | Q1: 1999 | R1: 2000 | S1: 2001 | T1: 2002 | U1: 2003 | V1: 2004 | W1: 2005 | X1: 2006 | Y1: 2007 | Z1: 2008 | AA1: 2009 | AB1: 2010 | AC1: 2011 | AD1: 2012 | AE1: 2013 | AF1: 2014 | AG1: 2015 | AH1: 2016 | AI1: 2017 | AJ1: 2018 | AK1: 2019 | AL1: 2020 | AM1: 2021 | AN1: 2022 | AO1: 2023 | AP1: 2024 | AQ1: 2025 | AR1: 2026 | AS1: 2027 | AT1: 2028 | AU1: 2029 | AV1: 2030 | AW1: 2031 | AX1: 2032 | AY1: 2033 | AZ1: 2034 | BA1: 2035
A2: Stav | B2: kurzy - 1USD=24,01/1EUR=27,04 | C2: SPOUŠTĚNÍ | F2: JMENOVITÝ VÝKON
A3: INVESTIČNÍ NÁKLADY ([Kč], zaokrouhleno na celá čísla)
A4: Investice do DHM | B4: 25000000000 | W4: =25000000000/12 -> 2083333333 | X4: =25000000000/12 -> 2083333333 | Y4: 2083333333 | Z4: 2083333333 | AA4: 2083333333 | AB4: 2083333333 | AC4: 2083333333 | AD4: 2083333333 | AE4: 2083333333 | AF4: 2083333333 | AG4: 2083333333 | AH4: 2083333333 | AR4: =500000000 -> 500000000
A5: Odepisování DHM:
A6: Odpisy poč. inv. | C6: =$B$4/51 -> 490196078.4 | D6: =$B$4/51 -> 490196078.4 | E6: 490196078.4 | F6: 490196078.4 | G6: 490196078.4 | H6: 490196078.4 | I6: 490196078.4 | J6: 490196078.4 | K6: 490196078.4 | L6: 490196078.4 | M6: 490196078.4 | N6: 490196078.4 | O6: 490196078.4 | P6: 490196078.4 | Q6: 490196078.4 | R6: 490196078.4 | S6: 490196078.4 | T6: 490196078.4 | U6: 490196078.4 | V6: 490196078.4 | W6: 490196078.4 | X6: 490196078.4 | Y6: 490196078.4 | Z6: 490196078.4 | AA6: 490196078.4 | AB6: 490196078.4 | AC6: 490196078.4 | AD6: 490196078.4 | AE6: 490196078.4 | AF6: 490196078.4 | AG6: 490196078.4 | AH6: 490196078.4 | AI6: 490196078.4 | AJ6: 490196078.4 | AK6: 490196078.4 | AL6: 490196078.4 | AM6: 490196078.4 | AN6: 490196078.4 | AO6: 490196078.4 | AP6: 490196078.4 | AQ6: 490196078.4 | AR6: 490196078.4 | AS6: 490196078.4 | AT6: 490196078.4 | AU6: 490196078.4 | AV6: 490196078.4 | AW6: 490196078.4 | AX6: 490196078.4 | AY6: 490196078.4 | AZ6: 490196078.4 | BA6: 490196078.4
A7: Odpisy průb.inv. | D7: 0 | E7: 0 | F7: 0 | G7: 0 | H7: 0 | I7: 0 | J7: 0 | K7: 0 | L7: 0 | M7: 0 | N7: 0 | O7: 0 | P7: 0 | Q7: 0 | R7: 0 | S7: 0 | T7: 0 | U7: 0 | V7: 0 | W7: 0 | X7: =$W$4/30 -> 69444444.44 | Y7: =$W$4/30+($X$4/29) -> 141283524.9 | Z7: =$W$4/30+($X$4/29)+($Y$4/28) -> 215688286.8 | AA7: =$W$4/30+($X$4/29)+($Y$4/28)+($Z$4/27) -> 292848780.6 | AB7: =$W$4/30+($X$4/29)+($Y$4/28)+($Z$4/27)+($AA$4/26) -> 372976985.8 | AC7: =$W$4/30+($X$4/29)+($Y$4/28)+($Z$4/27)+($AA$4/26)+($AB$4/25) -> 456310319.1 | AD7: =$W$4/30+($X$4/29)+($Y$4/28)+($Z$4/27)+($AA$4/26)+($AB$4/25)+($AC$4/24) -> 543115874.7 | AE7: =$W$4/30+($X$4/29)+($Y$4/28)+($Z$4/27)+($AA$4/26)+($AB$4/25)+($AC$4/24)+($AD$4/23) -> 633695584.8 | AF7: =$W$4/30+($X$4/29)+($Y$4/28)+($Z$4/27)+($AA$4/26)+($AB$4/25)+($AC$4/24)+($AD$4/23)+($AE$4/22) -> 728392554.5 | AG7: =$W$4/30+($X$4/29)+($Y$4/28)+($Z$4/27)+($AA$4/26)+($AB$4/25)+($AC$4/24)+($AD$4/23)+($AE$4/22)+($AF$4/21) -> 827598903.7 | AH7: =$W$4/30+($X$4/29)+($Y$4/28)+($Z$4/27)+($AA$4/26)+($AB$4/25)+($AC$4/24)+($AD$4/23)+($AE$4/22)+($AF$4/21)+($AG$4/20) -> 931765570.4 | AI7: =$W$4/30+($X$4/29)+($Y$4/28)+($Z$4/27)+($AA$4/26)+($AB$4/25)+($AC$4/24)+($AD$4/23)+($AE$4/22)+($AF$4/21)+($AG$4/20)+($AH$4/19) -> 1041414693 | AJ7: =$W$4/30+($X$4/29)+($Y$4/28)+($Z$4/27)+($AA$4/26)+($AB$4/25)+($AC$4/24)+($AD$4/23)+($AE$4/22)+($AF$4/21)+($AG$4/20)+($AH$4/19) -> 1041414693 | AK7: 1041414693 | AL7: 1041414693 | AM7: 1041414693 | AN7: 1041414693 | AO7: 1041414693 | AP7: 1041414693 | AQ7: 1041414693 | AR7: =$W$4/30+($X$4/29)+($Y$4/28)+($Z$4/27)+($AA$4/26)+($AB$4/25)+($AC$4/24)+($AD$4/23)+($AE$4/22)+($AF$4/21)+($AG$4/20)+($AH$4/19) -> 1041414693 | AS7: =$W$4/30+($X$4/29)+($Y$4/28)+($Z$4/27)+($AA$4/26)+($AB$4/25)+($AC$4/24)+($AD$4/23)+($AE$4/22)+($AF$4/21)+($AG$4/20)+($AH$4/19)+($AR$4/9) -> 1096970249 | AT7: =$W$4/30+($X$4/29)+($Y$4/28)+($Z$4/27)+($AA$4/26)+($AB$4/25)+($AC$4/24)+($AD$4/23)+($AE$4/22)+($AF$4/21)+($AG$4/20)+($AH$4/19)+($AR$4/9) -> 1096970249 | AU7: =$W$4/30+($X$4/29)+($Y$4/28)+($Z$4/27)+($AA$4/26)+($AB$4/25)+($AC$4/24)+($AD$4/23)+($AE$4/22)+($AF$4/21)+($AG$4/20)+($AH$4/19)+($AR$4/9) -> 1096970249 | AV7: 1096970249 | AW7: 1096970249 | AX7: 1096970249 | AY7: 1096970249 | AZ7: 1096970249 | BA7: 1096970249
A8: Odpisy | C8: =C6+C7 -> 490196078.4 | D8: =D6+D7 -> 490196078.4 | E8: 490196078.4 | F8: 490196078.4 | G8: 490196078.4 | H8: 490196078.4 | I8: 490196078.4 | J8: 490196078.4 | K8: 490196078.4 | L8: 490196078.4 | M8: 490196078.4 | N8: 490196078.4 | O8: 490196078.4 | P8: 490196078.4 | Q8: 490196078.4 | R8: 490196078.4 | S8: 490196078.4 | T8: 490196078.4 | U8: 490196078.4 | V8: 490196078.4 | W8: 490196078.4 | X8: 559640522.9 | Y8: 631479603.3 | Z8: 705884365.2 | AA8: 783044859.1 | AB8: 863173064.2 | AC8: 946506397.5 | AD8: 1033311953 | AE8: 1123891663 | AF8: 1218588633 | AG8: 1317794982 | AH8: 1421961649 | AI8: 1531610772 | AJ8: 1531610772 | AK8: 1531610772 | AL8: 1531610772 | AM8: 1531610772 | AN8: 1531610772 | AO8: 1531610772 | AP8: 1531610772 | AQ8: 1531610772 | AR8: 1531610772 | AS8: 1587166327 | AT8: 1587166327 | AU8: 1587166327 | AV8: 1587166327 | AW8: 1587166327 | AX8: 1587166327 | AY8: 1587166327 | AZ8: 1587166327 | BA8: 1587166327
A9: Zůstatková hodnota celkem DHM | C9: =B4+C4-C8 -> 2.450980392e+10 | D9: =C9+D4-D8 -> 2.401960784e+10 | E9: =D9+E4-E8 -> 2.352941176e+10 | F9: =(E9+F4)-F8 -> 2.303921569e+10 | G9: 2.254901961e+10 | H9: 2.205882353e+10 | I9: 2.156862745e+10 | J9: 2.107843137e+10 | K9: 2.058823529e+10 | L9: 2.009803922e+10 | M9: 1.960784314e+10 | N9: 1.911764706e+10 | O9: 1.862745098e+10 | P9: 1.81372549e+10 | Q9: 1.764705882e+10 | R9: 1.715686275e+10 | S9: 1.666666667e+10 | T9: 1.617647059e+10 | U9: 1.568627451e+10 | V9: 1.519607843e+10 | W9: 1.678921569e+10 | X9: =(W9+X4)-X8 -> 1.83129085e+10 | Y9: 1.976476223e+10 | Z9: 2.114221119e+10 | AA9: 2.244249967e+10 | AB9: 2.366265994e+10 | AC9: 2.479948687e+10 | AD9: 2.584950825e+10 | AE9: 2.680894992e+10 | AF9: 2.767369462e+10 | AG9: 2.843923298e+10 | AH9: 2.910060466e+10 | AI9: 2.756899389e+10 | AJ9: 2.603738312e+10 | AK9: 2.450577235e+10 | AL9: 2.297416157e+10 | AM9: 2.14425508e+10 | AN9: 1.991094003e+10 | AO9: 1.837932926e+10 | AP9: 1.684771849e+10 | AQ9: 1.531610772e+10 | AR9: 1.428449694e+10 | AS9: 1.269733062e+10 | AT9: 1.111016429e+10 | AU9: 9522997963 | AV9: 7935831636 | AW9: 6348665309 | AX9: 4761498981 | AY9: 3174332654 | AZ9: 1587166327 | BA9: -1.001358032e-05
A11: PROVOZNÍ NÁKLADY
A12: Vyrobená elektřina [GWh] | C12: 2397 | D12: 5800 | E12: 10800 | F12: 11800 | G12: 12400 | H12: 12600 | I12: 12200 | J12: 12200 | K12: 12800 | L12: 13000 | M12: 12400 | N12: 12800 | O12: 12600 | P12: 13200 | Q12: 13400 | R12: 13600 | S12: 13600 | T12: 13400 | U12: 13800 | V12: 13600 | W12: 13800 | X12: 13800 | Y12: 13800 | Z12: 14400 | AA12: 13800 | AB12: 13800 | AC12: 14000 | AD12: 15200 | AE12: 15679 | AF12: 15369 | AG12: 12584 | AH12: =(7500*4*510)/1000 -> 15300 | AI12: =(7500*4*510)/1000 -> 15300 | AJ12: 15300 | AK12: 15300 | AL12: 15300 | AM12: 15300 | AN12: 15300 | AO12: 15300 | AP12: 15300 | AQ12: 15300 | AR12: 15300 | AS12: 15300 | AT12: 15300 | AU12: 15300 | AV12: 15300 | AW12: 15300 | AX12: 15300 | AY12: 15300 | AZ12: 15300 | BA12: 15300
A13: NÁKLADY NA PALIVO ([Kč], zaokrouhleno na celá čísla)
A14: Cena za 1kg rudy | C14: 762.2472752 | D14: 754.599954 | E14: 747.0293553 | F14: 769.9720965 | G14: 526.6055911 | H14: 513.3419103 | I14: 459.9922819 | J14: 449.0706551 | K14: 531.3976205 | L14: 493.6495597 | M14: 604.9397604 | N14: 836.5567582 | O14: 680.6184588 | P14: 597.5877265 | Q14: 593.5869223 | R14: 499.8652004 | S14: 528.3525384 | T14: 561.41 | U14: 636 | V14: 1063.5 | W14: 1612.9 | X14: 2593.6 | Y14: 4791 | Z14: 4333.8 | AA14: 3460.8 | AB14: 3219.5 | AC14: 3527.8 | AD14: 3179.03 | AE14: 2858.03 | AF14: 2453.8 | AG14: 2444.89 | AH14: 2318.11 | AI14: 3176.603458 | AJ14: 3208.796021 | AK14: 3241.314833 | AL14: 3274.163199 | AM14: 3307.34446 | AN14: 3340.861989 | AO14: 3374.719193 | AP14: 3408.919515 | AQ14: 3443.466433 | AR14: 3478.363459 | AS14: 3513.61414 | AT14: 3549.222062 | AU14: 3585.190844 | AV14: 3621.524143 | AW14: 3658.225654 | AX14: 3695.299108 | AY14: 3732.748275 | AZ14: 3770.576962 | BA14: 3808.789014
A15: Kg rudy na výrobu elektřiny | B15: z 8,9kg rudy je 0,360GWh | C15: =(C12/0.36)*8.9 -> 59259.16667 | D15: =(D12/0.36)*8.9 -> 143388.8889 | E15: 267000 | F15: 291722.2222 | G15: 306555.5556 | H15: 311500 | I15: 301611.1111 | J15: 301611.1111 | K15: 316444.4444 | L15: 321388.8889 | M15: 306555.5556 | N15: 316444.4444 | O15: 311500 | P15: 326333.3333 | Q15: 331277.7778 | R15: 336222.2222 | S15: 336222.2222 | T15: 331277.7778 | U15: 341166.6667 | V15: 336222.2222 | W15: 341166.6667 | X15: 341166.6667 | Y15: 341166.6667 | Z15: 356000 | AA15: 341166.6667 | AB15: 341166.6667 | AC15: 346111.1111 | AD15: 375777.7778 | AE15: 387619.7222 | AF15: 379955.8333 | AG15: 311104.4444 | AH15: 378250 | AI15: 378250 | AJ15: 378250 | AK15: 378250 | AL15: 378250 | AM15: 378250 | AN15: 378250 | AO15: 378250 | AP15: 378250 | AQ15: 378250 | AR15: 378250 | AS15: 378250 | AT15: 378250 | AU15: 378250 | AV15: 378250 | AW15: 378250 | AX15: 378250 | AY15: 378250 | AZ15: 378250 | BA15: 378250
A16: Cena za rudu na výrobu | B16: 46% ceny paliva | C16: =C15*C14 -> 45170138.32 | D16: =D15*D14 -> 108201249 | E16: 199456837.9 | F16: 224617971 | G16: 161433869.5 | H16: 159906005 | I16: 138738783.2 | J16: 135444699.2 | K16: 168157824.8 | L16: 158653483.5 | M16: 185447644.3 | N16: 264723738.6 | O16: 212012649.9 | P16: 195012794.8 | Q16: 196642156.5 | R16: 168065788.5 | S16: 177643864.6 | T16: 185982657.2 | U16: 216982000 | V16: 357572333.3 | W16: 550267716.7 | X16: 884849866.7 | Y16: 1634529500 | Z16: 1542832800 | AA16: 1180709600 | AB16: 1098386083 | AC16: 1221010778 | AD16: 1194608829 | AE16: 1107828795 | AF16: 932335623.8 | AG16: 760616145.2 | AH16: 876825107.5 | AI16: 1201550258 | AJ16: 1213727095 | AK16: 1226027336 | AL16: 1238452230 | AM16: 1251003042 | AN16: 1263681047 | AO16: 1276487535 | AP16: 1289423807 | AQ16: 1302491178 | AR16: 1315690978 | AS16: 1329024549 | AT16: 1342493245 | AU16: 1356098437 | AV16: 1369841507 | AW16: 1383723854 | AX16: 1397746888 | AY16: 1411912035 | AZ16: 1426220736 | BA16: 1440674445
A17: Cena za palivo | C17: =(100/46)*C16 -> 98195952.88 | D17: =(100/46)*D16 -> 235220106.4 | E17: 433601821.4 | F17: 488299937 | G17: 350943194.6 | H17: 347621750.1 | I17: 301606050.5 | J17: 294444998.4 | K17: 365560488.7 | L17: 344898877.2 | M17: 403147052.9 | N17: 575486388.2 | O17: 460897065.1 | P17: 423940858.2 | Q17: 427482949 | R17: 365360409.8 | S17: 386182314.3 | T17: 404310124.4 | U17: 471700000 | V17: 777331159.4 | W17: 1196234167 | X17: 1923586667 | Y17: 3553325000 | Z17: 3353984348 | AA17: 2566760000 | AB17: 2387795833 | AC17: 2654371256 | AD17: 2596975715 | AE17: 2408323467 | AF17: 2026816574 | AG17: 1653513359 | AH17: 1906141538 | AI17: 2612065778 | AJ17: 2638537163 | AK17: 2665276817 | AL17: 2692287457 | AM17: 2719571831 | AN17: 2747132711 | AO17: 2774972902 | AP17: 2803095232 | AQ17: 2831502562 | AR17: 2860197779 | AS17: 2889183801 | AT17: 2918463576 | AU17: 2948040080 | AV17: 2977916320 | AW17: 3008095334 | AX17: 3038580191 | AY17: 3069373989 | AZ17: 3100479860 | BA17: 3131900967
A19: ODVODY NA JADERNÝ ÚČET ([Kč], zaokrouhleno na celá čísla) | B19: 50 | C19: =$B$19*1000*C12 -> 119850000 | D19: =$B$19*1000*D12 -> 290000000 | E19: 540000000 | F19: 590000000 | G19: 620000000 | H19: 630000000 | I19: 610000000 | J19: 610000000 | K19: 640000000 | L19: 650000000 | M19: 620000000 | N19: 640000000 | O19: 630000000 | P19: 660000000 | Q19: 670000000 | R19: 680000000 | S19: =$B$19*1000*S12 -> 680000000 | T19: 670000000 | U19: 690000000 | V19: 680000000 | W19: 690000000 | X19: 690000000 | Y19: 690000000 | Z19: 720000000 | AA19: 690000000 | AB19: 690000000 | AC19: 700000000 | AD19: 760000000 | AE19: 783950000 | AF19: 768450000 | AG19: 629200000 | AH19: 765000000 | AI19: 765000000 | AJ19: 765000000 | AK19: 765000000 | AL19: 765000000 | AM19: 765000000 | AN19: 765000000 | AO19: 765000000 | AP19: 765000000 | AQ19: 765000000 | AR19: 765000000 | AS19: 765000000 | AT19: 765000000 | AU19: 765000000 | AV19: 765000000 | AW19: 765000000 | AX19: 765000000 | AY19: 765000000 | AZ19: 765000000 | BA19: 765000000
A21: REŽIE ([Kč], zaokrouhleno na celá čísla) | B21: 0.23 | C21: =(0.23/0.13)*C17 -> 173731301.2 | D21: =(0.23/0.13)*D17 -> 416158649.8 | E21: 767141684.1 | F21: 863915273.2 | G21: 620899498.2 | H21: 615023096.3 | I21: 533610704.8 | J21: 520941151 | K21: 646760864.6 | L21: 610205705.7 | M21: 713260170.5 | N21: 1018168225 | O21: 815433268.9 | P21: 750049210.6 | Q21: 756315986.6 | R21: 646406878.8 | S21: 683245633 | T21: 715317912.4 | U21: 834546153.8 | V21: 1375278205 | W21: 2116414295 | X21: 3403268718 | Y21: 6286651923 | Z21: 5933972308 | AA21: 4541190769 | AB21: 4224561859 | AC21: 4696195299 | AD21: 4594649342 | AE21: 4260879980 | AF21: 3585906246 | AG21: 2925446712 | AH21: 3372404260 | AI21: 4621347145 | AJ21: 4668181135 | AK21: 4715489752 | AL21: 4763277808 | AM21: 4811550162 | AN21: 4860311720 | AO21: 4909567441 | AP21: 4959322333 | AQ21: 5009581455 | AR21: 5060349917 | AS21: 5111632879 | AT21: 5163435558 | AU21: 5215763218 | AV21: 5268621182 | AW21: 5322014822 | AX21: 5375949568 | AY21: 5430430904 | AZ21: 5485464368 | BA21: 5541055556
A23: POJIŠTĚNÍ ([Kč], zaokrouhleno na celá čísla) | B23: 0.01 | C23: =(0.01/0.13)*C17 -> 7553534.837 | D23: =(0.01/0.13)*D17 -> 18093854.34 | E23: 33353986.26 | F23: 37561533.62 | G23: 26995630.36 | H23: 26740134.62 | I23: 23200465.43 | J23: 22649615.26 | K23: 28120037.59 | L23: 26530682.86 | M23: 31011311.76 | N23: 44268183.71 | O23: 35453620.39 | P23: 32610835.24 | Q23: 32883303.77 | R23: 28104646.91 | S23: 29706331.87 | T23: 31100778.8 | U23: 36284615.38 | V23: 59794704.57 | W23: 92018012.82 | X23: 147968205.1 | Y23: 273332692.3 | Z23: 257998796 | AA23: 197443076.9 | AB23: 183676602.6 | AC23: 204182404.3 | AD23: 199767362.7 | AE23: 185255651.3 | AF23: 155908967.2 | AG23: 127193335.3 | AH23: 146626272.2 | AI23: 200928136.8 | AJ23: 202964397.2 | AK23: 205021293.6 | AL23: 207099035.1 | AM23: 209197833.1 | AN23: 211317900.9 | AO23: 213459454 | AP23: 215622710.2 | AQ23: 217807889.4 | AR23: 220015213.8 | AS23: 222244907.8 | AT23: 224497198.2 | AU23: 226772313.8 | AV23: 229070486.2 | AW23: 231391948.8 | AX23: 233736937.8 | AY23: 236105691.5 | AZ23: 238498450.8 | BA23: 240915459
A25: REZERVA NA VYŘAZOVÁNÍ A SKLADOVÁNÍ ([Kč], zaokrouhleno na celá čísla) | B25: 0.06 | C25: =(0.06/0.13)*C17 -> 45321209.02 | D25: =(0.06/0.13)*D17 -> 108563126 | E25: 200123917.6 | F25: 225369201.7 | G25: 161973782.1 | H25: 160440807.7 | I25: 139202792.6 | J25: 135897691.6 | K25: 168720225.5 | L25: 159184097.2 | M25: 186067870.6 | N25: 265609102.3 | O25: 212721722.3 | P25: 195665011.5 | Q25: 197299822.6 | R25: 168627881.4 | S25: 178237991.2 | T25: 186604672.8 | U25: 217707692.3 | V25: 358768227.4 | W25: 552108076.9 | X25: 887809230.8 | Y25: 1639996154 | Z25: 1547992776 | AA25: 1184658462 | AB25: 1102059615 | AC25: 1225094426 | AD25: 1198604176 | AE25: 1111533908 | AF25: 935453803.2 | AG25: 763160011.9 | AH25: 879757632.9 | AI25: 1205568821 | AJ25: 1217786383 | AK25: 1230127761 | AL25: 1242594211 | AM25: 1255186999 | AN25: 1267907405 | AO25: 1280756724 | AP25: 1293736261 | AQ25: 1306847336 | AR25: 1320091283 | AS25: 1333469447 | AT25: 1346983189 | AU25: 1360633883 | AV25: 1374422917 | AW25: 1388351693 | AX25: 1402421627 | AY25: 1416634149 | AZ25: 1430990705 | BA25: 1445492754
A27: PERSONÁLNÍ NÁKLADY ([Kč], zaokrouhleno na celá čísla) | B27: 0.05 | C27: =(0.05/0.13)*C17 -> 37767674.18 | D27: =(0.05/0.13)*D17 -> 90469271.7 | E27: 166769931.3 | F27: 187807668.1 | G27: 134978151.8 | H27: 133700673.1 | I27: 116002327.1 | J27: 113248076.3 | K27: 140600188 | L27: 132653414.3 | M27: 155056558.8 | N27: 221340918.6 | O27: 177268101.9 | P27: 163054176.2 | Q27: 164416518.8 | R27: 140523234.5 | S27: 148531659.4 | T27: 155503894 | U27: 181423076.9 | V27: 298973522.9 | W27: 460090064.1 | X27: 739841025.6 | Y27: 1366663462 | Z27: 1289993980 | AA27: 987215384.6 | AB27: 918383012.8 | AC27: 1020912022 | AD27: 998836813.5 | AE27: 926278256.4 | AF27: 779544836 | AG27: 635966676.6 | AH27: 733131360.8 | AI27: 1004640684 | AJ27: 1014821986 | AK27: 1025106468 | AL27: 1035495176 | AM27: 1045989166 | AN27: 1056589504 | AO27: 1067297270 | AP27: 1078113551 | AQ27: 1089039447 | AR27: 1100076069 | AS27: 1111224539 | AT27: 1122485991 | AU27: 1133861569 | AV27: 1145352431 | AW27: 1156959744 | AX27: 1168684689 | AY27: 1180528457 | AZ27: 1192492254 | BA27: 1204577295
A29: SLUŽBY, MATERIÁL, ÚDRŽBA ([Kč], zaokrouhleno na celá čísla) | B29: 0.06 | C29: =(0.06/0.13)*C17 -> 45321209.02 | D29: =(0.06/0.13)*D17 -> 108563126 | E29: 200123917.6 | F29: 225369201.7 | G29: 161973782.1 | H29: 160440807.7 | I29: 139202792.6 | J29: 135897691.6 | K29: 168720225.5 | L29: 159184097.2 | M29: 186067870.6 | N29: 265609102.3 | O29: 212721722.3 | P29: 195665011.5 | Q29: 197299822.6 | R29: 168627881.4 | S29: 178237991.2 | T29: 186604672.8 | U29: 217707692.3 | V29: 358768227.4 | W29: 552108076.9 | X29: 887809230.8 | Y29: 1639996154 | Z29: 1547992776 | AA29: 1184658462 | AB29: 1102059615 | AC29: 1225094426 | AD29: 1198604176 | AE29: 1111533908 | AF29: 935453803.2 | AG29: 763160011.9 | AH29: 879757632.9 | AI29: 1205568821 | AJ29: 1217786383 | AK29: 1230127761 | AL29: 1242594211 | AM29: 1255186999 | AN29: 1267907405 | AO29: 1280756724 | AP29: 1293736261 | AQ29: 1306847336 | AR29: 1320091283 | AS29: 1333469447 | AT29: 1346983189 | AU29: 1360633883 | AV29: 1374422917 | AW29: 1388351693 | AX29: 1402421627 | AY29: 1416634149 | AZ29: 1430990705 | BA29: 1445492754
A31: OSTATNÍ ([Kč], zaokrouhleno na celá čísla) | B31: 0.02 | C31: =(0.02/0.13)*C17 -> 15107069.67 | D31: =(0.02/0.13)*D17 -> 36187708.68 | E31: 66707972.53 | F31: 75123067.24 | G31: 53991260.71 | H31: 53480269.25 | I31: 46400930.85 | J31: 45299230.52 | K31: 56240075.18 | L31: 53061365.72 | M31: 62022623.52 | N31: 88536367.42 | O31: 70907240.78 | P31: 65221670.49 | Q31: 65766607.53 | R31: 56209293.81 | S31: 59412663.74 | T31: 62201557.6 | U31: 72569230.77 | V31: 119589409.1 | W31: 184036025.6 | X31: 295936410.3 | Y31: 546665384.6 | Z31: 515997592 | AA31: 394886153.8 | AB31: 367353205.1 | AC31: 408364808.6 | AD31: 399534725.4 | AE31: 370511302.6 | AF31: 311817934.4 | AG31: 254386670.6 | AH31: 293252544.3 | AI31: 401856273.5 | AJ31: 405928794.3 | AK31: 410042587.2 | AL31: 414198070.3 | AM31: 418395666.2 | AN31: 422635801.7 | AO31: 426918907.9 | AP31: 431245420.3 | AQ31: 435615778.7 | AR31: 440030427.5 | AS31: 444489815.6 | AT31: 448994396.3 | AU31: 453544627.7 | AV31: 458140972.3 | AW31: 462783897.6 | AX31: 467473875.5 | AY31: 472211382.9 | AZ31: 476996901.6 | BA31: 481830917.9
A34: VÝNOSY ([Kč], zaokrouhleno na celá čísla)
A35: CENA ZA 1MWh ELEKTŘINY | C35: 919.4556117 | D35: 928.773625 | E35: 938.1860696 | F35: 947.6939025 | G35: 957.2980903 | H35: 966.9996096 | I35: 976.7994468 | J35: 986.6985981 | K35: 996.6980701 | L35: 1006.79888 | M35: 1017.002053 | N35: 1027.308629 | O35: 1037.719654 | P35: 1048.236187 | Q35: 1058.859298 | R35: 1069.590066 | S35: 1080.429583 | T35: 1091.37895 | U35: 1102.439281 | V35: 1113.611701 | W35: 1124.897345 | X35: 1136.297361 | Y35: 1147.812907 | Z35: 1741.6464 | AA35: 1022.112 | AB35: 1346.592 | AC35: 1514.24 | AD35: 1338.48 | AE35: 993.4496 | AF35: 891.2384 | AG35: 873.9328 | AH35: 713.3152 | AI35: 1171.195288 | AJ35: 1183.0645 | AK35: 1195.053997 | AL35: 1207.165 | AM35: 1219.398738 | AN35: 1231.756457 | AO35: 1244.239412 | AP35: 1256.848873 | AQ35: 1269.586121 | AR35: 1282.452452 | AS35: 1295.449174 | AT35: 1308.577609 | AU35: 1321.83909 | AV35: 1335.234967 | AW35: 1348.766601 | AX35: 1362.435369 | AY35: 1376.24266 | AZ35: 1390.189877 | BA35: 1404.27844
A37: UTRŽENO ZA ELEKTŘINU | C37: =C35*C12*1000 -> 2203935101 | D37: =D35*D12*1000 -> 5386887025 | E37: 1.013240955e+10 | F37: 1.118278805e+10 | G37: 1.187049632e+10 | H37: 1.218419508e+10 | I37: 1.191695325e+10 | J37: 1.20377229e+10 | K37: 1.27577353e+10 | L37: 1.308838543e+10 | M37: 1.261082546e+10 | N37: 1.314955045e+10 | O37: 1.307526764e+10 | P37: 1.383671767e+10 | Q37: 1.418871459e+10 | R37: 1.45464249e+10 | S37: 1.469384233e+10 | T37: 1.462447793e+10 | U37: 1.521366208e+10 | V37: 1.514511913e+10 | W37: 1.552358336e+10 | X37: 1.568090358e+10 | Y37: 1.583981812e+10 | Z37: 2.507970816e+10 | AA37: 1.41051456e+10 | AB37: 1.85829696e+10 | AC37: 21199360000 | AD37: 20344896000 | AE37: 1.557629628e+10 | AF37: 1.369744297e+10 | AG37: 1.099757036e+10 | AH37: 10913722560 | AI37: 1.791928791e+10 | AJ37: 1.810088685e+10 | AK37: 1.828432616e+10 | AL37: 1.84696245e+10 | AM37: 1.86568007e+10 | AN37: 1.884587379e+10 | AO37: 1.9036863e+10 | AP37: 1.922978775e+10 | AQ37: 1.942466765e+10 | AR37: 1.962152252e+10 | AS37: 1.982037237e+10 | AT37: 2.002123741e+10 | AU37: 2.022413808e+10 | AV37: 2.0429095e+10 | AW37: 2.0636129e+10 | AX37: 2.084526115e+10 | AY37: 2.10565127e+10 | AZ37: 2.126990512e+10 | BA37: 2.148546013e+10
A39: PROVOZNÍ CASH FLOW (POČÍTÁNO PŘED ZDANĚNÍM) ([Kč], zaokrouhleno na celá čísla) | C39: =C37-(SUM(C17:C31)) -> 1661087150 | D39: =D37-(SUM(D17:D31)) -> 4083631182 | E39: =E37-(SUM(E17:E31)) -> 7724586321 | F39: 8489342167 | G39: 9738741020 | H39: 1.005674754e+10 | I39: 1.000772719e+10 | J39: 1.015934444e+10 | K39: 1.054301319e+10 | L39: 1.095266719e+10 | M39: 1.0254192e+10 | N39: 1.003053216e+10 | O39: 1.04598649e+10 | P39: 1.13505109e+10 | Q39: 1.167724958e+10 | R39: 1.229256467e+10 | S39: 1.235028774e+10 | T39: 1.221283432e+10 | U39: 1.249172362e+10 | V39: 1.111661568e+10 | W39: 9680574642 | X39: 6704684090 | Y39: -156812648.8 | Z39: 9911775585 | AA39: 2358333292 | AB39: 7607079856 | AC39: 9065145359 | AD39: 8397923689 | AE39: 4418029806 | AF39: 4198090807 | AG39: 3245543578 | AH39: 1937651319 | AI39: 5902312251 | AJ39: 5969880607 | AK39: 6038133720 | AL39: 6107078528 | AM39: 6176722041 | AN39: 6247071341 | AO39: 6318133579 | AP39: 6389915982 | AQ39: 6462425847 | AR39: 6535670547 | AS39: 6609657529 | AT39: 6684394314 | AU39: 6759888503 | AV39: 6836147770 | AW39: 6913179870 | AX39: 6990992634 | AY39: 7069593973 | AZ39: 7148991880 | BA39: 7229194427
A41: INVESTIČNÍ CASH FLOW ([Kč], zaokrouhleno na celá čísla) | C41: =-C4 -> 0 | D41: =-D4 -> 0 | E41: 0 | F41: 0 | G41: 0 | H41: 0 | I41: 0 | J41: 0 | K41: 0 | L41: 0 | M41: 0 | N41: 0 | O41: 0 | P41: 0 | Q41: 0 | R41: 0 | S41: 0 | T41: 0 | U41: 0 | V41: 0 | W41: -2083333333 | X41: -2083333333 | Y41: -2083333333 | Z41: -2083333333 | AA41: -2083333333 | AB41: -2083333333 | AC41: -2083333333 | AD41: -2083333333 | AE41: -2083333333 | AF41: -2083333333 | AG41: -2083333333 | AH41: -2083333333 | AI41: 0 | AJ41: 0 | AK41: 0 | AL41: 0 | AM41: 0 | AN41: 0 | AO41: 0 | AP41: 0 | AQ41: 0 | AR41: -500000000 | AS41: 0 | AT41: 0 | AU41: 0 | AV41: 0 | AW41: 0 | AX41: 0 | AY41: 0 | AZ41: 0 | BA41: 0
A43: CASH FLOW CELKOVÉ ([Kč], zaokrouhleno na celá čísla) | B43: =-B4 -> -25000000000 | C43: =C39+C41 -> 1661087150 | D43: =D39+D41 -> 4083631182 | E43: 7724586321 | F43: 8489342167 | G43: 9738741020 | H43: 1.005674754e+10 | I43: 1.000772719e+10 | J43: 1.015934444e+10 | K43: 1.054301319e+10 | L43: 1.095266719e+10 | M43: 1.0254192e+10 | N43: 1.003053216e+10 | O43: 1.04598649e+10 | P43: 1.13505109e+10 | Q43: 1.167724958e+10 | R43: 1.229256467e+10 | S43: 1.235028774e+10 | T43: 1.221283432e+10 | U43: 1.249172362e+10 | V43: 1.111661568e+10 | W43: 7597241309 | X43: 4621350757 | Y43: -2240145982 | Z43: 7828442251 | AA43: 274999959 | AB43: 5523746523 | AC43: 6981812025 | AD43: 6314590356 | AE43: 2334696473 | AF43: 2114757473 | AG43: 1162210244 | AH43: -145682014.1 | AI43: 5902312251 | AJ43: 5969880607 | AK43: 6038133720 | AL43: 6107078528 | AM43: 6176722041 | AN43: 6247071341 | AO43: 6318133579 | AP43: 6389915982 | AQ43: 6462425847 | AR43: 6035670547 | AS43: 6609657529 | AT43: 6684394314 | AU43: 6759888503 | AV43: 6836147770 | AW43: 6913179870 | AX43: 6990992634 | AY43: 7069593973 | AZ43: 7148991880 | BA43: 7229194427
A46: DISKONT | B46: 0.2 | C46: 0.15 | D46: 0.1 | E46: 0.05
A47: NPV | B47: =NPV(B46,$C$43:$BA$43)-$B$4 -> 1.208586879e+10 | C47: =NPV(C46,$C$43:$BA$43)-$B$4 -> 2.703567365e+10 | D47: =NPV(D46,$C$43:$BA$43)-$B$4 -> 5.482016009e+10 | E47: =NPV(E46,$C$43:$BA$43)-$B$4 -> 1.189656428e+11
A48: NPV | B48: =ROUND(B47,-6) -> 12086000000 | C48: =ROUND(C47,-6) -> 27036000000 | D48: 54820000000 | E48: 118966000000 | I48: =IRR(I42:BH42) ->  | J48: =IRRm(I42:BH42) -> 1.1 | M48: =IRR(M42:BL42) ->  | N48: =IRRm(M42:BL42) -> 1.1 | Q48: =IRR(Q42:BP42) ->  | R48: =IRRm(Q42:BP42) -> 1.1 | U48: =IRR(U42:BT42) ->  | V48: =IRRm(U42:BT42) -> 1.1 | Y48: =IRR(Y42:BX42) ->  | Z48: =IRRm(Y42:BX42) -> 1.1 | AC48: =IRR(AC42:CB42) ->  | AD48: =IRRm(AC42:CB42) -> 1.1 | AG48: =IRR(AG42:CF42) ->  | AH48: =IRRm(AG42:CF42) -> 1.1 | AK48: =IRR(AK42:CJ42) ->  | AL48: =IRRm(AK42:CJ42) -> 1.1 | AO48: =IRR(AO42:CN42) ->  | AP48: =IRRm(AO42:CN42) -> 1.1 | AS48: =IRR(AS42:CR42) ->  | AT48: =IRRm(AS42:CR42) -> 1.1 | AW48: =IRR(AW42:CV42) ->  | AX48: =IRRm(AW42:CV42) -> 1.1 | ASW48: =IRR(ASW42:AUV42) ->  | ASX48: =IRRm(ASW42:AUV42) -> 1.1 | ATA48: =IRR(ATA42:AUZ42) ->  | ATB48: =IRRm(ATA42:AUZ42) -> 1.1 | ATE48: =IRR(ATE42:AVD42) ->  | ATF48: =IRRm(ATE42:AVD42) -> 1.1 | ATI48: =IRR(ATI42:AVH42) ->  | ATJ48: =IRRm(ATI42:AVH42) -> 1.1 | ATM48: =IRR(ATM42:AVL42) ->  | ATN48: =IRRm(ATM42:AVL42) -> 1.1 | ATQ48: =IRR(ATQ42:AVP42) ->  | ATR48: =IRRm(ATQ42:AVP42) -> 1.1 | ATU48: =IRR(ATU42:AVT42) ->  | ATV48: =IRRm(ATU42:AVT42) -> 1.1 | ATY48: =IRR(ATY42:AVX42) ->  | ATZ48: =IRRm(ATY42:AVX42) -> 1.1 | AUC48: =IRR(AUC42:AWB42) ->  | AUD48: =IRRm(AUC42:AWB42) -> 1.1 | AUG48: =IRR(AUG42:AWF42) ->  | AUH48: =IRRm(AUG42:AWF42) -> 1.1 | AUK48: =IRR(AUK42:AWJ42) ->  | AUL48: =IRRm(AUK42:AWJ42) -> 1.1 | AUO48: =IRR(AUO42:AWN42) ->  | AUP48: =IRRm(AUO42:AWN42) -> 1.1 | AUS48: =IRR(AUS42:AWR42) ->  | AUT48: =IRRm(AUS42:AWR42) -> 1.1 | AUW48: =IRR(AUW42:AWV42) ->  | AUX48: =IRRm(AUW42:AWV42) -> 1.1 | AVA48: =IRR(AVA42:AWZ42) ->  | AVB48: =IRRm(AVA42:AWZ42) -> 1.1 | AVE48: =IRR(AVE42:AXD42) ->  | AVF48: =IRRm(AVE42:AXD42) -> 1.1 | AVI48: =IRR(AVI42:AXH42) ->  | AVJ48: =IRRm(AVI42:AXH42) -> 1.1 | AVM48: =IRR(AVM42:AXL42) ->  | AVN48: =IRRm(AVM42:AXL42) -> 1.1 | AVQ48: =IRR(AVQ42:AXP42) ->  | AVR48: =IRRm(AVQ42:AXP42) -> 1.1 | AVU48: =IRR(AVU42:AXT42) ->  | AVV48: =IRRm(AVU42:AXT42) -> 1.1 | AVY48: =IRR(AVY42:AXX42) ->  | AVZ48: =IRRm(AVY42:AXX42) -> 1.1 | AWC48: =IRR(AWC42:AYB42) ->  | AWD48: =IRRm(AWC42:AYB42) -> 1.1 | AWG48: =IRR(AWG42:AYF42) ->  | AWH48: =IRRm(AWG42:AYF42) -> 1.1 | AWK48: =IRR(AWK42:AYJ42) ->  | AWL48: =IRRm(AWK42:AYJ42) -> 1.1 | AWO48: =IRR(AWO42:AYN42) ->  | AWP48: =IRRm(AWO42:AYN42) -> 1.1 | AWS48: =IRR(AWS42:AYR42) ->  | AWT48: =IRRm(AWS42:AYR42) -> 1.1 | AWW48: =IRR(AWW42:AYV42) ->  | AWX48: =IRRm(AWW42:AYV42) -> 1.1 | AXA48: =IRR(AXA42:AYZ42) ->  | AXB48: =IRRm(AXA42:AYZ42) -> 1.1 | AXE48: =IRR(AXE42:AZD42) ->  | AXF48: =IRRm(AXE42:AZD42) -> 1.1 | AXI48: =IRR(AXI42:AZH42) ->  | AXJ48: =IRRm(AXI42:AZH42) -> 1.1 | AXM48: =IRR(AXM42:AZL42) ->  | AXN48: =IRRm(AXM42:AZL42) -> 1.1 | AXQ48: =IRR(AXQ42:AZP42) ->  | AXR48: =IRRm(AXQ42:AZP42) -> 1.1 | AXU48: =IRR(AXU42:AZT42) ->  | AXV48: =IRRm(AXU42:AZT42) -> 1.1 | AXY48: =IRR(AXY42:AZX42) ->  | AXZ48: =IRRm(AXY42:AZX42) -> 1.1 | AYC48: =IRR(AYC42:BAB42) ->  | AYD48: =IRRm(AYC42:BAB42) -> 1.1 | AYG48: =IRR(AYG42:BAF42) ->  | AYH48: =IRRm(AYG42:BAF42) -> 1.1 | AYK48: =IRR(AYK42:BAJ42) ->  | AYL48: =IRRm(AYK42:BAJ42) -> 1.1 | AYO48: =IRR(AYO42:BAN42) ->  | AYP48: =IRRm(AYO42:BAN42) -> 1.1 | AYS48: =IRR(AYS42:BAR42) ->  | AYT48: =IRRm(AYS42:BAR42) -> 1.1 | AYW48: =IRR(AYW42:BAV42) ->  | AYX48: =IRRm(AYW42:BAV42) -> 1.1 | AZA48: =IRR(AZA42:BAZ42) ->  | AZB48: =IRRm(AZA42:BAZ42) -> 1.1 | AZE48: =IRR(AZE42:BBD42) ->  | AZF48: =IRRm(AZE42:BBD42) -> 1.1 | AZI48: =IRR(AZI42:BBH42) ->  | AZJ48: =IRRm(AZI42:BBH42) -> 1.1 | AZM48: =IRR(AZM42:BBL42) ->  | AZN48: =IRRm(AZM42:BBL42) -> 1.1 | AZQ48: =IRR(AZQ42:BBP42) ->  | AZR48: =IRRm(AZQ42:BBP42) -> 1.1 | AZU48: =IRR(AZU42:BBT42) ->  | AZV48: =IRRm(AZU42:BBT42) -> 1.1 | AZY48: =IRR(AZY42:BBX42) ->  | AZZ48: =IRRm(AZY42:BBX42) -> 1.1 | BAC48: =IRR(BAC42:BCB42) ->  | BAD48: =IRRm(BAC42:BCB42) -> 1.1 | BAG48: =IRR(BAG42:BCF42) ->  | BAH48: =IRRm(BAG42:BCF42) -> 1.1 | BAK48: =IRR(BAK42:BCJ42) ->  | BAL48: =IRRm(BAK42:BCJ42) -> 1.1 | BAO48: =IRR(BAO42:BCN42) ->  | BAP48: =IRRm(BAO42:BCN42) -> 1.1 | BAS48: =IRR(BAS42:BCR42) ->  | BAT48: =IRRm(BAS42:BCR42) -> 1.1 | BAW48: =IRR(BAW42:BCV42) ->  | BAX48: =IRRm(BAW42:BCV42) -> 1.1 | BBA48: =IRR(BBA42:BCZ42) ->  | BBB48: =IRRm(BBA42:BCZ42) -> 1.1 | BBE48: =IRR(BBE42:BDD42) ->  | BBF48: =IRRm(BBE42:BDD42) -> 1.1 | BBI48: =IRR(BBI42:BDH42) ->  | BBJ48: =IRRm(BBI42:BDH42) -> 1.1 | BBM48: =IRR(BBM42:BDL42) ->  | BBN48: =IRRm(BBM42:BDL42) -> 1.1 | BBQ48: =IRR(BBQ42:BDP42) ->  | BBR48: =IRRm(BBQ42:BDP42) -> 1.1 | BBU48: =IRR(BBU42:BDT42) ->  | BBV48: =IRRm(BBU42:BDT42) -> 1.1 | BBY48: =IRR(BBY42:BDX42) ->  | BBZ48: =IRRm(BBY42:BDX42) -> 1.1 | BCC48: =IRR(BCC42:BEB42) ->  | BCD48: =IRRm(BCC42:BEB42) -> 1.1 | BCG48: =IRR(BCG42:BEF42) ->  | BCH48: =IRRm(BCG42:BEF42) -> 1.1 | BCK48: =IRR(BCK42:BEJ42) ->  | BCL48: =IRRm(BCK42:BEJ42) -> 1.1 | BCO48: =IRR(BCO42:BEN42) ->  | BCP48: =IRRm(BCO42:BEN42) -> 1.1 | BCS48: =IRR(BCS42:BER42) ->  | BCT48: =IRRm(BCS42:BER42) -> 1.1 | BCW48: =IRR(BCW42:BEV42) ->  | BCX48: =IRRm(BCW42:BEV42) -> 1.1 | BDA48: =IRR(BDA42:BEZ42) ->  | BDB48: =IRRm(BDA42:BEZ42) -> 1.1 | BDE48: =IRR(BDE42:BFD42) ->  | BDF48: =IRRm(BDE42:BFD42) -> 1.1 | BDI48: =IRR(BDI42:BFH42) ->  | BDJ48: =IRRm(BDI42:BFH42) -> 1.1 | BDM48: =IRR(BDM42:BFL42) ->  | BDN48: =IRRm(BDM42:BFL42) -> 1.1 | BDQ48: =IRR(BDQ42:BFP42) ->  | BDR48: =IRRm(BDQ42:BFP42) -> 1.1 | BDU48: =IRR(BDU42:BFT42) ->  | BDV48: =IRRm(BDU42:BFT42) -> 1.1 | BDY48: =IRR(BDY42:BFX42) ->  | BDZ48: =IRRm(BDY42:BFX42) -> 1.1 | BEC48: =IRR(BEC42:BGB42) ->  | BED48: =IRRm(BEC42:BGB42) -> 1.1 | BEG48: =IRR(BEG42:BGF42) ->  | BEH48: =IRRm(BEG42:BGF42) -> 1.1 | BEK48: =IRR(BEK42:BGJ42) ->  | BEL48: =IRRm(BEK42:BGJ42) -> 1.1 | BEO48: =IRR(BEO42:BGN42) ->  | BEP48: =IRRm(BEO42:BGN42) -> 1.1 | BES48: =IRR(BES42:BGR42) ->  | BET48: =IRRm(BES42:BGR42) -> 1.1 | BEW48: =IRR(BEW42:BGV42) ->  | BEX48: =IRRm(BEW42:BGV42) -> 1.1 | BFA48: =IRR(BFA42:BGZ42) ->  | BFB48: =IRRm(BFA42:BGZ42) -> 1.1 | BFE48: =IRR(BFE42:BHD42) ->  | BFF48: =IRRm(BFE42:BHD42) -> 1.1 | BFI48: =IRR(BFI42:BHH42) ->  | BFJ48: =IRRm(BFI42:BHH42) -> 1.1 | BFM48: =IRR(BFM42:BHL42) ->  | BFN48: =IRRm(BFM42:BHL42) -> 1.1 | BFQ48: =IRR(BFQ42:BHP42) ->  | BFR48: =IRRm(BFQ42:BHP42) -> 1.1 | BFU48: =IRR(BFU42:BHT42) ->  | BFV48: =IRRm(BFU42:BHT42) -> 1.1 | BFY48: =IRR(BFY42:BHX42) ->  | BFZ48: =IRRm(BFY42:BHX42) -> 1.1 | BGC48: =IRR(BGC42:BIB42) ->  | BGD48: =IRRm(BGC42:BIB42) -> 1.1 | BGG48: =IRR(BGG42:BIF42) ->  | BGH48: =IRRm(BGG42:BIF42) -> 1.1 | BGK48: =IRR(BGK42:BIJ42) ->  | BGL48: =IRRm(BGK42:BIJ42) -> 1.1 | BGO48: =IRR(BGO42:BIN42) ->  | BGP48: =IRRm(BGO42:BIN42) -> 1.1 | BGS48: =IRR(BGS42:BIR42) ->  | BGT48: =IRRm(BGS42:BIR42) -> 1.1 | BGW48: =IRR(BGW42:BIV42) ->  | BGX48: =IRRm(BGW42:BIV42) -> 1.1 | BHA48: =IRR(BHA42:BIZ42) ->  | BHB48: =IRRm(BHA42:BIZ42) -> 1.1 | BHE48: =IRR(BHE42:BJD42) ->  | BHF48: =IRRm(BHE42:BJD42) -> 1.1 | BHI48: =IRR(BHI42:BJH42) ->  | BHJ48: =IRRm(BHI42:BJH42) -> 1.1 | BHM48: =IRR(BHM42:BJL42) ->  | BHN48: =IRRm(BHM42:BJL42) -> 1.1 | BHQ48: =IRR(BHQ42:BJP42) ->  | BHR48: =IRRm(BHQ42:BJP42) -> 1.1 | BHU48: =IRR(BHU42:BJT42) ->  | BHV48: =IRRm(BHU42:BJT42) -> 1.1 | BHY48: =IRR(BHY42:BJX42) ->  | BHZ48: =IRRm(BHY42:BJX42) -> 1.1 | BIC48: =IRR(BIC42:BKB42) ->  | BID48: =IRRm(BIC42:BKB42) -> 1.1 | BIG48: =IRR(BIG42:BKF42) ->  | BIH48: =IRRm(BIG42:BKF42) -> 1.1 | BIK48: =IRR(BIK42:BKJ42) ->  | BIL48: =IRRm(BIK42:BKJ42) -> 1.1 | BIO48: =IRR(BIO42:BKN42) ->  | BIP48: =IRRm(BIO42:BKN42) -> 1.1 | BIS48: =IRR(BIS42:BKR42) ->  | BIT48: =IRRm(BIS42:BKR42) -> 1.1 | BIW48: =IRR(BIW42:BKV42) ->  | BIX48: =IRRm(BIW42:BKV42) -> 1.1 | BJA48: =IRR(BJA42:BKZ42) ->  | BJB48: =IRRm(BJA42:BKZ42) -> 1.1 | BJE48: =IRR(BJE42:BLD42) ->  | BJF48: =IRRm(BJE42:BLD42) -> 1.1 | BJI48: =IRR(BJI42:BLH42) ->  | BJJ48: =IRRm(BJI42:BLH42) -> 1.1 | BJM48: =IRR(BJM42:BLL42) ->  | BJN48: =IRRm(BJM42:BLL42) -> 1.1 | BJQ48: =IRR(BJQ42:BLP42) ->  | BJR48: =IRRm(BJQ42:BLP42) -> 1.1 | BJU48: =IRR(BJU42:BLT42) ->  | BJV48: =IRRm(BJU42:BLT42) -> 1.1 | BJY48: =IRR(BJY42:BLX42) ->  | BJZ48: =IRRm(BJY42:BLX42) -> 1.1 | BKC48: =IRR(BKC42:BMB42) ->  | BKD48: =IRRm(BKC42:BMB42) -> 1.1 | BKG48: =IRR(BKG42:BMF42) ->  | BKH48: =IRRm(BKG42:BMF42) -> 1.1 | BKK48: =IRR(BKK42:BMJ42) ->  | BKL48: =IRRm(BKK42:BMJ42) -> 1.1 | BKO48: =IRR(BKO42:BMN42) ->  | BKP48: =IRRm(BKO42:BMN42) -> 1.1 | BKS48: =IRR(BKS42:BMR42) ->  | BKT48: =IRRm(BKS42:BMR42) -> 1.1 | BKW48: =IRR(BKW42:BMV42) ->  | BKX48: =IRRm(BKW42:BMV42) -> 1.1 | BLA48: =IRR(BLA42:BMZ42) ->  | BLB48: =IRRm(BLA42:BMZ42) -> 1.1 | BLE48: =IRR(BLE42:BND42) ->  | BLF48: =IRRm(BLE42:BND42) -> 1.1 | BLI48: =IRR(BLI42:BNH42) ->  | BLJ48: =IRRm(BLI42:BNH42) -> 1.1 | BLM48: =IRR(BLM42:BNL42) ->  | BLN48: =IRRm(BLM42:BNL42) -> 1.1 | BLQ48: =IRR(BLQ42:BNP42) ->  | BLR48: =IRRm(BLQ42:BNP42) -> 1.1 | BLU48: =IRR(BLU42:BNT42) ->  | BLV48: =IRRm(BLU42:BNT42) -> 1.1 | BLY48: =IRR(BLY42:BNX42) ->  | BLZ48: =IRRm(BLY42:BNX42) -> 1.1 | BMC48: =IRR(BMC42:BOB42) ->  | BMD48: =IRRm(BMC42:BOB42) -> 1.1 | BMG48: =IRR(BMG42:BOF42) ->  | BMH48: =IRRm(BMG42:BOF42) -> 1.1 | BMK48: =IRR(BMK42:BOJ42) ->  | BML48: =IRRm(BMK42:BOJ42) -> 1.1 | BMO48: =IRR(BMO42:BON42) ->  | BMP48: =IRRm(BMO42:BON42) -> 1.1 | BMS48: =IRR(BMS42:BOR42) ->  | BMT48: =IRRm(BMS42:BOR42) -> 1.1 | BMW48: =IRR(BMW42:BOV42) ->  | BMX48: =IRRm(BMW42:BOV42) -> 1.1 | BNA48: =IRR(BNA42:BOZ42) ->  | BNB48: =IRRm(BNA42:BOZ42) -> 1.1 | BNE48: =IRR(BNE42:BPD42) ->  | BNF48: =IRRm(BNE42:BPD42) -> 1.1 | BNI48: =IRR(BNI42:BPH42) ->  | BNJ48: =IRRm(BNI42:BPH42) -> 1.1 | BNM48: =IRR(BNM42:BPL42) ->  | BNN48: =IRRm(BNM42:BPL42) -> 1.1 | BNQ48: =IRR(BNQ42:BPP42) ->  | BNR48: =IRRm(BNQ42:BPP42) -> 1.1 | BNU48: =IRR(BNU42:BPT42) ->  | BNV48: =IRRm(BNU42:BPT42) -> 1.1 | BNY48: =IRR(BNY42:BPX42) ->  | BNZ48: =IRRm(BNY42:BPX42) -> 1.1 | BOC48: =IRR(BOC42:BQB42) ->  | BOD48: =IRRm(BOC42:BQB42) -> 1.1 | BOG48: =IRR(BOG42:BQF42) ->  | BOH48: =IRRm(BOG42:BQF42) -> 1.1 | BOK48: =IRR(BOK42:BQJ42) ->  | BOL48: =IRRm(BOK42:BQJ42) -> 1.1 | BOO48: =IRR(BOO42:BQN42) ->  | BOP48: =IRRm(BOO42:BQN42) -> 1.1 | BOS48: =IRR(BOS42:BQR42) ->  | BOT48: =IRRm(BOS42:BQR42) -> 1.1 | BOW48: =IRR(BOW42:BQV42) ->  | BOX48: =IRRm(BOW42:BQV42) -> 1.1 | BPA48: =IRR(BPA42:BQZ42) ->  | BPB48: =IRRm(BPA42:BQZ42) -> 1.1 | BPE48: =IRR(BPE42:BRD42) ->  | BPF48: =IRRm(BPE42:BRD42) -> 1.1 | BPI48: =IRR(BPI42:BRH42) ->  | BPJ48: =IRRm(BPI42:BRH42) -> 1.1 | BPM48: =IRR(BPM42:BRL42) ->  | BPN48: =IRRm(BPM42:BRL42) -> 1.1 | BPQ48: =IRR(BPQ42:BRP42) ->  | BPR48: =IRRm(BPQ42:BRP42) -> 1.1 | BPU48: =IRR(BPU42:BRT42) ->  | BPV48: =IRRm(BPU42:BRT42) -> 1.1 | BPY48: =IRR(BPY42:BRX42) ->  | BPZ48: =IRRm(BPY42:BRX42) -> 1.1 | BQC48: =IRR(BQC42:BSB42) ->  | BQD48: =IRRm(BQC42:BSB42) -> 1.1 | BQG48: =IRR(BQG42:BSF42) ->  | BQH48: =IRRm(BQG42:BSF42) -> 1.1 | BQK48: =IRR(BQK42:BSJ42) ->  | BQL48: =IRRm(BQK42:BSJ42) -> 1.1 | BQO48: =IRR(BQO42:BSN42) ->  | BQP48: =IRRm(BQO42:BSN42) -> 1.1 | BQS48: =IRR(BQS42:BSR42) ->  | BQT48: =IRRm(BQS42:BSR42) -> 1.1 | BQW48: =IRR(BQW42:BSV42) ->  | BQX48: =IRRm(BQW42:BSV42) -> 1.1 | BRA48: =IRR(BRA42:BSZ42) ->  | BRB48: =IRRm(BRA42:BSZ42) -> 1.1 | BRE48: =IRR(BRE42:BTD42) ->  | BRF48: =IRRm(BRE42:BTD42) -> 1.1 | BRI48: =IRR(BRI42:BTH42) ->  | BRJ48: =IRRm(BRI42:BTH42) -> 1.1 | BRM48: =IRR(BRM42:BTL42) ->  | BRN48: =IRRm(BRM42:BTL42) -> 1.1 | BRQ48: =IRR(BRQ42:BTP42) ->  | BRR48: =IRRm(BRQ42:BTP42) -> 1.1 | BRU48: =IRR(BRU42:BTT42) ->  | BRV48: =IRRm(BRU42:BTT42) -> 1.1 | BRY48: =IRR(BRY42:BTX42) ->  | BRZ48: =IRRm(BRY42:BTX42) -> 1.1 | BSC48: =IRR(BSC42:BUB42) ->  | BSD48: =IRRm(BSC42:BUB42) -> 1.1 | BSG48: =IRR(BSG42:BUF42) ->  | BSH48: =IRRm(BSG42:BUF42) -> 1.1 | BSK48: =IRR(BSK42:BUJ42) ->  | BSL48: =IRRm(BSK42:BUJ42) -> 1.1 | BSO48: =IRR(BSO42:BUN42) ->  | BSP48: =IRRm(BSO42:BUN42) -> 1.1 | BSS48: =IRR(BSS42:BUR42) ->  | BST48: =IRRm(BSS42:BUR42) -> 1.1 | BSW48: =IRR(BSW42:BUV42) ->  | BSX48: =IRRm(BSW42:BUV42) -> 1.1 | BTA48: =IRR(BTA42:BUZ42) ->  | BTB48: =IRRm(BTA42:BUZ42) -> 1.1 | BTE48: =IRR(BTE42:BVD42) ->  | BTF48: =IRRm(BTE42:BVD42) -> 1.1 | BTI48: =IRR(BTI42:BVH42) ->  | BTJ48: =IRRm(BTI42:BVH42) -> 1.1 | BTM48: =IRR(BTM42:BVL42) ->  | BTN48: =IRRm(BTM42:BVL42) -> 1.1 | BTQ48: =IRR(BTQ42:BVP42) ->  | BTR48: =IRRm(BTQ42:BVP42) -> 1.1 | BTU48: =IRR(BTU42:BVT42) ->  | BTV48: =IRRm(BTU42:BVT42) -> 1.1 | BTY48: =IRR(BTY42:BVX42) ->  | BTZ48: =IRRm(BTY42:BVX42) -> 1.1 | BUC48: =IRR(BUC42:BWB42) ->  | BUD48: =IRRm(BUC42:BWB42) -> 1.1 | BUG48: =IRR(BUG42:BWF42) ->  | BUH48: =IRRm(BUG42:BWF42) -> 1.1 | BUK48: =IRR(BUK42:BWJ42) ->  | BUL48: =IRRm(BUK42:BWJ42) -> 1.1 | BUO48: =IRR(BUO42:BWN42) ->  | BUP48: =IRRm(BUO42:BWN42) -> 1.1 | BUS48: =IRR(BUS42:BWR42) ->  | BUT48: =IRRm(BUS42:BWR42) -> 1.1 | BUW48: =IRR(BUW42:BWV42) ->  | BUX48: =IRRm(BUW42:BWV42) -> 1.1 | BVA48: =IRR(BVA42:BWZ42) ->  | BVB48: =IRRm(BVA42:BWZ42) -> 1.1 | BVE48: =IRR(BVE42:BXD42) ->  | BVF48: =IRRm(BVE42:BXD42) -> 1.1 | BVI48: =IRR(BVI42:BXH42) ->  | BVJ48: =IRRm(BVI42:BXH42) -> 1.1 | BVM48: =IRR(BVM42:BXL42) ->  | BVN48: =IRRm(BVM42:BXL42) -> 1.1 | BVQ48: =IRR(BVQ42:BXP42) ->  | BVR48: =IRRm(BVQ42:BXP42) -> 1.1 | BVU48: =IRR(BVU42:BXT42) ->  | BVV48: =IRRm(BVU42:BXT42) -> 1.1 | BVY48: =IRR(BVY42:BXX42) ->  | BVZ48: =IRRm(BVY42:BXX42) -> 1.1 | BWC48: =IRR(BWC42:BYB42) ->  | BWD48: =IRRm(BWC42:BYB42) -> 1.1 | BWG48: =IRR(BWG42:BYF42) ->  | BWH48: =IRRm(BWG42:BYF42) -> 1.1 | BWK48: =IRR(BWK42:BYJ42) ->  | BWL48: =IRRm(BWK42:BYJ42) -> 1.1 | BWO48: =IRR(BWO42:BYN42) ->  | BWP48: =IRRm(BWO42:BYN42) -> 1.1 | BWS48: =IRR(BWS42:BYR42) ->  | BWT48: =IRRm(BWS42:BYR42) -> 1.1 | BWW48: =IRR(BWW42:BYV42) ->  | BWX48: =IRRm(BWW42:BYV42) -> 1.1 | BXA48: =IRR(BXA42:BYZ42) ->  | BXB48: =IRRm(BXA42:BYZ42) -> 1.1 | BXE48: =IRR(BXE42:BZD42) ->  | BXF48: =IRRm(BXE42:BZD42) -> 1.1 | BXI48: =IRR(BXI42:BZH42) ->  | BXJ48: =IRRm(BXI42:BZH42) -> 1.1 | BXM48: =IRR(BXM42:BZL42) ->  | BXN48: =IRRm(BXM42:BZL42) -> 1.1 | BXQ48: =IRR(BXQ42:BZP42) ->  | BXR48: =IRRm(BXQ42:BZP42) -> 1.1 | BXU48: =IRR(BXU42:BZT42) ->  | BXV48: =IRRm(BXU42:BZT42) -> 1.1 | BXY48: =IRR(BXY42:BZX42) ->  | BXZ48: =IRRm(BXY42:BZX42) -> 1.1 | BYC48: =IRR(BYC42:CAB42) ->  | BYD48: =IRRm(BYC42:CAB42) -> 1.1 | BYG48: =IRR(BYG42:CAF42) ->  | BYH48: =IRRm(BYG42:CAF42) -> 1.1 | BYK48: =IRR(BYK42:CAJ42) ->  | BYL48: =IRRm(BYK42:CAJ42) -> 1.1 | BYO48: =IRR(BYO42:CAN42) ->  | BYP48: =IRRm(BYO42:CAN42) -> 1.1 | BYS48: =IRR(BYS42:CAR42) ->  | BYT48: =IRRm(BYS42:CAR42) -> 1.1 | BYW48: =IRR(BYW42:CAV42) ->  | BYX48: =IRRm(BYW42:CAV42) -> 1.1 | BZA48: =IRR(BZA42:CAZ42) ->  | BZB48: =IRRm(BZA42:CAZ42) -> 1.1 | BZE48: =IRR(BZE42:CBD42) ->  | BZF48: =IRRm(BZE42:CBD42) -> 1.1 | BZI48: =IRR(BZI42:CBH42) ->  | BZJ48: =IRRm(BZI42:CBH42) -> 1.1 | BZM48: =IRR(BZM42:CBL42) ->  | BZN48: =IRRm(BZM42:CBL42) -> 1.1 | BZQ48: =IRR(BZQ42:CBP42) ->  | BZR48: =IRRm(BZQ42:CBP42) -> 1.1 | BZU48: =IRR(BZU42:CBT42) ->  | BZV48: =IRRm(BZU42:CBT42) -> 1.1 | BZY48: =IRR(BZY42:CBX42) ->  | BZZ48: =IRRm(BZY42:CBX42) -> 1.1 | CAC48: =IRR(CAC42:CCB42) ->  | CAD48: =IRRm(CAC42:CCB42) -> 1.1 | CAG48: =IRR(CAG42:CCF42) ->  | CAH48: =IRRm(CAG42:CCF42) -> 1.1 | CAK48: =IRR(CAK42:CCJ42) ->  | CAL48: =IRRm(CAK42:CCJ42) -> 1.1 | CAO48: =IRR(CAO42:CCN42) ->  | CAP48: =IRRm(CAO42:CCN42) -> 1.1 | CAS48: =IRR(CAS42:CCR42) ->  | CAT48: =IRRm(CAS42:CCR42) -> 1.1 | CAW48: =IRR(CAW42:CCV42) ->  | CAX48: =IRRm(CAW42:CCV42) -> 1.1 | CBA48: =IRR(CBA42:CCZ42) ->  | CBB48: =IRRm(CBA42:CCZ42) -> 1.1 | CBE48: =IRR(CBE42:CDD42) ->  | CBF48: =IRRm(CBE42:CDD42) -> 1.1 | CBI48: =IRR(CBI42:CDH42) ->  | CBJ48: =IRRm(CBI42:CDH42) -> 1.1 | CBM48: =IRR(CBM42:CDL42) ->  | CBN48: =IRRm(CBM42:CDL42) -> 1.1 | CBQ48: =IRR(CBQ42:CDP42) ->  | CBR48: =IRRm(CBQ42:CDP42) -> 1.1 | CBU48: =IRR(CBU42:CDT42) ->  | CBV48: =IRRm(CBU42:CDT42) -> 1.1 | CBY48: =IRR(CBY42:CDX42) ->  | CBZ48: =IRRm(CBY42:CDX42) -> 1.1 | CCC48: =IRR(CCC42:CEB42) ->  | CCD48: =IRRm(CCC42:CEB42) -> 1.1 | CCG48: =IRR(CCG42:CEF42) ->  | CCH48: =IRRm(CCG42:CEF42) -> 1.1 | CCK48: =IRR(CCK42:CEJ42) ->  | CCL48: =IRRm(CCK42:CEJ42) -> 1.1 | CCO48: =IRR(CCO42:CEN42) ->  | CCP48: =IRRm(CCO42:CEN42) -> 1.1 | CCS48: =IRR(CCS42:CER42) ->  | CCT48: =IRRm(CCS42:CER42) -> 1.1 | CCW48: =IRR(CCW42:CEV42) ->  | CCX48: =IRRm(CCW42:CEV42) -> 1.1 | CDA48: =IRR(CDA42:CEZ42) ->  | CDB48: =IRRm(CDA42:CEZ42) -> 1.1 | CDE48: =IRR(CDE42:CFD42) ->  | CDF48: =IRRm(CDE42:CFD42) -> 1.1 | CDI48: =IRR(CDI42:CFH42) ->  | CDJ48: =IRRm(CDI42:CFH42) -> 1.1 | CDM48: =IRR(CDM42:CFL42) ->  | CDN48: =IRRm(CDM42:CFL42) -> 1.1 | CDQ48: =IRR(CDQ42:CFP42) ->  | CDR48: =IRRm(CDQ42:CFP42) -> 1.1 | CDU48: =IRR(CDU42:CFT42) ->  | CDV48: =IRRm(CDU42:CFT42) -> 1.1 | CDY48: =IRR(CDY42:CFX42) ->  | CDZ48: =IRRm(CDY42:CFX42) -> 1.1 | CEC48: =IRR(CEC42:CGB42) ->  | CED48: =IRRm(CEC42:CGB42) -> 1.1 | CEG48: =IRR(CEG42:CGF42) ->  | CEH48: =IRRm(CEG42:CGF42) -> 1.1 | CEK48: =IRR(CEK42:CGJ42) ->  | CEL48: =IRRm(CEK42:CGJ42) -> 1.1 | CEO48: =IRR(CEO42:CGN42) ->  | CEP48: =IRRm(CEO42:CGN42) -> 1.1 | CES48: =IRR(CES42:CGR42) ->  | CET48: =IRRm(CES42:CGR42) -> 1.1 | CEW48: =IRR(CEW42:CGV42) ->  | CEX48: =IRRm(CEW42:CGV42) -> 1.1 | CFA48: =IRR(CFA42:CGZ42) ->  | CFB48: =IRRm(CFA42:CGZ42) -> 1.1 | CFE48: =IRR(CFE42:CHD42) ->  | CFF48: =IRRm(CFE42:CHD42) -> 1.1 | CFI48: =IRR(CFI42:CHH42) ->  | CFJ48: =IRRm(CFI42:CHH42) -> 1.1 | CFM48: =IRR(CFM42:CHL42) ->  | CFN48: =IRRm(CFM42:CHL42) -> 1.1 | CFQ48: =IRR(CFQ42:CHP42) ->  | CFR48: =IRRm(CFQ42:CHP42) -> 1.1 | CFU48: =IRR(CFU42:CHT42) ->  | CFV48: =IRRm(CFU42:CHT42) -> 1.1 | CFY48: =IRR(CFY42:CHX42) ->  | CFZ48: =IRRm(CFY42:CHX42) -> 1.1 | CGC48: =IRR(CGC42:CIB42) ->  | CGD48: =IRRm(CGC42:CIB42) -> 1.1 | CGG48: =IRR(CGG42:CIF42) ->  | CGH48: =IRRm(CGG42:CIF42) -> 1.1 | CGK48: =IRR(CGK42:CIJ42) ->  | CGL48: =IRRm(CGK42:CIJ42) -> 1.1 | CGO48: =IRR(CGO42:CIN42) ->  | CGP48: =IRRm(CGO42:CIN42) -> 1.1 | CGS48: =IRR(CGS42:CIR42) ->  | CGT48: =IRRm(CGS42:CIR42) -> 1.1 | CGW48: =IRR(CGW42:CIV42) ->  | CGX48: =IRRm(CGW42:CIV42) -> 1.1 | CHA48: =IRR(CHA42:CIZ42) ->  | CHB48: =IRRm(CHA42:CIZ42) -> 1.1 | CHE48: =IRR(CHE42:CJD42) ->  | CHF48: =IRRm(CHE42:CJD42) -> 1.1 | CHI48: =IRR(CHI42:CJH42) ->  | CHJ48: =IRRm(CHI42:CJH42) -> 1.1 | CHM48: =IRR(CHM42:CJL42) ->  | CHN48: =IRRm(CHM42:CJL42) -> 1.1 | CHQ48: =IRR(CHQ42:CJP42) ->  | CHR48: =IRRm(CHQ42:CJP42) -> 1.1 | CHU48: =IRR(CHU42:CJT42) ->  | CHV48: =IRRm(CHU42:CJT42) -> 1.1 | CHY48: =IRR(CHY42:CJX42) ->  | CHZ48: =IRRm(CHY42:CJX42) -> 1.1 | CIC48: =IRR(CIC42:CKB42) ->  | CID48: =IRRm(CIC42:CKB42) -> 1.1 | CIG48: =IRR(CIG42:CKF42) ->  | CIH48: =IRRm(CIG42:CKF42) -> 1.1 | CIK48: =IRR(CIK42:CKJ42) ->  | CIL48: =IRRm(CIK42:CKJ42) -> 1.1 | CIO48: =IRR(CIO42:CKN42) ->  | CIP48: =IRRm(CIO42:CKN42) -> 1.1 | CIS48: =IRR(CIS42:CKR42) ->  | CIT48: =IRRm(CIS42:CKR42) -> 1.1 | CIW48: =IRR(CIW42:CKV42) ->  | CIX48: =IRRm(CIW42:CKV42) -> 1.1 | CJA48: =IRR(CJA42:CKZ42) ->  | CJB48: =IRRm(CJA42:CKZ42) -> 1.1 | CJE48: =IRR(CJE42:CLD42) ->  | CJF48: =IRRm(CJE42:CLD42) -> 1.1 | CJI48: =IRR(CJI42:CLH42) ->  | CJJ48: =IRRm(CJI42:CLH42) -> 1.1 | CJM48: =IRR(CJM42:CLL42) ->  | CJN48: =IRRm(CJM42:CLL42) -> 1.1 | CJQ48: =IRR(CJQ42:CLP42) ->  | CJR48: =IRRm(CJQ42:CLP42) -> 1.1 | CJU48: =IRR(CJU42:CLT42) ->  | CJV48: =IRRm(CJU42:CLT42) -> 1.1 | CJY48: =IRR(CJY42:CLX42) ->  | CJZ48: =IRRm(CJY42:CLX42) -> 1.1 | CKC48: =IRR(CKC42:CMB42) ->  | CKD48: =IRRm(CKC42:CMB42) -> 1.1 | CKG48: =IRR(CKG42:CMF42) ->  | CKH48: =IRRm(CKG42:CMF42) -> 1.1 | CKK48: =IRR(CKK42:CMJ42) ->  | CKL48: =IRRm(CKK42:CMJ42) -> 1.1 | CKO48: =IRR(CKO42:CMN42) ->  | CKP48: =IRRm(CKO42:CMN42) -> 1.1 | CKS48: =IRR(CKS42:CMR42) ->  | CKT48: =IRRm(CKS42:CMR42) -> 1.1 | CKW48: =IRR(CKW42:CMV42) ->  | CKX48: =IRRm(CKW42:CMV42) -> 1.1 | CLA48: =IRR(CLA42:CMZ42) ->  | CLB48: =IRRm(CLA42:CMZ42) -> 1.1 | CLE48: =IRR(CLE42:CND42) ->  | CLF48: =IRRm(CLE42:CND42) -> 1.1 | CLI48: =IRR(CLI42:CNH42) ->  | CLJ48: =IRRm(CLI42:CNH42) -> 1.1 | CLM48: =IRR(CLM42:CNL42) ->  | CLN48: =IRRm(CLM42:CNL42) -> 1.1 | CLQ48: =IRR(CLQ42:CNP42) ->  | CLR48: =IRRm(CLQ42:CNP42) -> 1.1 | CLU48: =IRR(CLU42:CNT42) ->  | CLV48: =IRRm(CLU42:CNT42) -> 1.1 | CLY48: =IRR(CLY42:CNX42) ->  | CLZ48: =IRRm(CLY42:CNX42) -> 1.1 | CMC48: =IRR(CMC42:COB42) ->  | CMD48: =IRRm(CMC42:COB42) -> 1.1 | CMG48: =IRR(CMG42:COF42) ->  | CMH48: =IRRm(CMG42:COF42) -> 1.1 | CMK48: =IRR(CMK42:COJ42) ->  | CML48: =IRRm(CMK42:COJ42) -> 1.1 | CMO48: =IRR(CMO42:CON42) ->  | CMP48: =IRRm(CMO42:CON42) -> 1.1 | CMS48: =IRR(CMS42:COR42) ->  | CMT48: =IRRm(CMS42:COR42) -> 1.1 | CMW48: =IRR(CMW42:COV42) ->  | CMX48: =IRRm(CMW42:COV42) -> 1.1 | CNA48: =IRR(CNA42:COZ42) ->  | CNB48: =IRRm(CNA42:COZ42) -> 1.1 | CNE48: =IRR(CNE42:CPD42) ->  | CNF48: =IRRm(CNE42:CPD42) -> 1.1 | CNI48: =IRR(CNI42:CPH42) ->  | CNJ48: =IRRm(CNI42:CPH42) -> 1.1 | CNM48: =IRR(CNM42:CPL42) ->  | CNN48: =IRRm(CNM42:CPL42) -> 1.1 | CNQ48: =IRR(CNQ42:CPP42) ->  | CNR48: =IRRm(CNQ42:CPP42) -> 1.1 | CNU48: =IRR(CNU42:CPT42) ->  | CNV48: =IRRm(CNU42:CPT42) -> 1.1 | CNY48: =IRR(CNY42:CPX42) ->  | CNZ48: =IRRm(CNY42:CPX42) -> 1.1 | COC48: =IRR(COC42:CQB42) ->  | COD48: =IRRm(COC42:CQB42) -> 1.1 | COG48: =IRR(COG42:CQF42) ->  | COH48: =IRRm(COG42:CQF42) -> 1.1 | COK48: =IRR(COK42:CQJ42) ->  | COL48: =IRRm(COK42:CQJ42) -> 1.1 | COO48: =IRR(COO42:CQN42) ->  | COP48: =IRRm(COO42:CQN42) -> 1.1 | COS48: =IRR(COS42:CQR42) ->  | COT48: =IRRm(COS42:CQR42) -> 1.1 | COW48: =IRR(COW42:CQV42) ->  | COX48: =IRRm(COW42:CQV42) -> 1.1 | CPA48: =IRR(CPA42:CQZ42) ->  | CPB48: =IRRm(CPA42:CQZ42) -> 1.1 | CPE48: =IRR(CPE42:CRD42) ->  | CPF48: =IRRm(CPE42:CRD42) -> 1.1 | CPI48: =IRR(CPI42:CRH42) ->  | CPJ48: =IRRm(CPI42:CRH42) -> 1.1 | CPM48: =IRR(CPM42:CRL42) ->  | CPN48: =IRRm(CPM42:CRL42) -> 1.1 | CPQ48: =IRR(CPQ42:CRP42) ->  | CPR48: =IRRm(CPQ42:CRP42) -> 1.1 | CPU48: =IRR(CPU42:CRT42) ->  | CPV48: =IRRm(CPU42:CRT42) -> 1.1 | CPY48: =IRR(CPY42:CRX42) ->  | CPZ48: =IRRm(CPY42:CRX42) -> 1.1 | CQC48: =IRR(CQC42:CSB42) ->  | CQD48: =IRRm(CQC42:CSB42) -> 1.1 | CQG48: =IRR(CQG42:CSF42) ->  | CQH48: =IRRm(CQG42:CSF42) -> 1.1 | CQK48: =IRR(CQK42:CSJ42) ->  | CQL48: =IRRm(CQK42:CSJ42) -> 1.1 | CQO48: =IRR(CQO42:CSN42) ->  | CQP48: =IRRm(CQO42:CSN42) -> 1.1 | CQS48: =IRR(CQS42:CSR42) ->  | CQT48: =IRRm(CQS42:CSR42) -> 1.1 | CQW48: =IRR(CQW42:CSV42) ->  | CQX48: =IRRm(CQW42:CSV42) -> 1.1 | CRA48: =IRR(CRA42:CSZ42) ->  | CRB48: =IRRm(CRA42:CSZ42) -> 1.1 | CRE48: =IRR(CRE42:CTD42) ->  | CRF48: =IRRm(CRE42:CTD42) -> 1.1 | CRI48: =IRR(CRI42:CTH42) ->  | CRJ48: =IRRm(CRI42:CTH42) -> 1.1 | CRM48: =IRR(CRM42:CTL42) ->  | CRN48: =IRRm(CRM42:CTL42) -> 1.1 | CRQ48: =IRR(CRQ42:CTP42) ->  | CRR48: =IRRm(CRQ42:CTP42) -> 1.1 | CRU48: =IRR(CRU42:CTT42) ->  | CRV48: =IRRm(CRU42:CTT42) -> 1.1 | CRY48: =IRR(CRY42:CTX42) ->  | CRZ48: =IRRm(CRY42:CTX42) -> 1.1 | CSC48: =IRR(CSC42:CUB42) ->  | CSD48: =IRRm(CSC42:CUB42) -> 1.1 | CSG48: =IRR(CSG42:CUF42) ->  | CSH48: =IRRm(CSG42:CUF42) -> 1.1 | CSK48: =IRR(CSK42:CUJ42) ->  | CSL48: =IRRm(CSK42:CUJ42) -> 1.1 | CSO48: =IRR(CSO42:CUN42) ->  | CSP48: =IRRm(CSO42:CUN42) -> 1.1 | CSS48: =IRR(CSS42:CUR42) ->  | CST48: =IRRm(CSS42:CUR42) -> 1.1 | CSW48: =IRR(CSW42:CUV42) ->  | CSX48: =IRRm(CSW42:CUV42) -> 1.1 | CTA48: =IRR(CTA42:CUZ42) ->  | CTB48: =IRRm(CTA42:CUZ42) -> 1.1 | CTE48: =IRR(CTE42:CVD42) ->  | CTF48: =IRRm(CTE42:CVD42) -> 1.1 | CTI48: =IRR(CTI42:CVH42) ->  | CTJ48: =IRRm(CTI42:CVH42) -> 1.1 | CTM48: =IRR(CTM42:CVL42) ->  | CTN48: =IRRm(CTM42:CVL42) -> 1.1 | CTQ48: =IRR(CTQ42:CVP42) ->  | CTR48: =IRRm(CTQ42:CVP42) -> 1.1 | CTU48: =IRR(CTU42:CVT42) ->  | CTV48: =IRRm(CTU42:CVT42) -> 1.1 | CTY48: =IRR(CTY42:CVX42) ->  | CTZ48: =IRRm(CTY42:CVX42) -> 1.1 | CUC48: =IRR(CUC42:CWB42) ->  | CUD48: =IRRm(CUC42:CWB42) -> 1.1 | CUG48: =IRR(CUG42:CWF42) ->  | CUH48: =IRRm(CUG42:CWF42) -> 1.1 | CUK48: =IRR(CUK42:CWJ42) ->  | CUL48: =IRRm(CUK42:CWJ42) -> 1.1 | CUO48: =IRR(CUO42:CWN42) ->  | CUP48: =IRRm(CUO42:CWN42) -> 1.1 | CUS48: =IRR(CUS42:CWR42) ->  | CUT48: =IRRm(CUS42:CWR42) -> 1.1 | CUW48: =IRR(CUW42:CWV42) ->  | CUX48: =IRRm(CUW42:CWV42) -> 1.1 | CVA48: =IRR(CVA42:CWZ42) ->  | CVB48: =IRRm(CVA42:CWZ42) -> 1.1 | CVE48: =IRR(CVE42:CXD42) ->  | CVF48: =IRRm(CVE42:CXD42) -> 1.1 | CVI48: =IRR(CVI42:CXH42) ->  | CVJ48: =IRRm(CVI42:CXH42) -> 1.1 | CVM48: =IRR(CVM42:CXL42) ->  | CVN48: =IRRm(CVM42:CXL42) -> 1.1 | CVQ48: =IRR(CVQ42:CXP42) ->  | CVR48: =IRRm(CVQ42:CXP42) -> 1.1 | CVU48: =IRR(CVU42:CXT42) ->  | CVV48: =IRRm(CVU42:CXT42) -> 1.1 | CVY48: =IRR(CVY42:CXX42) ->  | CVZ48: =IRRm(CVY42:CXX42) -> 1.1 | CWC48: =IRR(CWC42:CYB42) ->  | CWD48: =IRRm(CWC42:CYB42) -> 1.1 | CWG48: =IRR(CWG42:CYF42) ->  | CWH48: =IRRm(CWG42:CYF42) -> 1.1 | CWK48: =IRR(CWK42:CYJ42) ->  | CWL48: =IRRm(CWK42:CYJ42) -> 1.1 | CWO48: =IRR(CWO42:CYN42) ->  | CWP48: =IRRm(CWO42:CYN42) -> 1.1 | CWS48: =IRR(CWS42:CYR42) ->  | CWT48: =IRRm(CWS42:CYR42) -> 1.1 | CWW48: =IRR(CWW42:CYV42) ->  | CWX48: =IRRm(CWW42:CYV42) -> 1.1 | CXA48: =IRR(CXA42:CYZ42) ->  | CXB48: =IRRm(CXA42:CYZ42) -> 1.1 | CXE48: =IRR(CXE42:CZD42) ->  | CXF48: =IRRm(CXE42:CZD42) -> 1.1 | CXI48: =IRR(CXI42:CZH42) ->  | CXJ48: =IRRm(CXI42:CZH42) -> 1.1 | CXM48: =IRR(CXM42:CZL42) ->  | CXN48: =IRRm(CXM42:CZL42) -> 1.1 | CXQ48: =IRR(CXQ42:CZP42) ->  | CXR48: =IRRm(CXQ42:CZP42) -> 1.1 | CXU48: =IRR(CXU42:CZT42) ->  | CXV48: =IRRm(CXU42:CZT42) -> 1.1 | CXY48: =IRR(CXY42:CZX42) ->  | CXZ48: =IRRm(CXY42:CZX42) -> 1.1 | CYC48: =IRR(CYC42:DAB42) ->  | CYD48: =IRRm(CYC42:DAB42) -> 1.1 | CYG48: =IRR(CYG42:DAF42) ->  | CYH48: =IRRm(CYG42:DAF42) -> 1.1 | CYK48: =IRR(CYK42:DAJ42) ->  | CYL48: =IRRm(CYK42:DAJ42) -> 1.1 | CYO48: =IRR(CYO42:DAN42) ->  | CYP48: =IRRm(CYO42:DAN42) -> 1.1 | CYS48: =IRR(CYS42:DAR42) ->  | CYT48: =IRRm(CYS42:DAR42) -> 1.1 | CYW48: =IRR(CYW42:DAV42) ->  | CYX48: =IRRm(CYW42:DAV42) -> 1.1 | CZA48: =IRR(CZA42:DAZ42) ->  | CZB48: =IRRm(CZA42:DAZ42) -> 1.1 | CZE48: =IRR(CZE42:DBD42) ->  | CZF48: =IRRm(CZE42:DBD42) -> 1.1 | CZI48: =IRR(CZI42:DBH42) ->  | CZJ48: =IRRm(CZI42:DBH42) -> 1.1 | CZM48: =IRR(CZM42:DBL42) ->  | CZN48: =IRRm(CZM42:DBL42) -> 1.1 | CZQ48: =IRR(CZQ42:DBP42) ->  | CZR48: =IRRm(CZQ42:DBP42) -> 1.1 | CZU48: =IRR(CZU42:DBT42) ->  | CZV48: =IRRm(CZU42:DBT42) -> 1.1 | CZY48: =IRR(CZY42:DBX42) ->  | CZZ48: =IRRm(CZY42:DBX42) -> 1.1 | DAC48: =IRR(DAC42:DCB42) ->  | DAD48: =IRRm(DAC42:DCB42) -> 1.1 | DAG48: =IRR(DAG42:DCF42) ->  | DAH48: =IRRm(DAG42:DCF42) -> 1.1 | DAK48: =IRR(DAK42:DCJ42) ->  | DAL48: =IRRm(DAK42:DCJ42) -> 1.1 | DAO48: =IRR(DAO42:DCN42) ->  | DAP48: =IRRm(DAO42:DCN42) -> 1.1 | DAS48: =IRR(DAS42:DCR42) ->  | DAT48: =IRRm(DAS42:DCR42) -> 1.1 | DAW48: =IRR(DAW42:DCV42) ->  | DAX48: =IRRm(DAW42:DCV42) -> 1.1 | DBA48: =IRR(DBA42:DCZ42) ->  | DBB48: =IRRm(DBA42:DCZ42) -> 1.1 | DBE48: =IRR(DBE42:DDD42) ->  | DBF48: =IRRm(DBE42:DDD42) -> 1.1 | DBI48: =IRR(DBI42:DDH42) ->  | DBJ48: =IRRm(DBI42:DDH42) -> 1.1 | DBM48: =IRR(DBM42:DDL42) ->  | DBN48: =IRRm(DBM42:DDL42) -> 1.1 | DBQ48: =IRR(DBQ42:DDP42) ->  | DBR48: =IRRm(DBQ42:DDP42) -> 1.1 | DBU48: =IRR(DBU42:DDT42) ->  | DBV48: =IRRm(DBU42:DDT42) -> 1.1 | DBY48: =IRR(DBY42:DDX42) ->  | DBZ48: =IRRm(DBY42:DDX42) -> 1.1 | DCC48: =IRR(DCC42:DEB42) ->  | DCD48: =IRRm(DCC42:DEB42) -> 1.1 | DCG48: =IRR(DCG42:DEF42) ->  | DCH48: =IRRm(DCG42:DEF42) -> 1.1 | DCK48: =IRR(DCK42:DEJ42) ->  | DCL48: =IRRm(DCK42:DEJ42) -> 1.1 | DCO48: =IRR(DCO42:DEN42) ->  | DCP48: =IRRm(DCO42:DEN42) -> 1.1 | DCS48: =IRR(DCS42:DER42) ->  | DCT48: =IRRm(DCS42:DER42) -> 1.1 | DCW48: =IRR(DCW42:DEV42) ->  | DCX48: =IRRm(DCW42:DEV42) -> 1.1 | DDA48: =IRR(DDA42:DEZ42) ->  | DDB48: =IRRm(DDA42:DEZ42) -> 1.1 | DDE48: =IRR(DDE42:DFD42) ->  | DDF48: =IRRm(DDE42:DFD42) -> 1.1 | DDI48: =IRR(DDI42:DFH42) ->  | DDJ48: =IRRm(DDI42:DFH42) -> 1.1 | DDM48: =IRR(DDM42:DFL42) ->  | DDN48: =IRRm(DDM42:DFL42) -> 1.1 | DDQ48: =IRR(DDQ42:DFP42) ->  | DDR48: =IRRm(DDQ42:DFP42) -> 1.1 | DDU48: =IRR(DDU42:DFT42) ->  | DDV48: =IRRm(DDU42:DFT42) -> 1.1 | DDY48: =IRR(DDY42:DFX42) ->  | DDZ48: =IRRm(DDY42:DFX42) -> 1.1 | DEC48: =IRR(DEC42:DGB42) ->  | DED48: =IRRm(DEC42:DGB42) -> 1.1 | DEG48: =IRR(DEG42:DGF42) ->  | DEH48: =IRRm(DEG42:DGF42) -> 1.1 | DEK48: =IRR(DEK42:DGJ42) ->  | DEL48: =IRRm(DEK42:DGJ42) -> 1.1 | DEO48: =IRR(DEO42:DGN42) ->  | DEP48: =IRRm(DEO42:DGN42) -> 1.1 | DES48: =IRR(DES42:DGR42) ->  | DET48: =IRRm(DES42:DGR42) -> 1.1 | DEW48: =IRR(DEW42:DGV42) ->  | DEX48: =IRRm(DEW42:DGV42) -> 1.1 | DFA48: =IRR(DFA42:DGZ42) ->  | DFB48: =IRRm(DFA42:DGZ42) -> 1.1 | DFE48: =IRR(DFE42:DHD42) ->  | DFF48: =IRRm(DFE42:DHD42) -> 1.1 | DFI48: =IRR(DFI42:DHH42) ->  | DFJ48: =IRRm(DFI42:DHH42) -> 1.1 | DFM48: =IRR(DFM42:DHL42) ->  | DFN48: =IRRm(DFM42:DHL42) -> 1.1 | DFQ48: =IRR(DFQ42:DHP42) ->  | DFR48: =IRRm(DFQ42:DHP42) -> 1.1 | DFU48: =IRR(DFU42:DHT42) ->  | DFV48: =IRRm(DFU42:DHT42) -> 1.1 | DFY48: =IRR(DFY42:DHX42) ->  | DFZ48: =IRRm(DFY42:DHX42) -> 1.1 | DGC48: =IRR(DGC42:DIB42) ->  | DGD48: =IRRm(DGC42:DIB42) -> 1.1 | DGG48: =IRR(DGG42:DIF42) ->  | DGH48: =IRRm(DGG42:DIF42) -> 1.1 | DGK48: =IRR(DGK42:DIJ42) ->  | DGL48: =IRRm(DGK42:DIJ42) -> 1.1 | DGO48: =IRR(DGO42:DIN42) ->  | DGP48: =IRRm(DGO42:DIN42) -> 1.1 | DGS48: =IRR(DGS42:DIR42) ->  | DGT48: =IRRm(DGS42:DIR42) -> 1.1 | DGW48: =IRR(DGW42:DIV42) ->  | DGX48: =IRRm(DGW42:DIV42) -> 1.1 | DHA48: =IRR(DHA42:DIZ42) ->  | DHB48: =IRRm(DHA42:DIZ42) -> 1.1 | DHE48: =IRR(DHE42:DJD42) ->  | DHF48: =IRRm(DHE42:DJD42) -> 1.1 | DHI48: =IRR(DHI42:DJH42) ->  | DHJ48: =IRRm(DHI42:DJH42) -> 1.1 | DHM48: =IRR(DHM42:DJL42) ->  | DHN48: =IRRm(DHM42:DJL42) -> 1.1 | DHQ48: =IRR(DHQ42:DJP42) ->  | DHR48: =IRRm(DHQ42:DJP42) -> 1.1 | DHU48: =IRR(DHU42:DJT42) ->  | DHV48: =IRRm(DHU42:DJT42) -> 1.1 | DHY48: =IRR(DHY42:DJX42) ->  | DHZ48: =IRRm(DHY42:DJX42) -> 1.1 | DIC48: =IRR(DIC42:DKB42) ->  | DID48: =IRRm(DIC42:DKB42) -> 1.1 | DIG48: =IRR(DIG42:DKF42) ->  | DIH48: =IRRm(DIG42:DKF42) -> 1.1 | DIK48: =IRR(DIK42:DKJ42) ->  | DIL48: =IRRm(DIK42:DKJ42) -> 1.1 | DIO48: =IRR(DIO42:DKN42) ->  | DIP48: =IRRm(DIO42:DKN42) -> 1.1 | DIS48: =IRR(DIS42:DKR42) ->  | DIT48: =IRRm(DIS42:DKR42) -> 1.1 | DIW48: =IRR(DIW42:DKV42) ->  | DIX48: =IRRm(DIW42:DKV42) -> 1.1 | DJA48: =IRR(DJA42:DKZ42) ->  | DJB48: =IRRm(DJA42:DKZ42) -> 1.1 | DJE48: =IRR(DJE42:DLD42) ->  | DJF48: =IRRm(DJE42:DLD42) -> 1.1 | DJI48: =IRR(DJI42:DLH42) ->  | DJJ48: =IRRm(DJI42:DLH42) -> 1.1 | DJM48: =IRR(DJM42:DLL42) ->  | DJN48: =IRRm(DJM42:DLL42) -> 1.1 | DJQ48: =IRR(DJQ42:DLP42) ->  | DJR48: =IRRm(DJQ42:DLP42) -> 1.1 | DJU48: =IRR(DJU42:DLT42) ->  | DJV48: =IRRm(DJU42:DLT42) -> 1.1 | DJY48: =IRR(DJY42:DLX42) ->  | DJZ48: =IRRm(DJY42:DLX42) -> 1.1 | DKC48: =IRR(DKC42:DMB42) ->  | DKD48: =IRRm(DKC42:DMB42) -> 1.1 | DKG48: =IRR(DKG42:DMF42) ->  | DKH48: =IRRm(DKG42:DMF42) -> 1.1 | DKK48: =IRR(DKK42:DMJ42) ->  | DKL48: =IRRm(DKK42:DMJ42) -> 1.1 | DKO48: =IRR(DKO42:DMN42) ->  | DKP48: =IRRm(DKO42:DMN42) -> 1.1 | DKS48: =IRR(DKS42:DMR42) ->  | DKT48: =IRRm(DKS42:DMR42) -> 1.1 | DKW48: =IRR(DKW42:DMV42) ->  | DKX48: =IRRm(DKW42:DMV42) -> 1.1 | DLA48: =IRR(DLA42:DMZ42) ->  | DLB48: =IRRm(DLA42:DMZ42) -> 1.1 | DLE48: =IRR(DLE42:DND42) ->  | DLF48: =IRRm(DLE42:DND42) -> 1.1 | DLI48: =IRR(DLI42:DNH42) ->  | DLJ48: =IRRm(DLI42:DNH42) -> 1.1 | DLM48: =IRR(DLM42:DNL42) ->  | DLN48: =IRRm(DLM42:DNL42) -> 1.1 | DLQ48: =IRR(DLQ42:DNP42) ->  | DLR48: =IRRm(DLQ42:DNP42) -> 1.1 | DLU48: =IRR(DLU42:DNT42) ->  | DLV48: =IRRm(DLU42:DNT42) -> 1.1 | DLY48: =IRR(DLY42:DNX42) ->  | DLZ48: =IRRm(DLY42:DNX42) -> 1.1 | DMC48: =IRR(DMC42:DOB42) ->  | DMD48: =IRRm(DMC42:DOB42) -> 1.1 | DMG48: =IRR(DMG42:DOF42) ->  | DMH48: =IRRm(DMG42:DOF42) -> 1.1 | DMK48: =IRR(DMK42:DOJ42) ->  | DML48: =IRRm(DMK42:DOJ42) -> 1.1 | DMO48: =IRR(DMO42:DON42) ->  | DMP48: =IRRm(DMO42:DON42) -> 1.1 | DMS48: =IRR(DMS42:DOR42) ->  | DMT48: =IRRm(DMS42:DOR42) -> 1.1 | DMW48: =IRR(DMW42:DOV42) ->  | DMX48: =IRRm(DMW42:DOV42) -> 1.1 | DNA48: =IRR(DNA42:DOZ42) ->  | DNB48: =IRRm(DNA42:DOZ42) -> 1.1 | DNE48: =IRR(DNE42:DPD42) ->  | DNF48: =IRRm(DNE42:DPD42) -> 1.1 | DNI48: =IRR(DNI42:DPH42) ->  | DNJ48: =IRRm(DNI42:DPH42) -> 1.1 | DNM48: =IRR(DNM42:DPL42) ->  | DNN48: =IRRm(DNM42:DPL42) -> 1.1 | DNQ48: =IRR(DNQ42:DPP42) ->  | DNR48: =IRRm(DNQ42:DPP42) -> 1.1 | DNU48: =IRR(DNU42:DPT42) ->  | DNV48: =IRRm(DNU42:DPT42) -> 1.1 | DNY48: =IRR(DNY42:DPX42) ->  | DNZ48: =IRRm(DNY42:DPX42) -> 1.1 | DOC48: =IRR(DOC42:DQB42) ->  | DOD48: =IRRm(DOC42:DQB42) -> 1.1 | DOG48: =IRR(DOG42:DQF42) ->  | DOH48: =IRRm(DOG42:DQF42) -> 1.1 | DOK48: =IRR(DOK42:DQJ42) ->  | DOL48: =IRRm(DOK42:DQJ42) -> 1.1 | DOO48: =IRR(DOO42:DQN42) ->  | DOP48: =IRRm(DOO42:DQN42) -> 1.1 | DOS48: =IRR(DOS42:DQR42) ->  | DOT48: =IRRm(DOS42:DQR42) -> 1.1 | DOW48: =IRR(DOW42:DQV42) ->  | DOX48: =IRRm(DOW42:DQV42) -> 1.1 | DPA48: =IRR(DPA42:DQZ42) ->  | DPB48: =IRRm(DPA42:DQZ42) -> 1.1 | DPE48: =IRR(DPE42:DRD42) ->  | DPF48: =IRRm(DPE42:DRD42) -> 1.1 | DPI48: =IRR(DPI42:DRH42) ->  | DPJ48: =IRRm(DPI42:DRH42) -> 1.1 | DPM48: =IRR(DPM42:DRL42) ->  | DPN48: =IRRm(DPM42:DRL42) -> 1.1 | DPQ48: =IRR(DPQ42:DRP42) ->  | DPR48: =IRRm(DPQ42:DRP42) -> 1.1 | DPU48: =IRR(DPU42:DRT42) ->  | DPV48: =IRRm(DPU42:DRT42) -> 1.1 | DPY48: =IRR(DPY42:DRX42) ->  | DPZ48: =IRRm(DPY42:DRX42) -> 1.1 | DQC48: =IRR(DQC42:DSB42) ->  | DQD48: =IRRm(DQC42:DSB42) -> 1.1 | DQG48: =IRR(DQG42:DSF42) ->  | DQH48: =IRRm(DQG42:DSF42) -> 1.1 | DQK48: =IRR(DQK42:DSJ42) ->  | DQL48: =IRRm(DQK42:DSJ42) -> 1.1 | DQO48: =IRR(DQO42:DSN42) ->  | DQP48: =IRRm(DQO42:DSN42) -> 1.1 | DQS48: =IRR(DQS42:DSR42) ->  | DQT48: =IRRm(DQS42:DSR42) -> 1.1 | DQW48: =IRR(DQW42:DSV42) ->  | DQX48: =IRRm(DQW42:DSV42) -> 1.1 | DRA48: =IRR(DRA42:DSZ42) ->  | DRB48: =IRRm(DRA42:DSZ42) -> 1.1 | DRE48: =IRR(DRE42:DTD42) ->  | DRF48: =IRRm(DRE42:DTD42) -> 1.1 | DRI48: =IRR(DRI42:DTH42) ->  | DRJ48: =IRRm(DRI42:DTH42) -> 1.1 | DRM48: =IRR(DRM42:DTL42) ->  | DRN48: =IRRm(DRM42:DTL42) -> 1.1 | DRQ48: =IRR(DRQ42:DTP42) ->  | DRR48: =IRRm(DRQ42:DTP42) -> 1.1 | DRU48: =IRR(DRU42:DTT42) ->  | DRV48: =IRRm(DRU42:DTT42) -> 1.1 | DRY48: =IRR(DRY42:DTX42) ->  | DRZ48: =IRRm(DRY42:DTX42) -> 1.1 | DSC48: =IRR(DSC42:DUB42) ->  | DSD48: =IRRm(DSC42:DUB42) -> 1.1 | DSG48: =IRR(DSG42:DUF42) ->  | DSH48: =IRRm(DSG42:DUF42) -> 1.1 | DSK48: =IRR(DSK42:DUJ42) ->  | DSL48: =IRRm(DSK42:DUJ42) -> 1.1 | DSO48: =IRR(DSO42:DUN42) ->  | DSP48: =IRRm(DSO42:DUN42) -> 1.1 | DSS48: =IRR(DSS42:DUR42) ->  | DST48: =IRRm(DSS42:DUR42) -> 1.1 | DSW48: =IRR(DSW42:DUV42) ->  | DSX48: =IRRm(DSW42:DUV42) -> 1.1 | DTA48: =IRR(DTA42:DUZ42) ->  | DTB48: =IRRm(DTA42:DUZ42) -> 1.1 | DTE48: =IRR(DTE42:DVD42) ->  | DTF48: =IRRm(DTE42:DVD42) -> 1.1 | DTI48: =IRR(DTI42:DVH42) ->  | DTJ48: =IRRm(DTI42:DVH42) -> 1.1 | DTM48: =IRR(DTM42:DVL42) ->  | DTN48: =IRRm(DTM42:DVL42) -> 1.1 | DTQ48: =IRR(DTQ42:DVP42) ->  | DTR48: =IRRm(DTQ42:DVP42) -> 1.1 | DTU48: =IRR(DTU42:DVT42) ->  | DTV48: =IRRm(DTU42:DVT42) -> 1.1 | DTY48: =IRR(DTY42:DVX42) ->  | DTZ48: =IRRm(DTY42:DVX42) -> 1.1 | DUC48: =IRR(DUC42:DWB42) ->  | DUD48: =IRRm(DUC42:DWB42) -> 1.1 | DUG48: =IRR(DUG42:DWF42) ->  | DUH48: =IRRm(DUG42:DWF42) -> 1.1 | DUK48: =IRR(DUK42:DWJ42) ->  | DUL48: =IRRm(DUK42:DWJ42) -> 1.1 | DUO48: =IRR(DUO42:DWN42) ->  | DUP48: =IRRm(DUO42:DWN42) -> 1.1 | DUS48: =IRR(DUS42:DWR42) ->  | DUT48: =IRRm(DUS42:DWR42) -> 1.1 | DUW48: =IRR(DUW42:DWV42) ->  | DUX48: =IRRm(DUW42:DWV42) -> 1.1 | DVA48: =IRR(DVA42:DWZ42) ->  | DVB48: =IRRm(DVA42:DWZ42) -> 1.1 | DVE48: =IRR(DVE42:DXD42) ->  | DVF48: =IRRm(DVE42:DXD42) -> 1.1 | DVI48: =IRR(DVI42:DXH42) ->  | DVJ48: =IRRm(DVI42:DXH42) -> 1.1 | DVM48: =IRR(DVM42:DXL42) ->  | DVN48: =IRRm(DVM42:DXL42) -> 1.1 | DVQ48: =IRR(DVQ42:DXP42) ->  | DVR48: =IRRm(DVQ42:DXP42) -> 1.1 | DVU48: =IRR(DVU42:DXT42) ->  | DVV48: =IRRm(DVU42:DXT42) -> 1.1 | DVY48: =IRR(DVY42:DXX42) ->  | DVZ48: =IRRm(DVY42:DXX42) -> 1.1 | DWC48: =IRR(DWC42:DYB42) ->  | DWD48: =IRRm(DWC42:DYB42) -> 1.1 | DWG48: =IRR(DWG42:DYF42) ->  | DWH48: =IRRm(DWG42:DYF42) -> 1.1 | DWK48: =IRR(DWK42:DYJ42) ->  | DWL48: =IRRm(DWK42:DYJ42) -> 1.1 | DWO48: =IRR(DWO42:DYN42) ->  | DWP48: =IRRm(DWO42:DYN42) -> 1.1 | DWS48: =IRR(DWS42:DYR42) ->  | DWT48: =IRRm(DWS42:DYR42) -> 1.1 | DWW48: =IRR(DWW42:DYV42) ->  | DWX48: =IRRm(DWW42:DYV42) -> 1.1 | DXA48: =IRR(DXA42:DYZ42) ->  | DXB48: =IRRm(DXA42:DYZ42) -> 1.1 | DXE48: =IRR(DXE42:DZD42) ->  | DXF48: =IRRm(DXE42:DZD42) -> 1.1 | DXI48: =IRR(DXI42:DZH42) ->  | DXJ48: =IRRm(DXI42:DZH42) -> 1.1 | DXM48: =IRR(DXM42:DZL42) ->  | DXN48: =IRRm(DXM42:DZL42) -> 1.1 | DXQ48: =IRR(DXQ42:DZP42) ->  | DXR48: =IRRm(DXQ42:DZP42) -> 1.1 | DXU48: =IRR(DXU42:DZT42) ->  | DXV48: =IRRm(DXU42:DZT42) -> 1.1 | DXY48: =IRR(DXY42:DZX42) ->  | DXZ48: =IRRm(DXY42:DZX42) -> 1.1 | DYC48: =IRR(DYC42:EAB42) ->  | DYD48: =IRRm(DYC42:EAB42) -> 1.1 | DYG48: =IRR(DYG42:EAF42) ->  | DYH48: =IRRm(DYG42:EAF42) -> 1.1 | DYK48: =IRR(DYK42:EAJ42) ->  | DYL48: =IRRm(DYK42:EAJ42) -> 1.1 | DYO48: =IRR(DYO42:EAN42) ->  | DYP48: =IRRm(DYO42:EAN42) -> 1.1 | DYS48: =IRR(DYS42:EAR42) ->  | DYT48: =IRRm(DYS42:EAR42) -> 1.1 | DYW48: =IRR(DYW42:EAV42) ->  | DYX48: =IRRm(DYW42:EAV42) -> 1.1 | DZA48: =IRR(DZA42:EAZ42) ->  | DZB48: =IRRm(DZA42:EAZ42) -> 1.1 | DZE48: =IRR(DZE42:EBD42) ->  | DZF48: =IRRm(DZE42:EBD42) -> 1.1 | DZI48: =IRR(DZI42:EBH42) ->  | DZJ48: =IRRm(DZI42:EBH42) -> 1.1 | DZM48: =IRR(DZM42:EBL42) ->  | DZN48: =IRRm(DZM42:EBL42) -> 1.1 | DZQ48: =IRR(DZQ42:EBP42) ->  | DZR48: =IRRm(DZQ42:EBP42) -> 1.1 | DZU48: =IRR(DZU42:EBT42) ->  | DZV48: =IRRm(DZU42:EBT42) -> 1.1 | DZY48: =IRR(DZY42:EBX42) ->  | DZZ48: =IRRm(DZY42:EBX42) -> 1.1 | EAC48: =IRR(EAC42:ECB42) ->  | EAD48: =IRRm(EAC42:ECB42) -> 1.1 | EAG48: =IRR(EAG42:ECF42) ->  | EAH48: =IRRm(EAG42:ECF42) -> 1.1 | EAK48: =IRR(EAK42:ECJ42) ->  | EAL48: =IRRm(EAK42:ECJ42) -> 1.1 | EAO48: =IRR(EAO42:ECN42) ->  | EAP48: =IRRm(EAO42:ECN42) -> 1.1 | EAS48: =IRR(EAS42:ECR42) ->  | EAT48: =IRRm(EAS42:ECR42) -> 1.1 | EAW48: =IRR(EAW42:ECV42) ->  | EAX48: =IRRm(EAW42:ECV42) -> 1.1 | EBA48: =IRR(EBA42:ECZ42) ->  | EBB48: =IRRm(EBA42:ECZ42) -> 1.1 | EBE48: =IRR(EBE42:EDD42) ->  | EBF48: =IRRm(EBE42:EDD42) -> 1.1 | EBI48: =IRR(EBI42:EDH42) ->  | EBJ48: =IRRm(EBI42:EDH42) -> 1.1 | EBM48: =IRR(EBM42:EDL42) ->  | EBN48: =IRRm(EBM42:EDL42) -> 1.1 | EBQ48: =IRR(EBQ42:EDP42) ->  | EBR48: =IRRm(EBQ42:EDP42) -> 1.1 | EBU48: =IRR(EBU42:EDT42) ->  | EBV48: =IRRm(EBU42:EDT42) -> 1.1 | EBY48: =IRR(EBY42:EDX42) ->  | EBZ48: =IRRm(EBY42:EDX42) -> 1.1 | ECC48: =IRR(ECC42:EEB42) ->  | ECD48: =IRRm(ECC42:EEB42) -> 1.1 | ECG48: =IRR(ECG42:EEF42) ->  | ECH48: =IRRm(ECG42:EEF42) -> 1.1 | ECK48: =IRR(ECK42:EEJ42) ->  | ECL48: =IRRm(ECK42:EEJ42) -> 1.1 | ECO48: =IRR(ECO42:EEN42) ->  | ECP48: =IRRm(ECO42:EEN42) -> 1.1 | ECS48: =IRR(ECS42:EER42) ->  | ECT48: =IRRm(ECS42:EER42) -> 1.1 | ECW48: =IRR(ECW42:EEV42) ->  | ECX48: =IRRm(ECW42:EEV42) -> 1.1 | EDA48: =IRR(EDA42:EEZ42) ->  | EDB48: =IRRm(EDA42:EEZ42) -> 1.1 | EDE48: =IRR(EDE42:EFD42) ->  | EDF48: =IRRm(EDE42:EFD42) -> 1.1 | EDI48: =IRR(EDI42:EFH42) ->  | EDJ48: =IRRm(EDI42:EFH42) -> 1.1 | EDM48: =IRR(EDM42:EFL42) ->  | EDN48: =IRRm(EDM42:EFL42) -> 1.1 | EDQ48: =IRR(EDQ42:EFP42) ->  | EDR48: =IRRm(EDQ42:EFP42) -> 1.1 | EDU48: =IRR(EDU42:EFT42) ->  | EDV48: =IRRm(EDU42:EFT42) -> 1.1 | EDY48: =IRR(EDY42:EFX42) ->  | EDZ48: =IRRm(EDY42:EFX42) -> 1.1 | EEC48: =IRR(EEC42:EGB42) ->  | EED48: =IRRm(EEC42:EGB42) -> 1.1 | EEG48: =IRR(EEG42:EGF42) ->  | EEH48: =IRRm(EEG42:EGF42) -> 1.1 | EEK48: =IRR(EEK42:EGJ42) ->  | EEL48: =IRRm(EEK42:EGJ42) -> 1.1 | EEO48: =IRR(EEO42:EGN42) ->  | EEP48: =IRRm(EEO42:EGN42) -> 1.1 | EES48: =IRR(EES42:EGR42) ->  | EET48: =IRRm(EES42:EGR42) -> 1.1 | EEW48: =IRR(EEW42:EGV42) ->  | EEX48: =IRRm(EEW42:EGV42) -> 1.1 | EFA48: =IRR(EFA42:EGZ42) ->  | EFB48: =IRRm(EFA42:EGZ42) -> 1.1 | EFE48: =IRR(EFE42:EHD42) ->  | EFF48: =IRRm(EFE42:EHD42) -> 1.1 | EFI48: =IRR(EFI42:EHH42) ->  | EFJ48: =IRRm(EFI42:EHH42) -> 1.1 | EFM48: =IRR(EFM42:EHL42) ->  | EFN48: =IRRm(EFM42:EHL42) -> 1.1 | EFQ48: =IRR(EFQ42:EHP42) ->  | EFR48: =IRRm(EFQ42:EHP42) -> 1.1 | EFU48: =IRR(EFU42:EHT42) ->  | EFV48: =IRRm(EFU42:EHT42) -> 1.1 | EFY48: =IRR(EFY42:EHX42) ->  | EFZ48: =IRRm(EFY42:EHX42) -> 1.1 | EGC48: =IRR(EGC42:EIB42) ->  | EGD48: =IRRm(EGC42:EIB42) -> 1.1 | EGG48: =IRR(EGG42:EIF42) ->  | EGH48: =IRRm(EGG42:EIF42) -> 1.1 | EGK48: =IRR(EGK42:EIJ42) ->  | EGL48: =IRRm(EGK42:EIJ42) -> 1.1 | EGO48: =IRR(EGO42:EIN42) ->  | EGP48: =IRRm(EGO42:EIN42) -> 1.1 | EGS48: =IRR(EGS42:EIR42) ->  | EGT48: =IRRm(EGS42:EIR42) -> 1.1 | EGW48: =IRR(EGW42:EIV42) ->  | EGX48: =IRRm(EGW42:EIV42) -> 1.1 | EHA48: =IRR(EHA42:EIZ42) ->  | EHB48: =IRRm(EHA42:EIZ42) -> 1.1 | EHE48: =IRR(EHE42:EJD42) ->  | EHF48: =IRRm(EHE42:EJD42) -> 1.1 | EHI48: =IRR(EHI42:EJH42) ->  | EHJ48: =IRRm(EHI42:EJH42) -> 1.1 | EHM48: =IRR(EHM42:EJL42) ->  | EHN48: =IRRm(EHM42:EJL42) -> 1.1 | EHQ48: =IRR(EHQ42:EJP42) ->  | EHR48: =IRRm(EHQ42:EJP42) -> 1.1 | EHU48: =IRR(EHU42:EJT42) ->  | EHV48: =IRRm(EHU42:EJT42) -> 1.1 | EHY48: =IRR(EHY42:EJX42) ->  | EHZ48: =IRRm(EHY42:EJX42) -> 1.1 | EIC48: =IRR(EIC42:EKB42) ->  | EID48: =IRRm(EIC42:EKB42) -> 1.1 | EIG48: =IRR(EIG42:EKF42) ->  | EIH48: =IRRm(EIG42:EKF42) -> 1.1 | EIK48: =IRR(EIK42:EKJ42) ->  | EIL48: =IRRm(EIK42:EKJ42) -> 1.1 | EIO48: =IRR(EIO42:EKN42) ->  | EIP48: =IRRm(EIO42:EKN42) -> 1.1 | EIS48: =IRR(EIS42:EKR42) ->  | EIT48: =IRRm(EIS42:EKR42) -> 1.1 | EIW48: =IRR(EIW42:EKV42) ->  | EIX48: =IRRm(EIW42:EKV42) -> 1.1 | EJA48: =IRR(EJA42:EKZ42) ->  | EJB48: =IRRm(EJA42:EKZ42) -> 1.1 | EJE48: =IRR(EJE42:ELD42) ->  | EJF48: =IRRm(EJE42:ELD42) -> 1.1 | EJI48: =IRR(EJI42:ELH42) ->  | EJJ48: =IRRm(EJI42:ELH42) -> 1.1 | EJM48: =IRR(EJM42:ELL42) ->  | EJN48: =IRRm(EJM42:ELL42) -> 1.1 | EJQ48: =IRR(EJQ42:ELP42) ->  | EJR48: =IRRm(EJQ42:ELP42) -> 1.1 | EJU48: =IRR(EJU42:ELT42) ->  | EJV48: =IRRm(EJU42:ELT42) -> 1.1 | EJY48: =IRR(EJY42:ELX42) ->  | EJZ48: =IRRm(EJY42:ELX42) -> 1.1 | EKC48: =IRR(EKC42:EMB42) ->  | EKD48: =IRRm(EKC42:EMB42) -> 1.1 | EKG48: =IRR(EKG42:EMF42) ->  | EKH48: =IRRm(EKG42:EMF42) -> 1.1 | EKK48: =IRR(EKK42:EMJ42) ->  | EKL48: =IRRm(EKK42:EMJ42) -> 1.1 | EKO48: =IRR(EKO42:EMN42) ->  | EKP48: =IRRm(EKO42:EMN42) -> 1.1 | EKS48: =IRR(EKS42:EMR42) ->  | EKT48: =IRRm(EKS42:EMR42) -> 1.1 | EKW48: =IRR(EKW42:EMV42) ->  | EKX48: =IRRm(EKW42:EMV42) -> 1.1 | ELA48: =IRR(ELA42:EMZ42) ->  | ELB48: =IRRm(ELA42:EMZ42) -> 1.1 | ELE48: =IRR(ELE42:END42) ->  | ELF48: =IRRm(ELE42:END42) -> 1.1 | ELI48: =IRR(ELI42:ENH42) ->  | ELJ48: =IRRm(ELI42:ENH42) -> 1.1 | ELM48: =IRR(ELM42:ENL42) ->  | ELN48: =IRRm(ELM42:ENL42) -> 1.1 | ELQ48: =IRR(ELQ42:ENP42) ->  | ELR48: =IRRm(ELQ42:ENP42) -> 1.1 | ELU48: =IRR(ELU42:ENT42) ->  | ELV48: =IRRm(ELU42:ENT42) -> 1.1 | ELY48: =IRR(ELY42:ENX42) ->  | ELZ48: =IRRm(ELY42:ENX42) -> 1.1 | EMC48: =IRR(EMC42:EOB42) ->  | EMD48: =IRRm(EMC42:EOB42) -> 1.1 | EMG48: =IRR(EMG42:EOF42) ->  | EMH48: =IRRm(EMG42:EOF42) -> 1.1 | EMK48: =IRR(EMK42:EOJ42) ->  | EML48: =IRRm(EMK42:EOJ42) -> 1.1 | EMO48: =IRR(EMO42:EON42) ->  | EMP48: =IRRm(EMO42:EON42) -> 1.1 | EMS48: =IRR(EMS42:EOR42) ->  | EMT48: =IRRm(EMS42:EOR42) -> 1.1 | EMW48: =IRR(EMW42:EOV42) ->  | EMX48: =IRRm(EMW42:EOV42) -> 1.1 | ENA48: =IRR(ENA42:EOZ42) ->  | ENB48: =IRRm(ENA42:EOZ42) -> 1.1 | ENE48: =IRR(ENE42:EPD42) ->  | ENF48: =IRRm(ENE42:EPD42) -> 1.1 | ENI48: =IRR(ENI42:EPH42) ->  | ENJ48: =IRRm(ENI42:EPH42) -> 1.1 | ENM48: =IRR(ENM42:EPL42) ->  | ENN48: =IRRm(ENM42:EPL42) -> 1.1 | ENQ48: =IRR(ENQ42:EPP42) ->  | ENR48: =IRRm(ENQ42:EPP42) -> 1.1 | ENU48: =IRR(ENU42:EPT42) ->  | ENV48: =IRRm(ENU42:EPT42) -> 1.1 | ENY48: =IRR(ENY42:EPX42) ->  | ENZ48: =IRRm(ENY42:EPX42) -> 1.1 | EOC48: =IRR(EOC42:EQB42) ->  | EOD48: =IRRm(EOC42:EQB42) -> 1.1 | EOG48: =IRR(EOG42:EQF42) ->  | EOH48: =IRRm(EOG42:EQF42) -> 1.1 | EOK48: =IRR(EOK42:EQJ42) ->  | EOL48: =IRRm(EOK42:EQJ42) -> 1.1 | EOO48: =IRR(EOO42:EQN42) ->  | EOP48: =IRRm(EOO42:EQN42) -> 1.1 | EOS48: =IRR(EOS42:EQR42) ->  | EOT48: =IRRm(EOS42:EQR42) -> 1.1 | EOW48: =IRR(EOW42:EQV42) ->  | EOX48: =IRRm(EOW42:EQV42) -> 1.1 | EPA48: =IRR(EPA42:EQZ42) ->  | EPB48: =IRRm(EPA42:EQZ42) -> 1.1 | EPE48: =IRR(EPE42:ERD42) ->  | EPF48: =IRRm(EPE42:ERD42) -> 1.1 | EPI48: =IRR(EPI42:ERH42) ->  | EPJ48: =IRRm(EPI42:ERH42) -> 1.1 | EPM48: =IRR(EPM42:ERL42) ->  | EPN48: =IRRm(EPM42:ERL42) -> 1.1 | EPQ48: =IRR(EPQ42:ERP42) ->  | EPR48: =IRRm(EPQ42:ERP42) -> 1.1 | EPU48: =IRR(EPU42:ERT42) ->  | EPV48: =IRRm(EPU42:ERT42) -> 1.1 | EPY48: =IRR(EPY42:ERX42) ->  | EPZ48: =IRRm(EPY42:ERX42) -> 1.1 | EQC48: =IRR(EQC42:ESB42) ->  | EQD48: =IRRm(EQC42:ESB42) -> 1.1 | EQG48: =IRR(EQG42:ESF42) ->  | EQH48: =IRRm(EQG42:ESF42) -> 1.1 | EQK48: =IRR(EQK42:ESJ42) ->  | EQL48: =IRRm(EQK42:ESJ42) -> 1.1 | EQO48: =IRR(EQO42:ESN42) ->  | EQP48: =IRRm(EQO42:ESN42) -> 1.1 | EQS48: =IRR(EQS42:ESR42) ->  | EQT48: =IRRm(EQS42:ESR42) -> 1.1 | EQW48: =IRR(EQW42:ESV42) ->  | EQX48: =IRRm(EQW42:ESV42) -> 1.1 | ERA48: =IRR(ERA42:ESZ42) ->  | ERB48: =IRRm(ERA42:ESZ42) -> 1.1 | ERE48: =IRR(ERE42:ETD42) ->  | ERF48: =IRRm(ERE42:ETD42) -> 1.1 | ERI48: =IRR(ERI42:ETH42) ->  | ERJ48: =IRRm(ERI42:ETH42) -> 1.1 | ERM48: =IRR(ERM42:ETL42) ->  | ERN48: =IRRm(ERM42:ETL42) -> 1.1 | ERQ48: =IRR(ERQ42:ETP42) ->  | ERR48: =IRRm(ERQ42:ETP42) -> 1.1 | ERU48: =IRR(ERU42:ETT42) ->  | ERV48: =IRRm(ERU42:ETT42) -> 1.1 | ERY48: =IRR(ERY42:ETX42) ->  | ERZ48: =IRRm(ERY42:ETX42) -> 1.1 | ESC48: =IRR(ESC42:EUB42) ->  | ESD48: =IRRm(ESC42:EUB42) -> 1.1 | ESG48: =IRR(ESG42:EUF42) ->  | ESH48: =IRRm(ESG42:EUF42) -> 1.1 | ESK48: =IRR(ESK42:EUJ42) ->  | ESL48: =IRRm(ESK42:EUJ42) -> 1.1 | ESO48: =IRR(ESO42:EUN42) ->  | ESP48: =IRRm(ESO42:EUN42) -> 1.1 | ESS48: =IRR(ESS42:EUR42) ->  | EST48: =IRRm(ESS42:EUR42) -> 1.1 | ESW48: =IRR(ESW42:EUV42) ->  | ESX48: =IRRm(ESW42:EUV42) -> 1.1 | ETA48: =IRR(ETA42:EUZ42) ->  | ETB48: =IRRm(ETA42:EUZ42) -> 1.1 | ETE48: =IRR(ETE42:EVD42) ->  | ETF48: =IRRm(ETE42:EVD42) -> 1.1 | ETI48: =IRR(ETI42:EVH42) ->  | ETJ48: =IRRm(ETI42:EVH42) -> 1.1 | ETM48: =IRR(ETM42:EVL42) ->  | ETN48: =IRRm(ETM42:EVL42) -> 1.1 | ETQ48: =IRR(ETQ42:EVP42) ->  | ETR48: =IRRm(ETQ42:EVP42) -> 1.1 | ETU48: =IRR(ETU42:EVT42) ->  | ETV48: =IRRm(ETU42:EVT42) -> 1.1 | ETY48: =IRR(ETY42:EVX42) ->  | ETZ48: =IRRm(ETY42:EVX42) -> 1.1 | EUC48: =IRR(EUC42:EWB42) ->  | EUD48: =IRRm(EUC42:EWB42) -> 1.1 | EUG48: =IRR(EUG42:EWF42) ->  | EUH48: =IRRm(EUG42:EWF42) -> 1.1 | EUK48: =IRR(EUK42:EWJ42) ->  | EUL48: =IRRm(EUK42:EWJ42) -> 1.1 | EUO48: =IRR(EUO42:EWN42) ->  | EUP48: =IRRm(EUO42:EWN42) -> 1.1 | EUS48: =IRR(EUS42:EWR42) ->  | EUT48: =IRRm(EUS42:EWR42) -> 1.1 | EUW48: =IRR(EUW42:EWV42) ->  | EUX48: =IRRm(EUW42:EWV42) -> 1.1 | EVA48: =IRR(EVA42:EWZ42) ->  | EVB48: =IRRm(EVA42:EWZ42) -> 1.1 | EVE48: =IRR(EVE42:EXD42) ->  | EVF48: =IRRm(EVE42:EXD42) -> 1.1 | EVI48: =IRR(EVI42:EXH42) ->  | EVJ48: =IRRm(EVI42:EXH42) -> 1.1 | EVM48: =IRR(EVM42:EXL42) ->  | EVN48: =IRRm(EVM42:EXL42) -> 1.1 | EVQ48: =IRR(EVQ42:EXP42) ->  | EVR48: =IRRm(EVQ42:EXP42) -> 1.1 | EVU48: =IRR(EVU42:EXT42) ->  | EVV48: =IRRm(EVU42:EXT42) -> 1.1 | EVY48: =IRR(EVY42:EXX42) ->  | EVZ48: =IRRm(EVY42:EXX42) -> 1.1 | EWC48: =IRR(EWC42:EYB42) ->  | EWD48: =IRRm(EWC42:EYB42) -> 1.1 | EWG48: =IRR(EWG42:EYF42) ->  | EWH48: =IRRm(EWG42:EYF42) -> 1.1 | EWK48: =IRR(EWK42:EYJ42) ->  | EWL48: =IRRm(EWK42:EYJ42) -> 1.1 | EWO48: =IRR(EWO42:EYN42) ->  | EWP48: =IRRm(EWO42:EYN42) -> 1.1 | EWS48: =IRR(EWS42:EYR42) ->  | EWT48: =IRRm(EWS42:EYR42) -> 1.1 | EWW48: =IRR(EWW42:EYV42) ->  | EWX48: =IRRm(EWW42:EYV42) -> 1.1 | EXA48: =IRR(EXA42:EYZ42) ->  | EXB48: =IRRm(EXA42:EYZ42) -> 1.1 | EXE48: =IRR(EXE42:EZD42) ->  | EXF48: =IRRm(EXE42:EZD42) -> 1.1 | EXI48: =IRR(EXI42:EZH42) ->  | EXJ48: =IRRm(EXI42:EZH42) -> 1.1 | EXM48: =IRR(EXM42:EZL42) ->  | EXN48: =IRRm(EXM42:EZL42) -> 1.1 | EXQ48: =IRR(EXQ42:EZP42) ->  | EXR48: =IRRm(EXQ42:EZP42) -> 1.1 | EXU48: =IRR(EXU42:EZT42) ->  | EXV48: =IRRm(EXU42:EZT42) -> 1.1 | EXY48: =IRR(EXY42:EZX42) ->  | EXZ48: =IRRm(EXY42:EZX42) -> 1.1 | EYC48: =IRR(EYC42:FAB42) ->  | EYD48: =IRRm(EYC42:FAB42) -> 1.1 | EYG48: =IRR(EYG42:FAF42) ->  | EYH48: =IRRm(EYG42:FAF42) -> 1.1 | EYK48: =IRR(EYK42:FAJ42) ->  | EYL48: =IRRm(EYK42:FAJ42) -> 1.1 | EYO48: =IRR(EYO42:FAN42) ->  | EYP48: =IRRm(EYO42:FAN42) -> 1.1 | EYS48: =IRR(EYS42:FAR42) ->  | EYT48: =IRRm(EYS42:FAR42) -> 1.1 | EYW48: =IRR(EYW42:FAV42) ->  | EYX48: =IRRm(EYW42:FAV42) -> 1.1 | EZA48: =IRR(EZA42:FAZ42) ->  | EZB48: =IRRm(EZA42:FAZ42) -> 1.1 | EZE48: =IRR(EZE42:FBD42) ->  | EZF48: =IRRm(EZE42:FBD42) -> 1.1 | EZI48: =IRR(EZI42:FBH42) ->  | EZJ48: =IRRm(EZI42:FBH42) -> 1.1 | EZM48: =IRR(EZM42:FBL42) ->  | EZN48: =IRRm(EZM42:FBL42) -> 1.1 | EZQ48: =IRR(EZQ42:FBP42) ->  | EZR48: =IRRm(EZQ42:FBP42) -> 1.1 | EZU48: =IRR(EZU42:FBT42) ->  | EZV48: =IRRm(EZU42:FBT42) -> 1.1 | EZY48: =IRR(EZY42:FBX42) ->  | EZZ48: =IRRm(EZY42:FBX42) -> 1.1 | FAC48: =IRR(FAC42:FCB42) ->  | FAD48: =IRRm(FAC42:FCB42) -> 1.1 | FAG48: =IRR(FAG42:FCF42) ->  | FAH48: =IRRm(FAG42:FCF42) -> 1.1 | FAK48: =IRR(FAK42:FCJ42) ->  | FAL48: =IRRm(FAK42:FCJ42) -> 1.1 | FAO48: =IRR(FAO42:FCN42) ->  | FAP48: =IRRm(FAO42:FCN42) -> 1.1 | FAS48: =IRR(FAS42:FCR42) ->  | FAT48: =IRRm(FAS42:FCR42) -> 1.1 | FAW48: =IRR(FAW42:FCV42) ->  | FAX48: =IRRm(FAW42:FCV42) -> 1.1 | FBA48: =IRR(FBA42:FCZ42) ->  | FBB48: =IRRm(FBA42:FCZ42) -> 1.1 | FBE48: =IRR(FBE42:FDD42) ->  | FBF48: =IRRm(FBE42:FDD42) -> 1.1 | FBI48: =IRR(FBI42:FDH42) ->  | FBJ48: =IRRm(FBI42:FDH42) -> 1.1 | FBM48: =IRR(FBM42:FDL42) ->  | FBN48: =IRRm(FBM42:FDL42) -> 1.1 | FBQ48: =IRR(FBQ42:FDP42) ->  | FBR48: =IRRm(FBQ42:FDP42) -> 1.1 | FBU48: =IRR(FBU42:FDT42) ->  | FBV48: =IRRm(FBU42:FDT42) -> 1.1 | FBY48: =IRR(FBY42:FDX42) ->  | FBZ48: =IRRm(FBY42:FDX42) -> 1.1 | FCC48: =IRR(FCC42:FEB42) ->  | FCD48: =IRRm(FCC42:FEB42) -> 1.1 | FCG48: =IRR(FCG42:FEF42) ->  | FCH48: =IRRm(FCG42:FEF42) -> 1.1 | FCK48: =IRR(FCK42:FEJ42) ->  | FCL48: =IRRm(FCK42:FEJ42) -> 1.1 | FCO48: =IRR(FCO42:FEN42) ->  | FCP48: =IRRm(FCO42:FEN42) -> 1.1 | FCS48: =IRR(FCS42:FER42) ->  | FCT48: =IRRm(FCS42:FER42) -> 1.1 | FCW48: =IRR(FCW42:FEV42) ->  | FCX48: =IRRm(FCW42:FEV42) -> 1.1 | FDA48: =IRR(FDA42:FEZ42) ->  | FDB48: =IRRm(FDA42:FEZ42) -> 1.1 | FDE48: =IRR(FDE42:FFD42) ->  | FDF48: =IRRm(FDE42:FFD42) -> 1.1 | FDI48: =IRR(FDI42:FFH42) ->  | FDJ48: =IRRm(FDI42:FFH42) -> 1.1 | FDM48: =IRR(FDM42:FFL42) ->  | FDN48: =IRRm(FDM42:FFL42) -> 1.1 | FDQ48: =IRR(FDQ42:FFP42) ->  | FDR48: =IRRm(FDQ42:FFP42) -> 1.1 | FDU48: =IRR(FDU42:FFT42) ->  | FDV48: =IRRm(FDU42:FFT42) -> 1.1 | FDY48: =IRR(FDY42:FFX42) ->  | FDZ48: =IRRm(FDY42:FFX42) -> 1.1 | FEC48: =IRR(FEC42:FGB42) ->  | FED48: =IRRm(FEC42:FGB42) -> 1.1 | FEG48: =IRR(FEG42:FGF42) ->  | FEH48: =IRRm(FEG42:FGF42) -> 1.1 | FEK48: =IRR(FEK42:FGJ42) ->  | FEL48: =IRRm(FEK42:FGJ42) -> 1.1 | FEO48: =IRR(FEO42:FGN42) ->  | FEP48: =IRRm(FEO42:FGN42) -> 1.1 | FES48: =IRR(FES42:FGR42) ->  | FET48: =IRRm(FES42:FGR42) -> 1.1 | FEW48: =IRR(FEW42:FGV42) ->  | FEX48: =IRRm(FEW42:FGV42) -> 1.1 | FFA48: =IRR(FFA42:FGZ42) ->  | FFB48: =IRRm(FFA42:FGZ42) -> 1.1 | FFE48: =IRR(FFE42:FHD42) ->  | FFF48: =IRRm(FFE42:FHD42) -> 1.1 | FFI48: =IRR(FFI42:FHH42) ->  | FFJ48: =IRRm(FFI42:FHH42) -> 1.1 | FFM48: =IRR(FFM42:FHL42) ->  | FFN48: =IRRm(FFM42:FHL42) -> 1.1 | FFQ48: =IRR(FFQ42:FHP42) ->  | FFR48: =IRRm(FFQ42:FHP42) -> 1.1 | FFU48: =IRR(FFU42:FHT42) ->  | FFV48: =IRRm(FFU42:FHT42) -> 1.1 | FFY48: =IRR(FFY42:FHX42) ->  | FFZ48: =IRRm(FFY42:FHX42) -> 1.1 | FGC48: =IRR(FGC42:FIB42) ->  | FGD48: =IRRm(FGC42:FIB42) -> 1.1 | FGG48: =IRR(FGG42:FIF42) ->  | FGH48: =IRRm(FGG42:FIF42) -> 1.1 | FGK48: =IRR(FGK42:FIJ42) ->  | FGL48: =IRRm(FGK42:FIJ42) -> 1.1 | FGO48: =IRR(FGO42:FIN42) ->  | FGP48: =IRRm(FGO42:FIN42) -> 1.1 | FGS48: =IRR(FGS42:FIR42) ->  | FGT48: =IRRm(FGS42:FIR42) -> 1.1 | FGW48: =IRR(FGW42:FIV42) ->  | FGX48: =IRRm(FGW42:FIV42) -> 1.1 | FHA48: =IRR(FHA42:FIZ42) ->  | FHB48: =IRRm(FHA42:FIZ42) -> 1.1 | FHE48: =IRR(FHE42:FJD42) ->  | FHF48: =IRRm(FHE42:FJD42) -> 1.1 | FHI48: =IRR(FHI42:FJH42) ->  | FHJ48: =IRRm(FHI42:FJH42) -> 1.1 | FHM48: =IRR(FHM42:FJL42) ->  | FHN48: =IRRm(FHM42:FJL42) -> 1.1 | FHQ48: =IRR(FHQ42:FJP42) ->  | FHR48: =IRRm(FHQ42:FJP42) -> 1.1 | FHU48: =IRR(FHU42:FJT42) ->  | FHV48: =IRRm(FHU42:FJT42) -> 1.1 | FHY48: =IRR(FHY42:FJX42) ->  | FHZ48: =IRRm(FHY42:FJX42) -> 1.1 | FIC48: =IRR(FIC42:FKB42) ->  | FID48: =IRRm(FIC42:FKB42) -> 1.1 | FIG48: =IRR(FIG42:FKF42) ->  | FIH48: =IRRm(FIG42:FKF42) -> 1.1 | FIK48: =IRR(FIK42:FKJ42) ->  | FIL48: =IRRm(FIK42:FKJ42) -> 1.1 | FIO48: =IRR(FIO42:FKN42) ->  | FIP48: =IRRm(FIO42:FKN42) -> 1.1 | FIS48: =IRR(FIS42:FKR42) ->  | FIT48: =IRRm(FIS42:FKR42) -> 1.1 | FIW48: =IRR(FIW42:FKV42) ->  | FIX48: =IRRm(FIW42:FKV42) -> 1.1 | FJA48: =IRR(FJA42:FKZ42) ->  | FJB48: =IRRm(FJA42:FKZ42) -> 1.1 | FJE48: =IRR(FJE42:FLD42) ->  | FJF48: =IRRm(FJE42:FLD42) -> 1.1 | FJI48: =IRR(FJI42:FLH42) ->  | FJJ48: =IRRm(FJI42:FLH42) -> 1.1 | FJM48: =IRR(FJM42:FLL42) ->  | FJN48: =IRRm(FJM42:FLL42) -> 1.1 | FJQ48: =IRR(FJQ42:FLP42) ->  | FJR48: =IRRm(FJQ42:FLP42) -> 1.1 | FJU48: =IRR(FJU42:FLT42) ->  | FJV48: =IRRm(FJU42:FLT42) -> 1.1 | FJY48: =IRR(FJY42:FLX42) ->  | FJZ48: =IRRm(FJY42:FLX42) -> 1.1 | FKC48: =IRR(FKC42:FMB42) ->  | FKD48: =IRRm(FKC42:FMB42) -> 1.1 | FKG48: =IRR(FKG42:FMF42) ->  | FKH48: =IRRm(FKG42:FMF42) -> 1.1 | FKK48: =IRR(FKK42:FMJ42) ->  | FKL48: =IRRm(FKK42:FMJ42) -> 1.1 | FKO48: =IRR(FKO42:FMN42) ->  | FKP48: =IRRm(FKO42:FMN42) -> 1.1 | FKS48: =IRR(FKS42:FMR42) ->  | FKT48: =IRRm(FKS42:FMR42) -> 1.1 | FKW48: =IRR(FKW42:FMV42) ->  | FKX48: =IRRm(FKW42:FMV42) -> 1.1 | FLA48: =IRR(FLA42:FMZ42) ->  | FLB48: =IRRm(FLA42:FMZ42) -> 1.1 | FLE48: =IRR(FLE42:FND42) ->  | FLF48: =IRRm(FLE42:FND42) -> 1.1 | FLI48: =IRR(FLI42:FNH42) ->  | FLJ48: =IRRm(FLI42:FNH42) -> 1.1 | FLM48: =IRR(FLM42:FNL42) ->  | FLN48: =IRRm(FLM42:FNL42) -> 1.1 | FLQ48: =IRR(FLQ42:FNP42) ->  | FLR48: =IRRm(FLQ42:FNP42) -> 1.1 | FLU48: =IRR(FLU42:FNT42) ->  | FLV48: =IRRm(FLU42:FNT42) -> 1.1 | FLY48: =IRR(FLY42:FNX42) ->  | FLZ48: =IRRm(FLY42:FNX42) -> 1.1 | FMC48: =IRR(FMC42:FOB42) ->  | FMD48: =IRRm(FMC42:FOB42) -> 1.1 | FMG48: =IRR(FMG42:FOF42) ->  | FMH48: =IRRm(FMG42:FOF42) -> 1.1 | FMK48: =IRR(FMK42:FOJ42) ->  | FML48: =IRRm(FMK42:FOJ42) -> 1.1 | FMO48: =IRR(FMO42:FON42) ->  | FMP48: =IRRm(FMO42:FON42) -> 1.1 | FMS48: =IRR(FMS42:FOR42) ->  | FMT48: =IRRm(FMS42:FOR42) -> 1.1 | FMW48: =IRR(FMW42:FOV42) ->  | FMX48: =IRRm(FMW42:FOV42) -> 1.1 | FNA48: =IRR(FNA42:FOZ42) ->  | FNB48: =IRRm(FNA42:FOZ42) -> 1.1 | FNE48: =IRR(FNE42:FPD42) ->  | FNF48: =IRRm(FNE42:FPD42) -> 1.1 | FNI48: =IRR(FNI42:FPH42) ->  | FNJ48: =IRRm(FNI42:FPH42) -> 1.1 | FNM48: =IRR(FNM42:FPL42) ->  | FNN48: =IRRm(FNM42:FPL42) -> 1.1 | FNQ48: =IRR(FNQ42:FPP42) ->  | FNR48: =IRRm(FNQ42:FPP42) -> 1.1 | FNU48: =IRR(FNU42:FPT42) ->  | FNV48: =IRRm(FNU42:FPT42) -> 1.1 | FNY48: =IRR(FNY42:FPX42) ->  | FNZ48: =IRRm(FNY42:FPX42) -> 1.1 | FOC48: =IRR(FOC42:FQB42) ->  | FOD48: =IRRm(FOC42:FQB42) -> 1.1 | FOG48: =IRR(FOG42:FQF42) ->  | FOH48: =IRRm(FOG42:FQF42) -> 1.1 | FOK48: =IRR(FOK42:FQJ42) ->  | FOL48: =IRRm(FOK42:FQJ42) -> 1.1 | FOO48: =IRR(FOO42:FQN42) ->  | FOP48: =IRRm(FOO42:FQN42) -> 1.1 | FOS48: =IRR(FOS42:FQR42) ->  | FOT48: =IRRm(FOS42:FQR42) -> 1.1 | FOW48: =IRR(FOW42:FQV42) ->  | FOX48: =IRRm(FOW42:FQV42) -> 1.1 | FPA48: =IRR(FPA42:FQZ42) ->  | FPB48: =IRRm(FPA42:FQZ42) -> 1.1 | FPE48: =IRR(FPE42:FRD42) ->  | FPF48: =IRRm(FPE42:FRD42) -> 1.1 | FPI48: =IRR(FPI42:FRH42) ->  | FPJ48: =IRRm(FPI42:FRH42) -> 1.1 | FPM48: =IRR(FPM42:FRL42) ->  | FPN48: =IRRm(FPM42:FRL42) -> 1.1 | FPQ48: =IRR(FPQ42:FRP42) ->  | FPR48: =IRRm(FPQ42:FRP42) -> 1.1 | FPU48: =IRR(FPU42:FRT42) ->  | FPV48: =IRRm(FPU42:FRT42) -> 1.1 | FPY48: =IRR(FPY42:FRX42) ->  | FPZ48: =IRRm(FPY42:FRX42) -> 1.1 | FQC48: =IRR(FQC42:FSB42) ->  | FQD48: =IRRm(FQC42:FSB42) -> 1.1 | FQG48: =IRR(FQG42:FSF42) ->  | FQH48: =IRRm(FQG42:FSF42) -> 1.1 | FQK48: =IRR(FQK42:FSJ42) ->  | FQL48: =IRRm(FQK42:FSJ42) -> 1.1 | FQO48: =IRR(FQO42:FSN42) ->  | FQP48: =IRRm(FQO42:FSN42) -> 1.1 | FQS48: =IRR(FQS42:FSR42) ->  | FQT48: =IRRm(FQS42:FSR42) -> 1.1 | FQW48: =IRR(FQW42:FSV42) ->  | FQX48: =IRRm(FQW42:FSV42) -> 1.1 | FRA48: =IRR(FRA42:FSZ42) ->  | FRB48: =IRRm(FRA42:FSZ42) -> 1.1 | FRE48: =IRR(FRE42:FTD42) ->  | FRF48: =IRRm(FRE42:FTD42) -> 1.1 | FRI48: =IRR(FRI42:FTH42) ->  | FRJ48: =IRRm(FRI42:FTH42) -> 1.1 | FRM48: =IRR(FRM42:FTL42) ->  | FRN48: =IRRm(FRM42:FTL42) -> 1.1 | FRQ48: =IRR(FRQ42:FTP42) ->  | FRR48: =IRRm(FRQ42:FTP42) -> 1.1 | FRU48: =IRR(FRU42:FTT42) ->  | FRV48: =IRRm(FRU42:FTT42) -> 1.1 | FRY48: =IRR(FRY42:FTX42) ->  | FRZ48: =IRRm(FRY42:FTX42) -> 1.1 | FSC48: =IRR(FSC42:FUB42) ->  | FSD48: =IRRm(FSC42:FUB42) -> 1.1 | FSG48: =IRR(FSG42:FUF42) ->  | FSH48: =IRRm(FSG42:FUF42) -> 1.1 | FSK48: =IRR(FSK42:FUJ42) ->  | FSL48: =IRRm(FSK42:FUJ42) -> 1.1 | FSO48: =IRR(FSO42:FUN42) ->  | FSP48: =IRRm(FSO42:FUN42) -> 1.1 | FSS48: =IRR(FSS42:FUR42) ->  | FST48: =IRRm(FSS42:FUR42) -> 1.1 | FSW48: =IRR(FSW42:FUV42) ->  | FSX48: =IRRm(FSW42:FUV42) -> 1.1 | FTA48: =IRR(FTA42:FUZ42) ->  | FTB48: =IRRm(FTA42:FUZ42) -> 1.1 | FTE48: =IRR(FTE42:FVD42) ->  | FTF48: =IRRm(FTE42:FVD42) -> 1.1 | FTI48: =IRR(FTI42:FVH42) ->  | FTJ48: =IRRm(FTI42:FVH42) -> 1.1 | FTM48: =IRR(FTM42:FVL42) ->  | FTN48: =IRRm(FTM42:FVL42) -> 1.1 | FTQ48: =IRR(FTQ42:FVP42) ->  | FTR48: =IRRm(FTQ42:FVP42) -> 1.1 | FTU48: =IRR(FTU42:FVT42) ->  | FTV48: =IRRm(FTU42:FVT42) -> 1.1 | FTY48: =IRR(FTY42:FVX42) ->  | FTZ48: =IRRm(FTY42:FVX42) -> 1.1 | FUC48: =IRR(FUC42:FWB42) ->  | FUD48: =IRRm(FUC42:FWB42) -> 1.1 | FUG48: =IRR(FUG42:FWF42) ->  | FUH48: =IRRm(FUG42:FWF42) -> 1.1 | FUK48: =IRR(FUK42:FWJ42) ->  | FUL48: =IRRm(FUK42:FWJ42) -> 1.1 | FUO48: =IRR(FUO42:FWN42) ->  | FUP48: =IRRm(FUO42:FWN42) -> 1.1 | FUS48: =IRR(FUS42:FWR42) ->  | FUT48: =IRRm(FUS42:FWR42) -> 1.1 | FUW48: =IRR(FUW42:FWV42) ->  | FUX48: =IRRm(FUW42:FWV42) -> 1.1 | FVA48: =IRR(FVA42:FWZ42) ->  | FVB48: =IRRm(FVA42:FWZ42) -> 1.1 | FVE48: =IRR(FVE42:FXD42) ->  | FVF48: =IRRm(FVE42:FXD42) -> 1.1 | FVI48: =IRR(FVI42:FXH42) ->  | FVJ48: =IRRm(FVI42:FXH42) -> 1.1 | FVM48: =IRR(FVM42:FXL42) ->  | FVN48: =IRRm(FVM42:FXL42) -> 1.1 | FVQ48: =IRR(FVQ42:FXP42) ->  | FVR48: =IRRm(FVQ42:FXP42) -> 1.1 | FVU48: =IRR(FVU42:FXT42) ->  | FVV48: =IRRm(FVU42:FXT42) -> 1.1 | FVY48: =IRR(FVY42:FXX42) ->  | FVZ48: =IRRm(FVY42:FXX42) -> 1.1 | FWC48: =IRR(FWC42:FYB42) ->  | FWD48: =IRRm(FWC42:FYB42) -> 1.1 | FWG48: =IRR(FWG42:FYF42) ->  | FWH48: =IRRm(FWG42:FYF42) -> 1.1 | FWK48: =IRR(FWK42:FYJ42) ->  | FWL48: =IRRm(FWK42:FYJ42) -> 1.1 | FWO48: =IRR(FWO42:FYN42) ->  | FWP48: =IRRm(FWO42:FYN42) -> 1.1 | FWS48: =IRR(FWS42:FYR42) ->  | FWT48: =IRRm(FWS42:FYR42) -> 1.1 | FWW48: =IRR(FWW42:FYV42) ->  | FWX48: =IRRm(FWW42:FYV42) -> 1.1 | FXA48: =IRR(FXA42:FYZ42) ->  | FXB48: =IRRm(FXA42:FYZ42) -> 1.1 | FXE48: =IRR(FXE42:FZD42) ->  | FXF48: =IRRm(FXE42:FZD42) -> 1.1 | FXI48: =IRR(FXI42:FZH42) ->  | FXJ48: =IRRm(FXI42:FZH42) -> 1.1 | FXM48: =IRR(FXM42:FZL42) ->  | FXN48: =IRRm(FXM42:FZL42) -> 1.1 | FXQ48: =IRR(FXQ42:FZP42) ->  | FXR48: =IRRm(FXQ42:FZP42) -> 1.1 | FXU48: =IRR(FXU42:FZT42) ->  | FXV48: =IRRm(FXU42:FZT42) -> 1.1 | FXY48: =IRR(FXY42:FZX42) ->  | FXZ48: =IRRm(FXY42:FZX42) -> 1.1 | FYC48: =IRR(FYC42:GAB42) ->  | FYD48: =IRRm(FYC42:GAB42) -> 1.1 | FYG48: =IRR(FYG42:GAF42) ->  | FYH48: =IRRm(FYG42:GAF42) -> 1.1 | FYK48: =IRR(FYK42:GAJ42) ->  | FYL48: =IRRm(FYK42:GAJ42) -> 1.1 | FYO48: =IRR(FYO42:GAN42) ->  | FYP48: =IRRm(FYO42:GAN42) -> 1.1 | FYS48: =IRR(FYS42:GAR42) ->  | FYT48: =IRRm(FYS42:GAR42) -> 1.1 | FYW48: =IRR(FYW42:GAV42) ->  | FYX48: =IRRm(FYW42:GAV42) -> 1.1 | FZA48: =IRR(FZA42:GAZ42) ->  | FZB48: =IRRm(FZA42:GAZ42) -> 1.1 | FZE48: =IRR(FZE42:GBD42) ->  | FZF48: =IRRm(FZE42:GBD42) -> 1.1 | FZI48: =IRR(FZI42:GBH42) ->  | FZJ48: =IRRm(FZI42:GBH42) -> 1.1 | FZM48: =IRR(FZM42:GBL42) ->  | FZN48: =IRRm(FZM42:GBL42) -> 1.1 | FZQ48: =IRR(FZQ42:GBP42) ->  | FZR48: =IRRm(FZQ42:GBP42) -> 1.1 | FZU48: =IRR(FZU42:GBT42) ->  | FZV48: =IRRm(FZU42:GBT42) -> 1.1 | FZY48: =IRR(FZY42:GBX42) ->  | FZZ48: =IRRm(FZY42:GBX42) -> 1.1 | GAC48: =IRR(GAC42:GCB42) ->  | GAD48: =IRRm(GAC42:GCB42) -> 1.1 | GAG48: =IRR(GAG42:GCF42) ->  | GAH48: =IRRm(GAG42:GCF42) -> 1.1 | GAK48: =IRR(GAK42:GCJ42) ->  | GAL48: =IRRm(GAK42:GCJ42) -> 1.1 | GAO48: =IRR(GAO42:GCN42) ->  | GAP48: =IRRm(GAO42:GCN42) -> 1.1 | GAS48: =IRR(GAS42:GCR42) ->  | GAT48: =IRRm(GAS42:GCR42) -> 1.1 | GAW48: =IRR(GAW42:GCV42) ->  | GAX48: =IRRm(GAW42:GCV42) -> 1.1 | GBA48: =IRR(GBA42:GCZ42) ->  | GBB48: =IRRm(GBA42:GCZ42) -> 1.1 | GBE48: =IRR(GBE42:GDD42) ->  | GBF48: =IRRm(GBE42:GDD42) -> 1.1 | GBI48: =IRR(GBI42:GDH42) ->  | GBJ48: =IRRm(GBI42:GDH42) -> 1.1 | GBM48: =IRR(GBM42:GDL42) ->  | GBN48: =IRRm(GBM42:GDL42) -> 1.1 | GBQ48: =IRR(GBQ42:GDP42) ->  | GBR48: =IRRm(GBQ42:GDP42) -> 1.1 | GBU48: =IRR(GBU42:GDT42) ->  | GBV48: =IRRm(GBU42:GDT42) -> 1.1 | GBY48: =IRR(GBY42:GDX42) ->  | GBZ48: =IRRm(GBY42:GDX42) -> 1.1 | GCC48: =IRR(GCC42:GEB42) ->  | GCD48: =IRRm(GCC42:GEB42) -> 1.1 | GCG48: =IRR(GCG42:GEF42) ->  | GCH48: =IRRm(GCG42:GEF42) -> 1.1 | GCK48: =IRR(GCK42:GEJ42) ->  | GCL48: =IRRm(GCK42:GEJ42) -> 1.1 | GCO48: =IRR(GCO42:GEN42) ->  | GCP48: =IRRm(GCO42:GEN42) -> 1.1 | GCS48: =IRR(GCS42:GER42) ->  | GCT48: =IRRm(GCS42:GER42) -> 1.1 | GCW48: =IRR(GCW42:GEV42) ->  | GCX48: =IRRm(GCW42:GEV42) -> 1.1 | GDA48: =IRR(GDA42:GEZ42) ->  | GDB48: =IRRm(GDA42:GEZ42) -> 1.1 | GDE48: =IRR(GDE42:GFD42) ->  | GDF48: =IRRm(GDE42:GFD42) -> 1.1 | GDI48: =IRR(GDI42:GFH42) ->  | GDJ48: =IRRm(GDI42:GFH42) -> 1.1 | GDM48: =IRR(GDM42:GFL42) ->  | GDN48: =IRRm(GDM42:GFL42) -> 1.1 | GDQ48: =IRR(GDQ42:GFP42) ->  | GDR48: =IRRm(GDQ42:GFP42) -> 1.1 | GDU48: =IRR(GDU42:GFT42) ->  | GDV48: =IRRm(GDU42:GFT42) -> 1.1 | GDY48: =IRR(GDY42:GFX42) ->  | GDZ48: =IRRm(GDY42:GFX42) -> 1.1 | GEC48: =IRR(GEC42:GGB42) ->  | GED48: =IRRm(GEC42:GGB42) -> 1.1 | GEG48: =IRR(GEG42:GGF42) ->  | GEH48: =IRRm(GEG42:GGF42) -> 1.1 | GEK48: =IRR(GEK42:GGJ42) ->  | GEL48: =IRRm(GEK42:GGJ42) -> 1.1 | GEO48: =IRR(GEO42:GGN42) ->  | GEP48: =IRRm(GEO42:GGN42) -> 1.1 | GES48: =IRR(GES42:GGR42) ->  | GET48: =IRRm(GES42:GGR42) -> 1.1 | GEW48: =IRR(GEW42:GGV42) ->  | GEX48: =IRRm(GEW42:GGV42) -> 1.1 | GFA48: =IRR(GFA42:GGZ42) ->  | GFB48: =IRRm(GFA42:GGZ42) -> 1.1 | GFE48: =IRR(GFE42:GHD42) ->  | GFF48: =IRRm(GFE42:GHD42) -> 1.1 | GFI48: =IRR(GFI42:GHH42) ->  | GFJ48: =IRRm(GFI42:GHH42) -> 1.1 | GFM48: =IRR(GFM42:GHL42) ->  | GFN48: =IRRm(GFM42:GHL42) -> 1.1 | GFQ48: =IRR(GFQ42:GHP42) ->  | GFR48: =IRRm(GFQ42:GHP42) -> 1.1 | GFU48: =IRR(GFU42:GHT42) ->  | GFV48: =IRRm(GFU42:GHT42) -> 1.1 | GFY48: =IRR(GFY42:GHX42) ->  | GFZ48: =IRRm(GFY42:GHX42) -> 1.1 | GGC48: =IRR(GGC42:GIB42) ->  | GGD48: =IRRm(GGC42:GIB42) -> 1.1 | GGG48: =IRR(GGG42:GIF42) ->  | GGH48: =IRRm(GGG42:GIF42) -> 1.1 | GGK48: =IRR(GGK42:GIJ42) ->  | GGL48: =IRRm(GGK42:GIJ42) -> 1.1 | GGO48: =IRR(GGO42:GIN42) ->  | GGP48: =IRRm(GGO42:GIN42) -> 1.1 | GGS48: =IRR(GGS42:GIR42) ->  | GGT48: =IRRm(GGS42:GIR42) -> 1.1 | GGW48: =IRR(GGW42:GIV42) ->  | GGX48: =IRRm(GGW42:GIV42) -> 1.1 | GHA48: =IRR(GHA42:GIZ42) ->  | GHB48: =IRRm(GHA42:GIZ42) -> 1.1 | GHE48: =IRR(GHE42:GJD42) ->  | GHF48: =IRRm(GHE42:GJD42) -> 1.1 | GHI48: =IRR(GHI42:GJH42) ->  | GHJ48: =IRRm(GHI42:GJH42) -> 1.1 | GHM48: =IRR(GHM42:GJL42) ->  | GHN48: =IRRm(GHM42:GJL42) -> 1.1 | GHQ48: =IRR(GHQ42:GJP42) ->  | GHR48: =IRRm(GHQ42:GJP42) -> 1.1 | GHU48: =IRR(GHU42:GJT42) ->  | GHV48: =IRRm(GHU42:GJT42) -> 1.1 | GHY48: =IRR(GHY42:GJX42) ->  | GHZ48: =IRRm(GHY42:GJX42) -> 1.1 | GIC48: =IRR(GIC42:GKB42) ->  | GID48: =IRRm(GIC42:GKB42) -> 1.1 | GIG48: =IRR(GIG42:GKF42) ->  | GIH48: =IRRm(GIG42:GKF42) -> 1.1 | GIK48: =IRR(GIK42:GKJ42) ->  | GIL48: =IRRm(GIK42:GKJ42) -> 1.1 | GIO48: =IRR(GIO42:GKN42) ->  | GIP48: =IRRm(GIO42:GKN42) -> 1.1 | GIS48: =IRR(GIS42:GKR42) ->  | GIT48: =IRRm(GIS42:GKR42) -> 1.1 | GIW48: =IRR(GIW42:GKV42) ->  | GIX48: =IRRm(GIW42:GKV42) -> 1.1 | GJA48: =IRR(GJA42:GKZ42) ->  | GJB48: =IRRm(GJA42:GKZ42) -> 1.1 | GJE48: =IRR(GJE42:GLD42) ->  | GJF48: =IRRm(GJE42:GLD42) -> 1.1 | GJI48: =IRR(GJI42:GLH42) ->  | GJJ48: =IRRm(GJI42:GLH42) -> 1.1 | GJM48: =IRR(GJM42:GLL42) ->  | GJN48: =IRRm(GJM42:GLL42) -> 1.1 | GJQ48: =IRR(GJQ42:GLP42) ->  | GJR48: =IRRm(GJQ42:GLP42) -> 1.1 | GJU48: =IRR(GJU42:GLT42) ->  | GJV48: =IRRm(GJU42:GLT42) -> 1.1 | GJY48: =IRR(GJY42:GLX42) ->  | GJZ48: =IRRm(GJY42:GLX42) -> 1.1 | GKC48: =IRR(GKC42:GMB42) ->  | GKD48: =IRRm(GKC42:GMB42) -> 1.1 | GKG48: =IRR(GKG42:GMF42) ->  | GKH48: =IRRm(GKG42:GMF42) -> 1.1 | GKK48: =IRR(GKK42:GMJ42) ->  | GKL48: =IRRm(GKK42:GMJ42) -> 1.1 | GKO48: =IRR(GKO42:GMN42) ->  | GKP48: =IRRm(GKO42:GMN42) -> 1.1 | GKS48: =IRR(GKS42:GMR42) ->  | GKT48: =IRRm(GKS42:GMR42) -> 1.1 | GKW48: =IRR(GKW42:GMV42) ->  | GKX48: =IRRm(GKW42:GMV42) -> 1.1 | GLA48: =IRR(GLA42:GMZ42) ->  | GLB48: =IRRm(GLA42:GMZ42) -> 1.1 | GLE48: =IRR(GLE42:GND42) ->  | GLF48: =IRRm(GLE42:GND42) -> 1.1 | GLI48: =IRR(GLI42:GNH42) ->  | GLJ48: =IRRm(GLI42:GNH42) -> 1.1 | GLM48: =IRR(GLM42:GNL42) ->  | GLN48: =IRRm(GLM42:GNL42) -> 1.1 | GLQ48: =IRR(GLQ42:GNP42) ->  | GLR48: =IRRm(GLQ42:GNP42) -> 1.1 | GLU48: =IRR(GLU42:GNT42) ->  | GLV48: =IRRm(GLU42:GNT42) -> 1.1 | GLY48: =IRR(GLY42:GNX42) ->  | GLZ48: =IRRm(GLY42:GNX42) -> 1.1 | GMC48: =IRR(GMC42:GOB42) ->  | GMD48: =IRRm(GMC42:GOB42) -> 1.1 | GMG48: =IRR(GMG42:GOF42) ->  | GMH48: =IRRm(GMG42:GOF42) -> 1.1 | GMK48: =IRR(GMK42:GOJ42) ->  | GML48: =IRRm(GMK42:GOJ42) -> 1.1 | GMO48: =IRR(GMO42:GON42) ->  | GMP48: =IRRm(GMO42:GON42) -> 1.1 | GMS48: =IRR(GMS42:GOR42) ->  | GMT48: =IRRm(GMS42:GOR42) -> 1.1 | GMW48: =IRR(GMW42:GOV42) ->  | GMX48: =IRRm(GMW42:GOV42) -> 1.1 | GNA48: =IRR(GNA42:GOZ42) ->  | GNB48: =IRRm(GNA42:GOZ42) -> 1.1 | GNE48: =IRR(GNE42:GPD42) ->  | GNF48: =IRRm(GNE42:GPD42) -> 1.1 | GNI48: =IRR(GNI42:GPH42) ->  | GNJ48: =IRRm(GNI42:GPH42) -> 1.1 | GNM48: =IRR(GNM42:GPL42) ->  | GNN48: =IRRm(GNM42:GPL42) -> 1.1 | GNQ48: =IRR(GNQ42:GPP42) ->  | GNR48: =IRRm(GNQ42:GPP42) -> 1.1 | GNU48: =IRR(GNU42:GPT42) ->  | GNV48: =IRRm(GNU42:GPT42) -> 1.1 | GNY48: =IRR(GNY42:GPX42) ->  | GNZ48: =IRRm(GNY42:GPX42) -> 1.1 | GOC48: =IRR(GOC42:GQB42) ->  | GOD48: =IRRm(GOC42:GQB42) -> 1.1 | GOG48: =IRR(GOG42:GQF42) ->  | GOH48: =IRRm(GOG42:GQF42) -> 1.1 | GOK48: =IRR(GOK42:GQJ42) ->  | GOL48: =IRRm(GOK42:GQJ42) -> 1.1 | GOO48: =IRR(GOO42:GQN42) ->  | GOP48: =IRRm(GOO42:GQN42) -> 1.1 | GOS48: =IRR(GOS42:GQR42) ->  | GOT48: =IRRm(GOS42:GQR42) -> 1.1 | GOW48: =IRR(GOW42:GQV42) ->  | GOX48: =IRRm(GOW42:GQV42) -> 1.1 | GPA48: =IRR(GPA42:GQZ42) ->  | GPB48: =IRRm(GPA42:GQZ42) -> 1.1 | GPE48: =IRR(GPE42:GRD42) ->  | GPF48: =IRRm(GPE42:GRD42) -> 1.1 | GPI48: =IRR(GPI42:GRH42) ->  | GPJ48: =IRRm(GPI42:GRH42) -> 1.1 | GPM48: =IRR(GPM42:GRL42) ->  | GPN48: =IRRm(GPM42:GRL42) -> 1.1 | GPQ48: =IRR(GPQ42:GRP42) ->  | GPR48: =IRRm(GPQ42:GRP42) -> 1.1 | GPU48: =IRR(GPU42:GRT42) ->  | GPV48: =IRRm(GPU42:GRT42) -> 1.1 | GPY48: =IRR(GPY42:GRX42) ->  | GPZ48: =IRRm(GPY42:GRX42) -> 1.1 | GQC48: =IRR(GQC42:GSB42) ->  | GQD48: =IRRm(GQC42:GSB42) -> 1.1 | GQG48: =IRR(GQG42:GSF42) ->  | GQH48: =IRRm(GQG42:GSF42) -> 1.1 | GQK48: =IRR(GQK42:GSJ42) ->  | GQL48: =IRRm(GQK42:GSJ42) -> 1.1 | GQO48: =IRR(GQO42:GSN42) ->  | GQP48: =IRRm(GQO42:GSN42) -> 1.1 | GQS48: =IRR(GQS42:GSR42) ->  | GQT48: =IRRm(GQS42:GSR42) -> 1.1 | GQW48: =IRR(GQW42:GSV42) ->  | GQX48: =IRRm(GQW42:GSV42) -> 1.1 | GRA48: =IRR(GRA42:GSZ42) ->  | GRB48: =IRRm(GRA42:GSZ42) -> 1.1 | GRE48: =IRR(GRE42:GTD42) ->  | GRF48: =IRRm(GRE42:GTD42) -> 1.1 | GRI48: =IRR(GRI42:GTH42) ->  | GRJ48: =IRRm(GRI42:GTH42) -> 1.1 | GRM48: =IRR(GRM42:GTL42) ->  | GRN48: =IRRm(GRM42:GTL42) -> 1.1 | GRQ48: =IRR(GRQ42:GTP42) ->  | GRR48: =IRRm(GRQ42:GTP42) -> 1.1 | GRU48: =IRR(GRU42:GTT42) ->  | GRV48: =IRRm(GRU42:GTT42) -> 1.1 | GRY48: =IRR(GRY42:GTX42) ->  | GRZ48: =IRRm(GRY42:GTX42) -> 1.1 | GSC48: =IRR(GSC42:GUB42) ->  | GSD48: =IRRm(GSC42:GUB42) -> 1.1 | GSG48: =IRR(GSG42:GUF42) ->  | GSH48: =IRRm(GSG42:GUF42) -> 1.1 | GSK48: =IRR(GSK42:GUJ42) ->  | GSL48: =IRRm(GSK42:GUJ42) -> 1.1 | GSO48: =IRR(GSO42:GUN42) ->  | GSP48: =IRRm(GSO42:GUN42) -> 1.1 | GSS48: =IRR(GSS42:GUR42) ->  | GST48: =IRRm(GSS42:GUR42) -> 1.1 | GSW48: =IRR(GSW42:GUV42) ->  | GSX48: =IRRm(GSW42:GUV42) -> 1.1 | GTA48: =IRR(GTA42:GUZ42) ->  | GTB48: =IRRm(GTA42:GUZ42) -> 1.1 | GTE48: =IRR(GTE42:GVD42) ->  | GTF48: =IRRm(GTE42:GVD42) -> 1.1 | GTI48: =IRR(GTI42:GVH42) ->  | GTJ48: =IRRm(GTI42:GVH42) -> 1.1 | GTM48: =IRR(GTM42:GVL42) ->  | GTN48: =IRRm(GTM42:GVL42) -> 1.1 | GTQ48: =IRR(GTQ42:GVP42) ->  | GTR48: =IRRm(GTQ42:GVP42) -> 1.1 | GTU48: =IRR(GTU42:GVT42) ->  | GTV48: =IRRm(GTU42:GVT42) -> 1.1 | GTY48: =IRR(GTY42:GVX42) ->  | GTZ48: =IRRm(GTY42:GVX42) -> 1.1 | GUC48: =IRR(GUC42:GWB42) ->  | GUD48: =IRRm(GUC42:GWB42) -> 1.1 | GUG48: =IRR(GUG42:GWF42) ->  | GUH48: =IRRm(GUG42:GWF42) -> 1.1 | GUK48: =IRR(GUK42:GWJ42) ->  | GUL48: =IRRm(GUK42:GWJ42) -> 1.1 | GUO48: =IRR(GUO42:GWN42) ->  | GUP48: =IRRm(GUO42:GWN42) -> 1.1 | GUS48: =IRR(GUS42:GWR42) ->  | GUT48: =IRRm(GUS42:GWR42) -> 1.1 | GUW48: =IRR(GUW42:GWV42) ->  | GUX48: =IRRm(GUW42:GWV42) -> 1.1 | GVA48: =IRR(GVA42:GWZ42) ->  | GVB48: =IRRm(GVA42:GWZ42) -> 1.1 | GVE48: =IRR(GVE42:GXD42) ->  | GVF48: =IRRm(GVE42:GXD42) -> 1.1 | GVI48: =IRR(GVI42:GXH42) ->  | GVJ48: =IRRm(GVI42:GXH42) -> 1.1 | GVM48: =IRR(GVM42:GXL42) ->  | GVN48: =IRRm(GVM42:GXL42) -> 1.1 | GVQ48: =IRR(GVQ42:GXP42) ->  | GVR48: =IRRm(GVQ42:GXP42) -> 1.1 | GVU48: =IRR(GVU42:GXT42) ->  | GVV48: =IRRm(GVU42:GXT42) -> 1.1 | GVY48: =IRR(GVY42:GXX42) ->  | GVZ48: =IRRm(GVY42:GXX42) -> 1.1 | GWC48: =IRR(GWC42:GYB42) ->  | GWD48: =IRRm(GWC42:GYB42) -> 1.1 | GWG48: =IRR(GWG42:GYF42) ->  | GWH48: =IRRm(GWG42:GYF42) -> 1.1 | GWK48: =IRR(GWK42:GYJ42) ->  | GWL48: =IRRm(GWK42:GYJ42) -> 1.1 | GWO48: =IRR(GWO42:GYN42) ->  | GWP48: =IRRm(GWO42:GYN42) -> 1.1 | GWS48: =IRR(GWS42:GYR42) ->  | GWT48: =IRRm(GWS42:GYR42) -> 1.1 | GWW48: =IRR(GWW42:GYV42) ->  | GWX48: =IRRm(GWW42:GYV42) -> 1.1 | GXA48: =IRR(GXA42:GYZ42) ->  | GXB48: =IRRm(GXA42:GYZ42) -> 1.1 | GXE48: =IRR(GXE42:GZD42) ->  | GXF48: =IRRm(GXE42:GZD42) -> 1.1 | GXI48: =IRR(GXI42:GZH42) ->  | GXJ48: =IRRm(GXI42:GZH42) -> 1.1 | GXM48: =IRR(GXM42:GZL42) ->  | GXN48: =IRRm(GXM42:GZL42) -> 1.1 | GXQ48: =IRR(GXQ42:GZP42) ->  | GXR48: =IRRm(GXQ42:GZP42) -> 1.1 | GXU48: =IRR(GXU42:GZT42) ->  | GXV48: =IRRm(GXU42:GZT42) -> 1.1 | GXY48: =IRR(GXY42:GZX42) ->  | GXZ48: =IRRm(GXY42:GZX42) -> 1.1 | GYC48: =IRR(GYC42:HAB42) ->  | GYD48: =IRRm(GYC42:HAB42) -> 1.1 | GYG48: =IRR(GYG42:HAF42) ->  | GYH48: =IRRm(GYG42:HAF42) -> 1.1 | GYK48: =IRR(GYK42:HAJ42) ->  | GYL48: =IRRm(GYK42:HAJ42) -> 1.1 | GYO48: =IRR(GYO42:HAN42) ->  | GYP48: =IRRm(GYO42:HAN42) -> 1.1 | GYS48: =IRR(GYS42:HAR42) ->  | GYT48: =IRRm(GYS42:HAR42) -> 1.1 | GYW48: =IRR(GYW42:HAV42) ->  | GYX48: =IRRm(GYW42:HAV42) -> 1.1 | GZA48: =IRR(GZA42:HAZ42) ->  | GZB48: =IRRm(GZA42:HAZ42) -> 1.1 | GZE48: =IRR(GZE42:HBD42) ->  | GZF48: =IRRm(GZE42:HBD42) -> 1.1 | GZI48: =IRR(GZI42:HBH42) ->  | GZJ48: =IRRm(GZI42:HBH42) -> 1.1 | GZM48: =IRR(GZM42:HBL42) ->  | GZN48: =IRRm(GZM42:HBL42) -> 1.1 | GZQ48: =IRR(GZQ42:HBP42) ->  | GZR48: =IRRm(GZQ42:HBP42) -> 1.1 | GZU48: =IRR(GZU42:HBT42) ->  | GZV48: =IRRm(GZU42:HBT42) -> 1.1 | GZY48: =IRR(GZY42:HBX42) ->  | GZZ48: =IRRm(GZY42:HBX42) -> 1.1 | HAC48: =IRR(HAC42:HCB42) ->  | HAD48: =IRRm(HAC42:HCB42) -> 1.1 | HAG48: =IRR(HAG42:HCF42) ->  | HAH48: =IRRm(HAG42:HCF42) -> 1.1 | HAK48: =IRR(HAK42:HCJ42) ->  | HAL48: =IRRm(HAK42:HCJ42) -> 1.1 | HAO48: =IRR(HAO42:HCN42) ->  | HAP48: =IRRm(HAO42:HCN42) -> 1.1 | HAS48: =IRR(HAS42:HCR42) ->  | HAT48: =IRRm(HAS42:HCR42) -> 1.1 | HAW48: =IRR(HAW42:HCV42) ->  | HAX48: =IRRm(HAW42:HCV42) -> 1.1 | HBA48: =IRR(HBA42:HCZ42) ->  | HBB48: =IRRm(HBA42:HCZ42) -> 1.1 | HBE48: =IRR(HBE42:HDD42) ->  | HBF48: =IRRm(HBE42:HDD42) -> 1.1 | HBI48: =IRR(HBI42:HDH42) ->  | HBJ48: =IRRm(HBI42:HDH42) -> 1.1 | HBM48: =IRR(HBM42:HDL42) ->  | HBN48: =IRRm(HBM42:HDL42) -> 1.1 | HBQ48: =IRR(HBQ42:HDP42) ->  | HBR48: =IRRm(HBQ42:HDP42) -> 1.1 | HBU48: =IRR(HBU42:HDT42) ->  | HBV48: =IRRm(HBU42:HDT42) -> 1.1 | HBY48: =IRR(HBY42:HDX42) ->  | HBZ48: =IRRm(HBY42:HDX42) -> 1.1 | HCC48: =IRR(HCC42:HEB42) ->  | HCD48: =IRRm(HCC42:HEB42) -> 1.1 | HCG48: =IRR(HCG42:HEF42) ->  | HCH48: =IRRm(HCG42:HEF42) -> 1.1 | HCK48: =IRR(HCK42:HEJ42) ->  | HCL48: =IRRm(HCK42:HEJ42) -> 1.1 | HCO48: =IRR(HCO42:HEN42) ->  | HCP48: =IRRm(HCO42:HEN42) -> 1.1 | HCS48: =IRR(HCS42:HER42) ->  | HCT48: =IRRm(HCS42:HER42) -> 1.1 | HCW48: =IRR(HCW42:HEV42) ->  | HCX48: =IRRm(HCW42:HEV42) -> 1.1 | HDA48: =IRR(HDA42:HEZ42) ->  | HDB48: =IRRm(HDA42:HEZ42) -> 1.1 | HDE48: =IRR(HDE42:HFD42) ->  | HDF48: =IRRm(HDE42:HFD42) -> 1.1 | HDI48: =IRR(HDI42:HFH42) ->  | HDJ48: =IRRm(HDI42:HFH42) -> 1.1 | HDM48: =IRR(HDM42:HFL42) ->  | HDN48: =IRRm(HDM42:HFL42) -> 1.1 | HDQ48: =IRR(HDQ42:HFP42) ->  | HDR48: =IRRm(HDQ42:HFP42) -> 1.1 | HDU48: =IRR(HDU42:HFT42) ->  | HDV48: =IRRm(HDU42:HFT42) -> 1.1 | HDY48: =IRR(HDY42:HFX42) ->  | HDZ48: =IRRm(HDY42:HFX42) -> 1.1 | HEC48: =IRR(HEC42:HGB42) ->  | HED48: =IRRm(HEC42:HGB42) -> 1.1 | HEG48: =IRR(HEG42:HGF42) ->  | HEH48: =IRRm(HEG42:HGF42) -> 1.1 | HEK48: =IRR(HEK42:HGJ42) ->  | HEL48: =IRRm(HEK42:HGJ42) -> 1.1 | HEO48: =IRR(HEO42:HGN42) ->  | HEP48: =IRRm(HEO42:HGN42) -> 1.1 | HES48: =IRR(HES42:HGR42) ->  | HET48: =IRRm(HES42:HGR42) -> 1.1 | HEW48: =IRR(HEW42:HGV42) ->  | HEX48: =IRRm(HEW42:HGV42) -> 1.1 | HFA48: =IRR(HFA42:HGZ42) ->  | HFB48: =IRRm(HFA42:HGZ42) -> 1.1 | HFE48: =IRR(HFE42:HHD42) ->  | HFF48: =IRRm(HFE42:HHD42) -> 1.1 | HFI48: =IRR(HFI42:HHH42) ->  | HFJ48: =IRRm(HFI42:HHH42) -> 1.1 | HFM48: =IRR(HFM42:HHL42) ->  | HFN48: =IRRm(HFM42:HHL42) -> 1.1 | HFQ48: =IRR(HFQ42:HHP42) ->  | HFR48: =IRRm(HFQ42:HHP42) -> 1.1 | HFU48: =IRR(HFU42:HHT42) ->  | HFV48: =IRRm(HFU42:HHT42) -> 1.1 | HFY48: =IRR(HFY42:HHX42) ->  | HFZ48: =IRRm(HFY42:HHX42) -> 1.1 | HGC48: =IRR(HGC42:HIB42) ->  | HGD48: =IRRm(HGC42:HIB42) -> 1.1 | HGG48: =IRR(HGG42:HIF42) ->  | HGH48: =IRRm(HGG42:HIF42) -> 1.1 | HGK48: =IRR(HGK42:HIJ42) ->  | HGL48: =IRRm(HGK42:HIJ42) -> 1.1 | HGO48: =IRR(HGO42:HIN42) ->  | HGP48: =IRRm(HGO42:HIN42) -> 1.1 | HGS48: =IRR(HGS42:HIR42) ->  | HGT48: =IRRm(HGS42:HIR42) -> 1.1 | HGW48: =IRR(HGW42:HIV42) ->  | HGX48: =IRRm(HGW42:HIV42) -> 1.1 | HHA48: =IRR(HHA42:HIZ42) ->  | HHB48: =IRRm(HHA42:HIZ42) -> 1.1 | HHE48: =IRR(HHE42:HJD42) ->  | HHF48: =IRRm(HHE42:HJD42) -> 1.1 | HHI48: =IRR(HHI42:HJH42) ->  | HHJ48: =IRRm(HHI42:HJH42) -> 1.1 | HHM48: =IRR(HHM42:HJL42) ->  | HHN48: =IRRm(HHM42:HJL42) -> 1.1 | HHQ48: =IRR(HHQ42:HJP42) ->  | HHR48: =IRRm(HHQ42:HJP42) -> 1.1 | HHU48: =IRR(HHU42:HJT42) ->  | HHV48: =IRRm(HHU42:HJT42) -> 1.1 | HHY48: =IRR(HHY42:HJX42) ->  | HHZ48: =IRRm(HHY42:HJX42) -> 1.1 | HIC48: =IRR(HIC42:HKB42) ->  | HID48: =IRRm(HIC42:HKB42) -> 1.1 | HIG48: =IRR(HIG42:HKF42) ->  | HIH48: =IRRm(HIG42:HKF42) -> 1.1 | HIK48: =IRR(HIK42:HKJ42) ->  | HIL48: =IRRm(HIK42:HKJ42) -> 1.1 | HIO48: =IRR(HIO42:HKN42) ->  | HIP48: =IRRm(HIO42:HKN42) -> 1.1 | HIS48: =IRR(HIS42:HKR42) ->  | HIT48: =IRRm(HIS42:HKR42) -> 1.1 | HIW48: =IRR(HIW42:HKV42) ->  | HIX48: =IRRm(HIW42:HKV42) -> 1.1 | HJA48: =IRR(HJA42:HKZ42) ->  | HJB48: =IRRm(HJA42:HKZ42) -> 1.1 | HJE48: =IRR(HJE42:HLD42) ->  | HJF48: =IRRm(HJE42:HLD42) -> 1.1 | HJI48: =IRR(HJI42:HLH42) ->  | HJJ48: =IRRm(HJI42:HLH42) -> 1.1 | HJM48: =IRR(HJM42:HLL42) ->  | HJN48: =IRRm(HJM42:HLL42) -> 1.1 | HJQ48: =IRR(HJQ42:HLP42) ->  | HJR48: =IRRm(HJQ42:HLP42) -> 1.1 | HJU48: =IRR(HJU42:HLT42) ->  | HJV48: =IRRm(HJU42:HLT42) -> 1.1 | HJY48: =IRR(HJY42:HLX42) ->  | HJZ48: =IRRm(HJY42:HLX42) -> 1.1 | HKC48: =IRR(HKC42:HMB42) ->  | HKD48: =IRRm(HKC42:HMB42) -> 1.1 | HKG48: =IRR(HKG42:HMF42) ->  | HKH48: =IRRm(HKG42:HMF42) -> 1.1 | HKK48: =IRR(HKK42:HMJ42) ->  | HKL48: =IRRm(HKK42:HMJ42) -> 1.1 | HKO48: =IRR(HKO42:HMN42) ->  | HKP48: =IRRm(HKO42:HMN42) -> 1.1 | HKS48: =IRR(HKS42:HMR42) ->  | HKT48: =IRRm(HKS42:HMR42) -> 1.1 | HKW48: =IRR(HKW42:HMV42) ->  | HKX48: =IRRm(HKW42:HMV42) -> 1.1 | HLA48: =IRR(HLA42:HMZ42) ->  | HLB48: =IRRm(HLA42:HMZ42) -> 1.1 | HLE48: =IRR(HLE42:HND42) ->  | HLF48: =IRRm(HLE42:HND42) -> 1.1 | HLI48: =IRR(HLI42:HNH42) ->  | HLJ48: =IRRm(HLI42:HNH42) -> 1.1 | HLM48: =IRR(HLM42:HNL42) ->  | HLN48: =IRRm(HLM42:HNL42) -> 1.1 | HLQ48: =IRR(HLQ42:HNP42) ->  | HLR48: =IRRm(HLQ42:HNP42) -> 1.1 | HLU48: =IRR(HLU42:HNT42) ->  | HLV48: =IRRm(HLU42:HNT42) -> 1.1 | HLY48: =IRR(HLY42:HNX42) ->  | HLZ48: =IRRm(HLY42:HNX42) -> 1.1 | HMC48: =IRR(HMC42:HOB42) ->  | HMD48: =IRRm(HMC42:HOB42) -> 1.1 | HMG48: =IRR(HMG42:HOF42) ->  | HMH48: =IRRm(HMG42:HOF42) -> 1.1 | HMK48: =IRR(HMK42:HOJ42) ->  | HML48: =IRRm(HMK42:HOJ42) -> 1.1 | HMO48: =IRR(HMO42:HON42) ->  | HMP48: =IRRm(HMO42:HON42) -> 1.1 | HMS48: =IRR(HMS42:HOR42) ->  | HMT48: =IRRm(HMS42:HOR42) -> 1.1 | HMW48: =IRR(HMW42:HOV42) ->  | HMX48: =IRRm(HMW42:HOV42) -> 1.1 | HNA48: =IRR(HNA42:HOZ42) ->  | HNB48: =IRRm(HNA42:HOZ42) -> 1.1 | HNE48: =IRR(HNE42:HPD42) ->  | HNF48: =IRRm(HNE42:HPD42) -> 1.1 | HNI48: =IRR(HNI42:HPH42) ->  | HNJ48: =IRRm(HNI42:HPH42) -> 1.1 | HNM48: =IRR(HNM42:HPL42) ->  | HNN48: =IRRm(HNM42:HPL42) -> 1.1 | HNQ48: =IRR(HNQ42:HPP42) ->  | HNR48: =IRRm(HNQ42:HPP42) -> 1.1 | HNU48: =IRR(HNU42:HPT42) ->  | HNV48: =IRRm(HNU42:HPT42) -> 1.1 | HNY48: =IRR(HNY42:HPX42) ->  | HNZ48: =IRRm(HNY42:HPX42) -> 1.1 | HOC48: =IRR(HOC42:HQB42) ->  | HOD48: =IRRm(HOC42:HQB42) -> 1.1 | HOG48: =IRR(HOG42:HQF42) ->  | HOH48: =IRRm(HOG42:HQF42) -> 1.1 | HOK48: =IRR(HOK42:HQJ42) ->  | HOL48: =IRRm(HOK42:HQJ42) -> 1.1 | HOO48: =IRR(HOO42:HQN42) ->  | HOP48: =IRRm(HOO42:HQN42) -> 1.1 | HOS48: =IRR(HOS42:HQR42) ->  | HOT48: =IRRm(HOS42:HQR42) -> 1.1 | HOW48: =IRR(HOW42:HQV42) ->  | HOX48: =IRRm(HOW42:HQV42) -> 1.1 | HPA48: =IRR(HPA42:HQZ42) ->  | HPB48: =IRRm(HPA42:HQZ42) -> 1.1 | HPE48: =IRR(HPE42:HRD42) ->  | HPF48: =IRRm(HPE42:HRD42) -> 1.1 | HPI48: =IRR(HPI42:HRH42) ->  | HPJ48: =IRRm(HPI42:HRH42) -> 1.1 | HPM48: =IRR(HPM42:HRL42) ->  | HPN48: =IRRm(HPM42:HRL42) -> 1.1 | HPQ48: =IRR(HPQ42:HRP42) ->  | HPR48: =IRRm(HPQ42:HRP42) -> 1.1 | HPU48: =IRR(HPU42:HRT42) ->  | HPV48: =IRRm(HPU42:HRT42) -> 1.1 | HPY48: =IRR(HPY42:HRX42) ->  | HPZ48: =IRRm(HPY42:HRX42) -> 1.1 | HQC48: =IRR(HQC42:HSB42) ->  | HQD48: =IRRm(HQC42:HSB42) -> 1.1 | HQG48: =IRR(HQG42:HSF42) ->  | HQH48: =IRRm(HQG42:HSF42) -> 1.1 | HQK48: =IRR(HQK42:HSJ42) ->  | HQL48: =IRRm(HQK42:HSJ42) -> 1.1 | HQO48: =IRR(HQO42:HSN42) ->  | HQP48: =IRRm(HQO42:HSN42) -> 1.1 | HQS48: =IRR(HQS42:HSR42) ->  | HQT48: =IRRm(HQS42:HSR42) -> 1.1 | HQW48: =IRR(HQW42:HSV42) ->  | HQX48: =IRRm(HQW42:HSV42) -> 1.1 | HRA48: =IRR(HRA42:HSZ42) ->  | HRB48: =IRRm(HRA42:HSZ42) -> 1.1 | HRE48: =IRR(HRE42:HTD42) ->  | HRF48: =IRRm(HRE42:HTD42) -> 1.1 | HRI48: =IRR(HRI42:HTH42) ->  | HRJ48: =IRRm(HRI42:HTH42) -> 1.1 | HRM48: =IRR(HRM42:HTL42) ->  | HRN48: =IRRm(HRM42:HTL42) -> 1.1 | HRQ48: =IRR(HRQ42:HTP42) ->  | HRR48: =IRRm(HRQ42:HTP42) -> 1.1 | HRU48: =IRR(HRU42:HTT42) ->  | HRV48: =IRRm(HRU42:HTT42) -> 1.1 | HRY48: =IRR(HRY42:HTX42) ->  | HRZ48: =IRRm(HRY42:HTX42) -> 1.1 | HSC48: =IRR(HSC42:HUB42) ->  | HSD48: =IRRm(HSC42:HUB42) -> 1.1 | HSG48: =IRR(HSG42:HUF42) ->  | HSH48: =IRRm(HSG42:HUF42) -> 1.1 | HSK48: =IRR(HSK42:HUJ42) ->  | HSL48: =IRRm(HSK42:HUJ42) -> 1.1 | HSO48: =IRR(HSO42:HUN42) ->  | HSP48: =IRRm(HSO42:HUN42) -> 1.1 | HSS48: =IRR(HSS42:HUR42) ->  | HST48: =IRRm(HSS42:HUR42) -> 1.1 | HSW48: =IRR(HSW42:HUV42) ->  | HSX48: =IRRm(HSW42:HUV42) -> 1.1 | HTA48: =IRR(HTA42:HUZ42) ->  | HTB48: =IRRm(HTA42:HUZ42) -> 1.1 | HTE48: =IRR(HTE42:HVD42) ->  | HTF48: =IRRm(HTE42:HVD42) -> 1.1 | HTI48: =IRR(HTI42:HVH42) ->  | HTJ48: =IRRm(HTI42:HVH42) -> 1.1 | HTM48: =IRR(HTM42:HVL42) ->  | HTN48: =IRRm(HTM42:HVL42) -> 1.1 | HTQ48: =IRR(HTQ42:HVP42) ->  | HTR48: =IRRm(HTQ42:HVP42) -> 1.1 | HTU48: =IRR(HTU42:HVT42) ->  | HTV48: =IRRm(HTU42:HVT42) -> 1.1 | HTY48: =IRR(HTY42:HVX42) ->  | HTZ48: =IRRm(HTY42:HVX42) -> 1.1 | HUC48: =IRR(HUC42:HWB42) ->  | HUD48: =IRRm(HUC42:HWB42) -> 1.1 | HUG48: =IRR(HUG42:HWF42) ->  | HUH48: =IRRm(HUG42:HWF42) -> 1.1 | HUK48: =IRR(HUK42:HWJ42) ->  | HUL48: =IRRm(HUK42:HWJ42) -> 1.1 | HUO48: =IRR(HUO42:HWN42) ->  | HUP48: =IRRm(HUO42:HWN42) -> 1.1 | HUS48: =IRR(HUS42:HWR42) ->  | HUT48: =IRRm(HUS42:HWR42) -> 1.1 | HUW48: =IRR(HUW42:HWV42) ->  | HUX48: =IRRm(HUW42:HWV42) -> 1.1 | HVA48: =IRR(HVA42:HWZ42) ->  | HVB48: =IRRm(HVA42:HWZ42) -> 1.1 | HVE48: =IRR(HVE42:HXD42) ->  | HVF48: =IRRm(HVE42:HXD42) -> 1.1 | HVI48: =IRR(HVI42:HXH42) ->  | HVJ48: =IRRm(HVI42:HXH42) -> 1.1 | HVM48: =IRR(HVM42:HXL42) ->  | HVN48: =IRRm(HVM42:HXL42) -> 1.1 | HVQ48: =IRR(HVQ42:HXP42) ->  | HVR48: =IRRm(HVQ42:HXP42) -> 1.1 | HVU48: =IRR(HVU42:HXT42) ->  | HVV48: =IRRm(HVU42:HXT42) -> 1.1 | HVY48: =IRR(HVY42:HXX42) ->  | HVZ48: =IRRm(HVY42:HXX42) -> 1.1 | HWC48: =IRR(HWC42:HYB42) ->  | HWD48: =IRRm(HWC42:HYB42) -> 1.1 | HWG48: =IRR(HWG42:HYF42) ->  | HWH48: =IRRm(HWG42:HYF42) -> 1.1 | HWK48: =IRR(HWK42:HYJ42) ->  | HWL48: =IRRm(HWK42:HYJ42) -> 1.1 | HWO48: =IRR(HWO42:HYN42) ->  | HWP48: =IRRm(HWO42:HYN42) -> 1.1 | HWS48: =IRR(HWS42:HYR42) ->  | HWT48: =IRRm(HWS42:HYR42) -> 1.1 | HWW48: =IRR(HWW42:HYV42) ->  | HWX48: =IRRm(HWW42:HYV42) -> 1.1 | HXA48: =IRR(HXA42:HYZ42) ->  | HXB48: =IRRm(HXA42:HYZ42) -> 1.1 | HXE48: =IRR(HXE42:HZD42) ->  | HXF48: =IRRm(HXE42:HZD42) -> 1.1 | HXI48: =IRR(HXI42:HZH42) ->  | HXJ48: =IRRm(HXI42:HZH42) -> 1.1 | HXM48: =IRR(HXM42:HZL42) ->  | HXN48: =IRRm(HXM42:HZL42) -> 1.1 | HXQ48: =IRR(HXQ42:HZP42) ->  | HXR48: =IRRm(HXQ42:HZP42) -> 1.1 | HXU48: =IRR(HXU42:HZT42) ->  | HXV48: =IRRm(HXU42:HZT42) -> 1.1 | HXY48: =IRR(HXY42:HZX42) ->  | HXZ48: =IRRm(HXY42:HZX42) -> 1.1 | HYC48: =IRR(HYC42:IAB42) ->  | HYD48: =IRRm(HYC42:IAB42) -> 1.1 | HYG48: =IRR(HYG42:IAF42) ->  | HYH48: =IRRm(HYG42:IAF42) -> 1.1 | HYK48: =IRR(HYK42:IAJ42) ->  | HYL48: =IRRm(HYK42:IAJ42) -> 1.1 | HYO48: =IRR(HYO42:IAN42) ->  | HYP48: =IRRm(HYO42:IAN42) -> 1.1 | HYS48: =IRR(HYS42:IAR42) ->  | HYT48: =IRRm(HYS42:IAR42) -> 1.1 | HYW48: =IRR(HYW42:IAV42) ->  | HYX48: =IRRm(HYW42:IAV42) -> 1.1 | HZA48: =IRR(HZA42:IAZ42) ->  | HZB48: =IRRm(HZA42:IAZ42) -> 1.1 | HZE48: =IRR(HZE42:IBD42) ->  | HZF48: =IRRm(HZE42:IBD42) -> 1.1 | HZI48: =IRR(HZI42:IBH42) ->  | HZJ48: =IRRm(HZI42:IBH42) -> 1.1 | HZM48: =IRR(HZM42:IBL42) ->  | HZN48: =IRRm(HZM42:IBL42) -> 1.1 | HZQ48: =IRR(HZQ42:IBP42) ->  | HZR48: =IRRm(HZQ42:IBP42) -> 1.1 | HZU48: =IRR(HZU42:IBT42) ->  | HZV48: =IRRm(HZU42:IBT42) -> 1.1 | HZY48: =IRR(HZY42:IBX42) ->  | HZZ48: =IRRm(HZY42:IBX42) -> 1.1 | IAC48: =IRR(IAC42:ICB42) ->  | IAD48: =IRRm(IAC42:ICB42) -> 1.1 | IAG48: =IRR(IAG42:ICF42) ->  | IAH48: =IRRm(IAG42:ICF42) -> 1.1 | IAK48: =IRR(IAK42:ICJ42) ->  | IAL48: =IRRm(IAK42:ICJ42) -> 1.1 | IAO48: =IRR(IAO42:ICN42) ->  | IAP48: =IRRm(IAO42:ICN42) -> 1.1 | IAS48: =IRR(IAS42:ICR42) ->  | IAT48: =IRRm(IAS42:ICR42) -> 1.1 | IAW48: =IRR(IAW42:ICV42) ->  | IAX48: =IRRm(IAW42:ICV42) -> 1.1 | IBA48: =IRR(IBA42:ICZ42) ->  | IBB48: =IRRm(IBA42:ICZ42) -> 1.1 | IBE48: =IRR(IBE42:IDD42) ->  | IBF48: =IRRm(IBE42:IDD42) -> 1.1 | IBI48: =IRR(IBI42:IDH42) ->  | IBJ48: =IRRm(IBI42:IDH42) -> 1.1 | IBM48: =IRR(IBM42:IDL42) ->  | IBN48: =IRRm(IBM42:IDL42) -> 1.1 | IBQ48: =IRR(IBQ42:IDP42) ->  | IBR48: =IRRm(IBQ42:IDP42) -> 1.1 | IBU48: =IRR(IBU42:IDT42) ->  | IBV48: =IRRm(IBU42:IDT42) -> 1.1 | IBY48: =IRR(IBY42:IDX42) ->  | IBZ48: =IRRm(IBY42:IDX42) -> 1.1 | ICC48: =IRR(ICC42:IEB42) ->  | ICD48: =IRRm(ICC42:IEB42) -> 1.1 | ICG48: =IRR(ICG42:IEF42) ->  | ICH48: =IRRm(ICG42:IEF42) -> 1.1 | ICK48: =IRR(ICK42:IEJ42) ->  | ICL48: =IRRm(ICK42:IEJ42) -> 1.1 | ICO48: =IRR(ICO42:IEN42) ->  | ICP48: =IRRm(ICO42:IEN42) -> 1.1 | ICS48: =IRR(ICS42:IER42) ->  | ICT48: =IRRm(ICS42:IER42) -> 1.1 | ICW48: =IRR(ICW42:IEV42) ->  | ICX48: =IRRm(ICW42:IEV42) -> 1.1 | IDA48: =IRR(IDA42:IEZ42) ->  | IDB48: =IRRm(IDA42:IEZ42) -> 1.1 | IDE48: =IRR(IDE42:IFD42) ->  | IDF48: =IRRm(IDE42:IFD42) -> 1.1 | IDI48: =IRR(IDI42:IFH42) ->  | IDJ48: =IRRm(IDI42:IFH42) -> 1.1 | IDM48: =IRR(IDM42:IFL42) ->  | IDN48: =IRRm(IDM42:IFL42) -> 1.1 | IDQ48: =IRR(IDQ42:IFP42) ->  | IDR48: =IRRm(IDQ42:IFP42) -> 1.1 | IDU48: =IRR(IDU42:IFT42) ->  | IDV48: =IRRm(IDU42:IFT42) -> 1.1 | IDY48: =IRR(IDY42:IFX42) ->  | IDZ48: =IRRm(IDY42:IFX42) -> 1.1 | IEC48: =IRR(IEC42:IGB42) ->  | IED48: =IRRm(IEC42:IGB42) -> 1.1 | IEG48: =IRR(IEG42:IGF42) ->  | IEH48: =IRRm(IEG42:IGF42) -> 1.1 | IEK48: =IRR(IEK42:IGJ42) ->  | IEL48: =IRRm(IEK42:IGJ42) -> 1.1 | IEO48: =IRR(IEO42:IGN42) ->  | IEP48: =IRRm(IEO42:IGN42) -> 1.1 | IES48: =IRR(IES42:IGR42) ->  | IET48: =IRRm(IES42:IGR42) -> 1.1 | IEW48: =IRR(IEW42:IGV42) ->  | IEX48: =IRRm(IEW42:IGV42) -> 1.1 | IFA48: =IRR(IFA42:IGZ42) ->  | IFB48: =IRRm(IFA42:IGZ42) -> 1.1 | IFE48: =IRR(IFE42:IHD42) ->  | IFF48: =IRRm(IFE42:IHD42) -> 1.1 | IFI48: =IRR(IFI42:IHH42) ->  | IFJ48: =IRRm(IFI42:IHH42) -> 1.1 | IFM48: =IRR(IFM42:IHL42) ->  | IFN48: =IRRm(IFM42:IHL42) -> 1.1 | IFQ48: =IRR(IFQ42:IHP42) ->  | IFR48: =IRRm(IFQ42:IHP42) -> 1.1 | IFU48: =IRR(IFU42:IHT42) ->  | IFV48: =IRRm(IFU42:IHT42) -> 1.1 | IFY48: =IRR(IFY42:IHX42) ->  | IFZ48: =IRRm(IFY42:IHX42) -> 1.1 | IGC48: =IRR(IGC42:IIB42) ->  | IGD48: =IRRm(IGC42:IIB42) -> 1.1 | IGG48: =IRR(IGG42:IIF42) ->  | IGH48: =IRRm(IGG42:IIF42) -> 1.1 | IGK48: =IRR(IGK42:IIJ42) ->  | IGL48: =IRRm(IGK42:IIJ42) -> 1.1 | IGO48: =IRR(IGO42:IIN42) ->  | IGP48: =IRRm(IGO42:IIN42) -> 1.1 | IGS48: =IRR(IGS42:IIR42) ->  | IGT48: =IRRm(IGS42:IIR42) -> 1.1 | IGW48: =IRR(IGW42:IIV42) ->  | IGX48: =IRRm(IGW42:IIV42) -> 1.1 | IHA48: =IRR(IHA42:IIZ42) ->  | IHB48: =IRRm(IHA42:IIZ42) -> 1.1 | IHE48: =IRR(IHE42:IJD42) ->  | IHF48: =IRRm(IHE42:IJD42) -> 1.1 | IHI48: =IRR(IHI42:IJH42) ->  | IHJ48: =IRRm(IHI42:IJH42) -> 1.1 | IHM48: =IRR(IHM42:IJL42) ->  | IHN48: =IRRm(IHM42:IJL42) -> 1.1 | IHQ48: =IRR(IHQ42:IJP42) ->  | IHR48: =IRRm(IHQ42:IJP42) -> 1.1 | IHU48: =IRR(IHU42:IJT42) ->  | IHV48: =IRRm(IHU42:IJT42) -> 1.1 | IHY48: =IRR(IHY42:IJX42) ->  | IHZ48: =IRRm(IHY42:IJX42) -> 1.1 | IIC48: =IRR(IIC42:IKB42) ->  | IID48: =IRRm(IIC42:IKB42) -> 1.1 | IIG48: =IRR(IIG42:IKF42) ->  | IIH48: =IRRm(IIG42:IKF42) -> 1.1 | IIK48: =IRR(IIK42:IKJ42) ->  | IIL48: =IRRm(IIK42:IKJ42) -> 1.1 | IIO48: =IRR(IIO42:IKN42) ->  | IIP48: =IRRm(IIO42:IKN42) -> 1.1 | IIS48: =IRR(IIS42:IKR42) ->  | IIT48: =IRRm(IIS42:IKR42) -> 1.1 | IIW48: =IRR(IIW42:IKV42) ->  | IIX48: =IRRm(IIW42:IKV42) -> 1.1 | IJA48: =IRR(IJA42:IKZ42) ->  | IJB48: =IRRm(IJA42:IKZ42) -> 1.1 | IJE48: =IRR(IJE42:ILD42) ->  | IJF48: =IRRm(IJE42:ILD42) -> 1.1 | IJI48: =IRR(IJI42:ILH42) ->  | IJJ48: =IRRm(IJI42:ILH42) -> 1.1 | IJM48: =IRR(IJM42:ILL42) ->  | IJN48: =IRRm(IJM42:ILL42) -> 1.1 | IJQ48: =IRR(IJQ42:ILP42) ->  | IJR48: =IRRm(IJQ42:ILP42) -> 1.1 | IJU48: =IRR(IJU42:ILT42) ->  | IJV48: =IRRm(IJU42:ILT42) -> 1.1 | IJY48: =IRR(IJY42:ILX42) ->  | IJZ48: =IRRm(IJY42:ILX42) -> 1.1 | IKC48: =IRR(IKC42:IMB42) ->  | IKD48: =IRRm(IKC42:IMB42) -> 1.1 | IKG48: =IRR(IKG42:IMF42) ->  | IKH48: =IRRm(IKG42:IMF42) -> 1.1 | IKK48: =IRR(IKK42:IMJ42) ->  | IKL48: =IRRm(IKK42:IMJ42) -> 1.1 | IKO48: =IRR(IKO42:IMN42) ->  | IKP48: =IRRm(IKO42:IMN42) -> 1.1 | IKS48: =IRR(IKS42:IMR42) ->  | IKT48: =IRRm(IKS42:IMR42) -> 1.1 | IKW48: =IRR(IKW42:IMV42) ->  | IKX48: =IRRm(IKW42:IMV42) -> 1.1 | ILA48: =IRR(ILA42:IMZ42) ->  | ILB48: =IRRm(ILA42:IMZ42) -> 1.1 | ILE48: =IRR(ILE42:IND42) ->  | ILF48: =IRRm(ILE42:IND42) -> 1.1 | ILI48: =IRR(ILI42:INH42) ->  | ILJ48: =IRRm(ILI42:INH42) -> 1.1 | ILM48: =IRR(ILM42:INL42) ->  | ILN48: =IRRm(ILM42:INL42) -> 1.1 | ILQ48: =IRR(ILQ42:INP42) ->  | ILR48: =IRRm(ILQ42:INP42) -> 1.1 | ILU48: =IRR(ILU42:INT42) ->  | ILV48: =IRRm(ILU42:INT42) -> 1.1 | ILY48: =IRR(ILY42:INX42) ->  | ILZ48: =IRRm(ILY42:INX42) -> 1.1 | IMC48: =IRR(IMC42:IOB42) ->  | IMD48: =IRRm(IMC42:IOB42) -> 1.1 | IMG48: =IRR(IMG42:IOF42) ->  | IMH48: =IRRm(IMG42:IOF42) -> 1.1 | IMK48: =IRR(IMK42:IOJ42) ->  | IML48: =IRRm(IMK42:IOJ42) -> 1.1 | IMO48: =IRR(IMO42:ION42) ->  | IMP48: =IRRm(IMO42:ION42) -> 1.1 | IMS48: =IRR(IMS42:IOR42) ->  | IMT48: =IRRm(IMS42:IOR42) -> 1.1 | IMW48: =IRR(IMW42:IOV42) ->  | IMX48: =IRRm(IMW42:IOV42) -> 1.1 | INA48: =IRR(INA42:IOZ42) ->  | INB48: =IRRm(INA42:IOZ42) -> 1.1 | INE48: =IRR(INE42:IPD42) ->  | INF48: =IRRm(INE42:IPD42) -> 1.1 | INI48: =IRR(INI42:IPH42) ->  | INJ48: =IRRm(INI42:IPH42) -> 1.1 | INM48: =IRR(INM42:IPL42) ->  | INN48: =IRRm(INM42:IPL42) -> 1.1 | INQ48: =IRR(INQ42:IPP42) ->  | INR48: =IRRm(INQ42:IPP42) -> 1.1 | INU48: =IRR(INU42:IPT42) ->  | INV48: =IRRm(INU42:IPT42) -> 1.1 | INY48: =IRR(INY42:IPX42) ->  | INZ48: =IRRm(INY42:IPX42) -> 1.1 | IOC48: =IRR(IOC42:IQB42) ->  | IOD48: =IRRm(IOC42:IQB42) -> 1.1 | IOG48: =IRR(IOG42:IQF42) ->  | IOH48: =IRRm(IOG42:IQF42) -> 1.1 | IOK48: =IRR(IOK42:IQJ42) ->  | IOL48: =IRRm(IOK42:IQJ42) -> 1.1 | IOO48: =IRR(IOO42:IQN42) ->  | IOP48: =IRRm(IOO42:IQN42) -> 1.1 | IOS48: =IRR(IOS42:IQR42) ->  | IOT48: =IRRm(IOS42:IQR42) -> 1.1 | IOW48: =IRR(IOW42:IQV42) ->  | IOX48: =IRRm(IOW42:IQV42) -> 1.1 | IPA48: =IRR(IPA42:IQZ42) ->  | IPB48: =IRRm(IPA42:IQZ42) -> 1.1 | IPE48: =IRR(IPE42:IRD42) ->  | IPF48: =IRRm(IPE42:IRD42) -> 1.1 | IPI48: =IRR(IPI42:IRH42) ->  | IPJ48: =IRRm(IPI42:IRH42) -> 1.1 | IPM48: =IRR(IPM42:IRL42) ->  | IPN48: =IRRm(IPM42:IRL42) -> 1.1 | IPQ48: =IRR(IPQ42:IRP42) ->  | IPR48: =IRRm(IPQ42:IRP42) -> 1.1 | IPU48: =IRR(IPU42:IRT42) ->  | IPV48: =IRRm(IPU42:IRT42) -> 1.1 | IPY48: =IRR(IPY42:IRX42) ->  | IPZ48: =IRRm(IPY42:IRX42) -> 1.1 | IQC48: =IRR(IQC42:ISB42) ->  | IQD48: =IRRm(IQC42:ISB42) -> 1.1 | IQG48: =IRR(IQG42:ISF42) ->  | IQH48: =IRRm(IQG42:ISF42) -> 1.1 | IQK48: =IRR(IQK42:ISJ42) ->  | IQL48: =IRRm(IQK42:ISJ42) -> 1.1 | IQO48: =IRR(IQO42:ISN42) ->  | IQP48: =IRRm(IQO42:ISN42) -> 1.1 | IQS48: =IRR(IQS42:ISR42) ->  | IQT48: =IRRm(IQS42:ISR42) -> 1.1 | IQW48: =IRR(IQW42:ISV42) ->  | IQX48: =IRRm(IQW42:ISV42) -> 1.1 | IRA48: =IRR(IRA42:ISZ42) ->  | IRB48: =IRRm(IRA42:ISZ42) -> 1.1 | IRE48: =IRR(IRE42:ITD42) ->  | IRF48: =IRRm(IRE42:ITD42) -> 1.1 | IRI48: =IRR(IRI42:ITH42) ->  | IRJ48: =IRRm(IRI42:ITH42) -> 1.1 | IRM48: =IRR(IRM42:ITL42) ->  | IRN48: =IRRm(IRM42:ITL42) -> 1.1 | IRQ48: =IRR(IRQ42:ITP42) ->  | IRR48: =IRRm(IRQ42:ITP42) -> 1.1 | IRU48: =IRR(IRU42:ITT42) ->  | IRV48: =IRRm(IRU42:ITT42) -> 1.1 | IRY48: =IRR(IRY42:ITX42) ->  | IRZ48: =IRRm(IRY42:ITX42) -> 1.1 | ISC48: =IRR(ISC42:IUB42) ->  | ISD48: =IRRm(ISC42:IUB42) -> 1.1 | ISG48: =IRR(ISG42:IUF42) ->  | ISH48: =IRRm(ISG42:IUF42) -> 1.1 | ISK48: =IRR(ISK42:IUJ42) ->  | ISL48: =IRRm(ISK42:IUJ42) -> 1.1 | ISO48: =IRR(ISO42:IUN42) ->  | ISP48: =IRRm(ISO42:IUN42) -> 1.1 | ISS48: =IRR(ISS42:IUR42) ->  | IST48: =IRRm(ISS42:IUR42) -> 1.1 | ISW48: =IRR(ISW42:IUV42) ->  | ISX48: =IRRm(ISW42:IUV42) -> 1.1 | ITA48: =IRR(ITA42:IUZ42) ->  | ITB48: =IRRm(ITA42:IUZ42) -> 1.1 | ITE48: =IRR(ITE42:IVD42) ->  | ITF48: =IRRm(ITE42:IVD42) -> 1.1 | ITI48: =IRR(ITI42:IVH42) ->  | ITJ48: =IRRm(ITI42:IVH42) -> 1.1 | ITM48: =IRR(ITM42:IVL42) ->  | ITN48: =IRRm(ITM42:IVL42) -> 1.1 | ITQ48: =IRR(ITQ42:IVP42) ->  | ITR48: =IRRm(ITQ42:IVP42) -> 1.1 | ITU48: =IRR(ITU42:IVT42) ->  | ITV48: =IRRm(ITU42:IVT42) -> 1.1 | ITY48: =IRR(ITY42:IVX42) ->  | ITZ48: =IRRm(ITY42:IVX42) -> 1.1 | IUC48: =IRR(IUC42:IWB42) ->  | IUD48: =IRRm(IUC42:IWB42) -> 1.1 | IUG48: =IRR(IUG42:IWF42) ->  | IUH48: =IRRm(IUG42:IWF42) -> 1.1 | IUK48: =IRR(IUK42:IWJ42) ->  | IUL48: =IRRm(IUK42:IWJ42) -> 1.1 | IUO48: =IRR(IUO42:IWN42) ->  | IUP48: =IRRm(IUO42:IWN42) -> 1.1 | IUS48: =IRR(IUS42:IWR42) ->  | IUT48: =IRRm(IUS42:IWR42) -> 1.1 | IUW48: =IRR(IUW42:IWV42) ->  | IUX48: =IRRm(IUW42:IWV42) -> 1.1 | IVA48: =IRR(IVA42:IWZ42) ->  | IVB48: =IRRm(IVA42:IWZ42) -> 1.1 | IVE48: =IRR(IVE42:IXD42) ->  | IVF48: =IRRm(IVE42:IXD42) -> 1.1 | IVI48: =IRR(IVI42:IXH42) ->  | IVJ48: =IRRm(IVI42:IXH42) -> 1.1 | IVM48: =IRR(IVM42:IXL42) ->  | IVN48: =IRRm(IVM42:IXL42) -> 1.1 | IVQ48: =IRR(IVQ42:IXP42) ->  | IVR48: =IRRm(IVQ42:IXP42) -> 1.1 | IVU48: =IRR(IVU42:IXT42) ->  | IVV48: =IRRm(IVU42:IXT42) -> 1.1 | IVY48: =IRR(IVY42:IXX42) ->  | IVZ48: =IRRm(IVY42:IXX42) -> 1.1 | IWC48: =IRR(IWC42:IYB42) ->  | IWD48: =IRRm(IWC42:IYB42) -> 1.1 | IWG48: =IRR(IWG42:IYF42) ->  | IWH48: =IRRm(IWG42:IYF42) -> 1.1 | IWK48: =IRR(IWK42:IYJ42) ->  | IWL48: =IRRm(IWK42:IYJ42) -> 1.1 | IWO48: =IRR(IWO42:IYN42) ->  | IWP48: =IRRm(IWO42:IYN42) -> 1.1 | IWS48: =IRR(IWS42:IYR42) ->  | IWT48: =IRRm(IWS42:IYR42) -> 1.1 | IWW48: =IRR(IWW42:IYV42) ->  | IWX48: =IRRm(IWW42:IYV42) -> 1.1 | IXA48: =IRR(IXA42:IYZ42) ->  | IXB48: =IRRm(IXA42:IYZ42) -> 1.1 | IXE48: =IRR(IXE42:IZD42) ->  | IXF48: =IRRm(IXE42:IZD42) -> 1.1 | IXI48: =IRR(IXI42:IZH42) ->  | IXJ48: =IRRm(IXI42:IZH42) -> 1.1 | IXM48: =IRR(IXM42:IZL42) ->  | IXN48: =IRRm(IXM42:IZL42) -> 1.1 | IXQ48: =IRR(IXQ42:IZP42) ->  | IXR48: =IRRm(IXQ42:IZP42) -> 1.1 | IXU48: =IRR(IXU42:IZT42) ->  | IXV48: =IRRm(IXU42:IZT42) -> 1.1 | IXY48: =IRR(IXY42:IZX42) ->  | IXZ48: =IRRm(IXY42:IZX42) -> 1.1 | IYC48: =IRR(IYC42:JAB42) ->  | IYD48: =IRRm(IYC42:JAB42) -> 1.1 | IYG48: =IRR(IYG42:JAF42) ->  | IYH48: =IRRm(IYG42:JAF42) -> 1.1 | IYK48: =IRR(IYK42:JAJ42) ->  | IYL48: =IRRm(IYK42:JAJ42) -> 1.1 | IYO48: =IRR(IYO42:JAN42) ->  | IYP48: =IRRm(IYO42:JAN42) -> 1.1 | IYS48: =IRR(IYS42:JAR42) ->  | IYT48: =IRRm(IYS42:JAR42) -> 1.1 | IYW48: =IRR(IYW42:JAV42) ->  | IYX48: =IRRm(IYW42:JAV42) -> 1.1 | IZA48: =IRR(IZA42:JAZ42) ->  | IZB48: =IRRm(IZA42:JAZ42) -> 1.1 | IZE48: =IRR(IZE42:JBD42) ->  | IZF48: =IRRm(IZE42:JBD42) -> 1.1 | IZI48: =IRR(IZI42:JBH42) ->  | IZJ48: =IRRm(IZI42:JBH42) -> 1.1 | IZM48: =IRR(IZM42:JBL42) ->  | IZN48: =IRRm(IZM42:JBL42) -> 1.1 | IZQ48: =IRR(IZQ42:JBP42) ->  | IZR48: =IRRm(IZQ42:JBP42) -> 1.1 | IZU48: =IRR(IZU42:JBT42) ->  | IZV48: =IRRm(IZU42:JBT42) -> 1.1 | IZY48: =IRR(IZY42:JBX42) ->  | IZZ48: =IRRm(IZY42:JBX42) -> 1.1 | JAC48: =IRR(JAC42:JCB42) ->  | JAD48: =IRRm(JAC42:JCB42) -> 1.1 | JAG48: =IRR(JAG42:JCF42) ->  | JAH48: =IRRm(JAG42:JCF42) -> 1.1 | JAK48: =IRR(JAK42:JCJ42) ->  | JAL48: =IRRm(JAK42:JCJ42) -> 1.1 | JAO48: =IRR(JAO42:JCN42) ->  | JAP48: =IRRm(JAO42:JCN42) -> 1.1 | JAS48: =IRR(JAS42:JCR42) ->  | JAT48: =IRRm(JAS42:JCR42) -> 1.1 | JAW48: =IRR(JAW42:JCV42) ->  | JAX48: =IRRm(JAW42:JCV42) -> 1.1 | JBA48: =IRR(JBA42:JCZ42) ->  | JBB48: =IRRm(JBA42:JCZ42) -> 1.1 | JBE48: =IRR(JBE42:JDD42) ->  | JBF48: =IRRm(JBE42:JDD42) -> 1.1 | JBI48: =IRR(JBI42:JDH42) ->  | JBJ48: =IRRm(JBI42:JDH42) -> 1.1 | JBM48: =IRR(JBM42:JDL42) ->  | JBN48: =IRRm(JBM42:JDL42) -> 1.1 | JBQ48: =IRR(JBQ42:JDP42) ->  | JBR48: =IRRm(JBQ42:JDP42) -> 1.1 | JBU48: =IRR(JBU42:JDT42) ->  | JBV48: =IRRm(JBU42:JDT42) -> 1.1 | JBY48: =IRR(JBY42:JDX42) ->  | JBZ48: =IRRm(JBY42:JDX42) -> 1.1 | JCC48: =IRR(JCC42:JEB42) ->  | JCD48: =IRRm(JCC42:JEB42) -> 1.1 | JCG48: =IRR(JCG42:JEF42) ->  | JCH48: =IRRm(JCG42:JEF42) -> 1.1 | JCK48: =IRR(JCK42:JEJ42) ->  | JCL48: =IRRm(JCK42:JEJ42) -> 1.1 | JCO48: =IRR(JCO42:JEN42) ->  | JCP48: =IRRm(JCO42:JEN42) -> 1.1 | JCS48: =IRR(JCS42:JER42) ->  | JCT48: =IRRm(JCS42:JER42) -> 1.1 | JCW48: =IRR(JCW42:JEV42) ->  | JCX48: =IRRm(JCW42:JEV42) -> 1.1 | JDA48: =IRR(JDA42:JEZ42) ->  | JDB48: =IRRm(JDA42:JEZ42) -> 1.1 | JDE48: =IRR(JDE42:JFD42) ->  | JDF48: =IRRm(JDE42:JFD42) -> 1.1 | JDI48: =IRR(JDI42:JFH42) ->  | JDJ48: =IRRm(JDI42:JFH42) -> 1.1 | JDM48: =IRR(JDM42:JFL42) ->  | JDN48: =IRRm(JDM42:JFL42) -> 1.1 | JDQ48: =IRR(JDQ42:JFP42) ->  | JDR48: =IRRm(JDQ42:JFP42) -> 1.1 | JDU48: =IRR(JDU42:JFT42) ->  | JDV48: =IRRm(JDU42:JFT42) -> 1.1 | JDY48: =IRR(JDY42:JFX42) ->  | JDZ48: =IRRm(JDY42:JFX42) -> 1.1 | JEC48: =IRR(JEC42:JGB42) ->  | JED48: =IRRm(JEC42:JGB42) -> 1.1 | JEG48: =IRR(JEG42:JGF42) ->  | JEH48: =IRRm(JEG42:JGF42) -> 1.1 | JEK48: =IRR(JEK42:JGJ42) ->  | JEL48: =IRRm(JEK42:JGJ42) -> 1.1 | JEO48: =IRR(JEO42:JGN42) ->  | JEP48: =IRRm(JEO42:JGN42) -> 1.1 | JES48: =IRR(JES42:JGR42) ->  | JET48: =IRRm(JES42:JGR42) -> 1.1 | JEW48: =IRR(JEW42:JGV42) ->  | JEX48: =IRRm(JEW42:JGV42) -> 1.1 | JFA48: =IRR(JFA42:JGZ42) ->  | JFB48: =IRRm(JFA42:JGZ42) -> 1.1 | JFE48: =IRR(JFE42:JHD42) ->  | JFF48: =IRRm(JFE42:JHD42) -> 1.1 | JFI48: =IRR(JFI42:JHH42) ->  | JFJ48: =IRRm(JFI42:JHH42) -> 1.1 | JFM48: =IRR(JFM42:JHL42) ->  | JFN48: =IRRm(JFM42:JHL42) -> 1.1 | JFQ48: =IRR(JFQ42:JHP42) ->  | JFR48: =IRRm(JFQ42:JHP42) -> 1.1 | JFU48: =IRR(JFU42:JHT42) ->  | JFV48: =IRRm(JFU42:JHT42) -> 1.1 | JFY48: =IRR(JFY42:JHX42) ->  | JFZ48: =IRRm(JFY42:JHX42) -> 1.1 | JGC48: =IRR(JGC42:JIB42) ->  | JGD48: =IRRm(JGC42:JIB42) -> 1.1 | JGG48: =IRR(JGG42:JIF42) ->  | JGH48: =IRRm(JGG42:JIF42) -> 1.1 | JGK48: =IRR(JGK42:JIJ42) ->  | JGL48: =IRRm(JGK42:JIJ42) -> 1.1 | JGO48: =IRR(JGO42:JIN42) ->  | JGP48: =IRRm(JGO42:JIN42) -> 1.1 | JGS48: =IRR(JGS42:JIR42) ->  | JGT48: =IRRm(JGS42:JIR42) -> 1.1 | JGW48: =IRR(JGW42:JIV42) ->  | JGX48: =IRRm(JGW42:JIV42) -> 1.1 | JHA48: =IRR(JHA42:JIZ42) ->  | JHB48: =IRRm(JHA42:JIZ42) -> 1.1 | JHE48: =IRR(JHE42:JJD42) ->  | JHF48: =IRRm(JHE42:JJD42) -> 1.1 | JHI48: =IRR(JHI42:JJH42) ->  | JHJ48: =IRRm(JHI42:JJH42) -> 1.1 | JHM48: =IRR(JHM42:JJL42) ->  | JHN48: =IRRm(JHM42:JJL42) -> 1.1 | JHQ48: =IRR(JHQ42:JJP42) ->  | JHR48: =IRRm(JHQ42:JJP42) -> 1.1 | JHU48: =IRR(JHU42:JJT42) ->  | JHV48: =IRRm(JHU42:JJT42) -> 1.1 | JHY48: =IRR(JHY42:JJX42) ->  | JHZ48: =IRRm(JHY42:JJX42) -> 1.1 | JIC48: =IRR(JIC42:JKB42) ->  | JID48: =IRRm(JIC42:JKB42) -> 1.1 | JIG48: =IRR(JIG42:JKF42) ->  | JIH48: =IRRm(JIG42:JKF42) -> 1.1 | JIK48: =IRR(JIK42:JKJ42) ->  | JIL48: =IRRm(JIK42:JKJ42) -> 1.1 | JIO48: =IRR(JIO42:JKN42) ->  | JIP48: =IRRm(JIO42:JKN42) -> 1.1 | JIS48: =IRR(JIS42:JKR42) ->  | JIT48: =IRRm(JIS42:JKR42) -> 1.1 | JIW48: =IRR(JIW42:JKV42) ->  | JIX48: =IRRm(JIW42:JKV42) -> 1.1 | JJA48: =IRR(JJA42:JKZ42) ->  | JJB48: =IRRm(JJA42:JKZ42) -> 1.1 | JJE48: =IRR(JJE42:JLD42) ->  | JJF48: =IRRm(JJE42:JLD42) -> 1.1 | JJI48: =IRR(JJI42:JLH42) ->  | JJJ48: =IRRm(JJI42:JLH42) -> 1.1 | JJM48: =IRR(JJM42:JLL42) ->  | JJN48: =IRRm(JJM42:JLL42) -> 1.1 | JJQ48: =IRR(JJQ42:JLP42) ->  | JJR48: =IRRm(JJQ42:JLP42) -> 1.1 | JJU48: =IRR(JJU42:JLT42) ->  | JJV48: =IRRm(JJU42:JLT42) -> 1.1 | JJY48: =IRR(JJY42:JLX42) ->  | JJZ48: =IRRm(JJY42:JLX42) -> 1.1 | JKC48: =IRR(JKC42:JMB42) ->  | JKD48: =IRRm(JKC42:JMB42) -> 1.1 | JKG48: =IRR(JKG42:JMF42) ->  | JKH48: =IRRm(JKG42:JMF42) -> 1.1 | JKK48: =IRR(JKK42:JMJ42) ->  | JKL48: =IRRm(JKK42:JMJ42) -> 1.1 | JKO48: =IRR(JKO42:JMN42) ->  | JKP48: =IRRm(JKO42:JMN42) -> 1.1 | JKS48: =IRR(JKS42:JMR42) ->  | JKT48: =IRRm(JKS42:JMR42) -> 1.1 | JKW48: =IRR(JKW42:JMV42) ->  | JKX48: =IRRm(JKW42:JMV42) -> 1.1 | JLA48: =IRR(JLA42:JMZ42) ->  | JLB48: =IRRm(JLA42:JMZ42) -> 1.1 | JLE48: =IRR(JLE42:JND42) ->  | JLF48: =IRRm(JLE42:JND42) -> 1.1 | JLI48: =IRR(JLI42:JNH42) ->  | JLJ48: =IRRm(JLI42:JNH42) -> 1.1 | JLM48: =IRR(JLM42:JNL42) ->  | JLN48: =IRRm(JLM42:JNL42) -> 1.1 | JLQ48: =IRR(JLQ42:JNP42) ->  | JLR48: =IRRm(JLQ42:JNP42) -> 1.1 | JLU48: =IRR(JLU42:JNT42) ->  | JLV48: =IRRm(JLU42:JNT42) -> 1.1 | JLY48: =IRR(JLY42:JNX42) ->  | JLZ48: =IRRm(JLY42:JNX42) -> 1.1 | JMC48: =IRR(JMC42:JOB42) ->  | JMD48: =IRRm(JMC42:JOB42) -> 1.1 | JMG48: =IRR(JMG42:JOF42) ->  | JMH48: =IRRm(JMG42:JOF42) -> 1.1 | JMK48: =IRR(JMK42:JOJ42) ->  | JML48: =IRRm(JMK42:JOJ42) -> 1.1 | JMO48: =IRR(JMO42:JON42) ->  | JMP48: =IRRm(JMO42:JON42) -> 1.1 | JMS48: =IRR(JMS42:JOR42) ->  | JMT48: =IRRm(JMS42:JOR42) -> 1.1 | JMW48: =IRR(JMW42:JOV42) ->  | JMX48: =IRRm(JMW42:JOV42) -> 1.1 | JNA48: =IRR(JNA42:JOZ42) ->  | JNB48: =IRRm(JNA42:JOZ42) -> 1.1 | JNE48: =IRR(JNE42:JPD42) ->  | JNF48: =IRRm(JNE42:JPD42) -> 1.1 | JNI48: =IRR(JNI42:JPH42) ->  | JNJ48: =IRRm(JNI42:JPH42) -> 1.1 | JNM48: =IRR(JNM42:JPL42) ->  | JNN48: =IRRm(JNM42:JPL42) -> 1.1 | JNQ48: =IRR(JNQ42:JPP42) ->  | JNR48: =IRRm(JNQ42:JPP42) -> 1.1 | JNU48: =IRR(JNU42:JPT42) ->  | JNV48: =IRRm(JNU42:JPT42) -> 1.1 | JNY48: =IRR(JNY42:JPX42) ->  | JNZ48: =IRRm(JNY42:JPX42) -> 1.1 | JOC48: =IRR(JOC42:JQB42) ->  | JOD48: =IRRm(JOC42:JQB42) -> 1.1 | JOG48: =IRR(JOG42:JQF42) ->  | JOH48: =IRRm(JOG42:JQF42) -> 1.1 | JOK48: =IRR(JOK42:JQJ42) ->  | JOL48: =IRRm(JOK42:JQJ42) -> 1.1 | JOO48: =IRR(JOO42:JQN42) ->  | JOP48: =IRRm(JOO42:JQN42) -> 1.1 | JOS48: =IRR(JOS42:JQR42) ->  | JOT48: =IRRm(JOS42:JQR42) -> 1.1 | JOW48: =IRR(JOW42:JQV42) ->  | JOX48: =IRRm(JOW42:JQV42) -> 1.1 | JPA48: =IRR(JPA42:JQZ42) ->  | JPB48: =IRRm(JPA42:JQZ42) -> 1.1 | JPE48: =IRR(JPE42:JRD42) ->  | JPF48: =IRRm(JPE42:JRD42) -> 1.1 | JPI48: =IRR(JPI42:JRH42) ->  | JPJ48: =IRRm(JPI42:JRH42) -> 1.1 | JPM48: =IRR(JPM42:JRL42) ->  | JPN48: =IRRm(JPM42:JRL42) -> 1.1 | JPQ48: =IRR(JPQ42:JRP42) ->  | JPR48: =IRRm(JPQ42:JRP42) -> 1.1 | JPU48: =IRR(JPU42:JRT42) ->  | JPV48: =IRRm(JPU42:JRT42) -> 1.1 | JPY48: =IRR(JPY42:JRX42) ->  | JPZ48: =IRRm(JPY42:JRX42) -> 1.1 | JQC48: =IRR(JQC42:JSB42) ->  | JQD48: =IRRm(JQC42:JSB42) -> 1.1 | JQG48: =IRR(JQG42:JSF42) ->  | JQH48: =IRRm(JQG42:JSF42) -> 1.1 | JQK48: =IRR(JQK42:JSJ42) ->  | JQL48: =IRRm(JQK42:JSJ42) -> 1.1 | JQO48: =IRR(JQO42:JSN42) ->  | JQP48: =IRRm(JQO42:JSN42) -> 1.1 | JQS48: =IRR(JQS42:JSR42) ->  | JQT48: =IRRm(JQS42:JSR42) -> 1.1 | JQW48: =IRR(JQW42:JSV42) ->  | JQX48: =IRRm(JQW42:JSV42) -> 1.1 | JRA48: =IRR(JRA42:JSZ42) ->  | JRB48: =IRRm(JRA42:JSZ42) -> 1.1 | JRE48: =IRR(JRE42:JTD42) ->  | JRF48: =IRRm(JRE42:JTD42) -> 1.1 | JRI48: =IRR(JRI42:JTH42) ->  | JRJ48: =IRRm(JRI42:JTH42) -> 1.1 | JRM48: =IRR(JRM42:JTL42) ->  | JRN48: =IRRm(JRM42:JTL42) -> 1.1 | JRQ48: =IRR(JRQ42:JTP42) ->  | JRR48: =IRRm(JRQ42:JTP42) -> 1.1 | JRU48: =IRR(JRU42:JTT42) ->  | JRV48: =IRRm(JRU42:JTT42) -> 1.1 | JRY48: =IRR(JRY42:JTX42) ->  | JRZ48: =IRRm(JRY42:JTX42) -> 1.1 | JSC48: =IRR(JSC42:JUB42) ->  | JSD48: =IRRm(JSC42:JUB42) -> 1.1 | JSG48: =IRR(JSG42:JUF42) ->  | JSH48: =IRRm(JSG42:JUF42) -> 1.1 | JSK48: =IRR(JSK42:JUJ42) ->  | JSL48: =IRRm(JSK42:JUJ42) -> 1.1 | JSO48: =IRR(JSO42:JUN42) ->  | JSP48: =IRRm(JSO42:JUN42) -> 1.1 | JSS48: =IRR(JSS42:JUR42) ->  | JST48: =IRRm(JSS42:JUR42) -> 1.1 | JSW48: =IRR(JSW42:JUV42) ->  | JSX48: =IRRm(JSW42:JUV42) -> 1.1 | JTA48: =IRR(JTA42:JUZ42) ->  | JTB48: =IRRm(JTA42:JUZ42) -> 1.1 | JTE48: =IRR(JTE42:JVD42) ->  | JTF48: =IRRm(JTE42:JVD42) -> 1.1 | JTI48: =IRR(JTI42:JVH42) ->  | JTJ48: =IRRm(JTI42:JVH42) -> 1.1 | JTM48: =IRR(JTM42:JVL42) ->  | JTN48: =IRRm(JTM42:JVL42) -> 1.1 | JTQ48: =IRR(JTQ42:JVP42) ->  | JTR48: =IRRm(JTQ42:JVP42) -> 1.1 | JTU48: =IRR(JTU42:JVT42) ->  | JTV48: =IRRm(JTU42:JVT42) -> 1.1 | JTY48: =IRR(JTY42:JVX42) ->  | JTZ48: =IRRm(JTY42:JVX42) -> 1.1 | JUC48: =IRR(JUC42:JWB42) ->  | JUD48: =IRRm(JUC42:JWB42) -> 1.1 | JUG48: =IRR(JUG42:JWF42) ->  | JUH48: =IRRm(JUG42:JWF42) -> 1.1 | JUK48: =IRR(JUK42:JWJ42) ->  | JUL48: =IRRm(JUK42:JWJ42) -> 1.1 | JUO48: =IRR(JUO42:JWN42) ->  | JUP48: =IRRm(JUO42:JWN42) -> 1.1 | JUS48: =IRR(JUS42:JWR42) ->  | JUT48: =IRRm(JUS42:JWR42) -> 1.1 | JUW48: =IRR(JUW42:JWV42) ->  | JUX48: =IRRm(JUW42:JWV42) -> 1.1 | JVA48: =IRR(JVA42:JWZ42) ->  | JVB48: =IRRm(JVA42:JWZ42) -> 1.1 | JVE48: =IRR(JVE42:JXD42) ->  | JVF48: =IRRm(JVE42:JXD42) -> 1.1 | JVI48: =IRR(JVI42:JXH42) ->  | JVJ48: =IRRm(JVI42:JXH42) -> 1.1 | JVM48: =IRR(JVM42:JXL42) ->  | JVN48: =IRRm(JVM42:JXL42) -> 1.1 | JVQ48: =IRR(JVQ42:JXP42) ->  | JVR48: =IRRm(JVQ42:JXP42) -> 1.1 | JVU48: =IRR(JVU42:JXT42) ->  | JVV48: =IRRm(JVU42:JXT42) -> 1.1 | JVY48: =IRR(JVY42:JXX42) ->  | JVZ48: =IRRm(JVY42:JXX42) -> 1.1 | JWC48: =IRR(JWC42:JYB42) ->  | JWD48: =IRRm(JWC42:JYB42) -> 1.1 | JWG48: =IRR(JWG42:JYF42) ->  | JWH48: =IRRm(JWG42:JYF42) -> 1.1 | JWK48: =IRR(JWK42:JYJ42) ->  | JWL48: =IRRm(JWK42:JYJ42) -> 1.1 | JWO48: =IRR(JWO42:JYN42) ->  | JWP48: =IRRm(JWO42:JYN42) -> 1.1 | JWS48: =IRR(JWS42:JYR42) ->  | JWT48: =IRRm(JWS42:JYR42) -> 1.1 | JWW48: =IRR(JWW42:JYV42) ->  | JWX48: =IRRm(JWW42:JYV42) -> 1.1 | JXA48: =IRR(JXA42:JYZ42) ->  | JXB48: =IRRm(JXA42:JYZ42) -> 1.1 | JXE48: =IRR(JXE42:JZD42) ->  | JXF48: =IRRm(JXE42:JZD42) -> 1.1 | JXI48: =IRR(JXI42:JZH42) ->  | JXJ48: =IRRm(JXI42:JZH42) -> 1.1 | JXM48: =IRR(JXM42:JZL42) ->  | JXN48: =IRRm(JXM42:JZL42) -> 1.1 | JXQ48: =IRR(JXQ42:JZP42) ->  | JXR48: =IRRm(JXQ42:JZP42) -> 1.1 | JXU48: =IRR(JXU42:JZT42) ->  | JXV48: =IRRm(JXU42:JZT42) -> 1.1 | JXY48: =IRR(JXY42:JZX42) ->  | JXZ48: =IRRm(JXY42:JZX42) -> 1.1 | JYC48: =IRR(JYC42:KAB42) ->  | JYD48: =IRRm(JYC42:KAB42) -> 1.1 | JYG48: =IRR(JYG42:KAF42) ->  | JYH48: =IRRm(JYG42:KAF42) -> 1.1 | JYK48: =IRR(JYK42:KAJ42) ->  | JYL48: =IRRm(JYK42:KAJ42) -> 1.1 | JYO48: =IRR(JYO42:KAN42) ->  | JYP48: =IRRm(JYO42:KAN42) -> 1.1 | JYS48: =IRR(JYS42:KAR42) ->  | JYT48: =IRRm(JYS42:KAR42) -> 1.1 | JYW48: =IRR(JYW42:KAV42) ->  | JYX48: =IRRm(JYW42:KAV42) -> 1.1 | JZA48: =IRR(JZA42:KAZ42) ->  | JZB48: =IRRm(JZA42:KAZ42) -> 1.1 | JZE48: =IRR(JZE42:KBD42) ->  | JZF48: =IRRm(JZE42:KBD42) -> 1.1 | JZI48: =IRR(JZI42:KBH42) ->  | JZJ48: =IRRm(JZI42:KBH42) -> 1.1 | JZM48: =IRR(JZM42:KBL42) ->  | JZN48: =IRRm(JZM42:KBL42) -> 1.1 | JZQ48: =IRR(JZQ42:KBP42) ->  | JZR48: =IRRm(JZQ42:KBP42) -> 1.1 | JZU48: =IRR(JZU42:KBT42) ->  | JZV48: =IRRm(JZU42:KBT42) -> 1.1 | JZY48: =IRR(JZY42:KBX42) ->  | JZZ48: =IRRm(JZY42:KBX42) -> 1.1 | KAC48: =IRR(KAC42:KCB42) ->  | KAD48: =IRRm(KAC42:KCB42) -> 1.1 | KAG48: =IRR(KAG42:KCF42) ->  | KAH48: =IRRm(KAG42:KCF42) -> 1.1 | KAK48: =IRR(KAK42:KCJ42) ->  | KAL48: =IRRm(KAK42:KCJ42) -> 1.1 | KAO48: =IRR(KAO42:KCN42) ->  | KAP48: =IRRm(KAO42:KCN42) -> 1.1 | KAS48: =IRR(KAS42:KCR42) ->  | KAT48: =IRRm(KAS42:KCR42) -> 1.1 | KAW48: =IRR(KAW42:KCV42) ->  | KAX48: =IRRm(KAW42:KCV42) -> 1.1 | KBA48: =IRR(KBA42:KCZ42) ->  | KBB48: =IRRm(KBA42:KCZ42) -> 1.1 | KBE48: =IRR(KBE42:KDD42) ->  | KBF48: =IRRm(KBE42:KDD42) -> 1.1 | KBI48: =IRR(KBI42:KDH42) ->  | KBJ48: =IRRm(KBI42:KDH42) -> 1.1 | KBM48: =IRR(KBM42:KDL42) ->  | KBN48: =IRRm(KBM42:KDL42) -> 1.1 | KBQ48: =IRR(KBQ42:KDP42) ->  | KBR48: =IRRm(KBQ42:KDP42) -> 1.1 | KBU48: =IRR(KBU42:KDT42) ->  | KBV48: =IRRm(KBU42:KDT42) -> 1.1 | KBY48: =IRR(KBY42:KDX42) ->  | KBZ48: =IRRm(KBY42:KDX42) -> 1.1 | KCC48: =IRR(KCC42:KEB42) ->  | KCD48: =IRRm(KCC42:KEB42) -> 1.1 | KCG48: =IRR(KCG42:KEF42) ->  | KCH48: =IRRm(KCG42:KEF42) -> 1.1 | KCK48: =IRR(KCK42:KEJ42) ->  | KCL48: =IRRm(KCK42:KEJ42) -> 1.1 | KCO48: =IRR(KCO42:KEN42) ->  | KCP48: =IRRm(KCO42:KEN42) -> 1.1 | KCS48: =IRR(KCS42:KER42) ->  | KCT48: =IRRm(KCS42:KER42) -> 1.1 | KCW48: =IRR(KCW42:KEV42) ->  | KCX48: =IRRm(KCW42:KEV42) -> 1.1 | KDA48: =IRR(KDA42:KEZ42) ->  | KDB48: =IRRm(KDA42:KEZ42) -> 1.1 | KDE48: =IRR(KDE42:KFD42) ->  | KDF48: =IRRm(KDE42:KFD42) -> 1.1 | KDI48: =IRR(KDI42:KFH42) ->  | KDJ48: =IRRm(KDI42:KFH42) -> 1.1 | KDM48: =IRR(KDM42:KFL42) ->  | KDN48: =IRRm(KDM42:KFL42) -> 1.1 | KDQ48: =IRR(KDQ42:KFP42) ->  | KDR48: =IRRm(KDQ42:KFP42) -> 1.1 | KDU48: =IRR(KDU42:KFT42) ->  | KDV48: =IRRm(KDU42:KFT42) -> 1.1 | KDY48: =IRR(KDY42:KFX42) ->  | KDZ48: =IRRm(KDY42:KFX42) -> 1.1 | KEC48: =IRR(KEC42:KGB42) ->  | KED48: =IRRm(KEC42:KGB42) -> 1.1 | KEG48: =IRR(KEG42:KGF42) ->  | KEH48: =IRRm(KEG42:KGF42) -> 1.1 | KEK48: =IRR(KEK42:KGJ42) ->  | KEL48: =IRRm(KEK42:KGJ42) -> 1.1 | KEO48: =IRR(KEO42:KGN42) ->  | KEP48: =IRRm(KEO42:KGN42) -> 1.1 | KES48: =IRR(KES42:KGR42) ->  | KET48: =IRRm(KES42:KGR42) -> 1.1 | KEW48: =IRR(KEW42:KGV42) ->  | KEX48: =IRRm(KEW42:KGV42) -> 1.1 | KFA48: =IRR(KFA42:KGZ42) ->  | KFB48: =IRRm(KFA42:KGZ42) -> 1.1 | KFE48: =IRR(KFE42:KHD42) ->  | KFF48: =IRRm(KFE42:KHD42) -> 1.1 | KFI48: =IRR(KFI42:KHH42) ->  | KFJ48: =IRRm(KFI42:KHH42) -> 1.1 | KFM48: =IRR(KFM42:KHL42) ->  | KFN48: =IRRm(KFM42:KHL42) -> 1.1 | KFQ48: =IRR(KFQ42:KHP42) ->  | KFR48: =IRRm(KFQ42:KHP42) -> 1.1 | KFU48: =IRR(KFU42:KHT42) ->  | KFV48: =IRRm(KFU42:KHT42) -> 1.1 | KFY48: =IRR(KFY42:KHX42) ->  | KFZ48: =IRRm(KFY42:KHX42) -> 1.1 | KGC48: =IRR(KGC42:KIB42) ->  | KGD48: =IRRm(KGC42:KIB42) -> 1.1 | KGG48: =IRR(KGG42:KIF42) ->  | KGH48: =IRRm(KGG42:KIF42) -> 1.1 | KGK48: =IRR(KGK42:KIJ42) ->  | KGL48: =IRRm(KGK42:KIJ42) -> 1.1 | KGO48: =IRR(KGO42:KIN42) ->  | KGP48: =IRRm(KGO42:KIN42) -> 1.1 | KGS48: =IRR(KGS42:KIR42) ->  | KGT48: =IRRm(KGS42:KIR42) -> 1.1 | KGW48: =IRR(KGW42:KIV42) ->  | KGX48: =IRRm(KGW42:KIV42) -> 1.1 | KHA48: =IRR(KHA42:KIZ42) ->  | KHB48: =IRRm(KHA42:KIZ42) -> 1.1 | KHE48: =IRR(KHE42:KJD42) ->  | KHF48: =IRRm(KHE42:KJD42) -> 1.1 | KHI48: =IRR(KHI42:KJH42) ->  | KHJ48: =IRRm(KHI42:KJH42) -> 1.1 | KHM48: =IRR(KHM42:KJL42) ->  | KHN48: =IRRm(KHM42:KJL42) -> 1.1 | KHQ48: =IRR(KHQ42:KJP42) ->  | KHR48: =IRRm(KHQ42:KJP42) -> 1.1 | KHU48: =IRR(KHU42:KJT42) ->  | KHV48: =IRRm(KHU42:KJT42) -> 1.1 | KHY48: =IRR(KHY42:KJX42) ->  | KHZ48: =IRRm(KHY42:KJX42) -> 1.1 | KIC48: =IRR(KIC42:KKB42) ->  | KID48: =IRRm(KIC42:KKB42) -> 1.1 | KIG48: =IRR(KIG42:KKF42) ->  | KIH48: =IRRm(KIG42:KKF42) -> 1.1 | KIK48: =IRR(KIK42:KKJ42) ->  | KIL48: =IRRm(KIK42:KKJ42) -> 1.1 | KIO48: =IRR(KIO42:KKN42) ->  | KIP48: =IRRm(KIO42:KKN42) -> 1.1 | KIS48: =IRR(KIS42:KKR42) ->  | KIT48: =IRRm(KIS42:KKR42) -> 1.1 | KIW48: =IRR(KIW42:KKV42) ->  | KIX48: =IRRm(KIW42:KKV42) -> 1.1 | KJA48: =IRR(KJA42:KKZ42) ->  | KJB48: =IRRm(KJA42:KKZ42) -> 1.1 | KJE48: =IRR(KJE42:KLD42) ->  | KJF48: =IRRm(KJE42:KLD42) -> 1.1 | KJI48: =IRR(KJI42:KLH42) ->  | KJJ48: =IRRm(KJI42:KLH42) -> 1.1 | KJM48: =IRR(KJM42:KLL42) ->  | KJN48: =IRRm(KJM42:KLL42) -> 1.1 | KJQ48: =IRR(KJQ42:KLP42) ->  | KJR48: =IRRm(KJQ42:KLP42) -> 1.1 | KJU48: =IRR(KJU42:KLT42) ->  | KJV48: =IRRm(KJU42:KLT42) -> 1.1 | KJY48: =IRR(KJY42:KLX42) ->  | KJZ48: =IRRm(KJY42:KLX42) -> 1.1 | KKC48: =IRR(KKC42:KMB42) ->  | KKD48: =IRRm(KKC42:KMB42) -> 1.1 | KKG48: =IRR(KKG42:KMF42) ->  | KKH48: =IRRm(KKG42:KMF42) -> 1.1 | KKK48: =IRR(KKK42:KMJ42) ->  | KKL48: =IRRm(KKK42:KMJ42) -> 1.1 | KKO48: =IRR(KKO42:KMN42) ->  | KKP48: =IRRm(KKO42:KMN42) -> 1.1 | KKS48: =IRR(KKS42:KMR42) ->  | KKT48: =IRRm(KKS42:KMR42) -> 1.1 | KKW48: =IRR(KKW42:KMV42) ->  | KKX48: =IRRm(KKW42:KMV42) -> 1.1 | KLA48: =IRR(KLA42:KMZ42) ->  | KLB48: =IRRm(KLA42:KMZ42) -> 1.1 | KLE48: =IRR(KLE42:KND42) ->  | KLF48: =IRRm(KLE42:KND42) -> 1.1 | KLI48: =IRR(KLI42:KNH42) ->  | KLJ48: =IRRm(KLI42:KNH42) -> 1.1 | KLM48: =IRR(KLM42:KNL42) ->  | KLN48: =IRRm(KLM42:KNL42) -> 1.1 | KLQ48: =IRR(KLQ42:KNP42) ->  | KLR48: =IRRm(KLQ42:KNP42) -> 1.1 | KLU48: =IRR(KLU42:KNT42) ->  | KLV48: =IRRm(KLU42:KNT42) -> 1.1 | KLY48: =IRR(KLY42:KNX42) ->  | KLZ48: =IRRm(KLY42:KNX42) -> 1.1 | KMC48: =IRR(KMC42:KOB42) ->  | KMD48: =IRRm(KMC42:KOB42) -> 1.1 | KMG48: =IRR(KMG42:KOF42) ->  | KMH48: =IRRm(KMG42:KOF42) -> 1.1 | KMK48: =IRR(KMK42:KOJ42) ->  | KML48: =IRRm(KMK42:KOJ42) -> 1.1 | KMO48: =IRR(KMO42:KON42) ->  | KMP48: =IRRm(KMO42:KON42) -> 1.1 | KMS48: =IRR(KMS42:KOR42) ->  | KMT48: =IRRm(KMS42:KOR42) -> 1.1 | KMW48: =IRR(KMW42:KOV42) ->  | KMX48: =IRRm(KMW42:KOV42) -> 1.1 | KNA48: =IRR(KNA42:KOZ42) ->  | KNB48: =IRRm(KNA42:KOZ42) -> 1.1 | KNE48: =IRR(KNE42:KPD42) ->  | KNF48: =IRRm(KNE42:KPD42) -> 1.1 | KNI48: =IRR(KNI42:KPH42) ->  | KNJ48: =IRRm(KNI42:KPH42) -> 1.1 | KNM48: =IRR(KNM42:KPL42) ->  | KNN48: =IRRm(KNM42:KPL42) -> 1.1 | KNQ48: =IRR(KNQ42:KPP42) ->  | KNR48: =IRRm(KNQ42:KPP42) -> 1.1 | KNU48: =IRR(KNU42:KPT42) ->  | KNV48: =IRRm(KNU42:KPT42) -> 1.1 | KNY48: =IRR(KNY42:KPX42) ->  | KNZ48: =IRRm(KNY42:KPX42) -> 1.1 | KOC48: =IRR(KOC42:KQB42) ->  | KOD48: =IRRm(KOC42:KQB42) -> 1.1 | KOG48: =IRR(KOG42:KQF42) ->  | KOH48: =IRRm(KOG42:KQF42) -> 1.1 | KOK48: =IRR(KOK42:KQJ42) ->  | KOL48: =IRRm(KOK42:KQJ42) -> 1.1 | KOO48: =IRR(KOO42:KQN42) ->  | KOP48: =IRRm(KOO42:KQN42) -> 1.1 | KOS48: =IRR(KOS42:KQR42) ->  | KOT48: =IRRm(KOS42:KQR42) -> 1.1 | KOW48: =IRR(KOW42:KQV42) ->  | KOX48: =IRRm(KOW42:KQV42) -> 1.1 | KPA48: =IRR(KPA42:KQZ42) ->  | KPB48: =IRRm(KPA42:KQZ42) -> 1.1 | KPE48: =IRR(KPE42:KRD42) ->  | KPF48: =IRRm(KPE42:KRD42) -> 1.1 | KPI48: =IRR(KPI42:KRH42) ->  | KPJ48: =IRRm(KPI42:KRH42) -> 1.1 | KPM48: =IRR(KPM42:KRL42) ->  | KPN48: =IRRm(KPM42:KRL42) -> 1.1 | KPQ48: =IRR(KPQ42:KRP42) ->  | KPR48: =IRRm(KPQ42:KRP42) -> 1.1 | KPU48: =IRR(KPU42:KRT42) ->  | KPV48: =IRRm(KPU42:KRT42) -> 1.1 | KPY48: =IRR(KPY42:KRX42) ->  | KPZ48: =IRRm(KPY42:KRX42) -> 1.1 | KQC48: =IRR(KQC42:KSB42) ->  | KQD48: =IRRm(KQC42:KSB42) -> 1.1 | KQG48: =IRR(KQG42:KSF42) ->  | KQH48: =IRRm(KQG42:KSF42) -> 1.1 | KQK48: =IRR(KQK42:KSJ42) ->  | KQL48: =IRRm(KQK42:KSJ42) -> 1.1 | KQO48: =IRR(KQO42:KSN42) ->  | KQP48: =IRRm(KQO42:KSN42) -> 1.1 | KQS48: =IRR(KQS42:KSR42) ->  | KQT48: =IRRm(KQS42:KSR42) -> 1.1 | KQW48: =IRR(KQW42:KSV42) ->  | KQX48: =IRRm(KQW42:KSV42) -> 1.1 | KRA48: =IRR(KRA42:KSZ42) ->  | KRB48: =IRRm(KRA42:KSZ42) -> 1.1 | KRE48: =IRR(KRE42:KTD42) ->  | KRF48: =IRRm(KRE42:KTD42) -> 1.1 | KRI48: =IRR(KRI42:KTH42) ->  | KRJ48: =IRRm(KRI42:KTH42) -> 1.1 | KRM48: =IRR(KRM42:KTL42) ->  | KRN48: =IRRm(KRM42:KTL42) -> 1.1 | KRQ48: =IRR(KRQ42:KTP42) ->  | KRR48: =IRRm(KRQ42:KTP42) -> 1.1 | KRU48: =IRR(KRU42:KTT42) ->  | KRV48: =IRRm(KRU42:KTT42) -> 1.1 | KRY48: =IRR(KRY42:KTX42) ->  | KRZ48: =IRRm(KRY42:KTX42) -> 1.1 | KSC48: =IRR(KSC42:KUB42) ->  | KSD48: =IRRm(KSC42:KUB42) -> 1.1 | KSG48: =IRR(KSG42:KUF42) ->  | KSH48: =IRRm(KSG42:KUF42) -> 1.1 | KSK48: =IRR(KSK42:KUJ42) ->  | KSL48: =IRRm(KSK42:KUJ42) -> 1.1 | KSO48: =IRR(KSO42:KUN42) ->  | KSP48: =IRRm(KSO42:KUN42) -> 1.1 | KSS48: =IRR(KSS42:KUR42) ->  | KST48: =IRRm(KSS42:KUR42) -> 1.1 | KSW48: =IRR(KSW42:KUV42) ->  | KSX48: =IRRm(KSW42:KUV42) -> 1.1 | KTA48: =IRR(KTA42:KUZ42) ->  | KTB48: =IRRm(KTA42:KUZ42) -> 1.1 | KTE48: =IRR(KTE42:KVD42) ->  | KTF48: =IRRm(KTE42:KVD42) -> 1.1 | KTI48: =IRR(KTI42:KVH42) ->  | KTJ48: =IRRm(KTI42:KVH42) -> 1.1 | KTM48: =IRR(KTM42:KVL42) ->  | KTN48: =IRRm(KTM42:KVL42) -> 1.1 | KTQ48: =IRR(KTQ42:KVP42) ->  | KTR48: =IRRm(KTQ42:KVP42) -> 1.1 | KTU48: =IRR(KTU42:KVT42) ->  | KTV48: =IRRm(KTU42:KVT42) -> 1.1 | KTY48: =IRR(KTY42:KVX42) ->  | KTZ48: =IRRm(KTY42:KVX42) -> 1.1 | KUC48: =IRR(KUC42:KWB42) ->  | KUD48: =IRRm(KUC42:KWB42) -> 1.1 | KUG48: =IRR(KUG42:KWF42) ->  | KUH48: =IRRm(KUG42:KWF42) -> 1.1 | KUK48: =IRR(KUK42:KWJ42) ->  | KUL48: =IRRm(KUK42:KWJ42) -> 1.1 | KUO48: =IRR(KUO42:KWN42) ->  | KUP48: =IRRm(KUO42:KWN42) -> 1.1 | KUS48: =IRR(KUS42:KWR42) ->  | KUT48: =IRRm(KUS42:KWR42) -> 1.1 | KUW48: =IRR(KUW42:KWV42) ->  | KUX48: =IRRm(KUW42:KWV42) -> 1.1 | KVA48: =IRR(KVA42:KWZ42) ->  | KVB48: =IRRm(KVA42:KWZ42) -> 1.1 | KVE48: =IRR(KVE42:KXD42) ->  | KVF48: =IRRm(KVE42:KXD42) -> 1.1 | KVI48: =IRR(KVI42:KXH42) ->  | KVJ48: =IRRm(KVI42:KXH42) -> 1.1 | KVM48: =IRR(KVM42:KXL42) ->  | KVN48: =IRRm(KVM42:KXL42) -> 1.1 | KVQ48: =IRR(KVQ42:KXP42) ->  | KVR48: =IRRm(KVQ42:KXP42) -> 1.1 | KVU48: =IRR(KVU42:KXT42) ->  | KVV48: =IRRm(KVU42:KXT42) -> 1.1 | KVY48: =IRR(KVY42:KXX42) ->  | KVZ48: =IRRm(KVY42:KXX42) -> 1.1 | KWC48: =IRR(KWC42:KYB42) ->  | KWD48: =IRRm(KWC42:KYB42) -> 1.1 | KWG48: =IRR(KWG42:KYF42) ->  | KWH48: =IRRm(KWG42:KYF42) -> 1.1 | KWK48: =IRR(KWK42:KYJ42) ->  | KWL48: =IRRm(KWK42:KYJ42) -> 1.1 | KWO48: =IRR(KWO42:KYN42) ->  | KWP48: =IRRm(KWO42:KYN42) -> 1.1 | KWS48: =IRR(KWS42:KYR42) ->  | KWT48: =IRRm(KWS42:KYR42) -> 1.1 | KWW48: =IRR(KWW42:KYV42) ->  | KWX48: =IRRm(KWW42:KYV42) -> 1.1 | KXA48: =IRR(KXA42:KYZ42) ->  | KXB48: =IRRm(KXA42:KYZ42) -> 1.1 | KXE48: =IRR(KXE42:KZD42) ->  | KXF48: =IRRm(KXE42:KZD42) -> 1.1 | KXI48: =IRR(KXI42:KZH42) ->  | KXJ48: =IRRm(KXI42:KZH42) -> 1.1 | KXM48: =IRR(KXM42:KZL42) ->  | KXN48: =IRRm(KXM42:KZL42) -> 1.1 | KXQ48: =IRR(KXQ42:KZP42) ->  | KXR48: =IRRm(KXQ42:KZP42) -> 1.1 | KXU48: =IRR(KXU42:KZT42) ->  | KXV48: =IRRm(KXU42:KZT42) -> 1.1 | KXY48: =IRR(KXY42:KZX42) ->  | KXZ48: =IRRm(KXY42:KZX42) -> 1.1 | KYC48: =IRR(KYC42:LAB42) ->  | KYD48: =IRRm(KYC42:LAB42) -> 1.1 | KYG48: =IRR(KYG42:LAF42) ->  | KYH48: =IRRm(KYG42:LAF42) -> 1.1 | KYK48: =IRR(KYK42:LAJ42) ->  | KYL48: =IRRm(KYK42:LAJ42) -> 1.1 | KYO48: =IRR(KYO42:LAN42) ->  | KYP48: =IRRm(KYO42:LAN42) -> 1.1 | KYS48: =IRR(KYS42:LAR42) ->  | KYT48: =IRRm(KYS42:LAR42) -> 1.1 | KYW48: =IRR(KYW42:LAV42) ->  | KYX48: =IRRm(KYW42:LAV42) -> 1.1 | KZA48: =IRR(KZA42:LAZ42) ->  | KZB48: =IRRm(KZA42:LAZ42) -> 1.1 | KZE48: =IRR(KZE42:LBD42) ->  | KZF48: =IRRm(KZE42:LBD42) -> 1.1 | KZI48: =IRR(KZI42:LBH42) ->  | KZJ48: =IRRm(KZI42:LBH42) -> 1.1 | KZM48: =IRR(KZM42:LBL42) ->  | KZN48: =IRRm(KZM42:LBL42) -> 1.1 | KZQ48: =IRR(KZQ42:LBP42) ->  | KZR48: =IRRm(KZQ42:LBP42) -> 1.1 | KZU48: =IRR(KZU42:LBT42) ->  | KZV48: =IRRm(KZU42:LBT42) -> 1.1 | KZY48: =IRR(KZY42:LBX42) ->  | KZZ48: =IRRm(KZY42:LBX42) -> 1.1 | LAC48: =IRR(LAC42:LCB42) ->  | LAD48: =IRRm(LAC42:LCB42) -> 1.1 | LAG48: =IRR(LAG42:LCF42) ->  | LAH48: =IRRm(LAG42:LCF42) -> 1.1 | LAK48: =IRR(LAK42:LCJ42) ->  | LAL48: =IRRm(LAK42:LCJ42) -> 1.1 | LAO48: =IRR(LAO42:LCN42) ->  | LAP48: =IRRm(LAO42:LCN42) -> 1.1 | LAS48: =IRR(LAS42:LCR42) ->  | LAT48: =IRRm(LAS42:LCR42) -> 1.1 | LAW48: =IRR(LAW42:LCV42) ->  | LAX48: =IRRm(LAW42:LCV42) -> 1.1 | LBA48: =IRR(LBA42:LCZ42) ->  | LBB48: =IRRm(LBA42:LCZ42) -> 1.1 | LBE48: =IRR(LBE42:LDD42) ->  | LBF48: =IRRm(LBE42:LDD42) -> 1.1 | LBI48: =IRR(LBI42:LDH42) ->  | LBJ48: =IRRm(LBI42:LDH42) -> 1.1 | LBM48: =IRR(LBM42:LDL42) ->  | LBN48: =IRRm(LBM42:LDL42) -> 1.1 | LBQ48: =IRR(LBQ42:LDP42) ->  | LBR48: =IRRm(LBQ42:LDP42) -> 1.1 | LBU48: =IRR(LBU42:LDT42) ->  | LBV48: =IRRm(LBU42:LDT42) -> 1.1 | LBY48: =IRR(LBY42:LDX42) ->  | LBZ48: =IRRm(LBY42:LDX42) -> 1.1 | LCC48: =IRR(LCC42:LEB42) ->  | LCD48: =IRRm(LCC42:LEB42) -> 1.1 | LCG48: =IRR(LCG42:LEF42) ->  | LCH48: =IRRm(LCG42:LEF42) -> 1.1 | LCK48: =IRR(LCK42:LEJ42) ->  | LCL48: =IRRm(LCK42:LEJ42) -> 1.1 | LCO48: =IRR(LCO42:LEN42) ->  | LCP48: =IRRm(LCO42:LEN42) -> 1.1 | LCS48: =IRR(LCS42:LER42) ->  | LCT48: =IRRm(LCS42:LER42) -> 1.1 | LCW48: =IRR(LCW42:LEV42) ->  | LCX48: =IRRm(LCW42:LEV42) -> 1.1 | LDA48: =IRR(LDA42:LEZ42) ->  | LDB48: =IRRm(LDA42:LEZ42) -> 1.1 | LDE48: =IRR(LDE42:LFD42) ->  | LDF48: =IRRm(LDE42:LFD42) -> 1.1 | LDI48: =IRR(LDI42:LFH42) ->  | LDJ48: =IRRm(LDI42:LFH42) -> 1.1 | LDM48: =IRR(LDM42:LFL42) ->  | LDN48: =IRRm(LDM42:LFL42) -> 1.1 | LDQ48: =IRR(LDQ42:LFP42) ->  | LDR48: =IRRm(LDQ42:LFP42) -> 1.1 | LDU48: =IRR(LDU42:LFT42) ->  | LDV48: =IRRm(LDU42:LFT42) -> 1.1 | LDY48: =IRR(LDY42:LFX42) ->  | LDZ48: =IRRm(LDY42:LFX42) -> 1.1 | LEC48: =IRR(LEC42:LGB42) ->  | LED48: =IRRm(LEC42:LGB42) -> 1.1 | LEG48: =IRR(LEG42:LGF42) ->  | LEH48: =IRRm(LEG42:LGF42) -> 1.1 | LEK48: =IRR(LEK42:LGJ42) ->  | LEL48: =IRRm(LEK42:LGJ42) -> 1.1 | LEO48: =IRR(LEO42:LGN42) ->  | LEP48: =IRRm(LEO42:LGN42) -> 1.1 | LES48: =IRR(LES42:LGR42) ->  | LET48: =IRRm(LES42:LGR42) -> 1.1 | LEW48: =IRR(LEW42:LGV42) ->  | LEX48: =IRRm(LEW42:LGV42) -> 1.1 | LFA48: =IRR(LFA42:LGZ42) ->  | LFB48: =IRRm(LFA42:LGZ42) -> 1.1 | LFE48: =IRR(LFE42:LHD42) ->  | LFF48: =IRRm(LFE42:LHD42) -> 1.1 | LFI48: =IRR(LFI42:LHH42) ->  | LFJ48: =IRRm(LFI42:LHH42) -> 1.1 | LFM48: =IRR(LFM42:LHL42) ->  | LFN48: =IRRm(LFM42:LHL42) -> 1.1 | LFQ48: =IRR(LFQ42:LHP42) ->  | LFR48: =IRRm(LFQ42:LHP42) -> 1.1 | LFU48: =IRR(LFU42:LHT42) ->  | LFV48: =IRRm(LFU42:LHT42) -> 1.1 | LFY48: =IRR(LFY42:LHX42) ->  | LFZ48: =IRRm(LFY42:LHX42) -> 1.1 | LGC48: =IRR(LGC42:LIB42) ->  | LGD48: =IRRm(LGC42:LIB42) -> 1.1 | LGG48: =IRR(LGG42:LIF42) ->  | LGH48: =IRRm(LGG42:LIF42) -> 1.1 | LGK48: =IRR(LGK42:LIJ42) ->  | LGL48: =IRRm(LGK42:LIJ42) -> 1.1 | LGO48: =IRR(LGO42:LIN42) ->  | LGP48: =IRRm(LGO42:LIN42) -> 1.1 | LGS48: =IRR(LGS42:LIR42) ->  | LGT48: =IRRm(LGS42:LIR42) -> 1.1 | LGW48: =IRR(LGW42:LIV42) ->  | LGX48: =IRRm(LGW42:LIV42) -> 1.1 | LHA48: =IRR(LHA42:LIZ42) ->  | LHB48: =IRRm(LHA42:LIZ42) -> 1.1 | LHE48: =IRR(LHE42:LJD42) ->  | LHF48: =IRRm(LHE42:LJD42) -> 1.1 | LHI48: =IRR(LHI42:LJH42) ->  | LHJ48: =IRRm(LHI42:LJH42) -> 1.1 | LHM48: =IRR(LHM42:LJL42) ->  | LHN48: =IRRm(LHM42:LJL42) -> 1.1 | LHQ48: =IRR(LHQ42:LJP42) ->  | LHR48: =IRRm(LHQ42:LJP42) -> 1.1 | LHU48: =IRR(LHU42:LJT42) ->  | LHV48: =IRRm(LHU42:LJT42) -> 1.1 | LHY48: =IRR(LHY42:LJX42) ->  | LHZ48: =IRRm(LHY42:LJX42) -> 1.1 | LIC48: =IRR(LIC42:LKB42) ->  | LID48: =IRRm(LIC42:LKB42) -> 1.1 | LIG48: =IRR(LIG42:LKF42) ->  | LIH48: =IRRm(LIG42:LKF42) -> 1.1 | LIK48: =IRR(LIK42:LKJ42) ->  | LIL48: =IRRm(LIK42:LKJ42) -> 1.1 | LIO48: =IRR(LIO42:LKN42) ->  | LIP48: =IRRm(LIO42:LKN42) -> 1.1 | LIS48: =IRR(LIS42:LKR42) ->  | LIT48: =IRRm(LIS42:LKR42) -> 1.1 | LIW48: =IRR(LIW42:LKV42) ->  | LIX48: =IRRm(LIW42:LKV42) -> 1.1 | LJA48: =IRR(LJA42:LKZ42) ->  | LJB48: =IRRm(LJA42:LKZ42) -> 1.1 | LJE48: =IRR(LJE42:LLD42) ->  | LJF48: =IRRm(LJE42:LLD42) -> 1.1 | LJI48: =IRR(LJI42:LLH42) ->  | LJJ48: =IRRm(LJI42:LLH42) -> 1.1 | LJM48: =IRR(LJM42:LLL42) ->  | LJN48: =IRRm(LJM42:LLL42) -> 1.1 | LJQ48: =IRR(LJQ42:LLP42) ->  | LJR48: =IRRm(LJQ42:LLP42) -> 1.1 | LJU48: =IRR(LJU42:LLT42) ->  | LJV48: =IRRm(LJU42:LLT42) -> 1.1 | LJY48: =IRR(LJY42:LLX42) ->  | LJZ48: =IRRm(LJY42:LLX42) -> 1.1 | LKC48: =IRR(LKC42:LMB42) ->  | LKD48: =IRRm(LKC42:LMB42) -> 1.1 | LKG48: =IRR(LKG42:LMF42) ->  | LKH48: =IRRm(LKG42:LMF42) -> 1.1 | LKK48: =IRR(LKK42:LMJ42) ->  | LKL48: =IRRm(LKK42:LMJ42) -> 1.1 | LKO48: =IRR(LKO42:LMN42) ->  | LKP48: =IRRm(LKO42:LMN42) -> 1.1 | LKS48: =IRR(LKS42:LMR42) ->  | LKT48: =IRRm(LKS42:LMR42) -> 1.1 | LKW48: =IRR(LKW42:LMV42) ->  | LKX48: =IRRm(LKW42:LMV42) -> 1.1 | LLA48: =IRR(LLA42:LMZ42) ->  | LLB48: =IRRm(LLA42:LMZ42) -> 1.1 | LLE48: =IRR(LLE42:LND42) ->  | LLF48: =IRRm(LLE42:LND42) -> 1.1 | LLI48: =IRR(LLI42:LNH42) ->  | LLJ48: =IRRm(LLI42:LNH42) -> 1.1 | LLM48: =IRR(LLM42:LNL42) ->  | LLN48: =IRRm(LLM42:LNL42) -> 1.1 | LLQ48: =IRR(LLQ42:LNP42) ->  | LLR48: =IRRm(LLQ42:LNP42) -> 1.1 | LLU48: =IRR(LLU42:LNT42) ->  | LLV48: =IRRm(LLU42:LNT42) -> 1.1 | LLY48: =IRR(LLY42:LNX42) ->  | LLZ48: =IRRm(LLY42:LNX42) -> 1.1 | LMC48: =IRR(LMC42:LOB42) ->  | LMD48: =IRRm(LMC42:LOB42) -> 1.1 | LMG48: =IRR(LMG42:LOF42) ->  | LMH48: =IRRm(LMG42:LOF42) -> 1.1 | LMK48: =IRR(LMK42:LOJ42) ->  | LML48: =IRRm(LMK42:LOJ42) -> 1.1 | LMO48: =IRR(LMO42:LON42) ->  | LMP48: =IRRm(LMO42:LON42) -> 1.1 | LMS48: =IRR(LMS42:LOR42) ->  | LMT48: =IRRm(LMS42:LOR42) -> 1.1 | LMW48: =IRR(LMW42:LOV42) ->  | LMX48: =IRRm(LMW42:LOV42) -> 1.1 | LNA48: =IRR(LNA42:LOZ42) ->  | LNB48: =IRRm(LNA42:LOZ42) -> 1.1 | LNE48: =IRR(LNE42:LPD42) ->  | LNF48: =IRRm(LNE42:LPD42) -> 1.1 | LNI48: =IRR(LNI42:LPH42) ->  | LNJ48: =IRRm(LNI42:LPH42) -> 1.1 | LNM48: =IRR(LNM42:LPL42) ->  | LNN48: =IRRm(LNM42:LPL42) -> 1.1 | LNQ48: =IRR(LNQ42:LPP42) ->  | LNR48: =IRRm(LNQ42:LPP42) -> 1.1 | LNU48: =IRR(LNU42:LPT42) ->  | LNV48: =IRRm(LNU42:LPT42) -> 1.1 | LNY48: =IRR(LNY42:LPX42) ->  | LNZ48: =IRRm(LNY42:LPX42) -> 1.1 | LOC48: =IRR(LOC42:LQB42) ->  | LOD48: =IRRm(LOC42:LQB42) -> 1.1 | LOG48: =IRR(LOG42:LQF42) ->  | LOH48: =IRRm(LOG42:LQF42) -> 1.1 | LOK48: =IRR(LOK42:LQJ42) ->  | LOL48: =IRRm(LOK42:LQJ42) -> 1.1 | LOO48: =IRR(LOO42:LQN42) ->  | LOP48: =IRRm(LOO42:LQN42) -> 1.1 | LOS48: =IRR(LOS42:LQR42) ->  | LOT48: =IRRm(LOS42:LQR42) -> 1.1 | LOW48: =IRR(LOW42:LQV42) ->  | LOX48: =IRRm(LOW42:LQV42) -> 1.1 | LPA48: =IRR(LPA42:LQZ42) ->  | LPB48: =IRRm(LPA42:LQZ42) -> 1.1 | LPE48: =IRR(LPE42:LRD42) ->  | LPF48: =IRRm(LPE42:LRD42) -> 1.1 | LPI48: =IRR(LPI42:LRH42) ->  | LPJ48: =IRRm(LPI42:LRH42) -> 1.1 | LPM48: =IRR(LPM42:LRL42) ->  | LPN48: =IRRm(LPM42:LRL42) -> 1.1 | LPQ48: =IRR(LPQ42:LRP42) ->  | LPR48: =IRRm(LPQ42:LRP42) -> 1.1 | LPU48: =IRR(LPU42:LRT42) ->  | LPV48: =IRRm(LPU42:LRT42) -> 1.1 | LPY48: =IRR(LPY42:LRX42) ->  | LPZ48: =IRRm(LPY42:LRX42) -> 1.1 | LQC48: =IRR(LQC42:LSB42) ->  | LQD48: =IRRm(LQC42:LSB42) -> 1.1 | LQG48: =IRR(LQG42:LSF42) ->  | LQH48: =IRRm(LQG42:LSF42) -> 1.1 | LQK48: =IRR(LQK42:LSJ42) ->  | LQL48: =IRRm(LQK42:LSJ42) -> 1.1 | LQO48: =IRR(LQO42:LSN42) ->  | LQP48: =IRRm(LQO42:LSN42) -> 1.1 | LQS48: =IRR(LQS42:LSR42) ->  | LQT48: =IRRm(LQS42:LSR42) -> 1.1 | LQW48: =IRR(LQW42:LSV42) ->  | LQX48: =IRRm(LQW42:LSV42) -> 1.1 | LRA48: =IRR(LRA42:LSZ42) ->  | LRB48: =IRRm(LRA42:LSZ42) -> 1.1 | LRE48: =IRR(LRE42:LTD42) ->  | LRF48: =IRRm(LRE42:LTD42) -> 1.1 | LRI48: =IRR(LRI42:LTH42) ->  | LRJ48: =IRRm(LRI42:LTH42) -> 1.1 | LRM48: =IRR(LRM42:LTL42) ->  | LRN48: =IRRm(LRM42:LTL42) -> 1.1 | LRQ48: =IRR(LRQ42:LTP42) ->  | LRR48: =IRRm(LRQ42:LTP42) -> 1.1 | LRU48: =IRR(LRU42:LTT42) ->  | LRV48: =IRRm(LRU42:LTT42) -> 1.1 | LRY48: =IRR(LRY42:LTX42) ->  | LRZ48: =IRRm(LRY42:LTX42) -> 1.1 | LSC48: =IRR(LSC42:LUB42) ->  | LSD48: =IRRm(LSC42:LUB42) -> 1.1 | LSG48: =IRR(LSG42:LUF42) ->  | LSH48: =IRRm(LSG42:LUF42) -> 1.1 | LSK48: =IRR(LSK42:LUJ42) ->  | LSL48: =IRRm(LSK42:LUJ42) -> 1.1 | LSO48: =IRR(LSO42:LUN42) ->  | LSP48: =IRRm(LSO42:LUN42) -> 1.1 | LSS48: =IRR(LSS42:LUR42) ->  | LST48: =IRRm(LSS42:LUR42) -> 1.1 | LSW48: =IRR(LSW42:LUV42) ->  | LSX48: =IRRm(LSW42:LUV42) -> 1.1 | LTA48: =IRR(LTA42:LUZ42) ->  | LTB48: =IRRm(LTA42:LUZ42) -> 1.1 | LTE48: =IRR(LTE42:LVD42) ->  | LTF48: =IRRm(LTE42:LVD42) -> 1.1 | LTI48: =IRR(LTI42:LVH42) ->  | LTJ48: =IRRm(LTI42:LVH42) -> 1.1 | LTM48: =IRR(LTM42:LVL42) ->  | LTN48: =IRRm(LTM42:LVL42) -> 1.1 | LTQ48: =IRR(LTQ42:LVP42) ->  | LTR48: =IRRm(LTQ42:LVP42) -> 1.1 | LTU48: =IRR(LTU42:LVT42) ->  | LTV48: =IRRm(LTU42:LVT42) -> 1.1 | LTY48: =IRR(LTY42:LVX42) ->  | LTZ48: =IRRm(LTY42:LVX42) -> 1.1 | LUC48: =IRR(LUC42:LWB42) ->  | LUD48: =IRRm(LUC42:LWB42) -> 1.1 | LUG48: =IRR(LUG42:LWF42) ->  | LUH48: =IRRm(LUG42:LWF42) -> 1.1 | LUK48: =IRR(LUK42:LWJ42) ->  | LUL48: =IRRm(LUK42:LWJ42) -> 1.1 | LUO48: =IRR(LUO42:LWN42) ->  | LUP48: =IRRm(LUO42:LWN42) -> 1.1 | LUS48: =IRR(LUS42:LWR42) ->  | LUT48: =IRRm(LUS42:LWR42) -> 1.1 | LUW48: =IRR(LUW42:LWV42) ->  | LUX48: =IRRm(LUW42:LWV42) -> 1.1 | LVA48: =IRR(LVA42:LWZ42) ->  | LVB48: =IRRm(LVA42:LWZ42) -> 1.1 | LVE48: =IRR(LVE42:LXD42) ->  | LVF48: =IRRm(LVE42:LXD42) -> 1.1 | LVI48: =IRR(LVI42:LXH42) ->  | LVJ48: =IRRm(LVI42:LXH42) -> 1.1 | LVM48: =IRR(LVM42:LXL42) ->  | LVN48: =IRRm(LVM42:LXL42) -> 1.1 | LVQ48: =IRR(LVQ42:LXP42) ->  | LVR48: =IRRm(LVQ42:LXP42) -> 1.1 | LVU48: =IRR(LVU42:LXT42) ->  | LVV48: =IRRm(LVU42:LXT42) -> 1.1 | LVY48: =IRR(LVY42:LXX42) ->  | LVZ48: =IRRm(LVY42:LXX42) -> 1.1 | LWC48: =IRR(LWC42:LYB42) ->  | LWD48: =IRRm(LWC42:LYB42) -> 1.1 | LWG48: =IRR(LWG42:LYF42) ->  | LWH48: =IRRm(LWG42:LYF42) -> 1.1 | LWK48: =IRR(LWK42:LYJ42) ->  | LWL48: =IRRm(LWK42:LYJ42) -> 1.1 | LWO48: =IRR(LWO42:LYN42) ->  | LWP48: =IRRm(LWO42:LYN42) -> 1.1 | LWS48: =IRR(LWS42:LYR42) ->  | LWT48: =IRRm(LWS42:LYR42) -> 1.1 | LWW48: =IRR(LWW42:LYV42) ->  | LWX48: =IRRm(LWW42:LYV42) -> 1.1 | LXA48: =IRR(LXA42:LYZ42) ->  | LXB48: =IRRm(LXA42:LYZ42) -> 1.1 | LXE48: =IRR(LXE42:LZD42) ->  | LXF48: =IRRm(LXE42:LZD42) -> 1.1 | LXI48: =IRR(LXI42:LZH42) ->  | LXJ48: =IRRm(LXI42:LZH42) -> 1.1 | LXM48: =IRR(LXM42:LZL42) ->  | LXN48: =IRRm(LXM42:LZL42) -> 1.1 | LXQ48: =IRR(LXQ42:LZP42) ->  | LXR48: =IRRm(LXQ42:LZP42) -> 1.1 | LXU48: =IRR(LXU42:LZT42) ->  | LXV48: =IRRm(LXU42:LZT42) -> 1.1 | LXY48: =IRR(LXY42:LZX42) ->  | LXZ48: =IRRm(LXY42:LZX42) -> 1.1 | LYC48: =IRR(LYC42:MAB42) ->  | LYD48: =IRRm(LYC42:MAB42) -> 1.1 | LYG48: =IRR(LYG42:MAF42) ->  | LYH48: =IRRm(LYG42:MAF42) -> 1.1 | LYK48: =IRR(LYK42:MAJ42) ->  | LYL48: =IRRm(LYK42:MAJ42) -> 1.1 | LYO48: =IRR(LYO42:MAN42) ->  | LYP48: =IRRm(LYO42:MAN42) -> 1.1 | LYS48: =IRR(LYS42:MAR42) ->  | LYT48: =IRRm(LYS42:MAR42) -> 1.1 | LYW48: =IRR(LYW42:MAV42) ->  | LYX48: =IRRm(LYW42:MAV42) -> 1.1 | LZA48: =IRR(LZA42:MAZ42) ->  | LZB48: =IRRm(LZA42:MAZ42) -> 1.1 | LZE48: =IRR(LZE42:MBD42) ->  | LZF48: =IRRm(LZE42:MBD42) -> 1.1 | LZI48: =IRR(LZI42:MBH42) ->  | LZJ48: =IRRm(LZI42:MBH42) -> 1.1 | LZM48: =IRR(LZM42:MBL42) ->  | LZN48: =IRRm(LZM42:MBL42) -> 1.1 | LZQ48: =IRR(LZQ42:MBP42) ->  | LZR48: =IRRm(LZQ42:MBP42) -> 1.1 | LZU48: =IRR(LZU42:MBT42) ->  | LZV48: =IRRm(LZU42:MBT42) -> 1.1 | LZY48: =IRR(LZY42:MBX42) ->  | LZZ48: =IRRm(LZY42:MBX42) -> 1.1 | MAC48: =IRR(MAC42:MCB42) ->  | MAD48: =IRRm(MAC42:MCB42) -> 1.1 | MAG48: =IRR(MAG42:MCF42) ->  | MAH48: =IRRm(MAG42:MCF42) -> 1.1 | MAK48: =IRR(MAK42:MCJ42) ->  | MAL48: =IRRm(MAK42:MCJ42) -> 1.1 | MAO48: =IRR(MAO42:MCN42) ->  | MAP48: =IRRm(MAO42:MCN42) -> 1.1 | MAS48: =IRR(MAS42:MCR42) ->  | MAT48: =IRRm(MAS42:MCR42) -> 1.1 | MAW48: =IRR(MAW42:MCV42) ->  | MAX48: =IRRm(MAW42:MCV42) -> 1.1 | MBA48: =IRR(MBA42:MCZ42) ->  | MBB48: =IRRm(MBA42:MCZ42) -> 1.1 | MBE48: =IRR(MBE42:MDD42) ->  | MBF48: =IRRm(MBE42:MDD42) -> 1.1 | MBI48: =IRR(MBI42:MDH42) ->  | MBJ48: =IRRm(MBI42:MDH42) -> 1.1 | MBM48: =IRR(MBM42:MDL42) ->  | MBN48: =IRRm(MBM42:MDL42) -> 1.1 | MBQ48: =IRR(MBQ42:MDP42) ->  | MBR48: =IRRm(MBQ42:MDP42) -> 1.1 | MBU48: =IRR(MBU42:MDT42) ->  | MBV48: =IRRm(MBU42:MDT42) -> 1.1 | MBY48: =IRR(MBY42:MDX42) ->  | MBZ48: =IRRm(MBY42:MDX42) -> 1.1 | MCC48: =IRR(MCC42:MEB42) ->  | MCD48: =IRRm(MCC42:MEB42) -> 1.1 | MCG48: =IRR(MCG42:MEF42) ->  | MCH48: =IRRm(MCG42:MEF42) -> 1.1 | MCK48: =IRR(MCK42:MEJ42) ->  | MCL48: =IRRm(MCK42:MEJ42) -> 1.1 | MCO48: =IRR(MCO42:MEN42) ->  | MCP48: =IRRm(MCO42:MEN42) -> 1.1 | MCS48: =IRR(MCS42:MER42) ->  | MCT48: =IRRm(MCS42:MER42) -> 1.1 | MCW48: =IRR(MCW42:MEV42) ->  | MCX48: =IRRm(MCW42:MEV42) -> 1.1 | MDA48: =IRR(MDA42:MEZ42) ->  | MDB48: =IRRm(MDA42:MEZ42) -> 1.1 | MDE48: =IRR(MDE42:MFD42) ->  | MDF48: =IRRm(MDE42:MFD42) -> 1.1 | MDI48: =IRR(MDI42:MFH42) ->  | MDJ48: =IRRm(MDI42:MFH42) -> 1.1 | MDM48: =IRR(MDM42:MFL42) ->  | MDN48: =IRRm(MDM42:MFL42) -> 1.1 | MDQ48: =IRR(MDQ42:MFP42) ->  | MDR48: =IRRm(MDQ42:MFP42) -> 1.1 | MDU48: =IRR(MDU42:MFT42) ->  | MDV48: =IRRm(MDU42:MFT42) -> 1.1 | MDY48: =IRR(MDY42:MFX42) ->  | MDZ48: =IRRm(MDY42:MFX42) -> 1.1 | MEC48: =IRR(MEC42:MGB42) ->  | MED48: =IRRm(MEC42:MGB42) -> 1.1 | MEG48: =IRR(MEG42:MGF42) ->  | MEH48: =IRRm(MEG42:MGF42) -> 1.1 | MEK48: =IRR(MEK42:MGJ42) ->  | MEL48: =IRRm(MEK42:MGJ42) -> 1.1 | MEO48: =IRR(MEO42:MGN42) ->  | MEP48: =IRRm(MEO42:MGN42) -> 1.1 | MES48: =IRR(MES42:MGR42) ->  | MET48: =IRRm(MES42:MGR42) -> 1.1 | MEW48: =IRR(MEW42:MGV42) ->  | MEX48: =IRRm(MEW42:MGV42) -> 1.1 | MFA48: =IRR(MFA42:MGZ42) ->  | MFB48: =IRRm(MFA42:MGZ42) -> 1.1 | MFE48: =IRR(MFE42:MHD42) ->  | MFF48: =IRRm(MFE42:MHD42) -> 1.1 | MFI48: =IRR(MFI42:MHH42) ->  | MFJ48: =IRRm(MFI42:MHH42) -> 1.1 | MFM48: =IRR(MFM42:MHL42) ->  | MFN48: =IRRm(MFM42:MHL42) -> 1.1 | MFQ48: =IRR(MFQ42:MHP42) ->  | MFR48: =IRRm(MFQ42:MHP42) -> 1.1 | MFU48: =IRR(MFU42:MHT42) ->  | MFV48: =IRRm(MFU42:MHT42) -> 1.1 | MFY48: =IRR(MFY42:MHX42) ->  | MFZ48: =IRRm(MFY42:MHX42) -> 1.1 | MGC48: =IRR(MGC42:MIB42) ->  | MGD48: =IRRm(MGC42:MIB42) -> 1.1 | MGG48: =IRR(MGG42:MIF42) ->  | MGH48: =IRRm(MGG42:MIF42) -> 1.1 | MGK48: =IRR(MGK42:MIJ42) ->  | MGL48: =IRRm(MGK42:MIJ42) -> 1.1 | MGO48: =IRR(MGO42:MIN42) ->  | MGP48: =IRRm(MGO42:MIN42) -> 1.1 | MGS48: =IRR(MGS42:MIR42) ->  | MGT48: =IRRm(MGS42:MIR42) -> 1.1 | MGW48: =IRR(MGW42:MIV42) ->  | MGX48: =IRRm(MGW42:MIV42) -> 1.1 | MHA48: =IRR(MHA42:MIZ42) ->  | MHB48: =IRRm(MHA42:MIZ42) -> 1.1 | MHE48: =IRR(MHE42:MJD42) ->  | MHF48: =IRRm(MHE42:MJD42) -> 1.1 | MHI48: =IRR(MHI42:MJH42) ->  | MHJ48: =IRRm(MHI42:MJH42) -> 1.1 | MHM48: =IRR(MHM42:MJL42) ->  | MHN48: =IRRm(MHM42:MJL42) -> 1.1 | MHQ48: =IRR(MHQ42:MJP42) ->  | MHR48: =IRRm(MHQ42:MJP42) -> 1.1 | MHU48: =IRR(MHU42:MJT42) ->  | MHV48: =IRRm(MHU42:MJT42) -> 1.1 | MHY48: =IRR(MHY42:MJX42) ->  | MHZ48: =IRRm(MHY42:MJX42) -> 1.1 | MIC48: =IRR(MIC42:MKB42) ->  | MID48: =IRRm(MIC42:MKB42) -> 1.1 | MIG48: =IRR(MIG42:MKF42) ->  | MIH48: =IRRm(MIG42:MKF42) -> 1.1 | MIK48: =IRR(MIK42:MKJ42) ->  | MIL48: =IRRm(MIK42:MKJ42) -> 1.1 | MIO48: =IRR(MIO42:MKN42) ->  | MIP48: =IRRm(MIO42:MKN42) -> 1.1 | MIS48: =IRR(MIS42:MKR42) ->  | MIT48: =IRRm(MIS42:MKR42) -> 1.1 | MIW48: =IRR(MIW42:MKV42) ->  | MIX48: =IRRm(MIW42:MKV42) -> 1.1 | MJA48: =IRR(MJA42:MKZ42) ->  | MJB48: =IRRm(MJA42:MKZ42) -> 1.1 | MJE48: =IRR(MJE42:MLD42) ->  | MJF48: =IRRm(MJE42:MLD42) -> 1.1 | MJI48: =IRR(MJI42:MLH42) ->  | MJJ48: =IRRm(MJI42:MLH42) -> 1.1 | MJM48: =IRR(MJM42:MLL42) ->  | MJN48: =IRRm(MJM42:MLL42) -> 1.1 | MJQ48: =IRR(MJQ42:MLP42) ->  | MJR48: =IRRm(MJQ42:MLP42) -> 1.1 | MJU48: =IRR(MJU42:MLT42) ->  | MJV48: =IRRm(MJU42:MLT42) -> 1.1 | MJY48: =IRR(MJY42:MLX42) ->  | MJZ48: =IRRm(MJY42:MLX42) -> 1.1 | MKC48: =IRR(MKC42:MMB42) ->  | MKD48: =IRRm(MKC42:MMB42) -> 1.1 | MKG48: =IRR(MKG42:MMF42) ->  | MKH48: =IRRm(MKG42:MMF42) -> 1.1 | MKK48: =IRR(MKK42:MMJ42) ->  | MKL48: =IRRm(MKK42:MMJ42) -> 1.1 | MKO48: =IRR(MKO42:MMN42) ->  | MKP48: =IRRm(MKO42:MMN42) -> 1.1 | MKS48: =IRR(MKS42:MMR42) ->  | MKT48: =IRRm(MKS42:MMR42) -> 1.1 | MKW48: =IRR(MKW42:MMV42) ->  | MKX48: =IRRm(MKW42:MMV42) -> 1.1 | MLA48: =IRR(MLA42:MMZ42) ->  | MLB48: =IRRm(MLA42:MMZ42) -> 1.1 | MLE48: =IRR(MLE42:MND42) ->  | MLF48: =IRRm(MLE42:MND42) -> 1.1 | MLI48: =IRR(MLI42:MNH42) ->  | MLJ48: =IRRm(MLI42:MNH42) -> 1.1 | MLM48: =IRR(MLM42:MNL42) ->  | MLN48: =IRRm(MLM42:MNL42) -> 1.1 | MLQ48: =IRR(MLQ42:MNP42) ->  | MLR48: =IRRm(MLQ42:MNP42) -> 1.1 | MLU48: =IRR(MLU42:MNT42) ->  | MLV48: =IRRm(MLU42:MNT42) -> 1.1 | MLY48: =IRR(MLY42:MNX42) ->  | MLZ48: =IRRm(MLY42:MNX42) -> 1.1 | MMC48: =IRR(MMC42:MOB42) ->  | MMD48: =IRRm(MMC42:MOB42) -> 1.1 | MMG48: =IRR(MMG42:MOF42) ->  | MMH48: =IRRm(MMG42:MOF42) -> 1.1 | MMK48: =IRR(MMK42:MOJ42) ->  | MML48: =IRRm(MMK42:MOJ42) -> 1.1 | MMO48: =IRR(MMO42:MON42) ->  | MMP48: =IRRm(MMO42:MON42) -> 1.1 | MMS48: =IRR(MMS42:MOR42) ->  | MMT48: =IRRm(MMS42:MOR42) -> 1.1 | MMW48: =IRR(MMW42:MOV42) ->  | MMX48: =IRRm(MMW42:MOV42) -> 1.1 | MNA48: =IRR(MNA42:MOZ42) ->  | MNB48: =IRRm(MNA42:MOZ42) -> 1.1 | MNE48: =IRR(MNE42:MPD42) ->  | MNF48: =IRRm(MNE42:MPD42) -> 1.1 | MNI48: =IRR(MNI42:MPH42) ->  | MNJ48: =IRRm(MNI42:MPH42) -> 1.1 | MNM48: =IRR(MNM42:MPL42) ->  | MNN48: =IRRm(MNM42:MPL42) -> 1.1 | MNQ48: =IRR(MNQ42:MPP42) ->  | MNR48: =IRRm(MNQ42:MPP42) -> 1.1 | MNU48: =IRR(MNU42:MPT42) ->  | MNV48: =IRRm(MNU42:MPT42) -> 1.1 | MNY48: =IRR(MNY42:MPX42) ->  | MNZ48: =IRRm(MNY42:MPX42) -> 1.1 | MOC48: =IRR(MOC42:MQB42) ->  | MOD48: =IRRm(MOC42:MQB42) -> 1.1 | MOG48: =IRR(MOG42:MQF42) ->  | MOH48: =IRRm(MOG42:MQF42) -> 1.1 | MOK48: =IRR(MOK42:MQJ42) ->  | MOL48: =IRRm(MOK42:MQJ42) -> 1.1 | MOO48: =IRR(MOO42:MQN42) ->  | MOP48: =IRRm(MOO42:MQN42) -> 1.1 | MOS48: =IRR(MOS42:MQR42) ->  | MOT48: =IRRm(MOS42:MQR42) -> 1.1 | MOW48: =IRR(MOW42:MQV42) ->  | MOX48: =IRRm(MOW42:MQV42) -> 1.1 | MPA48: =IRR(MPA42:MQZ42) ->  | MPB48: =IRRm(MPA42:MQZ42) -> 1.1 | MPE48: =IRR(MPE42:MRD42) ->  | MPF48: =IRRm(MPE42:MRD42) -> 1.1 | MPI48: =IRR(MPI42:MRH42) ->  | MPJ48: =IRRm(MPI42:MRH42) -> 1.1 | MPM48: =IRR(MPM42:MRL42) ->  | MPN48: =IRRm(MPM42:MRL42) -> 1.1 | MPQ48: =IRR(MPQ42:MRP42) ->  | MPR48: =IRRm(MPQ42:MRP42) -> 1.1 | MPU48: =IRR(MPU42:MRT42) ->  | MPV48: =IRRm(MPU42:MRT42) -> 1.1 | MPY48: =IRR(MPY42:MRX42) ->  | MPZ48: =IRRm(MPY42:MRX42) -> 1.1 | MQC48: =IRR(MQC42:MSB42) ->  | MQD48: =IRRm(MQC42:MSB42) -> 1.1 | MQG48: =IRR(MQG42:MSF42) ->  | MQH48: =IRRm(MQG42:MSF42) -> 1.1 | MQK48: =IRR(MQK42:MSJ42) ->  | MQL48: =IRRm(MQK42:MSJ42) -> 1.1 | MQO48: =IRR(MQO42:MSN42) ->  | MQP48: =IRRm(MQO42:MSN42) -> 1.1 | MQS48: =IRR(MQS42:MSR42) ->  | MQT48: =IRRm(MQS42:MSR42) -> 1.1 | MQW48: =IRR(MQW42:MSV42) ->  | MQX48: =IRRm(MQW42:MSV42) -> 1.1 | MRA48: =IRR(MRA42:MSZ42) ->  | MRB48: =IRRm(MRA42:MSZ42) -> 1.1 | MRE48: =IRR(MRE42:MTD42) ->  | MRF48: =IRRm(MRE42:MTD42) -> 1.1 | MRI48: =IRR(MRI42:MTH42) ->  | MRJ48: =IRRm(MRI42:MTH42) -> 1.1 | MRM48: =IRR(MRM42:MTL42) ->  | MRN48: =IRRm(MRM42:MTL42) -> 1.1 | MRQ48: =IRR(MRQ42:MTP42) ->  | MRR48: =IRRm(MRQ42:MTP42) -> 1.1 | MRU48: =IRR(MRU42:MTT42) ->  | MRV48: =IRRm(MRU42:MTT42) -> 1.1 | MRY48: =IRR(MRY42:MTX42) ->  | MRZ48: =IRRm(MRY42:MTX42) -> 1.1 | MSC48: =IRR(MSC42:MUB42) ->  | MSD48: =IRRm(MSC42:MUB42) -> 1.1 | MSG48: =IRR(MSG42:MUF42) ->  | MSH48: =IRRm(MSG42:MUF42) -> 1.1 | MSK48: =IRR(MSK42:MUJ42) ->  | MSL48: =IRRm(MSK42:MUJ42) -> 1.1 | MSO48: =IRR(MSO42:MUN42) ->  | MSP48: =IRRm(MSO42:MUN42) -> 1.1 | MSS48: =IRR(MSS42:MUR42) ->  | MST48: =IRRm(MSS42:MUR42) -> 1.1 | MSW48: =IRR(MSW42:MUV42) ->  | MSX48: =IRRm(MSW42:MUV42) -> 1.1 | MTA48: =IRR(MTA42:MUZ42) ->  | MTB48: =IRRm(MTA42:MUZ42) -> 1.1 | MTE48: =IRR(MTE42:MVD42) ->  | MTF48: =IRRm(MTE42:MVD42) -> 1.1 | MTI48: =IRR(MTI42:MVH42) ->  | MTJ48: =IRRm(MTI42:MVH42) -> 1.1 | MTM48: =IRR(MTM42:MVL42) ->  | MTN48: =IRRm(MTM42:MVL42) -> 1.1 | MTQ48: =IRR(MTQ42:MVP42) ->  | MTR48: =IRRm(MTQ42:MVP42) -> 1.1 | MTU48: =IRR(MTU42:MVT42) ->  | MTV48: =IRRm(MTU42:MVT42) -> 1.1 | MTY48: =IRR(MTY42:MVX42) ->  | MTZ48: =IRRm(MTY42:MVX42) -> 1.1 | MUC48: =IRR(MUC42:MWB42) ->  | MUD48: =IRRm(MUC42:MWB42) -> 1.1 | MUG48: =IRR(MUG42:MWF42) ->  | MUH48: =IRRm(MUG42:MWF42) -> 1.1 | MUK48: =IRR(MUK42:MWJ42) ->  | MUL48: =IRRm(MUK42:MWJ42) -> 1.1 | MUO48: =IRR(MUO42:MWN42) ->  | MUP48: =IRRm(MUO42:MWN42) -> 1.1 | MUS48: =IRR(MUS42:MWR42) ->  | MUT48: =IRRm(MUS42:MWR42) -> 1.1 | MUW48: =IRR(MUW42:MWV42) ->  | MUX48: =IRRm(MUW42:MWV42) -> 1.1 | MVA48: =IRR(MVA42:MWZ42) ->  | MVB48: =IRRm(MVA42:MWZ42) -> 1.1 | MVE48: =IRR(MVE42:MXD42) ->  | MVF48: =IRRm(MVE42:MXD42) -> 1.1 | MVI48: =IRR(MVI42:MXH42) ->  | MVJ48: =IRRm(MVI42:MXH42) -> 1.1 | MVM48: =IRR(MVM42:MXL42) ->  | MVN48: =IRRm(MVM42:MXL42) -> 1.1 | MVQ48: =IRR(MVQ42:MXP42) ->  | MVR48: =IRRm(MVQ42:MXP42) -> 1.1 | MVU48: =IRR(MVU42:MXT42) ->  | MVV48: =IRRm(MVU42:MXT42) -> 1.1 | MVY48: =IRR(MVY42:MXX42) ->  | MVZ48: =IRRm(MVY42:MXX42) -> 1.1 | MWC48: =IRR(MWC42:MYB42) ->  | MWD48: =IRRm(MWC42:MYB42) -> 1.1 | MWG48: =IRR(MWG42:MYF42) ->  | MWH48: =IRRm(MWG42:MYF42) -> 1.1 | MWK48: =IRR(MWK42:MYJ42) ->  | MWL48: =IRRm(MWK42:MYJ42) -> 1.1 | MWO48: =IRR(MWO42:MYN42) ->  | MWP48: =IRRm(MWO42:MYN42) -> 1.1 | MWS48: =IRR(MWS42:MYR42) ->  | MWT48: =IRRm(MWS42:MYR42) -> 1.1 | MWW48: =IRR(MWW42:MYV42) ->  | MWX48: =IRRm(MWW42:MYV42) -> 1.1 | MXA48: =IRR(MXA42:MYZ42) ->  | MXB48: =IRRm(MXA42:MYZ42) -> 1.1 | MXE48: =IRR(MXE42:MZD42) ->  | MXF48: =IRRm(MXE42:MZD42) -> 1.1 | MXI48: =IRR(MXI42:MZH42) ->  | MXJ48: =IRRm(MXI42:MZH42) -> 1.1 | MXM48: =IRR(MXM42:MZL42) ->  | MXN48: =IRRm(MXM42:MZL42) -> 1.1 | MXQ48: =IRR(MXQ42:MZP42) ->  | MXR48: =IRRm(MXQ42:MZP42) -> 1.1 | MXU48: =IRR(MXU42:MZT42) ->  | MXV48: =IRRm(MXU42:MZT42) -> 1.1 | MXY48: =IRR(MXY42:MZX42) ->  | MXZ48: =IRRm(MXY42:MZX42) -> 1.1 | MYC48: =IRR(MYC42:NAB42) ->  | MYD48: =IRRm(MYC42:NAB42) -> 1.1 | MYG48: =IRR(MYG42:NAF42) ->  | MYH48: =IRRm(MYG42:NAF42) -> 1.1 | MYK48: =IRR(MYK42:NAJ42) ->  | MYL48: =IRRm(MYK42:NAJ42) -> 1.1 | MYO48: =IRR(MYO42:NAN42) ->  | MYP48: =IRRm(MYO42:NAN42) -> 1.1 | MYS48: =IRR(MYS42:NAR42) ->  | MYT48: =IRRm(MYS42:NAR42) -> 1.1 | MYW48: =IRR(MYW42:NAV42) ->  | MYX48: =IRRm(MYW42:NAV42) -> 1.1 | MZA48: =IRR(MZA42:NAZ42) ->  | MZB48: =IRRm(MZA42:NAZ42) -> 1.1 | MZE48: =IRR(MZE42:NBD42) ->  | MZF48: =IRRm(MZE42:NBD42) -> 1.1 | MZI48: =IRR(MZI42:NBH42) ->  | MZJ48: =IRRm(MZI42:NBH42) -> 1.1 | MZM48: =IRR(MZM42:NBL42) ->  | MZN48: =IRRm(MZM42:NBL42) -> 1.1 | MZQ48: =IRR(MZQ42:NBP42) ->  | MZR48: =IRRm(MZQ42:NBP42) -> 1.1 | MZU48: =IRR(MZU42:NBT42) ->  | MZV48: =IRRm(MZU42:NBT42) -> 1.1 | MZY48: =IRR(MZY42:NBX42) ->  | MZZ48: =IRRm(MZY42:NBX42) -> 1.1 | NAC48: =IRR(NAC42:NCB42) ->  | NAD48: =IRRm(NAC42:NCB42) -> 1.1 | NAG48: =IRR(NAG42:NCF42) ->  | NAH48: =IRRm(NAG42:NCF42) -> 1.1 | NAK48: =IRR(NAK42:NCJ42) ->  | NAL48: =IRRm(NAK42:NCJ42) -> 1.1 | NAO48: =IRR(NAO42:NCN42) ->  | NAP48: =IRRm(NAO42:NCN42) -> 1.1 | NAS48: =IRR(NAS42:NCR42) ->  | NAT48: =IRRm(NAS42:NCR42) -> 1.1 | NAW48: =IRR(NAW42:NCV42) ->  | NAX48: =IRRm(NAW42:NCV42) -> 1.1 | NBA48: =IRR(NBA42:NCZ42) ->  | NBB48: =IRRm(NBA42:NCZ42) -> 1.1 | NBE48: =IRR(NBE42:NDD42) ->  | NBF48: =IRRm(NBE42:NDD42) -> 1.1 | NBI48: =IRR(NBI42:NDH42) ->  | NBJ48: =IRRm(NBI42:NDH42) -> 1.1 | NBM48: =IRR(NBM42:NDL42) ->  | NBN48: =IRRm(NBM42:NDL42) -> 1.1 | NBQ48: =IRR(NBQ42:NDP42) ->  | NBR48: =IRRm(NBQ42:NDP42) -> 1.1 | NBU48: =IRR(NBU42:NDT42) ->  | NBV48: =IRRm(NBU42:NDT42) -> 1.1 | NBY48: =IRR(NBY42:NDX42) ->  | NBZ48: =IRRm(NBY42:NDX42) -> 1.1 | NCC48: =IRR(NCC42:NEB42) ->  | NCD48: =IRRm(NCC42:NEB42) -> 1.1 | NCG48: =IRR(NCG42:NEF42) ->  | NCH48: =IRRm(NCG42:NEF42) -> 1.1 | NCK48: =IRR(NCK42:NEJ42) ->  | NCL48: =IRRm(NCK42:NEJ42) -> 1.1 | NCO48: =IRR(NCO42:NEN42) ->  | NCP48: =IRRm(NCO42:NEN42) -> 1.1 | NCS48: =IRR(NCS42:NER42) ->  | NCT48: =IRRm(NCS42:NER42) -> 1.1 | NCW48: =IRR(NCW42:NEV42) ->  | NCX48: =IRRm(NCW42:NEV42) -> 1.1 | NDA48: =IRR(NDA42:NEZ42) ->  | NDB48: =IRRm(NDA42:NEZ42) -> 1.1 | NDE48: =IRR(NDE42:NFD42) ->  | NDF48: =IRRm(NDE42:NFD42) -> 1.1 | NDI48: =IRR(NDI42:NFH42) ->  | NDJ48: =IRRm(NDI42:NFH42) -> 1.1 | NDM48: =IRR(NDM42:NFL42) ->  | NDN48: =IRRm(NDM42:NFL42) -> 1.1 | NDQ48: =IRR(NDQ42:NFP42) ->  | NDR48: =IRRm(NDQ42:NFP42) -> 1.1 | NDU48: =IRR(NDU42:NFT42) ->  | NDV48: =IRRm(NDU42:NFT42) -> 1.1 | NDY48: =IRR(NDY42:NFX42) ->  | NDZ48: =IRRm(NDY42:NFX42) -> 1.1 | NEC48: =IRR(NEC42:NGB42) ->  | NED48: =IRRm(NEC42:NGB42) -> 1.1 | NEG48: =IRR(NEG42:NGF42) ->  | NEH48: =IRRm(NEG42:NGF42) -> 1.1 | NEK48: =IRR(NEK42:NGJ42) ->  | NEL48: =IRRm(NEK42:NGJ42) -> 1.1 | NEO48: =IRR(NEO42:NGN42) ->  | NEP48: =IRRm(NEO42:NGN42) -> 1.1 | NES48: =IRR(NES42:NGR42) ->  | NET48: =IRRm(NES42:NGR42) -> 1.1 | NEW48: =IRR(NEW42:NGV42) ->  | NEX48: =IRRm(NEW42:NGV42) -> 1.1 | NFA48: =IRR(NFA42:NGZ42) ->  | NFB48: =IRRm(NFA42:NGZ42) -> 1.1 | NFE48: =IRR(NFE42:NHD42) ->  | NFF48: =IRRm(NFE42:NHD42) -> 1.1 | NFI48: =IRR(NFI42:NHH42) ->  | NFJ48: =IRRm(NFI42:NHH42) -> 1.1 | NFM48: =IRR(NFM42:NHL42) ->  | NFN48: =IRRm(NFM42:NHL42) -> 1.1 | NFQ48: =IRR(NFQ42:NHP42) ->  | NFR48: =IRRm(NFQ42:NHP42) -> 1.1 | NFU48: =IRR(NFU42:NHT42) ->  | NFV48: =IRRm(NFU42:NHT42) -> 1.1 | NFY48: =IRR(NFY42:NHX42) ->  | NFZ48: =IRRm(NFY42:NHX42) -> 1.1 | NGC48: =IRR(NGC42:NIB42) ->  | NGD48: =IRRm(NGC42:NIB42) -> 1.1 | NGG48: =IRR(NGG42:NIF42) ->  | NGH48: =IRRm(NGG42:NIF42) -> 1.1 | NGK48: =IRR(NGK42:NIJ42) ->  | NGL48: =IRRm(NGK42:NIJ42) -> 1.1 | NGO48: =IRR(NGO42:NIN42) ->  | NGP48: =IRRm(NGO42:NIN42) -> 1.1 | NGS48: =IRR(NGS42:NIR42) ->  | NGT48: =IRRm(NGS42:NIR42) -> 1.1 | NGW48: =IRR(NGW42:NIV42) ->  | NGX48: =IRRm(NGW42:NIV42) -> 1.1 | NHA48: =IRR(NHA42:NIZ42) ->  | NHB48: =IRRm(NHA42:NIZ42) -> 1.1 | NHE48: =IRR(NHE42:NJD42) ->  | NHF48: =IRRm(NHE42:NJD42) -> 1.1 | NHI48: =IRR(NHI42:NJH42) ->  | NHJ48: =IRRm(NHI42:NJH42) -> 1.1 | NHM48: =IRR(NHM42:NJL42) ->  | NHN48: =IRRm(NHM42:NJL42) -> 1.1 | NHQ48: =IRR(NHQ42:NJP42) ->  | NHR48: =IRRm(NHQ42:NJP42) -> 1.1 | NHU48: =IRR(NHU42:NJT42) ->  | NHV48: =IRRm(NHU42:NJT42) -> 1.1 | NHY48: =IRR(NHY42:NJX42) ->  | NHZ48: =IRRm(NHY42:NJX42) -> 1.1 | NIC48: =IRR(NIC42:NKB42) ->  | NID48: =IRRm(NIC42:NKB42) -> 1.1 | NIG48: =IRR(NIG42:NKF42) ->  | NIH48: =IRRm(NIG42:NKF42) -> 1.1 | NIK48: =IRR(NIK42:NKJ42) ->  | NIL48: =IRRm(NIK42:NKJ42) -> 1.1 | NIO48: =IRR(NIO42:NKN42) ->  | NIP48: =IRRm(NIO42:NKN42) -> 1.1 | NIS48: =IRR(NIS42:NKR42) ->  | NIT48: =IRRm(NIS42:NKR42) -> 1.1 | NIW48: =IRR(NIW42:NKV42) ->  | NIX48: =IRRm(NIW42:NKV42) -> 1.1 | NJA48: =IRR(NJA42:NKZ42) ->  | NJB48: =IRRm(NJA42:NKZ42) -> 1.1 | NJE48: =IRR(NJE42:NLD42) ->  | NJF48: =IRRm(NJE42:NLD42) -> 1.1 | NJI48: =IRR(NJI42:NLH42) ->  | NJJ48: =IRRm(NJI42:NLH42) -> 1.1 | NJM48: =IRR(NJM42:NLL42) ->  | NJN48: =IRRm(NJM42:NLL42) -> 1.1 | NJQ48: =IRR(NJQ42:NLP42) ->  | NJR48: =IRRm(NJQ42:NLP42) -> 1.1 | NJU48: =IRR(NJU42:NLT42) ->  | NJV48: =IRRm(NJU42:NLT42) -> 1.1 | NJY48: =IRR(NJY42:NLX42) ->  | NJZ48: =IRRm(NJY42:NLX42) -> 1.1 | NKC48: =IRR(NKC42:NMB42) ->  | NKD48: =IRRm(NKC42:NMB42) -> 1.1 | NKG48: =IRR(NKG42:NMF42) ->  | NKH48: =IRRm(NKG42:NMF42) -> 1.1 | NKK48: =IRR(NKK42:NMJ42) ->  | NKL48: =IRRm(NKK42:NMJ42) -> 1.1 | NKO48: =IRR(NKO42:NMN42) ->  | NKP48: =IRRm(NKO42:NMN42) -> 1.1 | NKS48: =IRR(NKS42:NMR42) ->  | NKT48: =IRRm(NKS42:NMR42) -> 1.1 | NKW48: =IRR(NKW42:NMV42) ->  | NKX48: =IRRm(NKW42:NMV42) -> 1.1 | NLA48: =IRR(NLA42:NMZ42) ->  | NLB48: =IRRm(NLA42:NMZ42) -> 1.1 | NLE48: =IRR(NLE42:NND42) ->  | NLF48: =IRRm(NLE42:NND42) -> 1.1 | NLI48: =IRR(NLI42:NNH42) ->  | NLJ48: =IRRm(NLI42:NNH42) -> 1.1 | NLM48: =IRR(NLM42:NNL42) ->  | NLN48: =IRRm(NLM42:NNL42) -> 1.1 | NLQ48: =IRR(NLQ42:NNP42) ->  | NLR48: =IRRm(NLQ42:NNP42) -> 1.1 | NLU48: =IRR(NLU42:NNT42) ->  | NLV48: =IRRm(NLU42:NNT42) -> 1.1 | NLY48: =IRR(NLY42:NNX42) ->  | NLZ48: =IRRm(NLY42:NNX42) -> 1.1 | NMC48: =IRR(NMC42:NOB42) ->  | NMD48: =IRRm(NMC42:NOB42) -> 1.1 | NMG48: =IRR(NMG42:NOF42) ->  | NMH48: =IRRm(NMG42:NOF42) -> 1.1 | NMK48: =IRR(NMK42:NOJ42) ->  | NML48: =IRRm(NMK42:NOJ42) -> 1.1 | NMO48: =IRR(NMO42:NON42) ->  | NMP48: =IRRm(NMO42:NON42) -> 1.1 | NMS48: =IRR(NMS42:NOR42) ->  | NMT48: =IRRm(NMS42:NOR42) -> 1.1 | NMW48: =IRR(NMW42:NOV42) ->  | NMX48: =IRRm(NMW42:NOV42) -> 1.1 | NNA48: =IRR(NNA42:NOZ42) ->  | NNB48: =IRRm(NNA42:NOZ42) -> 1.1 | NNE48: =IRR(NNE42:NPD42) ->  | NNF48: =IRRm(NNE42:NPD42) -> 1.1 | NNI48: =IRR(NNI42:NPH42) ->  | NNJ48: =IRRm(NNI42:NPH42) -> 1.1 | NNM48: =IRR(NNM42:NPL42) ->  | NNN48: =IRRm(NNM42:NPL42) -> 1.1 | NNQ48: =IRR(NNQ42:NPP42) ->  | NNR48: =IRRm(NNQ42:NPP42) -> 1.1 | NNU48: =IRR(NNU42:NPT42) ->  | NNV48: =IRRm(NNU42:NPT42) -> 1.1 | NNY48: =IRR(NNY42:NPX42) ->  | NNZ48: =IRRm(NNY42:NPX42) -> 1.1 | NOC48: =IRR(NOC42:NQB42) ->  | NOD48: =IRRm(NOC42:NQB42) -> 1.1 | NOG48: =IRR(NOG42:NQF42) ->  | NOH48: =IRRm(NOG42:NQF42) -> 1.1 | NOK48: =IRR(NOK42:NQJ42) ->  | NOL48: =IRRm(NOK42:NQJ42) -> 1.1 | NOO48: =IRR(NOO42:NQN42) ->  | NOP48: =IRRm(NOO42:NQN42) -> 1.1 | NOS48: =IRR(NOS42:NQR42) ->  | NOT48: =IRRm(NOS42:NQR42) -> 1.1 | NOW48: =IRR(NOW42:NQV42) ->  | NOX48: =IRRm(NOW42:NQV42) -> 1.1 | NPA48: =IRR(NPA42:NQZ42) ->  | NPB48: =IRRm(NPA42:NQZ42) -> 1.1 | NPE48: =IRR(NPE42:NRD42) ->  | NPF48: =IRRm(NPE42:NRD42) -> 1.1 | NPI48: =IRR(NPI42:NRH42) ->  | NPJ48: =IRRm(NPI42:NRH42) -> 1.1 | NPM48: =IRR(NPM42:NRL42) ->  | NPN48: =IRRm(NPM42:NRL42) -> 1.1 | NPQ48: =IRR(NPQ42:NRP42) ->  | NPR48: =IRRm(NPQ42:NRP42) -> 1.1 | NPU48: =IRR(NPU42:NRT42) ->  | NPV48: =IRRm(NPU42:NRT42) -> 1.1 | NPY48: =IRR(NPY42:NRX42) ->  | NPZ48: =IRRm(NPY42:NRX42) -> 1.1 | NQC48: =IRR(NQC42:NSB42) ->  | NQD48: =IRRm(NQC42:NSB42) -> 1.1 | NQG48: =IRR(NQG42:NSF42) ->  | NQH48: =IRRm(NQG42:NSF42) -> 1.1 | NQK48: =IRR(NQK42:NSJ42) ->  | NQL48: =IRRm(NQK42:NSJ42) -> 1.1 | NQO48: =IRR(NQO42:NSN42) ->  | NQP48: =IRRm(NQO42:NSN42) -> 1.1 | NQS48: =IRR(NQS42:NSR42) ->  | NQT48: =IRRm(NQS42:NSR42) -> 1.1 | NQW48: =IRR(NQW42:NSV42) ->  | NQX48: =IRRm(NQW42:NSV42) -> 1.1 | NRA48: =IRR(NRA42:NSZ42) ->  | NRB48: =IRRm(NRA42:NSZ42) -> 1.1 | NRE48: =IRR(NRE42:NTD42) ->  | NRF48: =IRRm(NRE42:NTD42) -> 1.1 | NRI48: =IRR(NRI42:NTH42) ->  | NRJ48: =IRRm(NRI42:NTH42) -> 1.1 | NRM48: =IRR(NRM42:NTL42) ->  | NRN48: =IRRm(NRM42:NTL42) -> 1.1 | NRQ48: =IRR(NRQ42:NTP42) ->  | NRR48: =IRRm(NRQ42:NTP42) -> 1.1 | NRU48: =IRR(NRU42:NTT42) ->  | NRV48: =IRRm(NRU42:NTT42) -> 1.1 | NRY48: =IRR(NRY42:NTX42) ->  | NRZ48: =IRRm(NRY42:NTX42) -> 1.1 | NSC48: =IRR(NSC42:NUB42) ->  | NSD48: =IRRm(NSC42:NUB42) -> 1.1 | NSG48: =IRR(NSG42:NUF42) ->  | NSH48: =IRRm(NSG42:NUF42) -> 1.1 | NSK48: =IRR(NSK42:NUJ42) ->  | NSL48: =IRRm(NSK42:NUJ42) -> 1.1 | NSO48: =IRR(NSO42:NUN42) ->  | NSP48: =IRRm(NSO42:NUN42) -> 1.1 | NSS48: =IRR(NSS42:NUR42) ->  | NST48: =IRRm(NSS42:NUR42) -> 1.1 | NSW48: =IRR(NSW42:NUV42) ->  | NSX48: =IRRm(NSW42:NUV42) -> 1.1 | NTA48: =IRR(NTA42:NUZ42) ->  | NTB48: =IRRm(NTA42:NUZ42) -> 1.1 | NTE48: =IRR(NTE42:NVD42) ->  | NTF48: =IRRm(NTE42:NVD42) -> 1.1 | NTI48: =IRR(NTI42:NVH42) ->  | NTJ48: =IRRm(NTI42:NVH42) -> 1.1 | NTM48: =IRR(NTM42:NVL42) ->  | NTN48: =IRRm(NTM42:NVL42) -> 1.1 | NTQ48: =IRR(NTQ42:NVP42) ->  | NTR48: =IRRm(NTQ42:NVP42) -> 1.1 | NTU48: =IRR(NTU42:NVT42) ->  | NTV48: =IRRm(NTU42:NVT42) -> 1.1 | NTY48: =IRR(NTY42:NVX42) ->  | NTZ48: =IRRm(NTY42:NVX42) -> 1.1 | NUC48: =IRR(NUC42:NWB42) ->  | NUD48: =IRRm(NUC42:NWB42) -> 1.1 | NUG48: =IRR(NUG42:NWF42) ->  | NUH48: =IRRm(NUG42:NWF42) -> 1.1 | NUK48: =IRR(NUK42:NWJ42) ->  | NUL48: =IRRm(NUK42:NWJ42) -> 1.1 | NUO48: =IRR(NUO42:NWN42) ->  | NUP48: =IRRm(NUO42:NWN42) -> 1.1 | NUS48: =IRR(NUS42:NWR42) ->  | NUT48: =IRRm(NUS42:NWR42) -> 1.1 | NUW48: =IRR(NUW42:NWV42) ->  | NUX48: =IRRm(NUW42:NWV42) -> 1.1 | NVA48: =IRR(NVA42:NWZ42) ->  | NVB48: =IRRm(NVA42:NWZ42) -> 1.1 | NVE48: =IRR(NVE42:NXD42) ->  | NVF48: =IRRm(NVE42:NXD42) -> 1.1 | NVI48: =IRR(NVI42:NXH42) ->  | NVJ48: =IRRm(NVI42:NXH42) -> 1.1 | NVM48: =IRR(NVM42:NXL42) ->  | NVN48: =IRRm(NVM42:NXL42) -> 1.1 | NVQ48: =IRR(NVQ42:NXP42) ->  | NVR48: =IRRm(NVQ42:NXP42) -> 1.1 | NVU48: =IRR(NVU42:NXT42) ->  | NVV48: =IRRm(NVU42:NXT42) -> 1.1 | NVY48: =IRR(NVY42:NXX42) ->  | NVZ48: =IRRm(NVY42:NXX42) -> 1.1 | NWC48: =IRR(NWC42:NYB42) ->  | NWD48: =IRRm(NWC42:NYB42) -> 1.1 | NWG48: =IRR(NWG42:NYF42) ->  | NWH48: =IRRm(NWG42:NYF42) -> 1.1 | NWK48: =IRR(NWK42:NYJ42) ->  | NWL48: =IRRm(NWK42:NYJ42) -> 1.1 | NWO48: =IRR(NWO42:NYN42) ->  | NWP48: =IRRm(NWO42:NYN42) -> 1.1 | NWS48: =IRR(NWS42:NYR42) ->  | NWT48: =IRRm(NWS42:NYR42) -> 1.1 | NWW48: =IRR(NWW42:NYV42) ->  | NWX48: =IRRm(NWW42:NYV42) -> 1.1 | NXA48: =IRR(NXA42:NYZ42) ->  | NXB48: =IRRm(NXA42:NYZ42) -> 1.1 | NXE48: =IRR(NXE42:NZD42) ->  | NXF48: =IRRm(NXE42:NZD42) -> 1.1 | NXI48: =IRR(NXI42:NZH42) ->  | NXJ48: =IRRm(NXI42:NZH42) -> 1.1 | NXM48: =IRR(NXM42:NZL42) ->  | NXN48: =IRRm(NXM42:NZL42) -> 1.1 | NXQ48: =IRR(NXQ42:NZP42) ->  | NXR48: =IRRm(NXQ42:NZP42) -> 1.1 | NXU48: =IRR(NXU42:NZT42) ->  | NXV48: =IRRm(NXU42:NZT42) -> 1.1 | NXY48: =IRR(NXY42:NZX42) ->  | NXZ48: =IRRm(NXY42:NZX42) -> 1.1 | NYC48: =IRR(NYC42:OAB42) ->  | NYD48: =IRRm(NYC42:OAB42) -> 1.1 | NYG48: =IRR(NYG42:OAF42) ->  | NYH48: =IRRm(NYG42:OAF42) -> 1.1 | NYK48: =IRR(NYK42:OAJ42) ->  | NYL48: =IRRm(NYK42:OAJ42) -> 1.1 | NYO48: =IRR(NYO42:OAN42) ->  | NYP48: =IRRm(NYO42:OAN42) -> 1.1 | NYS48: =IRR(NYS42:OAR42) ->  | NYT48: =IRRm(NYS42:OAR42) -> 1.1 | NYW48: =IRR(NYW42:OAV42) ->  | NYX48: =IRRm(NYW42:OAV42) -> 1.1 | NZA48: =IRR(NZA42:OAZ42) ->  | NZB48: =IRRm(NZA42:OAZ42) -> 1.1 | NZE48: =IRR(NZE42:OBD42) ->  | NZF48: =IRRm(NZE42:OBD42) -> 1.1 | NZI48: =IRR(NZI42:OBH42) ->  | NZJ48: =IRRm(NZI42:OBH42) -> 1.1 | NZM48: =IRR(NZM42:OBL42) ->  | NZN48: =IRRm(NZM42:OBL42) -> 1.1 | NZQ48: =IRR(NZQ42:OBP42) ->  | NZR48: =IRRm(NZQ42:OBP42) -> 1.1 | NZU48: =IRR(NZU42:OBT42) ->  | NZV48: =IRRm(NZU42:OBT42) -> 1.1 | NZY48: =IRR(NZY42:OBX42) ->  | NZZ48: =IRRm(NZY42:OBX42) -> 1.1 | OAC48: =IRR(OAC42:OCB42) ->  | OAD48: =IRRm(OAC42:OCB42) -> 1.1 | OAG48: =IRR(OAG42:OCF42) ->  | OAH48: =IRRm(OAG42:OCF42) -> 1.1 | OAK48: =IRR(OAK42:OCJ42) ->  | OAL48: =IRRm(OAK42:OCJ42) -> 1.1 | OAO48: =IRR(OAO42:OCN42) ->  | OAP48: =IRRm(OAO42:OCN42) -> 1.1 | OAS48: =IRR(OAS42:OCR42) ->  | OAT48: =IRRm(OAS42:OCR42) -> 1.1 | OAW48: =IRR(OAW42:OCV42) ->  | OAX48: =IRRm(OAW42:OCV42) -> 1.1 | OBA48: =IRR(OBA42:OCZ42) ->  | OBB48: =IRRm(OBA42:OCZ42) -> 1.1 | OBE48: =IRR(OBE42:ODD42) ->  | OBF48: =IRRm(OBE42:ODD42) -> 1.1 | OBI48: =IRR(OBI42:ODH42) ->  | OBJ48: =IRRm(OBI42:ODH42) -> 1.1 | OBM48: =IRR(OBM42:ODL42) ->  | OBN48: =IRRm(OBM42:ODL42) -> 1.1 | OBQ48: =IRR(OBQ42:ODP42) ->  | OBR48: =IRRm(OBQ42:ODP42) -> 1.1 | OBU48: =IRR(OBU42:ODT42) ->  | OBV48: =IRRm(OBU42:ODT42) -> 1.1 | OBY48: =IRR(OBY42:ODX42) ->  | OBZ48: =IRRm(OBY42:ODX42) -> 1.1 | OCC48: =IRR(OCC42:OEB42) ->  | OCD48: =IRRm(OCC42:OEB42) -> 1.1 | OCG48: =IRR(OCG42:OEF42) ->  | OCH48: =IRRm(OCG42:OEF42) -> 1.1 | OCK48: =IRR(OCK42:OEJ42) ->  | OCL48: =IRRm(OCK42:OEJ42) -> 1.1 | OCO48: =IRR(OCO42:OEN42) ->  | OCP48: =IRRm(OCO42:OEN42) -> 1.1 | OCS48: =IRR(OCS42:OER42) ->  | OCT48: =IRRm(OCS42:OER42) -> 1.1 | OCW48: =IRR(OCW42:OEV42) ->  | OCX48: =IRRm(OCW42:OEV42) -> 1.1 | ODA48: =IRR(ODA42:OEZ42) ->  | ODB48: =IRRm(ODA42:OEZ42) -> 1.1 | ODE48: =IRR(ODE42:OFD42) ->  | ODF48: =IRRm(ODE42:OFD42) -> 1.1 | ODI48: =IRR(ODI42:OFH42) ->  | ODJ48: =IRRm(ODI42:OFH42) -> 1.1 | ODM48: =IRR(ODM42:OFL42) ->  | ODN48: =IRRm(ODM42:OFL42) -> 1.1 | ODQ48: =IRR(ODQ42:OFP42) ->  | ODR48: =IRRm(ODQ42:OFP42) -> 1.1 | ODU48: =IRR(ODU42:OFT42) ->  | ODV48: =IRRm(ODU42:OFT42) -> 1.1 | ODY48: =IRR(ODY42:OFX42) ->  | ODZ48: =IRRm(ODY42:OFX42) -> 1.1 | OEC48: =IRR(OEC42:OGB42) ->  | OED48: =IRRm(OEC42:OGB42) -> 1.1 | OEG48: =IRR(OEG42:OGF42) ->  | OEH48: =IRRm(OEG42:OGF42) -> 1.1 | OEK48: =IRR(OEK42:OGJ42) ->  | OEL48: =IRRm(OEK42:OGJ42) -> 1.1 | OEO48: =IRR(OEO42:OGN42) ->  | OEP48: =IRRm(OEO42:OGN42) -> 1.1 | OES48: =IRR(OES42:OGR42) ->  | OET48: =IRRm(OES42:OGR42) -> 1.1 | OEW48: =IRR(OEW42:OGV42) ->  | OEX48: =IRRm(OEW42:OGV42) -> 1.1 | OFA48: =IRR(OFA42:OGZ42) ->  | OFB48: =IRRm(OFA42:OGZ42) -> 1.1 | OFE48: =IRR(OFE42:OHD42) ->  | OFF48: =IRRm(OFE42:OHD42) -> 1.1 | OFI48: =IRR(OFI42:OHH42) ->  | OFJ48: =IRRm(OFI42:OHH42) -> 1.1 | OFM48: =IRR(OFM42:OHL42) ->  | OFN48: =IRRm(OFM42:OHL42) -> 1.1 | OFQ48: =IRR(OFQ42:OHP42) ->  | OFR48: =IRRm(OFQ42:OHP42) -> 1.1 | OFU48: =IRR(OFU42:OHT42) ->  | OFV48: =IRRm(OFU42:OHT42) -> 1.1 | OFY48: =IRR(OFY42:OHX42) ->  | OFZ48: =IRRm(OFY42:OHX42) -> 1.1 | OGC48: =IRR(OGC42:OIB42) ->  | OGD48: =IRRm(OGC42:OIB42) -> 1.1 | OGG48: =IRR(OGG42:OIF42) ->  | OGH48: =IRRm(OGG42:OIF42) -> 1.1 | OGK48: =IRR(OGK42:OIJ42) ->  | OGL48: =IRRm(OGK42:OIJ42) -> 1.1 | OGO48: =IRR(OGO42:OIN42) ->  | OGP48: =IRRm(OGO42:OIN42) -> 1.1 | OGS48: =IRR(OGS42:OIR42) ->  | OGT48: =IRRm(OGS42:OIR42) -> 1.1 | OGW48: =IRR(OGW42:OIV42) ->  | OGX48: =IRRm(OGW42:OIV42) -> 1.1 | OHA48: =IRR(OHA42:OIZ42) ->  | OHB48: =IRRm(OHA42:OIZ42) -> 1.1 | OHE48: =IRR(OHE42:OJD42) ->  | OHF48: =IRRm(OHE42:OJD42) -> 1.1 | OHI48: =IRR(OHI42:OJH42) ->  | OHJ48: =IRRm(OHI42:OJH42) -> 1.1 | OHM48: =IRR(OHM42:OJL42) ->  | OHN48: =IRRm(OHM42:OJL42) -> 1.1 | OHQ48: =IRR(OHQ42:OJP42) ->  | OHR48: =IRRm(OHQ42:OJP42) -> 1.1 | OHU48: =IRR(OHU42:OJT42) ->  | OHV48: =IRRm(OHU42:OJT42) -> 1.1 | OHY48: =IRR(OHY42:OJX42) ->  | OHZ48: =IRRm(OHY42:OJX42) -> 1.1 | OIC48: =IRR(OIC42:OKB42) ->  | OID48: =IRRm(OIC42:OKB42) -> 1.1 | OIG48: =IRR(OIG42:OKF42) ->  | OIH48: =IRRm(OIG42:OKF42) -> 1.1 | OIK48: =IRR(OIK42:OKJ42) ->  | OIL48: =IRRm(OIK42:OKJ42) -> 1.1 | OIO48: =IRR(OIO42:OKN42) ->  | OIP48: =IRRm(OIO42:OKN42) -> 1.1 | OIS48: =IRR(OIS42:OKR42) ->  | OIT48: =IRRm(OIS42:OKR42) -> 1.1 | OIW48: =IRR(OIW42:OKV42) ->  | OIX48: =IRRm(OIW42:OKV42) -> 1.1 | OJA48: =IRR(OJA42:OKZ42) ->  | OJB48: =IRRm(OJA42:OKZ42) -> 1.1 | OJE48: =IRR(OJE42:OLD42) ->  | OJF48: =IRRm(OJE42:OLD42) -> 1.1 | OJI48: =IRR(OJI42:OLH42) ->  | OJJ48: =IRRm(OJI42:OLH42) -> 1.1 | OJM48: =IRR(OJM42:OLL42) ->  | OJN48: =IRRm(OJM42:OLL42) -> 1.1 | OJQ48: =IRR(OJQ42:OLP42) ->  | OJR48: =IRRm(OJQ42:OLP42) -> 1.1 | OJU48: =IRR(OJU42:OLT42) ->  | OJV48: =IRRm(OJU42:OLT42) -> 1.1 | OJY48: =IRR(OJY42:OLX42) ->  | OJZ48: =IRRm(OJY42:OLX42) -> 1.1 | OKC48: =IRR(OKC42:OMB42) ->  | OKD48: =IRRm(OKC42:OMB42) -> 1.1 | OKG48: =IRR(OKG42:OMF42) ->  | OKH48: =IRRm(OKG42:OMF42) -> 1.1 | OKK48: =IRR(OKK42:OMJ42) ->  | OKL48: =IRRm(OKK42:OMJ42) -> 1.1 | OKO48: =IRR(OKO42:OMN42) ->  | OKP48: =IRRm(OKO42:OMN42) -> 1.1 | OKS48: =IRR(OKS42:OMR42) ->  | OKT48: =IRRm(OKS42:OMR42) -> 1.1 | OKW48: =IRR(OKW42:OMV42) ->  | OKX48: =IRRm(OKW42:OMV42) -> 1.1 | OLA48: =IRR(OLA42:OMZ42) ->  | OLB48: =IRRm(OLA42:OMZ42) -> 1.1 | OLE48: =IRR(OLE42:OND42) ->  | OLF48: =IRRm(OLE42:OND42) -> 1.1 | OLI48: =IRR(OLI42:ONH42) ->  | OLJ48: =IRRm(OLI42:ONH42) -> 1.1 | OLM48: =IRR(OLM42:ONL42) ->  | OLN48: =IRRm(OLM42:ONL42) -> 1.1 | OLQ48: =IRR(OLQ42:ONP42) ->  | OLR48: =IRRm(OLQ42:ONP42) -> 1.1 | OLU48: =IRR(OLU42:ONT42) ->  | OLV48: =IRRm(OLU42:ONT42) -> 1.1 | OLY48: =IRR(OLY42:ONX42) ->  | OLZ48: =IRRm(OLY42:ONX42) -> 1.1 | OMC48: =IRR(OMC42:OOB42) ->  | OMD48: =IRRm(OMC42:OOB42) -> 1.1 | OMG48: =IRR(OMG42:OOF42) ->  | OMH48: =IRRm(OMG42:OOF42) -> 1.1 | OMK48: =IRR(OMK42:OOJ42) ->  | OML48: =IRRm(OMK42:OOJ42) -> 1.1 | OMO48: =IRR(OMO42:OON42) ->  | OMP48: =IRRm(OMO42:OON42) -> 1.1 | OMS48: =IRR(OMS42:OOR42) ->  | OMT48: =IRRm(OMS42:OOR42) -> 1.1 | OMW48: =IRR(OMW42:OOV42) ->  | OMX48: =IRRm(OMW42:OOV42) -> 1.1 | ONA48: =IRR(ONA42:OOZ42) ->  | ONB48: =IRRm(ONA42:OOZ42) -> 1.1 | ONE48: =IRR(ONE42:OPD42) ->  | ONF48: =IRRm(ONE42:OPD42) -> 1.1 | ONI48: =IRR(ONI42:OPH42) ->  | ONJ48: =IRRm(ONI42:OPH42) -> 1.1 | ONM48: =IRR(ONM42:OPL42) ->  | ONN48: =IRRm(ONM42:OPL42) -> 1.1 | ONQ48: =IRR(ONQ42:OPP42) ->  | ONR48: =IRRm(ONQ42:OPP42) -> 1.1 | ONU48: =IRR(ONU42:OPT42) ->  | ONV48: =IRRm(ONU42:OPT42) -> 1.1 | ONY48: =IRR(ONY42:OPX42) ->  | ONZ48: =IRRm(ONY42:OPX42) -> 1.1 | OOC48: =IRR(OOC42:OQB42) ->  | OOD48: =IRRm(OOC42:OQB42) -> 1.1 | OOG48: =IRR(OOG42:OQF42) ->  | OOH48: =IRRm(OOG42:OQF42) -> 1.1 | OOK48: =IRR(OOK42:OQJ42) ->  | OOL48: =IRRm(OOK42:OQJ42) -> 1.1 | OOO48: =IRR(OOO42:OQN42) ->  | OOP48: =IRRm(OOO42:OQN42) -> 1.1 | OOS48: =IRR(OOS42:OQR42) ->  | OOT48: =IRRm(OOS42:OQR42) -> 1.1 | OOW48: =IRR(OOW42:OQV42) ->  | OOX48: =IRRm(OOW42:OQV42) -> 1.1 | OPA48: =IRR(OPA42:OQZ42) ->  | OPB48: =IRRm(OPA42:OQZ42) -> 1.1 | OPE48: =IRR(OPE42:ORD42) ->  | OPF48: =IRRm(OPE42:ORD42) -> 1.1 | OPI48: =IRR(OPI42:ORH42) ->  | OPJ48: =IRRm(OPI42:ORH42) -> 1.1 | OPM48: =IRR(OPM42:ORL42) ->  | OPN48: =IRRm(OPM42:ORL42) -> 1.1 | OPQ48: =IRR(OPQ42:ORP42) ->  | OPR48: =IRRm(OPQ42:ORP42) -> 1.1 | OPU48: =IRR(OPU42:ORT42) ->  | OPV48: =IRRm(OPU42:ORT42) -> 1.1 | OPY48: =IRR(OPY42:ORX42) ->  | OPZ48: =IRRm(OPY42:ORX42) -> 1.1 | OQC48: =IRR(OQC42:OSB42) ->  | OQD48: =IRRm(OQC42:OSB42) -> 1.1 | OQG48: =IRR(OQG42:OSF42) ->  | OQH48: =IRRm(OQG42:OSF42) -> 1.1 | OQK48: =IRR(OQK42:OSJ42) ->  | OQL48: =IRRm(OQK42:OSJ42) -> 1.1 | OQO48: =IRR(OQO42:OSN42) ->  | OQP48: =IRRm(OQO42:OSN42) -> 1.1 | OQS48: =IRR(OQS42:OSR42) ->  | OQT48: =IRRm(OQS42:OSR42) -> 1.1 | OQW48: =IRR(OQW42:OSV42) ->  | OQX48: =IRRm(OQW42:OSV42) -> 1.1 | ORA48: =IRR(ORA42:OSZ42) ->  | ORB48: =IRRm(ORA42:OSZ42) -> 1.1 | ORE48: =IRR(ORE42:OTD42) ->  | ORF48: =IRRm(ORE42:OTD42) -> 1.1 | ORI48: =IRR(ORI42:OTH42) ->  | ORJ48: =IRRm(ORI42:OTH42) -> 1.1 | ORM48: =IRR(ORM42:OTL42) ->  | ORN48: =IRRm(ORM42:OTL42) -> 1.1 | ORQ48: =IRR(ORQ42:OTP42) ->  | ORR48: =IRRm(ORQ42:OTP42) -> 1.1 | ORU48: =IRR(ORU42:OTT42) ->  | ORV48: =IRRm(ORU42:OTT42) -> 1.1 | ORY48: =IRR(ORY42:OTX42) ->  | ORZ48: =IRRm(ORY42:OTX42) -> 1.1 | OSC48: =IRR(OSC42:OUB42) ->  | OSD48: =IRRm(OSC42:OUB42) -> 1.1 | OSG48: =IRR(OSG42:OUF42) ->  | OSH48: =IRRm(OSG42:OUF42) -> 1.1 | OSK48: =IRR(OSK42:OUJ42) ->  | OSL48: =IRRm(OSK42:OUJ42) -> 1.1 | OSO48: =IRR(OSO42:OUN42) ->  | OSP48: =IRRm(OSO42:OUN42) -> 1.1 | OSS48: =IRR(OSS42:OUR42) ->  | OST48: =IRRm(OSS42:OUR42) -> 1.1 | OSW48: =IRR(OSW42:OUV42) ->  | OSX48: =IRRm(OSW42:OUV42) -> 1.1 | OTA48: =IRR(OTA42:OUZ42) ->  | OTB48: =IRRm(OTA42:OUZ42) -> 1.1 | OTE48: =IRR(OTE42:OVD42) ->  | OTF48: =IRRm(OTE42:OVD42) -> 1.1 | OTI48: =IRR(OTI42:OVH42) ->  | OTJ48: =IRRm(OTI42:OVH42) -> 1.1 | OTM48: =IRR(OTM42:OVL42) ->  | OTN48: =IRRm(OTM42:OVL42) -> 1.1 | OTQ48: =IRR(OTQ42:OVP42) ->  | OTR48: =IRRm(OTQ42:OVP42) -> 1.1 | OTU48: =IRR(OTU42:OVT42) ->  | OTV48: =IRRm(OTU42:OVT42) -> 1.1 | OTY48: =IRR(OTY42:OVX42) ->  | OTZ48: =IRRm(OTY42:OVX42) -> 1.1 | OUC48: =IRR(OUC42:OWB42) ->  | OUD48: =IRRm(OUC42:OWB42) -> 1.1 | OUG48: =IRR(OUG42:OWF42) ->  | OUH48: =IRRm(OUG42:OWF42) -> 1.1 | OUK48: =IRR(OUK42:OWJ42) ->  | OUL48: =IRRm(OUK42:OWJ42) -> 1.1 | OUO48: =IRR(OUO42:OWN42) ->  | OUP48: =IRRm(OUO42:OWN42) -> 1.1 | OUS48: =IRR(OUS42:OWR42) ->  | OUT48: =IRRm(OUS42:OWR42) -> 1.1 | OUW48: =IRR(OUW42:OWV42) ->  | OUX48: =IRRm(OUW42:OWV42) -> 1.1 | OVA48: =IRR(OVA42:OWZ42) ->  | OVB48: =IRRm(OVA42:OWZ42) -> 1.1 | OVE48: =IRR(OVE42:OXD42) ->  | OVF48: =IRRm(OVE42:OXD42) -> 1.1 | OVI48: =IRR(OVI42:OXH42) ->  | OVJ48: =IRRm(OVI42:OXH42) -> 1.1 | OVM48: =IRR(OVM42:OXL42) ->  | OVN48: =IRRm(OVM42:OXL42) -> 1.1 | OVQ48: =IRR(OVQ42:OXP42) ->  | OVR48: =IRRm(OVQ42:OXP42) -> 1.1 | OVU48: =IRR(OVU42:OXT42) ->  | OVV48: =IRRm(OVU42:OXT42) -> 1.1 | OVY48: =IRR(OVY42:OXX42) ->  | OVZ48: =IRRm(OVY42:OXX42) -> 1.1 | OWC48: =IRR(OWC42:OYB42) ->  | OWD48: =IRRm(OWC42:OYB42) -> 1.1 | OWG48: =IRR(OWG42:OYF42) ->  | OWH48: =IRRm(OWG42:OYF42) -> 1.1 | OWK48: =IRR(OWK42:OYJ42) ->  | OWL48: =IRRm(OWK42:OYJ42) -> 1.1 | OWO48: =IRR(OWO42:OYN42) ->  | OWP48: =IRRm(OWO42:OYN42) -> 1.1 | OWS48: =IRR(OWS42:OYR42) ->  | OWT48: =IRRm(OWS42:OYR42) -> 1.1 | OWW48: =IRR(OWW42:OYV42) ->  | OWX48: =IRRm(OWW42:OYV42) -> 1.1 | OXA48: =IRR(OXA42:OYZ42) ->  | OXB48: =IRRm(OXA42:OYZ42) -> 1.1 | OXE48: =IRR(OXE42:OZD42) ->  | OXF48: =IRRm(OXE42:OZD42) -> 1.1 | OXI48: =IRR(OXI42:OZH42) ->  | OXJ48: =IRRm(OXI42:OZH42) -> 1.1 | OXM48: =IRR(OXM42:OZL42) ->  | OXN48: =IRRm(OXM42:OZL42) -> 1.1 | OXQ48: =IRR(OXQ42:OZP42) ->  | OXR48: =IRRm(OXQ42:OZP42) -> 1.1 | OXU48: =IRR(OXU42:OZT42) ->  | OXV48: =IRRm(OXU42:OZT42) -> 1.1 | OXY48: =IRR(OXY42:OZX42) ->  | OXZ48: =IRRm(OXY42:OZX42) -> 1.1 | OYC48: =IRR(OYC42:PAB42) ->  | OYD48: =IRRm(OYC42:PAB42) -> 1.1 | OYG48: =IRR(OYG42:PAF42) ->  | OYH48: =IRRm(OYG42:PAF42) -> 1.1 | OYK48: =IRR(OYK42:PAJ42) ->  | OYL48: =IRRm(OYK42:PAJ42) -> 1.1 | OYO48: =IRR(OYO42:PAN42) ->  | OYP48: =IRRm(OYO42:PAN42) -> 1.1 | OYS48: =IRR(OYS42:PAR42) ->  | OYT48: =IRRm(OYS42:PAR42) -> 1.1 | OYW48: =IRR(OYW42:PAV42) ->  | OYX48: =IRRm(OYW42:PAV42) -> 1.1 | OZA48: =IRR(OZA42:PAZ42) ->  | OZB48: =IRRm(OZA42:PAZ42) -> 1.1 | OZE48: =IRR(OZE42:PBD42) ->  | OZF48: =IRRm(OZE42:PBD42) -> 1.1 | OZI48: =IRR(OZI42:PBH42) ->  | OZJ48: =IRRm(OZI42:PBH42) -> 1.1 | OZM48: =IRR(OZM42:PBL42) ->  | OZN48: =IRRm(OZM42:PBL42) -> 1.1 | OZQ48: =IRR(OZQ42:PBP42) ->  | OZR48: =IRRm(OZQ42:PBP42) -> 1.1 | OZU48: =IRR(OZU42:PBT42) ->  | OZV48: =IRRm(OZU42:PBT42) -> 1.1 | OZY48: =IRR(OZY42:PBX42) ->  | OZZ48: =IRRm(OZY42:PBX42) -> 1.1 | PAC48: =IRR(PAC42:PCB42) ->  | PAD48: =IRRm(PAC42:PCB42) -> 1.1 | PAG48: =IRR(PAG42:PCF42) ->  | PAH48: =IRRm(PAG42:PCF42) -> 1.1 | PAK48: =IRR(PAK42:PCJ42) ->  | PAL48: =IRRm(PAK42:PCJ42) -> 1.1 | PAO48: =IRR(PAO42:PCN42) ->  | PAP48: =IRRm(PAO42:PCN42) -> 1.1 | PAS48: =IRR(PAS42:PCR42) ->  | PAT48: =IRRm(PAS42:PCR42) -> 1.1 | PAW48: =IRR(PAW42:PCV42) ->  | PAX48: =IRRm(PAW42:PCV42) -> 1.1 | PBA48: =IRR(PBA42:PCZ42) ->  | PBB48: =IRRm(PBA42:PCZ42) -> 1.1 | PBE48: =IRR(PBE42:PDD42) ->  | PBF48: =IRRm(PBE42:PDD42) -> 1.1 | PBI48: =IRR(PBI42:PDH42) ->  | PBJ48: =IRRm(PBI42:PDH42) -> 1.1 | PBM48: =IRR(PBM42:PDL42) ->  | PBN48: =IRRm(PBM42:PDL42) -> 1.1 | PBQ48: =IRR(PBQ42:PDP42) ->  | PBR48: =IRRm(PBQ42:PDP42) -> 1.1 | PBU48: =IRR(PBU42:PDT42) ->  | PBV48: =IRRm(PBU42:PDT42) -> 1.1 | PBY48: =IRR(PBY42:PDX42) ->  | PBZ48: =IRRm(PBY42:PDX42) -> 1.1 | PCC48: =IRR(PCC42:PEB42) ->  | PCD48: =IRRm(PCC42:PEB42) -> 1.1 | PCG48: =IRR(PCG42:PEF42) ->  | PCH48: =IRRm(PCG42:PEF42) -> 1.1 | PCK48: =IRR(PCK42:PEJ42) ->  | PCL48: =IRRm(PCK42:PEJ42) -> 1.1 | PCO48: =IRR(PCO42:PEN42) ->  | PCP48: =IRRm(PCO42:PEN42) -> 1.1 | PCS48: =IRR(PCS42:PER42) ->  | PCT48: =IRRm(PCS42:PER42) -> 1.1 | PCW48: =IRR(PCW42:PEV42) ->  | PCX48: =IRRm(PCW42:PEV42) -> 1.1 | PDA48: =IRR(PDA42:PEZ42) ->  | PDB48: =IRRm(PDA42:PEZ42) -> 1.1 | PDE48: =IRR(PDE42:PFD42) ->  | PDF48: =IRRm(PDE42:PFD42) -> 1.1 | PDI48: =IRR(PDI42:PFH42) ->  | PDJ48: =IRRm(PDI42:PFH42) -> 1.1 | PDM48: =IRR(PDM42:PFL42) ->  | PDN48: =IRRm(PDM42:PFL42) -> 1.1 | PDQ48: =IRR(PDQ42:PFP42) ->  | PDR48: =IRRm(PDQ42:PFP42) -> 1.1 | PDU48: =IRR(PDU42:PFT42) ->  | PDV48: =IRRm(PDU42:PFT42) -> 1.1 | PDY48: =IRR(PDY42:PFX42) ->  | PDZ48: =IRRm(PDY42:PFX42) -> 1.1 | PEC48: =IRR(PEC42:PGB42) ->  | PED48: =IRRm(PEC42:PGB42) -> 1.1 | PEG48: =IRR(PEG42:PGF42) ->  | PEH48: =IRRm(PEG42:PGF42) -> 1.1 | PEK48: =IRR(PEK42:PGJ42) ->  | PEL48: =IRRm(PEK42:PGJ42) -> 1.1 | PEO48: =IRR(PEO42:PGN42) ->  | PEP48: =IRRm(PEO42:PGN42) -> 1.1 | PES48: =IRR(PES42:PGR42) ->  | PET48: =IRRm(PES42:PGR42) -> 1.1 | PEW48: =IRR(PEW42:PGV42) ->  | PEX48: =IRRm(PEW42:PGV42) -> 1.1 | PFA48: =IRR(PFA42:PGZ42) ->  | PFB48: =IRRm(PFA42:PGZ42) -> 1.1 | PFE48: =IRR(PFE42:PHD42) ->  | PFF48: =IRRm(PFE42:PHD42) -> 1.1 | PFI48: =IRR(PFI42:PHH42) ->  | PFJ48: =IRRm(PFI42:PHH42) -> 1.1 | PFM48: =IRR(PFM42:PHL42) ->  | PFN48: =IRRm(PFM42:PHL42) -> 1.1 | PFQ48: =IRR(PFQ42:PHP42) ->  | PFR48: =IRRm(PFQ42:PHP42) -> 1.1 | PFU48: =IRR(PFU42:PHT42) ->  | PFV48: =IRRm(PFU42:PHT42) -> 1.1 | PFY48: =IRR(PFY42:PHX42) ->  | PFZ48: =IRRm(PFY42:PHX42) -> 1.1 | PGC48: =IRR(PGC42:PIB42) ->  | PGD48: =IRRm(PGC42:PIB42) -> 1.1 | PGG48: =IRR(PGG42:PIF42) ->  | PGH48: =IRRm(PGG42:PIF42) -> 1.1 | PGK48: =IRR(PGK42:PIJ42) ->  | PGL48: =IRRm(PGK42:PIJ42) -> 1.1 | PGO48: =IRR(PGO42:PIN42) ->  | PGP48: =IRRm(PGO42:PIN42) -> 1.1 | PGS48: =IRR(PGS42:PIR42) ->  | PGT48: =IRRm(PGS42:PIR42) -> 1.1 | PGW48: =IRR(PGW42:PIV42) ->  | PGX48: =IRRm(PGW42:PIV42) -> 1.1 | PHA48: =IRR(PHA42:PIZ42) ->  | PHB48: =IRRm(PHA42:PIZ42) -> 1.1 | PHE48: =IRR(PHE42:PJD42) ->  | PHF48: =IRRm(PHE42:PJD42) -> 1.1 | PHI48: =IRR(PHI42:PJH42) ->  | PHJ48: =IRRm(PHI42:PJH42) -> 1.1 | PHM48: =IRR(PHM42:PJL42) ->  | PHN48: =IRRm(PHM42:PJL42) -> 1.1 | PHQ48: =IRR(PHQ42:PJP42) ->  | PHR48: =IRRm(PHQ42:PJP42) -> 1.1 | PHU48: =IRR(PHU42:PJT42) ->  | PHV48: =IRRm(PHU42:PJT42) -> 1.1 | PHY48: =IRR(PHY42:PJX42) ->  | PHZ48: =IRRm(PHY42:PJX42) -> 1.1 | PIC48: =IRR(PIC42:PKB42) ->  | PID48: =IRRm(PIC42:PKB42) -> 1.1 | PIG48: =IRR(PIG42:PKF42) ->  | PIH48: =IRRm(PIG42:PKF42) -> 1.1 | PIK48: =IRR(PIK42:PKJ42) ->  | PIL48: =IRRm(PIK42:PKJ42) -> 1.1 | PIO48: =IRR(PIO42:PKN42) ->  | PIP48: =IRRm(PIO42:PKN42) -> 1.1 | PIS48: =IRR(PIS42:PKR42) ->  | PIT48: =IRRm(PIS42:PKR42) -> 1.1 | PIW48: =IRR(PIW42:PKV42) ->  | PIX48: =IRRm(PIW42:PKV42) -> 1.1 | PJA48: =IRR(PJA42:PKZ42) ->  | PJB48: =IRRm(PJA42:PKZ42) -> 1.1 | PJE48: =IRR(PJE42:PLD42) ->  | PJF48: =IRRm(PJE42:PLD42) -> 1.1 | PJI48: =IRR(PJI42:PLH42) ->  | PJJ48: =IRRm(PJI42:PLH42) -> 1.1 | PJM48: =IRR(PJM42:PLL42) ->  | PJN48: =IRRm(PJM42:PLL42) -> 1.1 | PJQ48: =IRR(PJQ42:PLP42) ->  | PJR48: =IRRm(PJQ42:PLP42) -> 1.1 | PJU48: =IRR(PJU42:PLT42) ->  | PJV48: =IRRm(PJU42:PLT42) -> 1.1 | PJY48: =IRR(PJY42:PLX42) ->  | PJZ48: =IRRm(PJY42:PLX42) -> 1.1 | PKC48: =IRR(PKC42:PMB42) ->  | PKD48: =IRRm(PKC42:PMB42) -> 1.1 | PKG48: =IRR(PKG42:PMF42) ->  | PKH48: =IRRm(PKG42:PMF42) -> 1.1 | PKK48: =IRR(PKK42:PMJ42) ->  | PKL48: =IRRm(PKK42:PMJ42) -> 1.1 | PKO48: =IRR(PKO42:PMN42) ->  | PKP48: =IRRm(PKO42:PMN42) -> 1.1 | PKS48: =IRR(PKS42:PMR42) ->  | PKT48: =IRRm(PKS42:PMR42) -> 1.1 | PKW48: =IRR(PKW42:PMV42) ->  | PKX48: =IRRm(PKW42:PMV42) -> 1.1 | PLA48: =IRR(PLA42:PMZ42) ->  | PLB48: =IRRm(PLA42:PMZ42) -> 1.1 | PLE48: =IRR(PLE42:PND42) ->  | PLF48: =IRRm(PLE42:PND42) -> 1.1 | PLI48: =IRR(PLI42:PNH42) ->  | PLJ48: =IRRm(PLI42:PNH42) -> 1.1 | PLM48: =IRR(PLM42:PNL42) ->  | PLN48: =IRRm(PLM42:PNL42) -> 1.1 | PLQ48: =IRR(PLQ42:PNP42) ->  | PLR48: =IRRm(PLQ42:PNP42) -> 1.1 | PLU48: =IRR(PLU42:PNT42) ->  | PLV48: =IRRm(PLU42:PNT42) -> 1.1 | PLY48: =IRR(PLY42:PNX42) ->  | PLZ48: =IRRm(PLY42:PNX42) -> 1.1 | PMC48: =IRR(PMC42:POB42) ->  | PMD48: =IRRm(PMC42:POB42) -> 1.1 | PMG48: =IRR(PMG42:POF42) ->  | PMH48: =IRRm(PMG42:POF42) -> 1.1 | PMK48: =IRR(PMK42:POJ42) ->  | PML48: =IRRm(PMK42:POJ42) -> 1.1 | PMO48: =IRR(PMO42:PON42) ->  | PMP48: =IRRm(PMO42:PON42) -> 1.1 | PMS48: =IRR(PMS42:POR42) ->  | PMT48: =IRRm(PMS42:POR42) -> 1.1 | PMW48: =IRR(PMW42:POV42) ->  | PMX48: =IRRm(PMW42:POV42) -> 1.1 | PNA48: =IRR(PNA42:POZ42) ->  | PNB48: =IRRm(PNA42:POZ42) -> 1.1 | PNE48: =IRR(PNE42:PPD42) ->  | PNF48: =IRRm(PNE42:PPD42) -> 1.1 | PNI48: =IRR(PNI42:PPH42) ->  | PNJ48: =IRRm(PNI42:PPH42) -> 1.1 | PNM48: =IRR(PNM42:PPL42) ->  | PNN48: =IRRm(PNM42:PPL42) -> 1.1 | PNQ48: =IRR(PNQ42:PPP42) ->  | PNR48: =IRRm(PNQ42:PPP42) -> 1.1 | PNU48: =IRR(PNU42:PPT42) ->  | PNV48: =IRRm(PNU42:PPT42) -> 1.1 | PNY48: =IRR(PNY42:PPX42) ->  | PNZ48: =IRRm(PNY42:PPX42) -> 1.1 | POC48: =IRR(POC42:PQB42) ->  | POD48: =IRRm(POC42:PQB42) -> 1.1 | POG48: =IRR(POG42:PQF42) ->  | POH48: =IRRm(POG42:PQF42) -> 1.1 | POK48: =IRR(POK42:PQJ42) ->  | POL48: =IRRm(POK42:PQJ42) -> 1.1 | POO48: =IRR(POO42:PQN42) ->  | POP48: =IRRm(POO42:PQN42) -> 1.1 | POS48: =IRR(POS42:PQR42) ->  | POT48: =IRRm(POS42:PQR42) -> 1.1 | POW48: =IRR(POW42:PQV42) ->  | POX48: =IRRm(POW42:PQV42) -> 1.1 | PPA48: =IRR(PPA42:PQZ42) ->  | PPB48: =IRRm(PPA42:PQZ42) -> 1.1 | PPE48: =IRR(PPE42:PRD42) ->  | PPF48: =IRRm(PPE42:PRD42) -> 1.1 | PPI48: =IRR(PPI42:PRH42) ->  | PPJ48: =IRRm(PPI42:PRH42) -> 1.1 | PPM48: =IRR(PPM42:PRL42) ->  | PPN48: =IRRm(PPM42:PRL42) -> 1.1 | PPQ48: =IRR(PPQ42:PRP42) ->  | PPR48: =IRRm(PPQ42:PRP42) -> 1.1 | PPU48: =IRR(PPU42:PRT42) ->  | PPV48: =IRRm(PPU42:PRT42) -> 1.1 | PPY48: =IRR(PPY42:PRX42) ->  | PPZ48: =IRRm(PPY42:PRX42) -> 1.1 | PQC48: =IRR(PQC42:PSB42) ->  | PQD48: =IRRm(PQC42:PSB42) -> 1.1 | PQG48: =IRR(PQG42:PSF42) ->  | PQH48: =IRRm(PQG42:PSF42) -> 1.1 | PQK48: =IRR(PQK42:PSJ42) ->  | PQL48: =IRRm(PQK42:PSJ42) -> 1.1 | PQO48: =IRR(PQO42:PSN42) ->  | PQP48: =IRRm(PQO42:PSN42) -> 1.1 | PQS48: =IRR(PQS42:PSR42) ->  | PQT48: =IRRm(PQS42:PSR42) -> 1.1 | PQW48: =IRR(PQW42:PSV42) ->  | PQX48: =IRRm(PQW42:PSV42) -> 1.1 | PRA48: =IRR(PRA42:PSZ42) ->  | PRB48: =IRRm(PRA42:PSZ42) -> 1.1 | PRE48: =IRR(PRE42:PTD42) ->  | PRF48: =IRRm(PRE42:PTD42) -> 1.1 | PRI48: =IRR(PRI42:PTH42) ->  | PRJ48: =IRRm(PRI42:PTH42) -> 1.1 | PRM48: =IRR(PRM42:PTL42) ->  | PRN48: =IRRm(PRM42:PTL42) -> 1.1 | PRQ48: =IRR(PRQ42:PTP42) ->  | PRR48: =IRRm(PRQ42:PTP42) -> 1.1 | PRU48: =IRR(PRU42:PTT42) ->  | PRV48: =IRRm(PRU42:PTT42) -> 1.1 | PRY48: =IRR(PRY42:PTX42) ->  | PRZ48: =IRRm(PRY42:PTX42) -> 1.1 | PSC48: =IRR(PSC42:PUB42) ->  | PSD48: =IRRm(PSC42:PUB42) -> 1.1 | PSG48: =IRR(PSG42:PUF42) ->  | PSH48: =IRRm(PSG42:PUF42) -> 1.1 | PSK48: =IRR(PSK42:PUJ42) ->  | PSL48: =IRRm(PSK42:PUJ42) -> 1.1 | PSO48: =IRR(PSO42:PUN42) ->  | PSP48: =IRRm(PSO42:PUN42) -> 1.1 | PSS48: =IRR(PSS42:PUR42) ->  | PST48: =IRRm(PSS42:PUR42) -> 1.1 | PSW48: =IRR(PSW42:PUV42) ->  | PSX48: =IRRm(PSW42:PUV42) -> 1.1 | PTA48: =IRR(PTA42:PUZ42) ->  | PTB48: =IRRm(PTA42:PUZ42) -> 1.1 | PTE48: =IRR(PTE42:PVD42) ->  | PTF48: =IRRm(PTE42:PVD42) -> 1.1 | PTI48: =IRR(PTI42:PVH42) ->  | PTJ48: =IRRm(PTI42:PVH42) -> 1.1 | PTM48: =IRR(PTM42:PVL42) ->  | PTN48: =IRRm(PTM42:PVL42) -> 1.1 | PTQ48: =IRR(PTQ42:PVP42) ->  | PTR48: =IRRm(PTQ42:PVP42) -> 1.1 | PTU48: =IRR(PTU42:PVT42) ->  | PTV48: =IRRm(PTU42:PVT42) -> 1.1 | PTY48: =IRR(PTY42:PVX42) ->  | PTZ48: =IRRm(PTY42:PVX42) -> 1.1 | PUC48: =IRR(PUC42:PWB42) ->  | PUD48: =IRRm(PUC42:PWB42) -> 1.1 | PUG48: =IRR(PUG42:PWF42) ->  | PUH48: =IRRm(PUG42:PWF42) -> 1.1 | PUK48: =IRR(PUK42:PWJ42) ->  | PUL48: =IRRm(PUK42:PWJ42) -> 1.1 | PUO48: =IRR(PUO42:PWN42) ->  | PUP48: =IRRm(PUO42:PWN42) -> 1.1 | PUS48: =IRR(PUS42:PWR42) ->  | PUT48: =IRRm(PUS42:PWR42) -> 1.1 | PUW48: =IRR(PUW42:PWV42) ->  | PUX48: =IRRm(PUW42:PWV42) -> 1.1 | PVA48: =IRR(PVA42:PWZ42) ->  | PVB48: =IRRm(PVA42:PWZ42) -> 1.1 | PVE48: =IRR(PVE42:PXD42) ->  | PVF48: =IRRm(PVE42:PXD42) -> 1.1 | PVI48: =IRR(PVI42:PXH42) ->  | PVJ48: =IRRm(PVI42:PXH42) -> 1.1 | PVM48: =IRR(PVM42:PXL42) ->  | PVN48: =IRRm(PVM42:PXL42) -> 1.1 | PVQ48: =IRR(PVQ42:PXP42) ->  | PVR48: =IRRm(PVQ42:PXP42) -> 1.1 | PVU48: =IRR(PVU42:PXT42) ->  | PVV48: =IRRm(PVU42:PXT42) -> 1.1 | PVY48: =IRR(PVY42:PXX42) ->  | PVZ48: =IRRm(PVY42:PXX42) -> 1.1 | PWC48: =IRR(PWC42:PYB42) ->  | PWD48: =IRRm(PWC42:PYB42) -> 1.1 | PWG48: =IRR(PWG42:PYF42) ->  | PWH48: =IRRm(PWG42:PYF42) -> 1.1 | PWK48: =IRR(PWK42:PYJ42) ->  | PWL48: =IRRm(PWK42:PYJ42) -> 1.1 | PWO48: =IRR(PWO42:PYN42) ->  | PWP48: =IRRm(PWO42:PYN42) -> 1.1 | PWS48: =IRR(PWS42:PYR42) ->  | PWT48: =IRRm(PWS42:PYR42) -> 1.1 | PWW48: =IRR(PWW42:PYV42) ->  | PWX48: =IRRm(PWW42:PYV42) -> 1.1 | PXA48: =IRR(PXA42:PYZ42) ->  | PXB48: =IRRm(PXA42:PYZ42) -> 1.1 | PXE48: =IRR(PXE42:PZD42) ->  | PXF48: =IRRm(PXE42:PZD42) -> 1.1 | PXI48: =IRR(PXI42:PZH42) ->  | PXJ48: =IRRm(PXI42:PZH42) -> 1.1 | PXM48: =IRR(PXM42:PZL42) ->  | PXN48: =IRRm(PXM42:PZL42) -> 1.1 | PXQ48: =IRR(PXQ42:PZP42) ->  | PXR48: =IRRm(PXQ42:PZP42) -> 1.1 | PXU48: =IRR(PXU42:PZT42) ->  | PXV48: =IRRm(PXU42:PZT42) -> 1.1 | PXY48: =IRR(PXY42:PZX42) ->  | PXZ48: =IRRm(PXY42:PZX42) -> 1.1 | PYC48: =IRR(PYC42:QAB42) ->  | PYD48: =IRRm(PYC42:QAB42) -> 1.1 | PYG48: =IRR(PYG42:QAF42) ->  | PYH48: =IRRm(PYG42:QAF42) -> 1.1 | PYK48: =IRR(PYK42:QAJ42) ->  | PYL48: =IRRm(PYK42:QAJ42) -> 1.1 | PYO48: =IRR(PYO42:QAN42) ->  | PYP48: =IRRm(PYO42:QAN42) -> 1.1 | PYS48: =IRR(PYS42:QAR42) ->  | PYT48: =IRRm(PYS42:QAR42) -> 1.1 | PYW48: =IRR(PYW42:QAV42) ->  | PYX48: =IRRm(PYW42:QAV42) -> 1.1 | PZA48: =IRR(PZA42:QAZ42) ->  | PZB48: =IRRm(PZA42:QAZ42) -> 1.1 | PZE48: =IRR(PZE42:QBD42) ->  | PZF48: =IRRm(PZE42:QBD42) -> 1.1 | PZI48: =IRR(PZI42:QBH42) ->  | PZJ48: =IRRm(PZI42:QBH42) -> 1.1 | PZM48: =IRR(PZM42:QBL42) ->  | PZN48: =IRRm(PZM42:QBL42) -> 1.1 | PZQ48: =IRR(PZQ42:QBP42) ->  | PZR48: =IRRm(PZQ42:QBP42) -> 1.1 | PZU48: =IRR(PZU42:QBT42) ->  | PZV48: =IRRm(PZU42:QBT42) -> 1.1 | PZY48: =IRR(PZY42:QBX42) ->  | PZZ48: =IRRm(PZY42:QBX42) -> 1.1 | QAC48: =IRR(QAC42:QCB42) ->  | QAD48: =IRRm(QAC42:QCB42) -> 1.1 | QAG48: =IRR(QAG42:QCF42) ->  | QAH48: =IRRm(QAG42:QCF42) -> 1.1 | QAK48: =IRR(QAK42:QCJ42) ->  | QAL48: =IRRm(QAK42:QCJ42) -> 1.1 | QAO48: =IRR(QAO42:QCN42) ->  | QAP48: =IRRm(QAO42:QCN42) -> 1.1 | QAS48: =IRR(QAS42:QCR42) ->  | QAT48: =IRRm(QAS42:QCR42) -> 1.1 | QAW48: =IRR(QAW42:QCV42) ->  | QAX48: =IRRm(QAW42:QCV42) -> 1.1 | QBA48: =IRR(QBA42:QCZ42) ->  | QBB48: =IRRm(QBA42:QCZ42) -> 1.1 | QBE48: =IRR(QBE42:QDD42) ->  | QBF48: =IRRm(QBE42:QDD42) -> 1.1 | QBI48: =IRR(QBI42:QDH42) ->  | QBJ48: =IRRm(QBI42:QDH42) -> 1.1 | QBM48: =IRR(QBM42:QDL42) ->  | QBN48: =IRRm(QBM42:QDL42) -> 1.1 | QBQ48: =IRR(QBQ42:QDP42) ->  | QBR48: =IRRm(QBQ42:QDP42) -> 1.1 | QBU48: =IRR(QBU42:QDT42) ->  | QBV48: =IRRm(QBU42:QDT42) -> 1.1 | QBY48: =IRR(QBY42:QDX42) ->  | QBZ48: =IRRm(QBY42:QDX42) -> 1.1 | QCC48: =IRR(QCC42:QEB42) ->  | QCD48: =IRRm(QCC42:QEB42) -> 1.1 | QCG48: =IRR(QCG42:QEF42) ->  | QCH48: =IRRm(QCG42:QEF42) -> 1.1 | QCK48: =IRR(QCK42:QEJ42) ->  | QCL48: =IRRm(QCK42:QEJ42) -> 1.1 | QCO48: =IRR(QCO42:QEN42) ->  | QCP48: =IRRm(QCO42:QEN42) -> 1.1 | QCS48: =IRR(QCS42:QER42) ->  | QCT48: =IRRm(QCS42:QER42) -> 1.1 | QCW48: =IRR(QCW42:QEV42) ->  | QCX48: =IRRm(QCW42:QEV42) -> 1.1 | QDA48: =IRR(QDA42:QEZ42) ->  | QDB48: =IRRm(QDA42:QEZ42) -> 1.1 | QDE48: =IRR(QDE42:QFD42) ->  | QDF48: =IRRm(QDE42:QFD42) -> 1.1 | QDI48: =IRR(QDI42:QFH42) ->  | QDJ48: =IRRm(QDI42:QFH42) -> 1.1 | QDM48: =IRR(QDM42:QFL42) ->  | QDN48: =IRRm(QDM42:QFL42) -> 1.1 | QDQ48: =IRR(QDQ42:QFP42) ->  | QDR48: =IRRm(QDQ42:QFP42) -> 1.1 | QDU48: =IRR(QDU42:QFT42) ->  | QDV48: =IRRm(QDU42:QFT42) -> 1.1 | QDY48: =IRR(QDY42:QFX42) ->  | QDZ48: =IRRm(QDY42:QFX42) -> 1.1 | QEC48: =IRR(QEC42:QGB42) ->  | QED48: =IRRm(QEC42:QGB42) -> 1.1 | QEG48: =IRR(QEG42:QGF42) ->  | QEH48: =IRRm(QEG42:QGF42) -> 1.1 | QEK48: =IRR(QEK42:QGJ42) ->  | QEL48: =IRRm(QEK42:QGJ42) -> 1.1 | QEO48: =IRR(QEO42:QGN42) ->  | QEP48: =IRRm(QEO42:QGN42) -> 1.1 | QES48: =IRR(QES42:QGR42) ->  | QET48: =IRRm(QES42:QGR42) -> 1.1 | QEW48: =IRR(QEW42:QGV42) ->  | QEX48: =IRRm(QEW42:QGV42) -> 1.1 | QFA48: =IRR(QFA42:QGZ42) ->  | QFB48: =IRRm(QFA42:QGZ42) -> 1.1 | QFE48: =IRR(QFE42:QHD42) ->  | QFF48: =IRRm(QFE42:QHD42) -> 1.1 | QFI48: =IRR(QFI42:QHH42) ->  | QFJ48: =IRRm(QFI42:QHH42) -> 1.1 | QFM48: =IRR(QFM42:QHL42) ->  | QFN48: =IRRm(QFM42:QHL42) -> 1.1 | QFQ48: =IRR(QFQ42:QHP42) ->  | QFR48: =IRRm(QFQ42:QHP42) -> 1.1 | QFU48: =IRR(QFU42:QHT42) ->  | QFV48: =IRRm(QFU42:QHT42) -> 1.1 | QFY48: =IRR(QFY42:QHX42) ->  | QFZ48: =IRRm(QFY42:QHX42) -> 1.1 | QGC48: =IRR(QGC42:QIB42) ->  | QGD48: =IRRm(QGC42:QIB42) -> 1.1 | QGG48: =IRR(QGG42:QIF42) ->  | QGH48: =IRRm(QGG42:QIF42) -> 1.1 | QGK48: =IRR(QGK42:QIJ42) ->  | QGL48: =IRRm(QGK42:QIJ42) -> 1.1 | QGO48: =IRR(QGO42:QIN42) ->  | QGP48: =IRRm(QGO42:QIN42) -> 1.1 | QGS48: =IRR(QGS42:QIR42) ->  | QGT48: =IRRm(QGS42:QIR42) -> 1.1 | QGW48: =IRR(QGW42:QIV42) ->  | QGX48: =IRRm(QGW42:QIV42) -> 1.1 | QHA48: =IRR(QHA42:QIZ42) ->  | QHB48: =IRRm(QHA42:QIZ42) -> 1.1 | QHE48: =IRR(QHE42:QJD42) ->  | QHF48: =IRRm(QHE42:QJD42) -> 1.1 | QHI48: =IRR(QHI42:QJH42) ->  | QHJ48: =IRRm(QHI42:QJH42) -> 1.1 | QHM48: =IRR(QHM42:QJL42) ->  | QHN48: =IRRm(QHM42:QJL42) -> 1.1 | QHQ48: =IRR(QHQ42:QJP42) ->  | QHR48: =IRRm(QHQ42:QJP42) -> 1.1 | QHU48: =IRR(QHU42:QJT42) ->  | QHV48: =IRRm(QHU42:QJT42) -> 1.1 | QHY48: =IRR(QHY42:QJX42) ->  | QHZ48: =IRRm(QHY42:QJX42) -> 1.1 | QIC48: =IRR(QIC42:QKB42) ->  | QID48: =IRRm(QIC42:QKB42) -> 1.1 | QIG48: =IRR(QIG42:QKF42) ->  | QIH48: =IRRm(QIG42:QKF42) -> 1.1 | QIK48: =IRR(QIK42:QKJ42) ->  | QIL48: =IRRm(QIK42:QKJ42) -> 1.1 | QIO48: =IRR(QIO42:QKN42) ->  | QIP48: =IRRm(QIO42:QKN42) -> 1.1 | QIS48: =IRR(QIS42:QKR42) ->  | QIT48: =IRRm(QIS42:QKR42) -> 1.1 | QIW48: =IRR(QIW42:QKV42) ->  | QIX48: =IRRm(QIW42:QKV42) -> 1.1 | QJA48: =IRR(QJA42:QKZ42) ->  | QJB48: =IRRm(QJA42:QKZ42) -> 1.1 | QJE48: =IRR(QJE42:QLD42) ->  | QJF48: =IRRm(QJE42:QLD42) -> 1.1 | QJI48: =IRR(QJI42:QLH42) ->  | QJJ48: =IRRm(QJI42:QLH42) -> 1.1 | QJM48: =IRR(QJM42:QLL42) ->  | QJN48: =IRRm(QJM42:QLL42) -> 1.1 | QJQ48: =IRR(QJQ42:QLP42) ->  | QJR48: =IRRm(QJQ42:QLP42) -> 1.1 | QJU48: =IRR(QJU42:QLT42) ->  | QJV48: =IRRm(QJU42:QLT42) -> 1.1 | QJY48: =IRR(QJY42:QLX42) ->  | QJZ48: =IRRm(QJY42:QLX42) -> 1.1 | QKC48: =IRR(QKC42:QMB42) ->  | QKD48: =IRRm(QKC42:QMB42) -> 1.1 | QKG48: =IRR(QKG42:QMF42) ->  | QKH48: =IRRm(QKG42:QMF42) -> 1.1 | QKK48: =IRR(QKK42:QMJ42) ->  | QKL48: =IRRm(QKK42:QMJ42) -> 1.1 | QKO48: =IRR(QKO42:QMN42) ->  | QKP48: =IRRm(QKO42:QMN42) -> 1.1 | QKS48: =IRR(QKS42:QMR42) ->  | QKT48: =IRRm(QKS42:QMR42) -> 1.1 | QKW48: =IRR(QKW42:QMV42) ->  | QKX48: =IRRm(QKW42:QMV42) -> 1.1 | QLA48: =IRR(QLA42:QMZ42) ->  | QLB48: =IRRm(QLA42:QMZ42) -> 1.1 | QLE48: =IRR(QLE42:QND42) ->  | QLF48: =IRRm(QLE42:QND42) -> 1.1 | QLI48: =IRR(QLI42:QNH42) ->  | QLJ48: =IRRm(QLI42:QNH42) -> 1.1 | QLM48: =IRR(QLM42:QNL42) ->  | QLN48: =IRRm(QLM42:QNL42) -> 1.1 | QLQ48: =IRR(QLQ42:QNP42) ->  | QLR48: =IRRm(QLQ42:QNP42) -> 1.1 | QLU48: =IRR(QLU42:QNT42) ->  | QLV48: =IRRm(QLU42:QNT42) -> 1.1 | QLY48: =IRR(QLY42:QNX42) ->  | QLZ48: =IRRm(QLY42:QNX42) -> 1.1 | QMC48: =IRR(QMC42:QOB42) ->  | QMD48: =IRRm(QMC42:QOB42) -> 1.1 | QMG48: =IRR(QMG42:QOF42) ->  | QMH48: =IRRm(QMG42:QOF42) -> 1.1 | QMK48: =IRR(QMK42:QOJ42) ->  | QML48: =IRRm(QMK42:QOJ42) -> 1.1 | QMO48: =IRR(QMO42:QON42) ->  | QMP48: =IRRm(QMO42:QON42) -> 1.1 | QMS48: =IRR(QMS42:QOR42) ->  | QMT48: =IRRm(QMS42:QOR42) -> 1.1 | QMW48: =IRR(QMW42:QOV42) ->  | QMX48: =IRRm(QMW42:QOV42) -> 1.1 | QNA48: =IRR(QNA42:QOZ42) ->  | QNB48: =IRRm(QNA42:QOZ42) -> 1.1 | QNE48: =IRR(QNE42:QPD42) ->  | QNF48: =IRRm(QNE42:QPD42) -> 1.1 | QNI48: =IRR(QNI42:QPH42) ->  | QNJ48: =IRRm(QNI42:QPH42) -> 1.1 | QNM48: =IRR(QNM42:QPL42) ->  | QNN48: =IRRm(QNM42:QPL42) -> 1.1 | QNQ48: =IRR(QNQ42:QPP42) ->  | QNR48: =IRRm(QNQ42:QPP42) -> 1.1 | QNU48: =IRR(QNU42:QPT42) ->  | QNV48: =IRRm(QNU42:QPT42) -> 1.1 | QNY48: =IRR(QNY42:QPX42) ->  | QNZ48: =IRRm(QNY42:QPX42) -> 1.1 | QOC48: =IRR(QOC42:QQB42) ->  | QOD48: =IRRm(QOC42:QQB42) -> 1.1 | QOG48: =IRR(QOG42:QQF42) ->  | QOH48: =IRRm(QOG42:QQF42) -> 1.1 | QOK48: =IRR(QOK42:QQJ42) ->  | QOL48: =IRRm(QOK42:QQJ42) -> 1.1 | QOO48: =IRR(QOO42:QQN42) ->  | QOP48: =IRRm(QOO42:QQN42) -> 1.1 | QOS48: =IRR(QOS42:QQR42) ->  | QOT48: =IRRm(QOS42:QQR42) -> 1.1 | QOW48: =IRR(QOW42:QQV42) ->  | QOX48: =IRRm(QOW42:QQV42) -> 1.1 | QPA48: =IRR(QPA42:QQZ42) ->  | QPB48: =IRRm(QPA42:QQZ42) -> 1.1 | QPE48: =IRR(QPE42:QRD42) ->  | QPF48: =IRRm(QPE42:QRD42) -> 1.1 | QPI48: =IRR(QPI42:QRH42) ->  | QPJ48: =IRRm(QPI42:QRH42) -> 1.1 | QPM48: =IRR(QPM42:QRL42) ->  | QPN48: =IRRm(QPM42:QRL42) -> 1.1 | QPQ48: =IRR(QPQ42:QRP42) ->  | QPR48: =IRRm(QPQ42:QRP42) -> 1.1 | QPU48: =IRR(QPU42:QRT42) ->  | QPV48: =IRRm(QPU42:QRT42) -> 1.1 | QPY48: =IRR(QPY42:QRX42) ->  | QPZ48: =IRRm(QPY42:QRX42) -> 1.1 | QQC48: =IRR(QQC42:QSB42) ->  | QQD48: =IRRm(QQC42:QSB42) -> 1.1 | QQG48: =IRR(QQG42:QSF42) ->  | QQH48: =IRRm(QQG42:QSF42) -> 1.1 | QQK48: =IRR(QQK42:QSJ42) ->  | QQL48: =IRRm(QQK42:QSJ42) -> 1.1 | QQO48: =IRR(QQO42:QSN42) ->  | QQP48: =IRRm(QQO42:QSN42) -> 1.1 | QQS48: =IRR(QQS42:QSR42) ->  | QQT48: =IRRm(QQS42:QSR42) -> 1.1 | QQW48: =IRR(QQW42:QSV42) ->  | QQX48: =IRRm(QQW42:QSV42) -> 1.1 | QRA48: =IRR(QRA42:QSZ42) ->  | QRB48: =IRRm(QRA42:QSZ42) -> 1.1 | QRE48: =IRR(QRE42:QTD42) ->  | QRF48: =IRRm(QRE42:QTD42) -> 1.1 | QRI48: =IRR(QRI42:QTH42) ->  | QRJ48: =IRRm(QRI42:QTH42) -> 1.1 | QRM48: =IRR(QRM42:QTL42) ->  | QRN48: =IRRm(QRM42:QTL42) -> 1.1 | QRQ48: =IRR(QRQ42:QTP42) ->  | QRR48: =IRRm(QRQ42:QTP42) -> 1.1 | QRU48: =IRR(QRU42:QTT42) ->  | QRV48: =IRRm(QRU42:QTT42) -> 1.1 | QRY48: =IRR(QRY42:QTX42) ->  | QRZ48: =IRRm(QRY42:QTX42) -> 1.1 | QSC48: =IRR(QSC42:QUB42) ->  | QSD48: =IRRm(QSC42:QUB42) -> 1.1 | QSG48: =IRR(QSG42:QUF42) ->  | QSH48: =IRRm(QSG42:QUF42) -> 1.1 | QSK48: =IRR(QSK42:QUJ42) ->  | QSL48: =IRRm(QSK42:QUJ42) -> 1.1 | QSO48: =IRR(QSO42:QUN42) ->  | QSP48: =IRRm(QSO42:QUN42) -> 1.1 | QSS48: =IRR(QSS42:QUR42) ->  | QST48: =IRRm(QSS42:QUR42) -> 1.1 | QSW48: =IRR(QSW42:QUV42) ->  | QSX48: =IRRm(QSW42:QUV42) -> 1.1 | QTA48: =IRR(QTA42:QUZ42) ->  | QTB48: =IRRm(QTA42:QUZ42) -> 1.1 | QTE48: =IRR(QTE42:QVD42) ->  | QTF48: =IRRm(QTE42:QVD42) -> 1.1 | QTI48: =IRR(QTI42:QVH42) ->  | QTJ48: =IRRm(QTI42:QVH42) -> 1.1 | QTM48: =IRR(QTM42:QVL42) ->  | QTN48: =IRRm(QTM42:QVL42) -> 1.1 | QTQ48: =IRR(QTQ42:QVP42) ->  | QTR48: =IRRm(QTQ42:QVP42) -> 1.1 | QTU48: =IRR(QTU42:QVT42) ->  | QTV48: =IRRm(QTU42:QVT42) -> 1.1 | QTY48: =IRR(QTY42:QVX42) ->  | QTZ48: =IRRm(QTY42:QVX42) -> 1.1 | QUC48: =IRR(QUC42:QWB42) ->  | QUD48: =IRRm(QUC42:QWB42) -> 1.1 | QUG48: =IRR(QUG42:QWF42) ->  | QUH48: =IRRm(QUG42:QWF42) -> 1.1 | QUK48: =IRR(QUK42:QWJ42) ->  | QUL48: =IRRm(QUK42:QWJ42) -> 1.1 | QUO48: =IRR(QUO42:QWN42) ->  | QUP48: =IRRm(QUO42:QWN42) -> 1.1 | QUS48: =IRR(QUS42:QWR42) ->  | QUT48: =IRRm(QUS42:QWR42) -> 1.1 | QUW48: =IRR(QUW42:QWV42) ->  | QUX48: =IRRm(QUW42:QWV42) -> 1.1 | QVA48: =IRR(QVA42:QWZ42) ->  | QVB48: =IRRm(QVA42:QWZ42) -> 1.1 | QVE48: =IRR(QVE42:QXD42) ->  | QVF48: =IRRm(QVE42:QXD42) -> 1.1 | QVI48: =IRR(QVI42:QXH42) ->  | QVJ48: =IRRm(QVI42:QXH42) -> 1.1 | QVM48: =IRR(QVM42:QXL42) ->  | QVN48: =IRRm(QVM42:QXL42) -> 1.1 | QVQ48: =IRR(QVQ42:QXP42) ->  | QVR48: =IRRm(QVQ42:QXP42) -> 1.1 | QVU48: =IRR(QVU42:QXT42) ->  | QVV48: =IRRm(QVU42:QXT42) -> 1.1 | QVY48: =IRR(QVY42:QXX42) ->  | QVZ48: =IRRm(QVY42:QXX42) -> 1.1 | QWC48: =IRR(QWC42:QYB42) ->  | QWD48: =IRRm(QWC42:QYB42) -> 1.1 | QWG48: =IRR(QWG42:QYF42) ->  | QWH48: =IRRm(QWG42:QYF42) -> 1.1 | QWK48: =IRR(QWK42:QYJ42) ->  | QWL48: =IRRm(QWK42:QYJ42) -> 1.1 | QWO48: =IRR(QWO42:QYN42) ->  | QWP48: =IRRm(QWO42:QYN42) -> 1.1 | QWS48: =IRR(QWS42:QYR42) ->  | QWT48: =IRRm(QWS42:QYR42) -> 1.1 | QWW48: =IRR(QWW42:QYV42) ->  | QWX48: =IRRm(QWW42:QYV42) -> 1.1 | QXA48: =IRR(QXA42:QYZ42) ->  | QXB48: =IRRm(QXA42:QYZ42) -> 1.1 | QXE48: =IRR(QXE42:QZD42) ->  | QXF48: =IRRm(QXE42:QZD42) -> 1.1 | QXI48: =IRR(QXI42:QZH42) ->  | QXJ48: =IRRm(QXI42:QZH42) -> 1.1 | QXM48: =IRR(QXM42:QZL42) ->  | QXN48: =IRRm(QXM42:QZL42) -> 1.1 | QXQ48: =IRR(QXQ42:QZP42) ->  | QXR48: =IRRm(QXQ42:QZP42) -> 1.1 | QXU48: =IRR(QXU42:QZT42) ->  | QXV48: =IRRm(QXU42:QZT42) -> 1.1 | QXY48: =IRR(QXY42:QZX42) ->  | QXZ48: =IRRm(QXY42:QZX42) -> 1.1 | QYC48: =IRR(QYC42:RAB42) ->  | QYD48: =IRRm(QYC42:RAB42) -> 1.1 | QYG48: =IRR(QYG42:RAF42) ->  | QYH48: =IRRm(QYG42:RAF42) -> 1.1 | QYK48: =IRR(QYK42:RAJ42) ->  | QYL48: =IRRm(QYK42:RAJ42) -> 1.1 | QYO48: =IRR(QYO42:RAN42) ->  | QYP48: =IRRm(QYO42:RAN42) -> 1.1 | QYS48: =IRR(QYS42:RAR42) ->  | QYT48: =IRRm(QYS42:RAR42) -> 1.1 | QYW48: =IRR(QYW42:RAV42) ->  | QYX48: =IRRm(QYW42:RAV42) -> 1.1 | QZA48: =IRR(QZA42:RAZ42) ->  | QZB48: =IRRm(QZA42:RAZ42) -> 1.1 | QZE48: =IRR(QZE42:RBD42) ->  | QZF48: =IRRm(QZE42:RBD42) -> 1.1 | QZI48: =IRR(QZI42:RBH42) ->  | QZJ48: =IRRm(QZI42:RBH42) -> 1.1 | QZM48: =IRR(QZM42:RBL42) ->  | QZN48: =IRRm(QZM42:RBL42) -> 1.1 | QZQ48: =IRR(QZQ42:RBP42) ->  | QZR48: =IRRm(QZQ42:RBP42) -> 1.1 | QZU48: =IRR(QZU42:RBT42) ->  | QZV48: =IRRm(QZU42:RBT42) -> 1.1 | QZY48: =IRR(QZY42:RBX42) ->  | QZZ48: =IRRm(QZY42:RBX42) -> 1.1 | RAC48: =IRR(RAC42:RCB42) ->  | RAD48: =IRRm(RAC42:RCB42) -> 1.1 | RAG48: =IRR(RAG42:RCF42) ->  | RAH48: =IRRm(RAG42:RCF42) -> 1.1 | RAK48: =IRR(RAK42:RCJ42) ->  | RAL48: =IRRm(RAK42:RCJ42) -> 1.1 | RAO48: =IRR(RAO42:RCN42) ->  | RAP48: =IRRm(RAO42:RCN42) -> 1.1 | RAS48: =IRR(RAS42:RCR42) ->  | RAT48: =IRRm(RAS42:RCR42) -> 1.1 | RAW48: =IRR(RAW42:RCV42) ->  | RAX48: =IRRm(RAW42:RCV42) -> 1.1 | RBA48: =IRR(RBA42:RCZ42) ->  | RBB48: =IRRm(RBA42:RCZ42) -> 1.1 | RBE48: =IRR(RBE42:RDD42) ->  | RBF48: =IRRm(RBE42:RDD42) -> 1.1 | RBI48: =IRR(RBI42:RDH42) ->  | RBJ48: =IRRm(RBI42:RDH42) -> 1.1 | RBM48: =IRR(RBM42:RDL42) ->  | RBN48: =IRRm(RBM42:RDL42) -> 1.1 | RBQ48: =IRR(RBQ42:RDP42) ->  | RBR48: =IRRm(RBQ42:RDP42) -> 1.1 | RBU48: =IRR(RBU42:RDT42) ->  | RBV48: =IRRm(RBU42:RDT42) -> 1.1 | RBY48: =IRR(RBY42:RDX42) ->  | RBZ48: =IRRm(RBY42:RDX42) -> 1.1 | RCC48: =IRR(RCC42:REB42) ->  | RCD48: =IRRm(RCC42:REB42) -> 1.1 | RCG48: =IRR(RCG42:REF42) ->  | RCH48: =IRRm(RCG42:REF42) -> 1.1 | RCK48: =IRR(RCK42:REJ42) ->  | RCL48: =IRRm(RCK42:REJ42) -> 1.1 | RCO48: =IRR(RCO42:REN42) ->  | RCP48: =IRRm(RCO42:REN42) -> 1.1 | RCS48: =IRR(RCS42:RER42) ->  | RCT48: =IRRm(RCS42:RER42) -> 1.1 | RCW48: =IRR(RCW42:REV42) ->  | RCX48: =IRRm(RCW42:REV42) -> 1.1 | RDA48: =IRR(RDA42:REZ42) ->  | RDB48: =IRRm(RDA42:REZ42) -> 1.1 | RDE48: =IRR(RDE42:RFD42) ->  | RDF48: =IRRm(RDE42:RFD42) -> 1.1 | RDI48: =IRR(RDI42:RFH42) ->  | RDJ48: =IRRm(RDI42:RFH42) -> 1.1 | RDM48: =IRR(RDM42:RFL42) ->  | RDN48: =IRRm(RDM42:RFL42) -> 1.1 | RDQ48: =IRR(RDQ42:RFP42) ->  | RDR48: =IRRm(RDQ42:RFP42) -> 1.1 | RDU48: =IRR(RDU42:RFT42) ->  | RDV48: =IRRm(RDU42:RFT42) -> 1.1 | RDY48: =IRR(RDY42:RFX42) ->  | RDZ48: =IRRm(RDY42:RFX42) -> 1.1 | REC48: =IRR(REC42:RGB42) ->  | RED48: =IRRm(REC42:RGB42) -> 1.1 | REG48: =IRR(REG42:RGF42) ->  | REH48: =IRRm(REG42:RGF42) -> 1.1 | REK48: =IRR(REK42:RGJ42) ->  | REL48: =IRRm(REK42:RGJ42) -> 1.1 | REO48: =IRR(REO42:RGN42) ->  | REP48: =IRRm(REO42:RGN42) -> 1.1 | RES48: =IRR(RES42:RGR42) ->  | RET48: =IRRm(RES42:RGR42) -> 1.1 | REW48: =IRR(REW42:RGV42) ->  | REX48: =IRRm(REW42:RGV42) -> 1.1 | RFA48: =IRR(RFA42:RGZ42) ->  | RFB48: =IRRm(RFA42:RGZ42) -> 1.1 | RFE48: =IRR(RFE42:RHD42) ->  | RFF48: =IRRm(RFE42:RHD42) -> 1.1 | RFI48: =IRR(RFI42:RHH42) ->  | RFJ48: =IRRm(RFI42:RHH42) -> 1.1 | RFM48: =IRR(RFM42:RHL42) ->  | RFN48: =IRRm(RFM42:RHL42) -> 1.1 | RFQ48: =IRR(RFQ42:RHP42) ->  | RFR48: =IRRm(RFQ42:RHP42) -> 1.1 | RFU48: =IRR(RFU42:RHT42) ->  | RFV48: =IRRm(RFU42:RHT42) -> 1.1 | RFY48: =IRR(RFY42:RHX42) ->  | RFZ48: =IRRm(RFY42:RHX42) -> 1.1 | RGC48: =IRR(RGC42:RIB42) ->  | RGD48: =IRRm(RGC42:RIB42) -> 1.1 | RGG48: =IRR(RGG42:RIF42) ->  | RGH48: =IRRm(RGG42:RIF42) -> 1.1 | RGK48: =IRR(RGK42:RIJ42) ->  | RGL48: =IRRm(RGK42:RIJ42) -> 1.1 | RGO48: =IRR(RGO42:RIN42) ->  | RGP48: =IRRm(RGO42:RIN42) -> 1.1 | RGS48: =IRR(RGS42:RIR42) ->  | RGT48: =IRRm(RGS42:RIR42) -> 1.1 | RGW48: =IRR(RGW42:RIV42) ->  | RGX48: =IRRm(RGW42:RIV42) -> 1.1 | RHA48: =IRR(RHA42:RIZ42) ->  | RHB48: =IRRm(RHA42:RIZ42) -> 1.1 | RHE48: =IRR(RHE42:RJD42) ->  | RHF48: =IRRm(RHE42:RJD42) -> 1.1 | RHI48: =IRR(RHI42:RJH42) ->  | RHJ48: =IRRm(RHI42:RJH42) -> 1.1 | RHM48: =IRR(RHM42:RJL42) ->  | RHN48: =IRRm(RHM42:RJL42) -> 1.1 | RHQ48: =IRR(RHQ42:RJP42) ->  | RHR48: =IRRm(RHQ42:RJP42) -> 1.1 | RHU48: =IRR(RHU42:RJT42) ->  | RHV48: =IRRm(RHU42:RJT42) -> 1.1 | RHY48: =IRR(RHY42:RJX42) ->  | RHZ48: =IRRm(RHY42:RJX42) -> 1.1 | RIC48: =IRR(RIC42:RKB42) ->  | RID48: =IRRm(RIC42:RKB42) -> 1.1 | RIG48: =IRR(RIG42:RKF42) ->  | RIH48: =IRRm(RIG42:RKF42) -> 1.1 | RIK48: =IRR(RIK42:RKJ42) ->  | RIL48: =IRRm(RIK42:RKJ42) -> 1.1 | RIO48: =IRR(RIO42:RKN42) ->  | RIP48: =IRRm(RIO42:RKN42) -> 1.1 | RIS48: =IRR(RIS42:RKR42) ->  | RIT48: =IRRm(RIS42:RKR42) -> 1.1 | RIW48: =IRR(RIW42:RKV42) ->  | RIX48: =IRRm(RIW42:RKV42) -> 1.1 | RJA48: =IRR(RJA42:RKZ42) ->  | RJB48: =IRRm(RJA42:RKZ42) -> 1.1 | RJE48: =IRR(RJE42:RLD42) ->  | RJF48: =IRRm(RJE42:RLD42) -> 1.1 | RJI48: =IRR(RJI42:RLH42) ->  | RJJ48: =IRRm(RJI42:RLH42) -> 1.1 | RJM48: =IRR(RJM42:RLL42) ->  | RJN48: =IRRm(RJM42:RLL42) -> 1.1 | RJQ48: =IRR(RJQ42:RLP42) ->  | RJR48: =IRRm(RJQ42:RLP42) -> 1.1 | RJU48: =IRR(RJU42:RLT42) ->  | RJV48: =IRRm(RJU42:RLT42) -> 1.1 | RJY48: =IRR(RJY42:RLX42) ->  | RJZ48: =IRRm(RJY42:RLX42) -> 1.1 | RKC48: =IRR(RKC42:RMB42) ->  | RKD48: =IRRm(RKC42:RMB42) -> 1.1 | RKG48: =IRR(RKG42:RMF42) ->  | RKH48: =IRRm(RKG42:RMF42) -> 1.1 | RKK48: =IRR(RKK42:RMJ42) ->  | RKL48: =IRRm(RKK42:RMJ42) -> 1.1 | RKO48: =IRR(RKO42:RMN42) ->  | RKP48: =IRRm(RKO42:RMN42) -> 1.1 | RKS48: =IRR(RKS42:RMR42) ->  | RKT48: =IRRm(RKS42:RMR42) -> 1.1 | RKW48: =IRR(RKW42:RMV42) ->  | RKX48: =IRRm(RKW42:RMV42) -> 1.1 | RLA48: =IRR(RLA42:RMZ42) ->  | RLB48: =IRRm(RLA42:RMZ42) -> 1.1 | RLE48: =IRR(RLE42:RND42) ->  | RLF48: =IRRm(RLE42:RND42) -> 1.1 | RLI48: =IRR(RLI42:RNH42) ->  | RLJ48: =IRRm(RLI42:RNH42) -> 1.1 | RLM48: =IRR(RLM42:RNL42) ->  | RLN48: =IRRm(RLM42:RNL42) -> 1.1 | RLQ48: =IRR(RLQ42:RNP42) ->  | RLR48: =IRRm(RLQ42:RNP42) -> 1.1 | RLU48: =IRR(RLU42:RNT42) ->  | RLV48: =IRRm(RLU42:RNT42) -> 1.1 | RLY48: =IRR(RLY42:RNX42) ->  | RLZ48: =IRRm(RLY42:RNX42) -> 1.1 | RMC48: =IRR(RMC42:ROB42) ->  | RMD48: =IRRm(RMC42:ROB42) -> 1.1 | RMG48: =IRR(RMG42:ROF42) ->  | RMH48: =IRRm(RMG42:ROF42) -> 1.1 | RMK48: =IRR(RMK42:ROJ42) ->  | RML48: =IRRm(RMK42:ROJ42) -> 1.1 | RMO48: =IRR(RMO42:RON42) ->  | RMP48: =IRRm(RMO42:RON42) -> 1.1 | RMS48: =IRR(RMS42:ROR42) ->  | RMT48: =IRRm(RMS42:ROR42) -> 1.1 | RMW48: =IRR(RMW42:ROV42) ->  | RMX48: =IRRm(RMW42:ROV42) -> 1.1 | RNA48: =IRR(RNA42:ROZ42) ->  | RNB48: =IRRm(RNA42:ROZ42) -> 1.1 | RNE48: =IRR(RNE42:RPD42) ->  | RNF48: =IRRm(RNE42:RPD42) -> 1.1 | RNI48: =IRR(RNI42:RPH42) ->  | RNJ48: =IRRm(RNI42:RPH42) -> 1.1 | RNM48: =IRR(RNM42:RPL42) ->  | RNN48: =IRRm(RNM42:RPL42) -> 1.1 | RNQ48: =IRR(RNQ42:RPP42) ->  | RNR48: =IRRm(RNQ42:RPP42) -> 1.1 | RNU48: =IRR(RNU42:RPT42) ->  | RNV48: =IRRm(RNU42:RPT42) -> 1.1 | RNY48: =IRR(RNY42:RPX42) ->  | RNZ48: =IRRm(RNY42:RPX42) -> 1.1 | ROC48: =IRR(ROC42:RQB42) ->  | ROD48: =IRRm(ROC42:RQB42) -> 1.1 | ROG48: =IRR(ROG42:RQF42) ->  | ROH48: =IRRm(ROG42:RQF42) -> 1.1 | ROK48: =IRR(ROK42:RQJ42) ->  | ROL48: =IRRm(ROK42:RQJ42) -> 1.1 | ROO48: =IRR(ROO42:RQN42) ->  | ROP48: =IRRm(ROO42:RQN42) -> 1.1 | ROS48: =IRR(ROS42:RQR42) ->  | ROT48: =IRRm(ROS42:RQR42) -> 1.1 | ROW48: =IRR(ROW42:RQV42) ->  | ROX48: =IRRm(ROW42:RQV42) -> 1.1 | RPA48: =IRR(RPA42:RQZ42) ->  | RPB48: =IRRm(RPA42:RQZ42) -> 1.1 | RPE48: =IRR(RPE42:RRD42) ->  | RPF48: =IRRm(RPE42:RRD42) -> 1.1 | RPI48: =IRR(RPI42:RRH42) ->  | RPJ48: =IRRm(RPI42:RRH42) -> 1.1 | RPM48: =IRR(RPM42:RRL42) ->  | RPN48: =IRRm(RPM42:RRL42) -> 1.1 | RPQ48: =IRR(RPQ42:RRP42) ->  | RPR48: =IRRm(RPQ42:RRP42) -> 1.1 | RPU48: =IRR(RPU42:RRT42) ->  | RPV48: =IRRm(RPU42:RRT42) -> 1.1 | RPY48: =IRR(RPY42:RRX42) ->  | RPZ48: =IRRm(RPY42:RRX42) -> 1.1 | RQC48: =IRR(RQC42:RSB42) ->  | RQD48: =IRRm(RQC42:RSB42) -> 1.1 | RQG48: =IRR(RQG42:RSF42) ->  | RQH48: =IRRm(RQG42:RSF42) -> 1.1 | RQK48: =IRR(RQK42:RSJ42) ->  | RQL48: =IRRm(RQK42:RSJ42) -> 1.1 | RQO48: =IRR(RQO42:RSN42) ->  | RQP48: =IRRm(RQO42:RSN42) -> 1.1 | RQS48: =IRR(RQS42:RSR42) ->  | RQT48: =IRRm(RQS42:RSR42) -> 1.1 | RQW48: =IRR(RQW42:RSV42) ->  | RQX48: =IRRm(RQW42:RSV42) -> 1.1 | RRA48: =IRR(RRA42:RSZ42) ->  | RRB48: =IRRm(RRA42:RSZ42) -> 1.1 | RRE48: =IRR(RRE42:RTD42) ->  | RRF48: =IRRm(RRE42:RTD42) -> 1.1 | RRI48: =IRR(RRI42:RTH42) ->  | RRJ48: =IRRm(RRI42:RTH42) -> 1.1 | RRM48: =IRR(RRM42:RTL42) ->  | RRN48: =IRRm(RRM42:RTL42) -> 1.1 | RRQ48: =IRR(RRQ42:RTP42) ->  | RRR48: =IRRm(RRQ42:RTP42) -> 1.1 | RRU48: =IRR(RRU42:RTT42) ->  | RRV48: =IRRm(RRU42:RTT42) -> 1.1 | RRY48: =IRR(RRY42:RTX42) ->  | RRZ48: =IRRm(RRY42:RTX42) -> 1.1 | RSC48: =IRR(RSC42:RUB42) ->  | RSD48: =IRRm(RSC42:RUB42) -> 1.1 | RSG48: =IRR(RSG42:RUF42) ->  | RSH48: =IRRm(RSG42:RUF42) -> 1.1 | RSK48: =IRR(RSK42:RUJ42) ->  | RSL48: =IRRm(RSK42:RUJ42) -> 1.1 | RSO48: =IRR(RSO42:RUN42) ->  | RSP48: =IRRm(RSO42:RUN42) -> 1.1 | RSS48: =IRR(RSS42:RUR42) ->  | RST48: =IRRm(RSS42:RUR42) -> 1.1 | RSW48: =IRR(RSW42:RUV42) ->  | RSX48: =IRRm(RSW42:RUV42) -> 1.1 | RTA48: =IRR(RTA42:RUZ42) ->  | RTB48: =IRRm(RTA42:RUZ42) -> 1.1 | RTE48: =IRR(RTE42:RVD42) ->  | RTF48: =IRRm(RTE42:RVD42) -> 1.1 | RTI48: =IRR(RTI42:RVH42) ->  | RTJ48: =IRRm(RTI42:RVH42) -> 1.1 | RTM48: =IRR(RTM42:RVL42) ->  | RTN48: =IRRm(RTM42:RVL42) -> 1.1 | RTQ48: =IRR(RTQ42:RVP42) ->  | RTR48: =IRRm(RTQ42:RVP42) -> 1.1 | RTU48: =IRR(RTU42:RVT42) ->  | RTV48: =IRRm(RTU42:RVT42) -> 1.1 | RTY48: =IRR(RTY42:RVX42) ->  | RTZ48: =IRRm(RTY42:RVX42) -> 1.1 | RUC48: =IRR(RUC42:RWB42) ->  | RUD48: =IRRm(RUC42:RWB42) -> 1.1 | RUG48: =IRR(RUG42:RWF42) ->  | RUH48: =IRRm(RUG42:RWF42) -> 1.1 | RUK48: =IRR(RUK42:RWJ42) ->  | RUL48: =IRRm(RUK42:RWJ42) -> 1.1 | RUO48: =IRR(RUO42:RWN42) ->  | RUP48: =IRRm(RUO42:RWN42) -> 1.1 | RUS48: =IRR(RUS42:RWR42) ->  | RUT48: =IRRm(RUS42:RWR42) -> 1.1 | RUW48: =IRR(RUW42:RWV42) ->  | RUX48: =IRRm(RUW42:RWV42) -> 1.1 | RVA48: =IRR(RVA42:RWZ42) ->  | RVB48: =IRRm(RVA42:RWZ42) -> 1.1 | RVE48: =IRR(RVE42:RXD42) ->  | RVF48: =IRRm(RVE42:RXD42) -> 1.1 | RVI48: =IRR(RVI42:RXH42) ->  | RVJ48: =IRRm(RVI42:RXH42) -> 1.1 | RVM48: =IRR(RVM42:RXL42) ->  | RVN48: =IRRm(RVM42:RXL42) -> 1.1 | RVQ48: =IRR(RVQ42:RXP42) ->  | RVR48: =IRRm(RVQ42:RXP42) -> 1.1 | RVU48: =IRR(RVU42:RXT42) ->  | RVV48: =IRRm(RVU42:RXT42) -> 1.1 | RVY48: =IRR(RVY42:RXX42) ->  | RVZ48: =IRRm(RVY42:RXX42) -> 1.1 | RWC48: =IRR(RWC42:RYB42) ->  | RWD48: =IRRm(RWC42:RYB42) -> 1.1 | RWG48: =IRR(RWG42:RYF42) ->  | RWH48: =IRRm(RWG42:RYF42) -> 1.1 | RWK48: =IRR(RWK42:RYJ42) ->  | RWL48: =IRRm(RWK42:RYJ42) -> 1.1 | RWO48: =IRR(RWO42:RYN42) ->  | RWP48: =IRRm(RWO42:RYN42) -> 1.1 | RWS48: =IRR(RWS42:RYR42) ->  | RWT48: =IRRm(RWS42:RYR42) -> 1.1 | RWW48: =IRR(RWW42:RYV42) ->  | RWX48: =IRRm(RWW42:RYV42) -> 1.1 | RXA48: =IRR(RXA42:RYZ42) ->  | RXB48: =IRRm(RXA42:RYZ42) -> 1.1 | RXE48: =IRR(RXE42:RZD42) ->  | RXF48: =IRRm(RXE42:RZD42) -> 1.1 | RXI48: =IRR(RXI42:RZH42) ->  | RXJ48: =IRRm(RXI42:RZH42) -> 1.1 | RXM48: =IRR(RXM42:RZL42) ->  | RXN48: =IRRm(RXM42:RZL42) -> 1.1 | RXQ48: =IRR(RXQ42:RZP42) ->  | RXR48: =IRRm(RXQ42:RZP42) -> 1.1 | RXU48: =IRR(RXU42:RZT42) ->  | RXV48: =IRRm(RXU42:RZT42) -> 1.1 | RXY48: =IRR(RXY42:RZX42) ->  | RXZ48: =IRRm(RXY42:RZX42) -> 1.1 | RYC48: =IRR(RYC42:SAB42) ->  | RYD48: =IRRm(RYC42:SAB42) -> 1.1 | RYG48: =IRR(RYG42:SAF42) ->  | RYH48: =IRRm(RYG42:SAF42) -> 1.1 | RYK48: =IRR(RYK42:SAJ42) ->  | RYL48: =IRRm(RYK42:SAJ42) -> 1.1 | RYO48: =IRR(RYO42:SAN42) ->  | RYP48: =IRRm(RYO42:SAN42) -> 1.1 | RYS48: =IRR(RYS42:SAR42) ->  | RYT48: =IRRm(RYS42:SAR42) -> 1.1 | RYW48: =IRR(RYW42:SAV42) ->  | RYX48: =IRRm(RYW42:SAV42) -> 1.1 | RZA48: =IRR(RZA42:SAZ42) ->  | RZB48: =IRRm(RZA42:SAZ42) -> 1.1 | RZE48: =IRR(RZE42:SBD42) ->  | RZF48: =IRRm(RZE42:SBD42) -> 1.1 | RZI48: =IRR(RZI42:SBH42) ->  | RZJ48: =IRRm(RZI42:SBH42) -> 1.1 | RZM48: =IRR(RZM42:SBL42) ->  | RZN48: =IRRm(RZM42:SBL42) -> 1.1 | RZQ48: =IRR(RZQ42:SBP42) ->  | RZR48: =IRRm(RZQ42:SBP42) -> 1.1 | RZU48: =IRR(RZU42:SBT42) ->  | RZV48: =IRRm(RZU42:SBT42) -> 1.1 | RZY48: =IRR(RZY42:SBX42) ->  | RZZ48: =IRRm(RZY42:SBX42) -> 1.1 | SAC48: =IRR(SAC42:SCB42) ->  | SAD48: =IRRm(SAC42:SCB42) -> 1.1 | SAG48: =IRR(SAG42:SCF42) ->  | SAH48: =IRRm(SAG42:SCF42) -> 1.1 | SAK48: =IRR(SAK42:SCJ42) ->  | SAL48: =IRRm(SAK42:SCJ42) -> 1.1 | SAO48: =IRR(SAO42:SCN42) ->  | SAP48: =IRRm(SAO42:SCN42) -> 1.1 | SAS48: =IRR(SAS42:SCR42) ->  | SAT48: =IRRm(SAS42:SCR42) -> 1.1 | SAW48: =IRR(SAW42:SCV42) ->  | SAX48: =IRRm(SAW42:SCV42) -> 1.1 | SBA48: =IRR(SBA42:SCZ42) ->  | SBB48: =IRRm(SBA42:SCZ42) -> 1.1 | SBE48: =IRR(SBE42:SDD42) ->  | SBF48: =IRRm(SBE42:SDD42) -> 1.1 | SBI48: =IRR(SBI42:SDH42) ->  | SBJ48: =IRRm(SBI42:SDH42) -> 1.1 | SBM48: =IRR(SBM42:SDL42) ->  | SBN48: =IRRm(SBM42:SDL42) -> 1.1 | SBQ48: =IRR(SBQ42:SDP42) ->  | SBR48: =IRRm(SBQ42:SDP42) -> 1.1 | SBU48: =IRR(SBU42:SDT42) ->  | SBV48: =IRRm(SBU42:SDT42) -> 1.1 | SBY48: =IRR(SBY42:SDX42) ->  | SBZ48: =IRRm(SBY42:SDX42) -> 1.1 | SCC48: =IRR(SCC42:SEB42) ->  | SCD48: =IRRm(SCC42:SEB42) -> 1.1 | SCG48: =IRR(SCG42:SEF42) ->  | SCH48: =IRRm(SCG42:SEF42) -> 1.1 | SCK48: =IRR(SCK42:SEJ42) ->  | SCL48: =IRRm(SCK42:SEJ42) -> 1.1 | SCO48: =IRR(SCO42:SEN42) ->  | SCP48: =IRRm(SCO42:SEN42) -> 1.1 | SCS48: =IRR(SCS42:SER42) ->  | SCT48: =IRRm(SCS42:SER42) -> 1.1 | SCW48: =IRR(SCW42:SEV42) ->  | SCX48: =IRRm(SCW42:SEV42) -> 1.1 | SDA48: =IRR(SDA42:SEZ42) ->  | SDB48: =IRRm(SDA42:SEZ42) -> 1.1 | SDE48: =IRR(SDE42:SFD42) ->  | SDF48: =IRRm(SDE42:SFD42) -> 1.1 | SDI48: =IRR(SDI42:SFH42) ->  | SDJ48: =IRRm(SDI42:SFH42) -> 1.1 | SDM48: =IRR(SDM42:SFL42) ->  | SDN48: =IRRm(SDM42:SFL42) -> 1.1 | SDQ48: =IRR(SDQ42:SFP42) ->  | SDR48: =IRRm(SDQ42:SFP42) -> 1.1 | SDU48: =IRR(SDU42:SFT42) ->  | SDV48: =IRRm(SDU42:SFT42) -> 1.1 | SDY48: =IRR(SDY42:SFX42) ->  | SDZ48: =IRRm(SDY42:SFX42) -> 1.1 | SEC48: =IRR(SEC42:SGB42) ->  | SED48: =IRRm(SEC42:SGB42) -> 1.1 | SEG48: =IRR(SEG42:SGF42) ->  | SEH48: =IRRm(SEG42:SGF42) -> 1.1 | SEK48: =IRR(SEK42:SGJ42) ->  | SEL48: =IRRm(SEK42:SGJ42) -> 1.1 | SEO48: =IRR(SEO42:SGN42) ->  | SEP48: =IRRm(SEO42:SGN42) -> 1.1 | SES48: =IRR(SES42:SGR42) ->  | SET48: =IRRm(SES42:SGR42) -> 1.1 | SEW48: =IRR(SEW42:SGV42) ->  | SEX48: =IRRm(SEW42:SGV42) -> 1.1 | SFA48: =IRR(SFA42:SGZ42) ->  | SFB48: =IRRm(SFA42:SGZ42) -> 1.1 | SFE48: =IRR(SFE42:SHD42) ->  | SFF48: =IRRm(SFE42:SHD42) -> 1.1 | SFI48: =IRR(SFI42:SHH42) ->  | SFJ48: =IRRm(SFI42:SHH42) -> 1.1 | SFM48: =IRR(SFM42:SHL42) ->  | SFN48: =IRRm(SFM42:SHL42) -> 1.1 | SFQ48: =IRR(SFQ42:SHP42) ->  | SFR48: =IRRm(SFQ42:SHP42) -> 1.1 | SFU48: =IRR(SFU42:SHT42) ->  | SFV48: =IRRm(SFU42:SHT42) -> 1.1 | SFY48: =IRR(SFY42:SHX42) ->  | SFZ48: =IRRm(SFY42:SHX42) -> 1.1 | SGC48: =IRR(SGC42:SIB42) ->  | SGD48: =IRRm(SGC42:SIB42) -> 1.1 | SGG48: =IRR(SGG42:SIF42) ->  | SGH48: =IRRm(SGG42:SIF42) -> 1.1 | SGK48: =IRR(SGK42:SIJ42) ->  | SGL48: =IRRm(SGK42:SIJ42) -> 1.1 | SGO48: =IRR(SGO42:SIN42) ->  | SGP48: =IRRm(SGO42:SIN42) -> 1.1 | SGS48: =IRR(SGS42:SIR42) ->  | SGT48: =IRRm(SGS42:SIR42) -> 1.1 | SGW48: =IRR(SGW42:SIV42) ->  | SGX48: =IRRm(SGW42:SIV42) -> 1.1 | SHA48: =IRR(SHA42:SIZ42) ->  | SHB48: =IRRm(SHA42:SIZ42) -> 1.1 | SHE48: =IRR(SHE42:SJD42) ->  | SHF48: =IRRm(SHE42:SJD42) -> 1.1 | SHI48: =IRR(SHI42:SJH42) ->  | SHJ48: =IRRm(SHI42:SJH42) -> 1.1 | SHM48: =IRR(SHM42:SJL42) ->  | SHN48: =IRRm(SHM42:SJL42) -> 1.1 | SHQ48: =IRR(SHQ42:SJP42) ->  | SHR48: =IRRm(SHQ42:SJP42) -> 1.1 | SHU48: =IRR(SHU42:SJT42) ->  | SHV48: =IRRm(SHU42:SJT42) -> 1.1 | SHY48: =IRR(SHY42:SJX42) ->  | SHZ48: =IRRm(SHY42:SJX42) -> 1.1 | SIC48: =IRR(SIC42:SKB42) ->  | SID48: =IRRm(SIC42:SKB42) -> 1.1 | SIG48: =IRR(SIG42:SKF42) ->  | SIH48: =IRRm(SIG42:SKF42) -> 1.1 | SIK48: =IRR(SIK42:SKJ42) ->  | SIL48: =IRRm(SIK42:SKJ42) -> 1.1 | SIO48: =IRR(SIO42:SKN42) ->  | SIP48: =IRRm(SIO42:SKN42) -> 1.1 | SIS48: =IRR(SIS42:SKR42) ->  | SIT48: =IRRm(SIS42:SKR42) -> 1.1 | SIW48: =IRR(SIW42:SKV42) ->  | SIX48: =IRRm(SIW42:SKV42) -> 1.1 | SJA48: =IRR(SJA42:SKZ42) ->  | SJB48: =IRRm(SJA42:SKZ42) -> 1.1 | SJE48: =IRR(SJE42:SLD42) ->  | SJF48: =IRRm(SJE42:SLD42) -> 1.1 | SJI48: =IRR(SJI42:SLH42) ->  | SJJ48: =IRRm(SJI42:SLH42) -> 1.1 | SJM48: =IRR(SJM42:SLL42) ->  | SJN48: =IRRm(SJM42:SLL42) -> 1.1 | SJQ48: =IRR(SJQ42:SLP42) ->  | SJR48: =IRRm(SJQ42:SLP42) -> 1.1 | SJU48: =IRR(SJU42:SLT42) ->  | SJV48: =IRRm(SJU42:SLT42) -> 1.1 | SJY48: =IRR(SJY42:SLX42) ->  | SJZ48: =IRRm(SJY42:SLX42) -> 1.1 | SKC48: =IRR(SKC42:SMB42) ->  | SKD48: =IRRm(SKC42:SMB42) -> 1.1 | SKG48: =IRR(SKG42:SMF42) ->  | SKH48: =IRRm(SKG42:SMF42) -> 1.1 | SKK48: =IRR(SKK42:SMJ42) ->  | SKL48: =IRRm(SKK42:SMJ42) -> 1.1 | SKO48: =IRR(SKO42:SMN42) ->  | SKP48: =IRRm(SKO42:SMN42) -> 1.1 | SKS48: =IRR(SKS42:SMR42) ->  | SKT48: =IRRm(SKS42:SMR42) -> 1.1 | SKW48: =IRR(SKW42:SMV42) ->  | SKX48: =IRRm(SKW42:SMV42) -> 1.1 | SLA48: =IRR(SLA42:SMZ42) ->  | SLB48: =IRRm(SLA42:SMZ42) -> 1.1 | SLE48: =IRR(SLE42:SND42) ->  | SLF48: =IRRm(SLE42:SND42) -> 1.1 | SLI48: =IRR(SLI42:SNH42) ->  | SLJ48: =IRRm(SLI42:SNH42) -> 1.1 | SLM48: =IRR(SLM42:SNL42) ->  | SLN48: =IRRm(SLM42:SNL42) -> 1.1 | SLQ48: =IRR(SLQ42:SNP42) ->  | SLR48: =IRRm(SLQ42:SNP42) -> 1.1 | SLU48: =IRR(SLU42:SNT42) ->  | SLV48: =IRRm(SLU42:SNT42) -> 1.1 | SLY48: =IRR(SLY42:SNX42) ->  | SLZ48: =IRRm(SLY42:SNX42) -> 1.1 | SMC48: =IRR(SMC42:SOB42) ->  | SMD48: =IRRm(SMC42:SOB42) -> 1.1 | SMG48: =IRR(SMG42:SOF42) ->  | SMH48: =IRRm(SMG42:SOF42) -> 1.1 | SMK48: =IRR(SMK42:SOJ42) ->  | SML48: =IRRm(SMK42:SOJ42) -> 1.1 | SMO48: =IRR(SMO42:SON42) ->  | SMP48: =IRRm(SMO42:SON42) -> 1.1 | SMS48: =IRR(SMS42:SOR42) ->  | SMT48: =IRRm(SMS42:SOR42) -> 1.1 | SMW48: =IRR(SMW42:SOV42) ->  | SMX48: =IRRm(SMW42:SOV42) -> 1.1 | SNA48: =IRR(SNA42:SOZ42) ->  | SNB48: =IRRm(SNA42:SOZ42) -> 1.1 | SNE48: =IRR(SNE42:SPD42) ->  | SNF48: =IRRm(SNE42:SPD42) -> 1.1 | SNI48: =IRR(SNI42:SPH42) ->  | SNJ48: =IRRm(SNI42:SPH42) -> 1.1 | SNM48: =IRR(SNM42:SPL42) ->  | SNN48: =IRRm(SNM42:SPL42) -> 1.1 | SNQ48: =IRR(SNQ42:SPP42) ->  | SNR48: =IRRm(SNQ42:SPP42) -> 1.1 | SNU48: =IRR(SNU42:SPT42) ->  | SNV48: =IRRm(SNU42:SPT42) -> 1.1 | SNY48: =IRR(SNY42:SPX42) ->  | SNZ48: =IRRm(SNY42:SPX42) -> 1.1 | SOC48: =IRR(SOC42:SQB42) ->  | SOD48: =IRRm(SOC42:SQB42) -> 1.1 | SOG48: =IRR(SOG42:SQF42) ->  | SOH48: =IRRm(SOG42:SQF42) -> 1.1 | SOK48: =IRR(SOK42:SQJ42) ->  | SOL48: =IRRm(SOK42:SQJ42) -> 1.1 | SOO48: =IRR(SOO42:SQN42) ->  | SOP48: =IRRm(SOO42:SQN42) -> 1.1 | SOS48: =IRR(SOS42:SQR42) ->  | SOT48: =IRRm(SOS42:SQR42) -> 1.1 | SOW48: =IRR(SOW42:SQV42) ->  | SOX48: =IRRm(SOW42:SQV42) -> 1.1 | SPA48: =IRR(SPA42:SQZ42) ->  | SPB48: =IRRm(SPA42:SQZ42) -> 1.1 | SPE48: =IRR(SPE42:SRD42) ->  | SPF48: =IRRm(SPE42:SRD42) -> 1.1 | SPI48: =IRR(SPI42:SRH42) ->  | SPJ48: =IRRm(SPI42:SRH42) -> 1.1 | SPM48: =IRR(SPM42:SRL42) ->  | SPN48: =IRRm(SPM42:SRL42) -> 1.1 | SPQ48: =IRR(SPQ42:SRP42) ->  | SPR48: =IRRm(SPQ42:SRP42) -> 1.1 | SPU48: =IRR(SPU42:SRT42) ->  | SPV48: =IRRm(SPU42:SRT42) -> 1.1 | SPY48: =IRR(SPY42:SRX42) ->  | SPZ48: =IRRm(SPY42:SRX42) -> 1.1 | SQC48: =IRR(SQC42:SSB42) ->  | SQD48: =IRRm(SQC42:SSB42) -> 1.1 | SQG48: =IRR(SQG42:SSF42) ->  | SQH48: =IRRm(SQG42:SSF42) -> 1.1 | SQK48: =IRR(SQK42:SSJ42) ->  | SQL48: =IRRm(SQK42:SSJ42) -> 1.1 | SQO48: =IRR(SQO42:SSN42) ->  | SQP48: =IRRm(SQO42:SSN42) -> 1.1 | SQS48: =IRR(SQS42:SSR42) ->  | SQT48: =IRRm(SQS42:SSR42) -> 1.1 | SQW48: =IRR(SQW42:SSV42) ->  | SQX48: =IRRm(SQW42:SSV42) -> 1.1 | SRA48: =IRR(SRA42:SSZ42) ->  | SRB48: =IRRm(SRA42:SSZ42) -> 1.1 | SRE48: =IRR(SRE42:STD42) ->  | SRF48: =IRRm(SRE42:STD42) -> 1.1 | SRI48: =IRR(SRI42:STH42) ->  | SRJ48: =IRRm(SRI42:STH42) -> 1.1 | SRM48: =IRR(SRM42:STL42) ->  | SRN48: =IRRm(SRM42:STL42) -> 1.1 | SRQ48: =IRR(SRQ42:STP42) ->  | SRR48: =IRRm(SRQ42:STP42) -> 1.1 | SRU48: =IRR(SRU42:STT42) ->  | SRV48: =IRRm(SRU42:STT42) -> 1.1 | SRY48: =IRR(SRY42:STX42) ->  | SRZ48: =IRRm(SRY42:STX42) -> 1.1 | SSC48: =IRR(SSC42:SUB42) ->  | SSD48: =IRRm(SSC42:SUB42) -> 1.1 | SSG48: =IRR(SSG42:SUF42) ->  | SSH48: =IRRm(SSG42:SUF42) -> 1.1 | SSK48: =IRR(SSK42:SUJ42) ->  | SSL48: =IRRm(SSK42:SUJ42) -> 1.1 | SSO48: =IRR(SSO42:SUN42) ->  | SSP48: =IRRm(SSO42:SUN42) -> 1.1 | SSS48: =IRR(SSS42:SUR42) ->  | SST48: =IRRm(SSS42:SUR42) -> 1.1 | SSW48: =IRR(SSW42:SUV42) ->  | SSX48: =IRRm(SSW42:SUV42) -> 1.1 | STA48: =IRR(STA42:SUZ42) ->  | STB48: =IRRm(STA42:SUZ42) -> 1.1 | STE48: =IRR(STE42:SVD42) ->  | STF48: =IRRm(STE42:SVD42) -> 1.1 | STI48: =IRR(STI42:SVH42) ->  | STJ48: =IRRm(STI42:SVH42) -> 1.1 | STM48: =IRR(STM42:SVL42) ->  | STN48: =IRRm(STM42:SVL42) -> 1.1 | STQ48: =IRR(STQ42:SVP42) ->  | STR48: =IRRm(STQ42:SVP42) -> 1.1 | STU48: =IRR(STU42:SVT42) ->  | STV48: =IRRm(STU42:SVT42) -> 1.1 | STY48: =IRR(STY42:SVX42) ->  | STZ48: =IRRm(STY42:SVX42) -> 1.1 | SUC48: =IRR(SUC42:SWB42) ->  | SUD48: =IRRm(SUC42:SWB42) -> 1.1 | SUG48: =IRR(SUG42:SWF42) ->  | SUH48: =IRRm(SUG42:SWF42) -> 1.1 | SUK48: =IRR(SUK42:SWJ42) ->  | SUL48: =IRRm(SUK42:SWJ42) -> 1.1 | SUO48: =IRR(SUO42:SWN42) ->  | SUP48: =IRRm(SUO42:SWN42) -> 1.1 | SUS48: =IRR(SUS42:SWR42) ->  | SUT48: =IRRm(SUS42:SWR42) -> 1.1 | SUW48: =IRR(SUW42:SWV42) ->  | SUX48: =IRRm(SUW42:SWV42) -> 1.1 | SVA48: =IRR(SVA42:SWZ42) ->  | SVB48: =IRRm(SVA42:SWZ42) -> 1.1 | SVE48: =IRR(SVE42:SXD42) ->  | SVF48: =IRRm(SVE42:SXD42) -> 1.1 | SVI48: =IRR(SVI42:SXH42) ->  | SVJ48: =IRRm(SVI42:SXH42) -> 1.1 | SVM48: =IRR(SVM42:SXL42) ->  | SVN48: =IRRm(SVM42:SXL42) -> 1.1 | SVQ48: =IRR(SVQ42:SXP42) ->  | SVR48: =IRRm(SVQ42:SXP42) -> 1.1 | SVU48: =IRR(SVU42:SXT42) ->  | SVV48: =IRRm(SVU42:SXT42) -> 1.1 | SVY48: =IRR(SVY42:SXX42) ->  | SVZ48: =IRRm(SVY42:SXX42) -> 1.1 | SWC48: =IRR(SWC42:SYB42) ->  | SWD48: =IRRm(SWC42:SYB42) -> 1.1 | SWG48: =IRR(SWG42:SYF42) ->  | SWH48: =IRRm(SWG42:SYF42) -> 1.1 | SWK48: =IRR(SWK42:SYJ42) ->  | SWL48: =IRRm(SWK42:SYJ42) -> 1.1 | SWO48: =IRR(SWO42:SYN42) ->  | SWP48: =IRRm(SWO42:SYN42) -> 1.1 | SWS48: =IRR(SWS42:SYR42) ->  | SWT48: =IRRm(SWS42:SYR42) -> 1.1 | SWW48: =IRR(SWW42:SYV42) ->  | SWX48: =IRRm(SWW42:SYV42) -> 1.1 | SXA48: =IRR(SXA42:SYZ42) ->  | SXB48: =IRRm(SXA42:SYZ42) -> 1.1 | SXE48: =IRR(SXE42:SZD42) ->  | SXF48: =IRRm(SXE42:SZD42) -> 1.1 | SXI48: =IRR(SXI42:SZH42) ->  | SXJ48: =IRRm(SXI42:SZH42) -> 1.1 | SXM48: =IRR(SXM42:SZL42) ->  | SXN48: =IRRm(SXM42:SZL42) -> 1.1 | SXQ48: =IRR(SXQ42:SZP42) ->  | SXR48: =IRRm(SXQ42:SZP42) -> 1.1 | SXU48: =IRR(SXU42:SZT42) ->  | SXV48: =IRRm(SXU42:SZT42) -> 1.1 | SXY48: =IRR(SXY42:SZX42) ->  | SXZ48: =IRRm(SXY42:SZX42) -> 1.1 | SYC48: =IRR(SYC42:TAB42) ->  | SYD48: =IRRm(SYC42:TAB42) -> 1.1 | SYG48: =IRR(SYG42:TAF42) ->  | SYH48: =IRRm(SYG42:TAF42) -> 1.1 | SYK48: =IRR(SYK42:TAJ42) ->  | SYL48: =IRRm(SYK42:TAJ42) -> 1.1 | SYO48: =IRR(SYO42:TAN42) ->  | SYP48: =IRRm(SYO42:TAN42) -> 1.1 | SYS48: =IRR(SYS42:TAR42) ->  | SYT48: =IRRm(SYS42:TAR42) -> 1.1 | SYW48: =IRR(SYW42:TAV42) ->  | SYX48: =IRRm(SYW42:TAV42) -> 1.1 | SZA48: =IRR(SZA42:TAZ42) ->  | SZB48: =IRRm(SZA42:TAZ42) -> 1.1 | SZE48: =IRR(SZE42:TBD42) ->  | SZF48: =IRRm(SZE42:TBD42) -> 1.1 | SZI48: =IRR(SZI42:TBH42) ->  | SZJ48: =IRRm(SZI42:TBH42) -> 1.1 | SZM48: =IRR(SZM42:TBL42) ->  | SZN48: =IRRm(SZM42:TBL42) -> 1.1 | SZQ48: =IRR(SZQ42:TBP42) ->  | SZR48: =IRRm(SZQ42:TBP42) -> 1.1 | SZU48: =IRR(SZU42:TBT42) ->  | SZV48: =IRRm(SZU42:TBT42) -> 1.1 | SZY48: =IRR(SZY42:TBX42) ->  | SZZ48: =IRRm(SZY42:TBX42) -> 1.1 | TAC48: =IRR(TAC42:TCB42) ->  | TAD48: =IRRm(TAC42:TCB42) -> 1.1 | TAG48: =IRR(TAG42:TCF42) ->  | TAH48: =IRRm(TAG42:TCF42) -> 1.1 | TAK48: =IRR(TAK42:TCJ42) ->  | TAL48: =IRRm(TAK42:TCJ42) -> 1.1 | TAO48: =IRR(TAO42:TCN42) ->  | TAP48: =IRRm(TAO42:TCN42) -> 1.1 | TAS48: =IRR(TAS42:TCR42) ->  | TAT48: =IRRm(TAS42:TCR42) -> 1.1 | TAW48: =IRR(TAW42:TCV42) ->  | TAX48: =IRRm(TAW42:TCV42) -> 1.1 | TBA48: =IRR(TBA42:TCZ42) ->  | TBB48: =IRRm(TBA42:TCZ42) -> 1.1 | TBE48: =IRR(TBE42:TDD42) ->  | TBF48: =IRRm(TBE42:TDD42) -> 1.1 | TBI48: =IRR(TBI42:TDH42) ->  | TBJ48: =IRRm(TBI42:TDH42) -> 1.1 | TBM48: =IRR(TBM42:TDL42) ->  | TBN48: =IRRm(TBM42:TDL42) -> 1.1 | TBQ48: =IRR(TBQ42:TDP42) ->  | TBR48: =IRRm(TBQ42:TDP42) -> 1.1 | TBU48: =IRR(TBU42:TDT42) ->  | TBV48: =IRRm(TBU42:TDT42) -> 1.1 | TBY48: =IRR(TBY42:TDX42) ->  | TBZ48: =IRRm(TBY42:TDX42) -> 1.1 | TCC48: =IRR(TCC42:TEB42) ->  | TCD48: =IRRm(TCC42:TEB42) -> 1.1 | TCG48: =IRR(TCG42:TEF42) ->  | TCH48: =IRRm(TCG42:TEF42) -> 1.1 | TCK48: =IRR(TCK42:TEJ42) ->  | TCL48: =IRRm(TCK42:TEJ42) -> 1.1 | TCO48: =IRR(TCO42:TEN42) ->  | TCP48: =IRRm(TCO42:TEN42) -> 1.1 | TCS48: =IRR(TCS42:TER42) ->  | TCT48: =IRRm(TCS42:TER42) -> 1.1 | TCW48: =IRR(TCW42:TEV42) ->  | TCX48: =IRRm(TCW42:TEV42) -> 1.1 | TDA48: =IRR(TDA42:TEZ42) ->  | TDB48: =IRRm(TDA42:TEZ42) -> 1.1 | TDE48: =IRR(TDE42:TFD42) ->  | TDF48: =IRRm(TDE42:TFD42) -> 1.1 | TDI48: =IRR(TDI42:TFH42) ->  | TDJ48: =IRRm(TDI42:TFH42) -> 1.1 | TDM48: =IRR(TDM42:TFL42) ->  | TDN48: =IRRm(TDM42:TFL42) -> 1.1 | TDQ48: =IRR(TDQ42:TFP42) ->  | TDR48: =IRRm(TDQ42:TFP42) -> 1.1 | TDU48: =IRR(TDU42:TFT42) ->  | TDV48: =IRRm(TDU42:TFT42) -> 1.1 | TDY48: =IRR(TDY42:TFX42) ->  | TDZ48: =IRRm(TDY42:TFX42) -> 1.1 | TEC48: =IRR(TEC42:TGB42) ->  | TED48: =IRRm(TEC42:TGB42) -> 1.1 | TEG48: =IRR(TEG42:TGF42) ->  | TEH48: =IRRm(TEG42:TGF42) -> 1.1 | TEK48: =IRR(TEK42:TGJ42) ->  | TEL48: =IRRm(TEK42:TGJ42) -> 1.1 | TEO48: =IRR(TEO42:TGN42) ->  | TEP48: =IRRm(TEO42:TGN42) -> 1.1 | TES48: =IRR(TES42:TGR42) ->  | TET48: =IRRm(TES42:TGR42) -> 1.1 | TEW48: =IRR(TEW42:TGV42) ->  | TEX48: =IRRm(TEW42:TGV42) -> 1.1 | TFA48: =IRR(TFA42:TGZ42) ->  | TFB48: =IRRm(TFA42:TGZ42) -> 1.1 | TFE48: =IRR(TFE42:THD42) ->  | TFF48: =IRRm(TFE42:THD42) -> 1.1 | TFI48: =IRR(TFI42:THH42) ->  | TFJ48: =IRRm(TFI42:THH42) -> 1.1 | TFM48: =IRR(TFM42:THL42) ->  | TFN48: =IRRm(TFM42:THL42) -> 1.1 | TFQ48: =IRR(TFQ42:THP42) ->  | TFR48: =IRRm(TFQ42:THP42) -> 1.1 | TFU48: =IRR(TFU42:THT42) ->  | TFV48: =IRRm(TFU42:THT42) -> 1.1 | TFY48: =IRR(TFY42:THX42) ->  | TFZ48: =IRRm(TFY42:THX42) -> 1.1 | TGC48: =IRR(TGC42:TIB42) ->  | TGD48: =IRRm(TGC42:TIB42) -> 1.1 | TGG48: =IRR(TGG42:TIF42) ->  | TGH48: =IRRm(TGG42:TIF42) -> 1.1 | TGK48: =IRR(TGK42:TIJ42) ->  | TGL48: =IRRm(TGK42:TIJ42) -> 1.1 | TGO48: =IRR(TGO42:TIN42) ->  | TGP48: =IRRm(TGO42:TIN42) -> 1.1 | TGS48: =IRR(TGS42:TIR42) ->  | TGT48: =IRRm(TGS42:TIR42) -> 1.1 | TGW48: =IRR(TGW42:TIV42) ->  | TGX48: =IRRm(TGW42:TIV42) -> 1.1 | THA48: =IRR(THA42:TIZ42) ->  | THB48: =IRRm(THA42:TIZ42) -> 1.1 | THE48: =IRR(THE42:TJD42) ->  | THF48: =IRRm(THE42:TJD42) -> 1.1 | THI48: =IRR(THI42:TJH42) ->  | THJ48: =IRRm(THI42:TJH42) -> 1.1 | THM48: =IRR(THM42:TJL42) ->  | THN48: =IRRm(THM42:TJL42) -> 1.1 | THQ48: =IRR(THQ42:TJP42) ->  | THR48: =IRRm(THQ42:TJP42) -> 1.1 | THU48: =IRR(THU42:TJT42) ->  | THV48: =IRRm(THU42:TJT42) -> 1.1 | THY48: =IRR(THY42:TJX42) ->  | THZ48: =IRRm(THY42:TJX42) -> 1.1 | TIC48: =IRR(TIC42:TKB42) ->  | TID48: =IRRm(TIC42:TKB42) -> 1.1 | TIG48: =IRR(TIG42:TKF42) ->  | TIH48: =IRRm(TIG42:TKF42) -> 1.1 | TIK48: =IRR(TIK42:TKJ42) ->  | TIL48: =IRRm(TIK42:TKJ42) -> 1.1 | TIO48: =IRR(TIO42:TKN42) ->  | TIP48: =IRRm(TIO42:TKN42) -> 1.1 | TIS48: =IRR(TIS42:TKR42) ->  | TIT48: =IRRm(TIS42:TKR42) -> 1.1 | TIW48: =IRR(TIW42:TKV42) ->  | TIX48: =IRRm(TIW42:TKV42) -> 1.1 | TJA48: =IRR(TJA42:TKZ42) ->  | TJB48: =IRRm(TJA42:TKZ42) -> 1.1 | TJE48: =IRR(TJE42:TLD42) ->  | TJF48: =IRRm(TJE42:TLD42) -> 1.1 | TJI48: =IRR(TJI42:TLH42) ->  | TJJ48: =IRRm(TJI42:TLH42) -> 1.1 | TJM48: =IRR(TJM42:TLL42) ->  | TJN48: =IRRm(TJM42:TLL42) -> 1.1 | TJQ48: =IRR(TJQ42:TLP42) ->  | TJR48: =IRRm(TJQ42:TLP42) -> 1.1 | TJU48: =IRR(TJU42:TLT42) ->  | TJV48: =IRRm(TJU42:TLT42) -> 1.1 | TJY48: =IRR(TJY42:TLX42) ->  | TJZ48: =IRRm(TJY42:TLX42) -> 1.1 | TKC48: =IRR(TKC42:TMB42) ->  | TKD48: =IRRm(TKC42:TMB42) -> 1.1 | TKG48: =IRR(TKG42:TMF42) ->  | TKH48: =IRRm(TKG42:TMF42) -> 1.1 | TKK48: =IRR(TKK42:TMJ42) ->  | TKL48: =IRRm(TKK42:TMJ42) -> 1.1 | TKO48: =IRR(TKO42:TMN42) ->  | TKP48: =IRRm(TKO42:TMN42) -> 1.1 | TKS48: =IRR(TKS42:TMR42) ->  | TKT48: =IRRm(TKS42:TMR42) -> 1.1 | TKW48: =IRR(TKW42:TMV42) ->  | TKX48: =IRRm(TKW42:TMV42) -> 1.1 | TLA48: =IRR(TLA42:TMZ42) ->  | TLB48: =IRRm(TLA42:TMZ42) -> 1.1 | TLE48: =IRR(TLE42:TND42) ->  | TLF48: =IRRm(TLE42:TND42) -> 1.1 | TLI48: =IRR(TLI42:TNH42) ->  | TLJ48: =IRRm(TLI42:TNH42) -> 1.1 | TLM48: =IRR(TLM42:TNL42) ->  | TLN48: =IRRm(TLM42:TNL42) -> 1.1 | TLQ48: =IRR(TLQ42:TNP42) ->  | TLR48: =IRRm(TLQ42:TNP42) -> 1.1 | TLU48: =IRR(TLU42:TNT42) ->  | TLV48: =IRRm(TLU42:TNT42) -> 1.1 | TLY48: =IRR(TLY42:TNX42) ->  | TLZ48: =IRRm(TLY42:TNX42) -> 1.1 | TMC48: =IRR(TMC42:TOB42) ->  | TMD48: =IRRm(TMC42:TOB42) -> 1.1 | TMG48: =IRR(TMG42:TOF42) ->  | TMH48: =IRRm(TMG42:TOF42) -> 1.1 | TMK48: =IRR(TMK42:TOJ42) ->  | TML48: =IRRm(TMK42:TOJ42) -> 1.1 | TMO48: =IRR(TMO42:TON42) ->  | TMP48: =IRRm(TMO42:TON42) -> 1.1 | TMS48: =IRR(TMS42:TOR42) ->  | TMT48: =IRRm(TMS42:TOR42) -> 1.1 | TMW48: =IRR(TMW42:TOV42) ->  | TMX48: =IRRm(TMW42:TOV42) -> 1.1 | TNA48: =IRR(TNA42:TOZ42) ->  | TNB48: =IRRm(TNA42:TOZ42) -> 1.1 | TNE48: =IRR(TNE42:TPD42) ->  | TNF48: =IRRm(TNE42:TPD42) -> 1.1 | TNI48: =IRR(TNI42:TPH42) ->  | TNJ48: =IRRm(TNI42:TPH42) -> 1.1 | TNM48: =IRR(TNM42:TPL42) ->  | TNN48: =IRRm(TNM42:TPL42) -> 1.1 | TNQ48: =IRR(TNQ42:TPP42) ->  | TNR48: =IRRm(TNQ42:TPP42) -> 1.1 | TNU48: =IRR(TNU42:TPT42) ->  | TNV48: =IRRm(TNU42:TPT42) -> 1.1 | TNY48: =IRR(TNY42:TPX42) ->  | TNZ48: =IRRm(TNY42:TPX42) -> 1.1 | TOC48: =IRR(TOC42:TQB42) ->  | TOD48: =IRRm(TOC42:TQB42) -> 1.1 | TOG48: =IRR(TOG42:TQF42) ->  | TOH48: =IRRm(TOG42:TQF42) -> 1.1 | TOK48: =IRR(TOK42:TQJ42) ->  | TOL48: =IRRm(TOK42:TQJ42) -> 1.1 | TOO48: =IRR(TOO42:TQN42) ->  | TOP48: =IRRm(TOO42:TQN42) -> 1.1 | TOS48: =IRR(TOS42:TQR42) ->  | TOT48: =IRRm(TOS42:TQR42) -> 1.1 | TOW48: =IRR(TOW42:TQV42) ->  | TOX48: =IRRm(TOW42:TQV42) -> 1.1 | TPA48: =IRR(TPA42:TQZ42) ->  | TPB48: =IRRm(TPA42:TQZ42) -> 1.1 | TPE48: =IRR(TPE42:TRD42) ->  | TPF48: =IRRm(TPE42:TRD42) -> 1.1 | TPI48: =IRR(TPI42:TRH42) ->  | TPJ48: =IRRm(TPI42:TRH42) -> 1.1 | TPM48: =IRR(TPM42:TRL42) ->  | TPN48: =IRRm(TPM42:TRL42) -> 1.1 | TPQ48: =IRR(TPQ42:TRP42) ->  | TPR48: =IRRm(TPQ42:TRP42) -> 1.1 | TPU48: =IRR(TPU42:TRT42) ->  | TPV48: =IRRm(TPU42:TRT42) -> 1.1 | TPY48: =IRR(TPY42:TRX42) ->  | TPZ48: =IRRm(TPY42:TRX42) -> 1.1 | TQC48: =IRR(TQC42:TSB42) ->  | TQD48: =IRRm(TQC42:TSB42) -> 1.1 | TQG48: =IRR(TQG42:TSF42) ->  | TQH48: =IRRm(TQG42:TSF42) -> 1.1 | TQK48: =IRR(TQK42:TSJ42) ->  | TQL48: =IRRm(TQK42:TSJ42) -> 1.1 | TQO48: =IRR(TQO42:TSN42) ->  | TQP48: =IRRm(TQO42:TSN42) -> 1.1 | TQS48: =IRR(TQS42:TSR42) ->  | TQT48: =IRRm(TQS42:TSR42) -> 1.1 | TQW48: =IRR(TQW42:TSV42) ->  | TQX48: =IRRm(TQW42:TSV42) -> 1.1 | TRA48: =IRR(TRA42:TSZ42) ->  | TRB48: =IRRm(TRA42:TSZ42) -> 1.1 | TRE48: =IRR(TRE42:TTD42) ->  | TRF48: =IRRm(TRE42:TTD42) -> 1.1 | TRI48: =IRR(TRI42:TTH42) ->  | TRJ48: =IRRm(TRI42:TTH42) -> 1.1 | TRM48: =IRR(TRM42:TTL42) ->  | TRN48: =IRRm(TRM42:TTL42) -> 1.1 | TRQ48: =IRR(TRQ42:TTP42) ->  | TRR48: =IRRm(TRQ42:TTP42) -> 1.1 | TRU48: =IRR(TRU42:TTT42) ->  | TRV48: =IRRm(TRU42:TTT42) -> 1.1 | TRY48: =IRR(TRY42:TTX42) ->  | TRZ48: =IRRm(TRY42:TTX42) -> 1.1 | TSC48: =IRR(TSC42:TUB42) ->  | TSD48: =IRRm(TSC42:TUB42) -> 1.1 | TSG48: =IRR(TSG42:TUF42) ->  | TSH48: =IRRm(TSG42:TUF42) -> 1.1 | TSK48: =IRR(TSK42:TUJ42) ->  | TSL48: =IRRm(TSK42:TUJ42) -> 1.1 | TSO48: =IRR(TSO42:TUN42) ->  | TSP48: =IRRm(TSO42:TUN42) -> 1.1 | TSS48: =IRR(TSS42:TUR42) ->  | TST48: =IRRm(TSS42:TUR42) -> 1.1 | TSW48: =IRR(TSW42:TUV42) ->  | TSX48: =IRRm(TSW42:TUV42) -> 1.1 | TTA48: =IRR(TTA42:TUZ42) ->  | TTB48: =IRRm(TTA42:TUZ42) -> 1.1 | TTE48: =IRR(TTE42:TVD42) ->  | TTF48: =IRRm(TTE42:TVD42) -> 1.1 | TTI48: =IRR(TTI42:TVH42) ->  | TTJ48: =IRRm(TTI42:TVH42) -> 1.1 | TTM48: =IRR(TTM42:TVL42) ->  | TTN48: =IRRm(TTM42:TVL42) -> 1.1 | TTQ48: =IRR(TTQ42:TVP42) ->  | TTR48: =IRRm(TTQ42:TVP42) -> 1.1 | TTU48: =IRR(TTU42:TVT42) ->  | TTV48: =IRRm(TTU42:TVT42) -> 1.1 | TTY48: =IRR(TTY42:TVX42) ->  | TTZ48: =IRRm(TTY42:TVX42) -> 1.1 | TUC48: =IRR(TUC42:TWB42) ->  | TUD48: =IRRm(TUC42:TWB42) -> 1.1 | TUG48: =IRR(TUG42:TWF42) ->  | TUH48: =IRRm(TUG42:TWF42) -> 1.1 | TUK48: =IRR(TUK42:TWJ42) ->  | TUL48: =IRRm(TUK42:TWJ42) -> 1.1 | TUO48: =IRR(TUO42:TWN42) ->  | TUP48: =IRRm(TUO42:TWN42) -> 1.1 | TUS48: =IRR(TUS42:TWR42) ->  | TUT48: =IRRm(TUS42:TWR42) -> 1.1 | TUW48: =IRR(TUW42:TWV42) ->  | TUX48: =IRRm(TUW42:TWV42) -> 1.1 | TVA48: =IRR(TVA42:TWZ42) ->  | TVB48: =IRRm(TVA42:TWZ42) -> 1.1 | TVE48: =IRR(TVE42:TXD42) ->  | TVF48: =IRRm(TVE42:TXD42) -> 1.1 | TVI48: =IRR(TVI42:TXH42) ->  | TVJ48: =IRRm(TVI42:TXH42) -> 1.1 | TVM48: =IRR(TVM42:TXL42) ->  | TVN48: =IRRm(TVM42:TXL42) -> 1.1 | TVQ48: =IRR(TVQ42:TXP42) ->  | TVR48: =IRRm(TVQ42:TXP42) -> 1.1 | TVU48: =IRR(TVU42:TXT42) ->  | TVV48: =IRRm(TVU42:TXT42) -> 1.1 | TVY48: =IRR(TVY42:TXX42) ->  | TVZ48: =IRRm(TVY42:TXX42) -> 1.1 | TWC48: =IRR(TWC42:TYB42) ->  | TWD48: =IRRm(TWC42:TYB42) -> 1.1 | TWG48: =IRR(TWG42:TYF42) ->  | TWH48: =IRRm(TWG42:TYF42) -> 1.1 | TWK48: =IRR(TWK42:TYJ42) ->  | TWL48: =IRRm(TWK42:TYJ42) -> 1.1 | TWO48: =IRR(TWO42:TYN42) ->  | TWP48: =IRRm(TWO42:TYN42) -> 1.1 | TWS48: =IRR(TWS42:TYR42) ->  | TWT48: =IRRm(TWS42:TYR42) -> 1.1 | TWW48: =IRR(TWW42:TYV42) ->  | TWX48: =IRRm(TWW42:TYV42) -> 1.1 | TXA48: =IRR(TXA42:TYZ42) ->  | TXB48: =IRRm(TXA42:TYZ42) -> 1.1 | TXE48: =IRR(TXE42:TZD42) ->  | TXF48: =IRRm(TXE42:TZD42) -> 1.1 | TXI48: =IRR(TXI42:TZH42) ->  | TXJ48: =IRRm(TXI42:TZH42) -> 1.1 | TXM48: =IRR(TXM42:TZL42) ->  | TXN48: =IRRm(TXM42:TZL42) -> 1.1 | TXQ48: =IRR(TXQ42:TZP42) ->  | TXR48: =IRRm(TXQ42:TZP42) -> 1.1 | TXU48: =IRR(TXU42:TZT42) ->  | TXV48: =IRRm(TXU42:TZT42) -> 1.1 | TXY48: =IRR(TXY42:TZX42) ->  | TXZ48: =IRRm(TXY42:TZX42) -> 1.1 | TYC48: =IRR(TYC42:UAB42) ->  | TYD48: =IRRm(TYC42:UAB42) -> 1.1 | TYG48: =IRR(TYG42:UAF42) ->  | TYH48: =IRRm(TYG42:UAF42) -> 1.1 | TYK48: =IRR(TYK42:UAJ42) ->  | TYL48: =IRRm(TYK42:UAJ42) -> 1.1 | TYO48: =IRR(TYO42:UAN42) ->  | TYP48: =IRRm(TYO42:UAN42) -> 1.1 | TYS48: =IRR(TYS42:UAR42) ->  | TYT48: =IRRm(TYS42:UAR42) -> 1.1 | TYW48: =IRR(TYW42:UAV42) ->  | TYX48: =IRRm(TYW42:UAV42) -> 1.1 | TZA48: =IRR(TZA42:UAZ42) ->  | TZB48: =IRRm(TZA42:UAZ42) -> 1.1 | TZE48: =IRR(TZE42:UBD42) ->  | TZF48: =IRRm(TZE42:UBD42) -> 1.1 | TZI48: =IRR(TZI42:UBH42) ->  | TZJ48: =IRRm(TZI42:UBH42) -> 1.1 | TZM48: =IRR(TZM42:UBL42) ->  | TZN48: =IRRm(TZM42:UBL42) -> 1.1 | TZQ48: =IRR(TZQ42:UBP42) ->  | TZR48: =IRRm(TZQ42:UBP42) -> 1.1 | TZU48: =IRR(TZU42:UBT42) ->  | TZV48: =IRRm(TZU42:UBT42) -> 1.1 | TZY48: =IRR(TZY42:UBX42) ->  | TZZ48: =IRRm(TZY42:UBX42) -> 1.1 | UAC48: =IRR(UAC42:UCB42) ->  | UAD48: =IRRm(UAC42:UCB42) -> 1.1 | UAG48: =IRR(UAG42:UCF42) ->  | UAH48: =IRRm(UAG42:UCF42) -> 1.1 | UAK48: =IRR(UAK42:UCJ42) ->  | UAL48: =IRRm(UAK42:UCJ42) -> 1.1 | UAO48: =IRR(UAO42:UCN42) ->  | UAP48: =IRRm(UAO42:UCN42) -> 1.1 | UAS48: =IRR(UAS42:UCR42) ->  | UAT48: =IRRm(UAS42:UCR42) -> 1.1 | UAW48: =IRR(UAW42:UCV42) ->  | UAX48: =IRRm(UAW42:UCV42) -> 1.1 | UBA48: =IRR(UBA42:UCZ42) ->  | UBB48: =IRRm(UBA42:UCZ42) -> 1.1 | UBE48: =IRR(UBE42:UDD42) ->  | UBF48: =IRRm(UBE42:UDD42) -> 1.1 | UBI48: =IRR(UBI42:UDH42) ->  | UBJ48: =IRRm(UBI42:UDH42) -> 1.1 | UBM48: =IRR(UBM42:UDL42) ->  | UBN48: =IRRm(UBM42:UDL42) -> 1.1 | UBQ48: =IRR(UBQ42:UDP42) ->  | UBR48: =IRRm(UBQ42:UDP42) -> 1.1 | UBU48: =IRR(UBU42:UDT42) ->  | UBV48: =IRRm(UBU42:UDT42) -> 1.1 | UBY48: =IRR(UBY42:UDX42) ->  | UBZ48: =IRRm(UBY42:UDX42) -> 1.1 | UCC48: =IRR(UCC42:UEB42) ->  | UCD48: =IRRm(UCC42:UEB42) -> 1.1 | UCG48: =IRR(UCG42:UEF42) ->  | UCH48: =IRRm(UCG42:UEF42) -> 1.1 | UCK48: =IRR(UCK42:UEJ42) ->  | UCL48: =IRRm(UCK42:UEJ42) -> 1.1 | UCO48: =IRR(UCO42:UEN42) ->  | UCP48: =IRRm(UCO42:UEN42) -> 1.1 | UCS48: =IRR(UCS42:UER42) ->  | UCT48: =IRRm(UCS42:UER42) -> 1.1 | UCW48: =IRR(UCW42:UEV42) ->  | UCX48: =IRRm(UCW42:UEV42) -> 1.1 | UDA48: =IRR(UDA42:UEZ42) ->  | UDB48: =IRRm(UDA42:UEZ42) -> 1.1 | UDE48: =IRR(UDE42:UFD42) ->  | UDF48: =IRRm(UDE42:UFD42) -> 1.1 | UDI48: =IRR(UDI42:UFH42) ->  | UDJ48: =IRRm(UDI42:UFH42) -> 1.1 | UDM48: =IRR(UDM42:UFL42) ->  | UDN48: =IRRm(UDM42:UFL42) -> 1.1 | UDQ48: =IRR(UDQ42:UFP42) ->  | UDR48: =IRRm(UDQ42:UFP42) -> 1.1 | UDU48: =IRR(UDU42:UFT42) ->  | UDV48: =IRRm(UDU42:UFT42) -> 1.1 | UDY48: =IRR(UDY42:UFX42) ->  | UDZ48: =IRRm(UDY42:UFX42) -> 1.1 | UEC48: =IRR(UEC42:UGB42) ->  | UED48: =IRRm(UEC42:UGB42) -> 1.1 | UEG48: =IRR(UEG42:UGF42) ->  | UEH48: =IRRm(UEG42:UGF42) -> 1.1 | UEK48: =IRR(UEK42:UGJ42) ->  | UEL48: =IRRm(UEK42:UGJ42) -> 1.1 | UEO48: =IRR(UEO42:UGN42) ->  | UEP48: =IRRm(UEO42:UGN42) -> 1.1 | UES48: =IRR(UES42:UGR42) ->  | UET48: =IRRm(UES42:UGR42) -> 1.1 | UEW48: =IRR(UEW42:UGV42) ->  | UEX48: =IRRm(UEW42:UGV42) -> 1.1 | UFA48: =IRR(UFA42:UGZ42) ->  | UFB48: =IRRm(UFA42:UGZ42) -> 1.1 | UFE48: =IRR(UFE42:UHD42) ->  | UFF48: =IRRm(UFE42:UHD42) -> 1.1 | UFI48: =IRR(UFI42:UHH42) ->  | UFJ48: =IRRm(UFI42:UHH42) -> 1.1 | UFM48: =IRR(UFM42:UHL42) ->  | UFN48: =IRRm(UFM42:UHL42) -> 1.1 | UFQ48: =IRR(UFQ42:UHP42) ->  | UFR48: =IRRm(UFQ42:UHP42) -> 1.1 | UFU48: =IRR(UFU42:UHT42) ->  | UFV48: =IRRm(UFU42:UHT42) -> 1.1 | UFY48: =IRR(UFY42:UHX42) ->  | UFZ48: =IRRm(UFY42:UHX42) -> 1.1 | UGC48: =IRR(UGC42:UIB42) ->  | UGD48: =IRRm(UGC42:UIB42) -> 1.1 | UGG48: =IRR(UGG42:UIF42) ->  | UGH48: =IRRm(UGG42:UIF42) -> 1.1 | UGK48: =IRR(UGK42:UIJ42) ->  | UGL48: =IRRm(UGK42:UIJ42) -> 1.1 | UGO48: =IRR(UGO42:UIN42) ->  | UGP48: =IRRm(UGO42:UIN42) -> 1.1 | UGS48: =IRR(UGS42:UIR42) ->  | UGT48: =IRRm(UGS42:UIR42) -> 1.1 | UGW48: =IRR(UGW42:UIV42) ->  | UGX48: =IRRm(UGW42:UIV42) -> 1.1 | UHA48: =IRR(UHA42:UIZ42) ->  | UHB48: =IRRm(UHA42:UIZ42) -> 1.1 | UHE48: =IRR(UHE42:UJD42) ->  | UHF48: =IRRm(UHE42:UJD42) -> 1.1 | UHI48: =IRR(UHI42:UJH42) ->  | UHJ48: =IRRm(UHI42:UJH42) -> 1.1 | UHM48: =IRR(UHM42:UJL42) ->  | UHN48: =IRRm(UHM42:UJL42) -> 1.1 | UHQ48: =IRR(UHQ42:UJP42) ->  | UHR48: =IRRm(UHQ42:UJP42) -> 1.1 | UHU48: =IRR(UHU42:UJT42) ->  | UHV48: =IRRm(UHU42:UJT42) -> 1.1 | UHY48: =IRR(UHY42:UJX42) ->  | UHZ48: =IRRm(UHY42:UJX42) -> 1.1 | UIC48: =IRR(UIC42:UKB42) ->  | UID48: =IRRm(UIC42:UKB42) -> 1.1 | UIG48: =IRR(UIG42:UKF42) ->  | UIH48: =IRRm(UIG42:UKF42) -> 1.1 | UIK48: =IRR(UIK42:UKJ42) ->  | UIL48: =IRRm(UIK42:UKJ42) -> 1.1 | UIO48: =IRR(UIO42:UKN42) ->  | UIP48: =IRRm(UIO42:UKN42) -> 1.1 | UIS48: =IRR(UIS42:UKR42) ->  | UIT48: =IRRm(UIS42:UKR42) -> 1.1 | UIW48: =IRR(UIW42:UKV42) ->  | UIX48: =IRRm(UIW42:UKV42) -> 1.1 | UJA48: =IRR(UJA42:UKZ42) ->  | UJB48: =IRRm(UJA42:UKZ42) -> 1.1 | UJE48: =IRR(UJE42:ULD42) ->  | UJF48: =IRRm(UJE42:ULD42) -> 1.1 | UJI48: =IRR(UJI42:ULH42) ->  | UJJ48: =IRRm(UJI42:ULH42) -> 1.1 | UJM48: =IRR(UJM42:ULL42) ->  | UJN48: =IRRm(UJM42:ULL42) -> 1.1 | UJQ48: =IRR(UJQ42:ULP42) ->  | UJR48: =IRRm(UJQ42:ULP42) -> 1.1 | UJU48: =IRR(UJU42:ULT42) ->  | UJV48: =IRRm(UJU42:ULT42) -> 1.1 | UJY48: =IRR(UJY42:ULX42) ->  | UJZ48: =IRRm(UJY42:ULX42) -> 1.1 | UKC48: =IRR(UKC42:UMB42) ->  | UKD48: =IRRm(UKC42:UMB42) -> 1.1 | UKG48: =IRR(UKG42:UMF42) ->  | UKH48: =IRRm(UKG42:UMF42) -> 1.1 | UKK48: =IRR(UKK42:UMJ42) ->  | UKL48: =IRRm(UKK42:UMJ42) -> 1.1 | UKO48: =IRR(UKO42:UMN42) ->  | UKP48: =IRRm(UKO42:UMN42) -> 1.1 | UKS48: =IRR(UKS42:UMR42) ->  | UKT48: =IRRm(UKS42:UMR42) -> 1.1 | UKW48: =IRR(UKW42:UMV42) ->  | UKX48: =IRRm(UKW42:UMV42) -> 1.1 | ULA48: =IRR(ULA42:UMZ42) ->  | ULB48: =IRRm(ULA42:UMZ42) -> 1.1 | ULE48: =IRR(ULE42:UND42) ->  | ULF48: =IRRm(ULE42:UND42) -> 1.1 | ULI48: =IRR(ULI42:UNH42) ->  | ULJ48: =IRRm(ULI42:UNH42) -> 1.1 | ULM48: =IRR(ULM42:UNL42) ->  | ULN48: =IRRm(ULM42:UNL42) -> 1.1 | ULQ48: =IRR(ULQ42:UNP42) ->  | ULR48: =IRRm(ULQ42:UNP42) -> 1.1 | ULU48: =IRR(ULU42:UNT42) ->  | ULV48: =IRRm(ULU42:UNT42) -> 1.1 | ULY48: =IRR(ULY42:UNX42) ->  | ULZ48: =IRRm(ULY42:UNX42) -> 1.1 | UMC48: =IRR(UMC42:UOB42) ->  | UMD48: =IRRm(UMC42:UOB42) -> 1.1 | UMG48: =IRR(UMG42:UOF42) ->  | UMH48: =IRRm(UMG42:UOF42) -> 1.1 | UMK48: =IRR(UMK42:UOJ42) ->  | UML48: =IRRm(UMK42:UOJ42) -> 1.1 | UMO48: =IRR(UMO42:UON42) ->  | UMP48: =IRRm(UMO42:UON42) -> 1.1 | UMS48: =IRR(UMS42:UOR42) ->  | UMT48: =IRRm(UMS42:UOR42) -> 1.1 | UMW48: =IRR(UMW42:UOV42) ->  | UMX48: =IRRm(UMW42:UOV42) -> 1.1 | UNA48: =IRR(UNA42:UOZ42) ->  | UNB48: =IRRm(UNA42:UOZ42) -> 1.1 | UNE48: =IRR(UNE42:UPD42) ->  | UNF48: =IRRm(UNE42:UPD42) -> 1.1 | UNI48: =IRR(UNI42:UPH42) ->  | UNJ48: =IRRm(UNI42:UPH42) -> 1.1 | UNM48: =IRR(UNM42:UPL42) ->  | UNN48: =IRRm(UNM42:UPL42) -> 1.1 | UNQ48: =IRR(UNQ42:UPP42) ->  | UNR48: =IRRm(UNQ42:UPP42) -> 1.1 | UNU48: =IRR(UNU42:UPT42) ->  | UNV48: =IRRm(UNU42:UPT42) -> 1.1 | UNY48: =IRR(UNY42:UPX42) ->  | UNZ48: =IRRm(UNY42:UPX42) -> 1.1 | UOC48: =IRR(UOC42:UQB42) ->  | UOD48: =IRRm(UOC42:UQB42) -> 1.1 | UOG48: =IRR(UOG42:UQF42) ->  | UOH48: =IRRm(UOG42:UQF42) -> 1.1 | UOK48: =IRR(UOK42:UQJ42) ->  | UOL48: =IRRm(UOK42:UQJ42) -> 1.1 | UOO48: =IRR(UOO42:UQN42) ->  | UOP48: =IRRm(UOO42:UQN42) -> 1.1 | UOS48: =IRR(UOS42:UQR42) ->  | UOT48: =IRRm(UOS42:UQR42) -> 1.1 | UOW48: =IRR(UOW42:UQV42) ->  | UOX48: =IRRm(UOW42:UQV42) -> 1.1 | UPA48: =IRR(UPA42:UQZ42) ->  | UPB48: =IRRm(UPA42:UQZ42) -> 1.1 | UPE48: =IRR(UPE42:URD42) ->  | UPF48: =IRRm(UPE42:URD42) -> 1.1 | UPI48: =IRR(UPI42:URH42) ->  | UPJ48: =IRRm(UPI42:URH42) -> 1.1 | UPM48: =IRR(UPM42:URL42) ->  | UPN48: =IRRm(UPM42:URL42) -> 1.1 | UPQ48: =IRR(UPQ42:URP42) ->  | UPR48: =IRRm(UPQ42:URP42) -> 1.1 | UPU48: =IRR(UPU42:URT42) ->  | UPV48: =IRRm(UPU42:URT42) -> 1.1 | UPY48: =IRR(UPY42:URX42) ->  | UPZ48: =IRRm(UPY42:URX42) -> 1.1 | UQC48: =IRR(UQC42:USB42) ->  | UQD48: =IRRm(UQC42:USB42) -> 1.1 | UQG48: =IRR(UQG42:USF42) ->  | UQH48: =IRRm(UQG42:USF42) -> 1.1 | UQK48: =IRR(UQK42:USJ42) ->  | UQL48: =IRRm(UQK42:USJ42) -> 1.1 | UQO48: =IRR(UQO42:USN42) ->  | UQP48: =IRRm(UQO42:USN42) -> 1.1 | UQS48: =IRR(UQS42:USR42) ->  | UQT48: =IRRm(UQS42:USR42) -> 1.1 | UQW48: =IRR(UQW42:USV42) ->  | UQX48: =IRRm(UQW42:USV42) -> 1.1 | URA48: =IRR(URA42:USZ42) ->  | URB48: =IRRm(URA42:USZ42) -> 1.1 | URE48: =IRR(URE42:UTD42) ->  | URF48: =IRRm(URE42:UTD42) -> 1.1 | URI48: =IRR(URI42:UTH42) ->  | URJ48: =IRRm(URI42:UTH42) -> 1.1 | URM48: =IRR(URM42:UTL42) ->  | URN48: =IRRm(URM42:UTL42) -> 1.1 | URQ48: =IRR(URQ42:UTP42) ->  | URR48: =IRRm(URQ42:UTP42) -> 1.1 | URU48: =IRR(URU42:UTT42) ->  | URV48: =IRRm(URU42:UTT42) -> 1.1 | URY48: =IRR(URY42:UTX42) ->  | URZ48: =IRRm(URY42:UTX42) -> 1.1 | USC48: =IRR(USC42:UUB42) ->  | USD48: =IRRm(USC42:UUB42) -> 1.1 | USG48: =IRR(USG42:UUF42) ->  | USH48: =IRRm(USG42:UUF42) -> 1.1 | USK48: =IRR(USK42:UUJ42) ->  | USL48: =IRRm(USK42:UUJ42) -> 1.1 | USO48: =IRR(USO42:UUN42) ->  | USP48: =IRRm(USO42:UUN42) -> 1.1 | USS48: =IRR(USS42:UUR42) ->  | UST48: =IRRm(USS42:UUR42) -> 1.1 | USW48: =IRR(USW42:UUV42) ->  | USX48: =IRRm(USW42:UUV42) -> 1.1 | UTA48: =IRR(UTA42:UUZ42) ->  | UTB48: =IRRm(UTA42:UUZ42) -> 1.1 | UTE48: =IRR(UTE42:UVD42) ->  | UTF48: =IRRm(UTE42:UVD42) -> 1.1 | UTI48: =IRR(UTI42:UVH42) ->  | UTJ48: =IRRm(UTI42:UVH42) -> 1.1 | UTM48: =IRR(UTM42:UVL42) ->  | UTN48: =IRRm(UTM42:UVL42) -> 1.1 | UTQ48: =IRR(UTQ42:UVP42) ->  | UTR48: =IRRm(UTQ42:UVP42) -> 1.1 | UTU48: =IRR(UTU42:UVT42) ->  | UTV48: =IRRm(UTU42:UVT42) -> 1.1 | UTY48: =IRR(UTY42:UVX42) ->  | UTZ48: =IRRm(UTY42:UVX42) -> 1.1 | UUC48: =IRR(UUC42:UWB42) ->  | UUD48: =IRRm(UUC42:UWB42) -> 1.1 | UUG48: =IRR(UUG42:UWF42) ->  | UUH48: =IRRm(UUG42:UWF42) -> 1.1 | UUK48: =IRR(UUK42:UWJ42) ->  | UUL48: =IRRm(UUK42:UWJ42) -> 1.1 | UUO48: =IRR(UUO42:UWN42) ->  | UUP48: =IRRm(UUO42:UWN42) -> 1.1 | UUS48: =IRR(UUS42:UWR42) ->  | UUT48: =IRRm(UUS42:UWR42) -> 1.1 | UUW48: =IRR(UUW42:UWV42) ->  | UUX48: =IRRm(UUW42:UWV42) -> 1.1 | UVA48: =IRR(UVA42:UWZ42) ->  | UVB48: =IRRm(UVA42:UWZ42) -> 1.1 | UVE48: =IRR(UVE42:UXD42) ->  | UVF48: =IRRm(UVE42:UXD42) -> 1.1 | UVI48: =IRR(UVI42:UXH42) ->  | UVJ48: =IRRm(UVI42:UXH42) -> 1.1 | UVM48: =IRR(UVM42:UXL42) ->  | UVN48: =IRRm(UVM42:UXL42) -> 1.1 | UVQ48: =IRR(UVQ42:UXP42) ->  | UVR48: =IRRm(UVQ42:UXP42) -> 1.1 | UVU48: =IRR(UVU42:UXT42) ->  | UVV48: =IRRm(UVU42:UXT42) -> 1.1 | UVY48: =IRR(UVY42:UXX42) ->  | UVZ48: =IRRm(UVY42:UXX42) -> 1.1 | UWC48: =IRR(UWC42:UYB42) ->  | UWD48: =IRRm(UWC42:UYB42) -> 1.1 | UWG48: =IRR(UWG42:UYF42) ->  | UWH48: =IRRm(UWG42:UYF42) -> 1.1 | UWK48: =IRR(UWK42:UYJ42) ->  | UWL48: =IRRm(UWK42:UYJ42) -> 1.1 | UWO48: =IRR(UWO42:UYN42) ->  | UWP48: =IRRm(UWO42:UYN42) -> 1.1 | UWS48: =IRR(UWS42:UYR42) ->  | UWT48: =IRRm(UWS42:UYR42) -> 1.1 | UWW48: =IRR(UWW42:UYV42) ->  | UWX48: =IRRm(UWW42:UYV42) -> 1.1 | UXA48: =IRR(UXA42:UYZ42) ->  | UXB48: =IRRm(UXA42:UYZ42) -> 1.1 | UXE48: =IRR(UXE42:UZD42) ->  | UXF48: =IRRm(UXE42:UZD42) -> 1.1 | UXI48: =IRR(UXI42:UZH42) ->  | UXJ48: =IRRm(UXI42:UZH42) -> 1.1 | UXM48: =IRR(UXM42:UZL42) ->  | UXN48: =IRRm(UXM42:UZL42) -> 1.1 | UXQ48: =IRR(UXQ42:UZP42) ->  | UXR48: =IRRm(UXQ42:UZP42) -> 1.1 | UXU48: =IRR(UXU42:UZT42) ->  | UXV48: =IRRm(UXU42:UZT42) -> 1.1 | UXY48: =IRR(UXY42:UZX42) ->  | UXZ48: =IRRm(UXY42:UZX42) -> 1.1 | UYC48: =IRR(UYC42:VAB42) ->  | UYD48: =IRRm(UYC42:VAB42) -> 1.1 | UYG48: =IRR(UYG42:VAF42) ->  | UYH48: =IRRm(UYG42:VAF42) -> 1.1 | UYK48: =IRR(UYK42:VAJ42) ->  | UYL48: =IRRm(UYK42:VAJ42) -> 1.1 | UYO48: =IRR(UYO42:VAN42) ->  | UYP48: =IRRm(UYO42:VAN42) -> 1.1 | UYS48: =IRR(UYS42:VAR42) ->  | UYT48: =IRRm(UYS42:VAR42) -> 1.1 | UYW48: =IRR(UYW42:VAV42) ->  | UYX48: =IRRm(UYW42:VAV42) -> 1.1 | UZA48: =IRR(UZA42:VAZ42) ->  | UZB48: =IRRm(UZA42:VAZ42) -> 1.1 | UZE48: =IRR(UZE42:VBD42) ->  | UZF48: =IRRm(UZE42:VBD42) -> 1.1 | UZI48: =IRR(UZI42:VBH42) ->  | UZJ48: =IRRm(UZI42:VBH42) -> 1.1 | UZM48: =IRR(UZM42:VBL42) ->  | UZN48: =IRRm(UZM42:VBL42) -> 1.1 | UZQ48: =IRR(UZQ42:VBP42) ->  | UZR48: =IRRm(UZQ42:VBP42) -> 1.1 | UZU48: =IRR(UZU42:VBT42) ->  | UZV48: =IRRm(UZU42:VBT42) -> 1.1 | UZY48: =IRR(UZY42:VBX42) ->  | UZZ48: =IRRm(UZY42:VBX42) -> 1.1 | VAC48: =IRR(VAC42:VCB42) ->  | VAD48: =IRRm(VAC42:VCB42) -> 1.1 | VAG48: =IRR(VAG42:VCF42) ->  | VAH48: =IRRm(VAG42:VCF42) -> 1.1 | VAK48: =IRR(VAK42:VCJ42) ->  | VAL48: =IRRm(VAK42:VCJ42) -> 1.1 | VAO48: =IRR(VAO42:VCN42) ->  | VAP48: =IRRm(VAO42:VCN42) -> 1.1 | VAS48: =IRR(VAS42:VCR42) ->  | VAT48: =IRRm(VAS42:VCR42) -> 1.1 | VAW48: =IRR(VAW42:VCV42) ->  | VAX48: =IRRm(VAW42:VCV42) -> 1.1 | VBA48: =IRR(VBA42:VCZ42) ->  | VBB48: =IRRm(VBA42:VCZ42) -> 1.1 | VBE48: =IRR(VBE42:VDD42) ->  | VBF48: =IRRm(VBE42:VDD42) -> 1.1 | VBI48: =IRR(VBI42:VDH42) ->  | VBJ48: =IRRm(VBI42:VDH42) -> 1.1 | VBM48: =IRR(VBM42:VDL42) ->  | VBN48: =IRRm(VBM42:VDL42) -> 1.1 | VBQ48: =IRR(VBQ42:VDP42) ->  | VBR48: =IRRm(VBQ42:VDP42) -> 1.1 | VBU48: =IRR(VBU42:VDT42) ->  | VBV48: =IRRm(VBU42:VDT42) -> 1.1 | VBY48: =IRR(VBY42:VDX42) ->  | VBZ48: =IRRm(VBY42:VDX42) -> 1.1 | VCC48: =IRR(VCC42:VEB42) ->  | VCD48: =IRRm(VCC42:VEB42) -> 1.1 | VCG48: =IRR(VCG42:VEF42) ->  | VCH48: =IRRm(VCG42:VEF42) -> 1.1 | VCK48: =IRR(VCK42:VEJ42) ->  | VCL48: =IRRm(VCK42:VEJ42) -> 1.1 | VCO48: =IRR(VCO42:VEN42) ->  | VCP48: =IRRm(VCO42:VEN42) -> 1.1 | VCS48: =IRR(VCS42:VER42) ->  | VCT48: =IRRm(VCS42:VER42) -> 1.1 | VCW48: =IRR(VCW42:VEV42) ->  | VCX48: =IRRm(VCW42:VEV42) -> 1.1 | VDA48: =IRR(VDA42:VEZ42) ->  | VDB48: =IRRm(VDA42:VEZ42) -> 1.1 | VDE48: =IRR(VDE42:VFD42) ->  | VDF48: =IRRm(VDE42:VFD42) -> 1.1 | VDI48: =IRR(VDI42:VFH42) ->  | VDJ48: =IRRm(VDI42:VFH42) -> 1.1 | VDM48: =IRR(VDM42:VFL42) ->  | VDN48: =IRRm(VDM42:VFL42) -> 1.1 | VDQ48: =IRR(VDQ42:VFP42) ->  | VDR48: =IRRm(VDQ42:VFP42) -> 1.1 | VDU48: =IRR(VDU42:VFT42) ->  | VDV48: =IRRm(VDU42:VFT42) -> 1.1 | VDY48: =IRR(VDY42:VFX42) ->  | VDZ48: =IRRm(VDY42:VFX42) -> 1.1 | VEC48: =IRR(VEC42:VGB42) ->  | VED48: =IRRm(VEC42:VGB42) -> 1.1 | VEG48: =IRR(VEG42:VGF42) ->  | VEH48: =IRRm(VEG42:VGF42) -> 1.1 | VEK48: =IRR(VEK42:VGJ42) ->  | VEL48: =IRRm(VEK42:VGJ42) -> 1.1 | VEO48: =IRR(VEO42:VGN42) ->  | VEP48: =IRRm(VEO42:VGN42) -> 1.1 | VES48: =IRR(VES42:VGR42) ->  | VET48: =IRRm(VES42:VGR42) -> 1.1 | VEW48: =IRR(VEW42:VGV42) ->  | VEX48: =IRRm(VEW42:VGV42) -> 1.1 | VFA48: =IRR(VFA42:VGZ42) ->  | VFB48: =IRRm(VFA42:VGZ42) -> 1.1 | VFE48: =IRR(VFE42:VHD42) ->  | VFF48: =IRRm(VFE42:VHD42) -> 1.1 | VFI48: =IRR(VFI42:VHH42) ->  | VFJ48: =IRRm(VFI42:VHH42) -> 1.1 | VFM48: =IRR(VFM42:VHL42) ->  | VFN48: =IRRm(VFM42:VHL42) -> 1.1 | VFQ48: =IRR(VFQ42:VHP42) ->  | VFR48: =IRRm(VFQ42:VHP42) -> 1.1 | VFU48: =IRR(VFU42:VHT42) ->  | VFV48: =IRRm(VFU42:VHT42) -> 1.1 | VFY48: =IRR(VFY42:VHX42) ->  | VFZ48: =IRRm(VFY42:VHX42) -> 1.1 | VGC48: =IRR(VGC42:VIB42) ->  | VGD48: =IRRm(VGC42:VIB42) -> 1.1 | VGG48: =IRR(VGG42:VIF42) ->  | VGH48: =IRRm(VGG42:VIF42) -> 1.1 | VGK48: =IRR(VGK42:VIJ42) ->  | VGL48: =IRRm(VGK42:VIJ42) -> 1.1 | VGO48: =IRR(VGO42:VIN42) ->  | VGP48: =IRRm(VGO42:VIN42) -> 1.1 | VGS48: =IRR(VGS42:VIR42) ->  | VGT48: =IRRm(VGS42:VIR42) -> 1.1 | VGW48: =IRR(VGW42:VIV42) ->  | VGX48: =IRRm(VGW42:VIV42) -> 1.1 | VHA48: =IRR(VHA42:VIZ42) ->  | VHB48: =IRRm(VHA42:VIZ42) -> 1.1 | VHE48: =IRR(VHE42:VJD42) ->  | VHF48: =IRRm(VHE42:VJD42) -> 1.1 | VHI48: =IRR(VHI42:VJH42) ->  | VHJ48: =IRRm(VHI42:VJH42) -> 1.1 | VHM48: =IRR(VHM42:VJL42) ->  | VHN48: =IRRm(VHM42:VJL42) -> 1.1 | VHQ48: =IRR(VHQ42:VJP42) ->  | VHR48: =IRRm(VHQ42:VJP42) -> 1.1 | VHU48: =IRR(VHU42:VJT42) ->  | VHV48: =IRRm(VHU42:VJT42) -> 1.1 | VHY48: =IRR(VHY42:VJX42) ->  | VHZ48: =IRRm(VHY42:VJX42) -> 1.1 | VIC48: =IRR(VIC42:VKB42) ->  | VID48: =IRRm(VIC42:VKB42) -> 1.1 | VIG48: =IRR(VIG42:VKF42) ->  | VIH48: =IRRm(VIG42:VKF42) -> 1.1 | VIK48: =IRR(VIK42:VKJ42) ->  | VIL48: =IRRm(VIK42:VKJ42) -> 1.1 | VIO48: =IRR(VIO42:VKN42) ->  | VIP48: =IRRm(VIO42:VKN42) -> 1.1 | VIS48: =IRR(VIS42:VKR42) ->  | VIT48: =IRRm(VIS42:VKR42) -> 1.1 | VIW48: =IRR(VIW42:VKV42) ->  | VIX48: =IRRm(VIW42:VKV42) -> 1.1 | VJA48: =IRR(VJA42:VKZ42) ->  | VJB48: =IRRm(VJA42:VKZ42) -> 1.1 | VJE48: =IRR(VJE42:VLD42) ->  | VJF48: =IRRm(VJE42:VLD42) -> 1.1 | VJI48: =IRR(VJI42:VLH42) ->  | VJJ48: =IRRm(VJI42:VLH42) -> 1.1 | VJM48: =IRR(VJM42:VLL42) ->  | VJN48: =IRRm(VJM42:VLL42) -> 1.1 | VJQ48: =IRR(VJQ42:VLP42) ->  | VJR48: =IRRm(VJQ42:VLP42) -> 1.1 | VJU48: =IRR(VJU42:VLT42) ->  | VJV48: =IRRm(VJU42:VLT42) -> 1.1 | VJY48: =IRR(VJY42:VLX42) ->  | VJZ48: =IRRm(VJY42:VLX42) -> 1.1 | VKC48: =IRR(VKC42:VMB42) ->  | VKD48: =IRRm(VKC42:VMB42) -> 1.1 | VKG48: =IRR(VKG42:VMF42) ->  | VKH48: =IRRm(VKG42:VMF42) -> 1.1 | VKK48: =IRR(VKK42:VMJ42) ->  | VKL48: =IRRm(VKK42:VMJ42) -> 1.1 | VKO48: =IRR(VKO42:VMN42) ->  | VKP48: =IRRm(VKO42:VMN42) -> 1.1 | VKS48: =IRR(VKS42:VMR42) ->  | VKT48: =IRRm(VKS42:VMR42) -> 1.1 | VKW48: =IRR(VKW42:VMV42) ->  | VKX48: =IRRm(VKW42:VMV42) -> 1.1 | VLA48: =IRR(VLA42:VMZ42) ->  | VLB48: =IRRm(VLA42:VMZ42) -> 1.1 | VLE48: =IRR(VLE42:VND42) ->  | VLF48: =IRRm(VLE42:VND42) -> 1.1 | VLI48: =IRR(VLI42:VNH42) ->  | VLJ48: =IRRm(VLI42:VNH42) -> 1.1 | VLM48: =IRR(VLM42:VNL42) ->  | VLN48: =IRRm(VLM42:VNL42) -> 1.1 | VLQ48: =IRR(VLQ42:VNP42) ->  | VLR48: =IRRm(VLQ42:VNP42) -> 1.1 | VLU48: =IRR(VLU42:VNT42) ->  | VLV48: =IRRm(VLU42:VNT42) -> 1.1 | VLY48: =IRR(VLY42:VNX42) ->  | VLZ48: =IRRm(VLY42:VNX42) -> 1.1 | VMC48: =IRR(VMC42:VOB42) ->  | VMD48: =IRRm(VMC42:VOB42) -> 1.1 | VMG48: =IRR(VMG42:VOF42) ->  | VMH48: =IRRm(VMG42:VOF42) -> 1.1 | VMK48: =IRR(VMK42:VOJ42) ->  | VML48: =IRRm(VMK42:VOJ42) -> 1.1 | VMO48: =IRR(VMO42:VON42) ->  | VMP48: =IRRm(VMO42:VON42) -> 1.1 | VMS48: =IRR(VMS42:VOR42) ->  | VMT48: =IRRm(VMS42:VOR42) -> 1.1 | VMW48: =IRR(VMW42:VOV42) ->  | VMX48: =IRRm(VMW42:VOV42) -> 1.1 | VNA48: =IRR(VNA42:VOZ42) ->  | VNB48: =IRRm(VNA42:VOZ42) -> 1.1 | VNE48: =IRR(VNE42:VPD42) ->  | VNF48: =IRRm(VNE42:VPD42) -> 1.1 | VNI48: =IRR(VNI42:VPH42) ->  | VNJ48: =IRRm(VNI42:VPH42) -> 1.1 | VNM48: =IRR(VNM42:VPL42) ->  | VNN48: =IRRm(VNM42:VPL42) -> 1.1 | VNQ48: =IRR(VNQ42:VPP42) ->  | VNR48: =IRRm(VNQ42:VPP42) -> 1.1 | VNU48: =IRR(VNU42:VPT42) ->  | VNV48: =IRRm(VNU42:VPT42) -> 1.1 | VNY48: =IRR(VNY42:VPX42) ->  | VNZ48: =IRRm(VNY42:VPX42) -> 1.1 | VOC48: =IRR(VOC42:VQB42) ->  | VOD48: =IRRm(VOC42:VQB42) -> 1.1 | VOG48: =IRR(VOG42:VQF42) ->  | VOH48: =IRRm(VOG42:VQF42) -> 1.1 | VOK48: =IRR(VOK42:VQJ42) ->  | VOL48: =IRRm(VOK42:VQJ42) -> 1.1 | VOO48: =IRR(VOO42:VQN42) ->  | VOP48: =IRRm(VOO42:VQN42) -> 1.1 | VOS48: =IRR(VOS42:VQR42) ->  | VOT48: =IRRm(VOS42:VQR42) -> 1.1 | VOW48: =IRR(VOW42:VQV42) ->  | VOX48: =IRRm(VOW42:VQV42) -> 1.1 | VPA48: =IRR(VPA42:VQZ42) ->  | VPB48: =IRRm(VPA42:VQZ42) -> 1.1 | VPE48: =IRR(VPE42:VRD42) ->  | VPF48: =IRRm(VPE42:VRD42) -> 1.1 | VPI48: =IRR(VPI42:VRH42) ->  | VPJ48: =IRRm(VPI42:VRH42) -> 1.1 | VPM48: =IRR(VPM42:VRL42) ->  | VPN48: =IRRm(VPM42:VRL42) -> 1.1 | VPQ48: =IRR(VPQ42:VRP42) ->  | VPR48: =IRRm(VPQ42:VRP42) -> 1.1 | VPU48: =IRR(VPU42:VRT42) ->  | VPV48: =IRRm(VPU42:VRT42) -> 1.1 | VPY48: =IRR(VPY42:VRX42) ->  | VPZ48: =IRRm(VPY42:VRX42) -> 1.1 | VQC48: =IRR(VQC42:VSB42) ->  | VQD48: =IRRm(VQC42:VSB42) -> 1.1 | VQG48: =IRR(VQG42:VSF42) ->  | VQH48: =IRRm(VQG42:VSF42) -> 1.1 | VQK48: =IRR(VQK42:VSJ42) ->  | VQL48: =IRRm(VQK42:VSJ42) -> 1.1 | VQO48: =IRR(VQO42:VSN42) ->  | VQP48: =IRRm(VQO42:VSN42) -> 1.1 | VQS48: =IRR(VQS42:VSR42) ->  | VQT48: =IRRm(VQS42:VSR42) -> 1.1 | VQW48: =IRR(VQW42:VSV42) ->  | VQX48: =IRRm(VQW42:VSV42) -> 1.1 | VRA48: =IRR(VRA42:VSZ42) ->  | VRB48: =IRRm(VRA42:VSZ42) -> 1.1 | VRE48: =IRR(VRE42:VTD42) ->  | VRF48: =IRRm(VRE42:VTD42) -> 1.1 | VRI48: =IRR(VRI42:VTH42) ->  | VRJ48: =IRRm(VRI42:VTH42) -> 1.1 | VRM48: =IRR(VRM42:VTL42) ->  | VRN48: =IRRm(VRM42:VTL42) -> 1.1 | VRQ48: =IRR(VRQ42:VTP42) ->  | VRR48: =IRRm(VRQ42:VTP42) -> 1.1 | VRU48: =IRR(VRU42:VTT42) ->  | VRV48: =IRRm(VRU42:VTT42) -> 1.1 | VRY48: =IRR(VRY42:VTX42) ->  | VRZ48: =IRRm(VRY42:VTX42) -> 1.1 | VSC48: =IRR(VSC42:VUB42) ->  | VSD48: =IRRm(VSC42:VUB42) -> 1.1 | VSG48: =IRR(VSG42:VUF42) ->  | VSH48: =IRRm(VSG42:VUF42) -> 1.1 | VSK48: =IRR(VSK42:VUJ42) ->  | VSL48: =IRRm(VSK42:VUJ42) -> 1.1 | VSO48: =IRR(VSO42:VUN42) ->  | VSP48: =IRRm(VSO42:VUN42) -> 1.1 | VSS48: =IRR(VSS42:VUR42) ->  | VST48: =IRRm(VSS42:VUR42) -> 1.1 | VSW48: =IRR(VSW42:VUV42) ->  | VSX48: =IRRm(VSW42:VUV42) -> 1.1 | VTA48: =IRR(VTA42:VUZ42) ->  | VTB48: =IRRm(VTA42:VUZ42) -> 1.1 | VTE48: =IRR(VTE42:VVD42) ->  | VTF48: =IRRm(VTE42:VVD42) -> 1.1 | VTI48: =IRR(VTI42:VVH42) ->  | VTJ48: =IRRm(VTI42:VVH42) -> 1.1 | VTM48: =IRR(VTM42:VVL42) ->  | VTN48: =IRRm(VTM42:VVL42) -> 1.1 | VTQ48: =IRR(VTQ42:VVP42) ->  | VTR48: =IRRm(VTQ42:VVP42) -> 1.1 | VTU48: =IRR(VTU42:VVT42) ->  | VTV48: =IRRm(VTU42:VVT42) -> 1.1 | VTY48: =IRR(VTY42:VVX42) ->  | VTZ48: =IRRm(VTY42:VVX42) -> 1.1 | VUC48: =IRR(VUC42:VWB42) ->  | VUD48: =IRRm(VUC42:VWB42) -> 1.1 | VUG48: =IRR(VUG42:VWF42) ->  | VUH48: =IRRm(VUG42:VWF42) -> 1.1 | VUK48: =IRR(VUK42:VWJ42) ->  | VUL48: =IRRm(VUK42:VWJ42) -> 1.1 | VUO48: =IRR(VUO42:VWN42) ->  | VUP48: =IRRm(VUO42:VWN42) -> 1.1 | VUS48: =IRR(VUS42:VWR42) ->  | VUT48: =IRRm(VUS42:VWR42) -> 1.1 | VUW48: =IRR(VUW42:VWV42) ->  | VUX48: =IRRm(VUW42:VWV42) -> 1.1 | VVA48: =IRR(VVA42:VWZ42) ->  | VVB48: =IRRm(VVA42:VWZ42) -> 1.1 | VVE48: =IRR(VVE42:VXD42) ->  | VVF48: =IRRm(VVE42:VXD42) -> 1.1 | VVI48: =IRR(VVI42:VXH42) ->  | VVJ48: =IRRm(VVI42:VXH42) -> 1.1 | VVM48: =IRR(VVM42:VXL42) ->  | VVN48: =IRRm(VVM42:VXL42) -> 1.1 | VVQ48: =IRR(VVQ42:VXP42) ->  | VVR48: =IRRm(VVQ42:VXP42) -> 1.1 | VVU48: =IRR(VVU42:VXT42) ->  | VVV48: =IRRm(VVU42:VXT42) -> 1.1 | VVY48: =IRR(VVY42:VXX42) ->  | VVZ48: =IRRm(VVY42:VXX42) -> 1.1 | VWC48: =IRR(VWC42:VYB42) ->  | VWD48: =IRRm(VWC42:VYB42) -> 1.1 | VWG48: =IRR(VWG42:VYF42) ->  | VWH48: =IRRm(VWG42:VYF42) -> 1.1 | VWK48: =IRR(VWK42:VYJ42) ->  | VWL48: =IRRm(VWK42:VYJ42) -> 1.1 | VWO48: =IRR(VWO42:VYN42) ->  | VWP48: =IRRm(VWO42:VYN42) -> 1.1 | VWS48: =IRR(VWS42:VYR42) ->  | VWT48: =IRRm(VWS42:VYR42) -> 1.1 | VWW48: =IRR(VWW42:VYV42) ->  | VWX48: =IRRm(VWW42:VYV42) -> 1.1 | VXA48: =IRR(VXA42:VYZ42) ->  | VXB48: =IRRm(VXA42:VYZ42) -> 1.1 | VXE48: =IRR(VXE42:VZD42) ->  | VXF48: =IRRm(VXE42:VZD42) -> 1.1 | VXI48: =IRR(VXI42:VZH42) ->  | VXJ48: =IRRm(VXI42:VZH42) -> 1.1 | VXM48: =IRR(VXM42:VZL42) ->  | VXN48: =IRRm(VXM42:VZL42) -> 1.1 | VXQ48: =IRR(VXQ42:VZP42) ->  | VXR48: =IRRm(VXQ42:VZP42) -> 1.1 | VXU48: =IRR(VXU42:VZT42) ->  | VXV48: =IRRm(VXU42:VZT42) -> 1.1 | VXY48: =IRR(VXY42:VZX42) ->  | VXZ48: =IRRm(VXY42:VZX42) -> 1.1 | VYC48: =IRR(VYC42:WAB42) ->  | VYD48: =IRRm(VYC42:WAB42) -> 1.1 | VYG48: =IRR(VYG42:WAF42) ->  | VYH48: =IRRm(VYG42:WAF42) -> 1.1 | VYK48: =IRR(VYK42:WAJ42) ->  | VYL48: =IRRm(VYK42:WAJ42) -> 1.1 | VYO48: =IRR(VYO42:WAN42) ->  | VYP48: =IRRm(VYO42:WAN42) -> 1.1 | VYS48: =IRR(VYS42:WAR42) ->  | VYT48: =IRRm(VYS42:WAR42) -> 1.1 | VYW48: =IRR(VYW42:WAV42) ->  | VYX48: =IRRm(VYW42:WAV42) -> 1.1 | VZA48: =IRR(VZA42:WAZ42) ->  | VZB48: =IRRm(VZA42:WAZ42) -> 1.1 | VZE48: =IRR(VZE42:WBD42) ->  | VZF48: =IRRm(VZE42:WBD42) -> 1.1 | VZI48: =IRR(VZI42:WBH42) ->  | VZJ48: =IRRm(VZI42:WBH42) -> 1.1 | VZM48: =IRR(VZM42:WBL42) ->  | VZN48: =IRRm(VZM42:WBL42) -> 1.1 | VZQ48: =IRR(VZQ42:WBP42) ->  | VZR48: =IRRm(VZQ42:WBP42) -> 1.1 | VZU48: =IRR(VZU42:WBT42) ->  | VZV48: =IRRm(VZU42:WBT42) -> 1.1 | VZY48: =IRR(VZY42:WBX42) ->  | VZZ48: =IRRm(VZY42:WBX42) -> 1.1 | WAC48: =IRR(WAC42:WCB42) ->  | WAD48: =IRRm(WAC42:WCB42) -> 1.1 | WAG48: =IRR(WAG42:WCF42) ->  | WAH48: =IRRm(WAG42:WCF42) -> 1.1 | WAK48: =IRR(WAK42:WCJ42) ->  | WAL48: =IRRm(WAK42:WCJ42) -> 1.1 | WAO48: =IRR(WAO42:WCN42) ->  | WAP48: =IRRm(WAO42:WCN42) -> 1.1 | WAS48: =IRR(WAS42:WCR42) ->  | WAT48: =IRRm(WAS42:WCR42) -> 1.1 | WAW48: =IRR(WAW42:WCV42) ->  | WAX48: =IRRm(WAW42:WCV42) -> 1.1 | WBA48: =IRR(WBA42:WCZ42) ->  | WBB48: =IRRm(WBA42:WCZ42) -> 1.1 | WBE48: =IRR(WBE42:WDD42) ->  | WBF48: =IRRm(WBE42:WDD42) -> 1.1 | WBI48: =IRR(WBI42:WDH42) ->  | WBJ48: =IRRm(WBI42:WDH42) -> 1.1 | WBM48: =IRR(WBM42:WDL42) ->  | WBN48: =IRRm(WBM42:WDL42) -> 1.1 | WBQ48: =IRR(WBQ42:WDP42) ->  | WBR48: =IRRm(WBQ42:WDP42) -> 1.1 | WBU48: =IRR(WBU42:WDT42) ->  | WBV48: =IRRm(WBU42:WDT42) -> 1.1 | WBY48: =IRR(WBY42:WDX42) ->  | WBZ48: =IRRm(WBY42:WDX42) -> 1.1 | WCC48: =IRR(WCC42:WEB42) ->  | WCD48: =IRRm(WCC42:WEB42) -> 1.1 | WCG48: =IRR(WCG42:WEF42) ->  | WCH48: =IRRm(WCG42:WEF42) -> 1.1 | WCK48: =IRR(WCK42:WEJ42) ->  | WCL48: =IRRm(WCK42:WEJ42) -> 1.1 | WCO48: =IRR(WCO42:WEN42) ->  | WCP48: =IRRm(WCO42:WEN42) -> 1.1 | WCS48: =IRR(WCS42:WER42) ->  | WCT48: =IRRm(WCS42:WER42) -> 1.1 | WCW48: =IRR(WCW42:WEV42) ->  | WCX48: =IRRm(WCW42:WEV42) -> 1.1 | WDA48: =IRR(WDA42:WEZ42) ->  | WDB48: =IRRm(WDA42:WEZ42) -> 1.1 | WDE48: =IRR(WDE42:WFD42) ->  | WDF48: =IRRm(WDE42:WFD42) -> 1.1 | WDI48: =IRR(WDI42:WFH42) ->  | WDJ48: =IRRm(WDI42:WFH42) -> 1.1 | WDM48: =IRR(WDM42:WFL42) ->  | WDN48: =IRRm(WDM42:WFL42) -> 1.1 | WDQ48: =IRR(WDQ42:WFP42) ->  | WDR48: =IRRm(WDQ42:WFP42) -> 1.1 | WDU48: =IRR(WDU42:WFT42) ->  | WDV48: =IRRm(WDU42:WFT42) -> 1.1 | WDY48: =IRR(WDY42:WFX42) ->  | WDZ48: =IRRm(WDY42:WFX42) -> 1.1 | WEC48: =IRR(WEC42:WGB42) ->  | WED48: =IRRm(WEC42:WGB42) -> 1.1 | WEG48: =IRR(WEG42:WGF42) ->  | WEH48: =IRRm(WEG42:WGF42) -> 1.1 | WEK48: =IRR(WEK42:WGJ42) ->  | WEL48: =IRRm(WEK42:WGJ42) -> 1.1 | WEO48: =IRR(WEO42:WGN42) ->  | WEP48: =IRRm(WEO42:WGN42) -> 1.1 | WES48: =IRR(WES42:WGR42) ->  | WET48: =IRRm(WES42:WGR42) -> 1.1 | WEW48: =IRR(WEW42:WGV42) ->  | WEX48: =IRRm(WEW42:WGV42) -> 1.1 | WFA48: =IRR(WFA42:WGZ42) ->  | WFB48: =IRRm(WFA42:WGZ42) -> 1.1 | WFE48: =IRR(WFE42:WHD42) ->  | WFF48: =IRRm(WFE42:WHD42) -> 1.1 | WFI48: =IRR(WFI42:WHH42) ->  | WFJ48: =IRRm(WFI42:WHH42) -> 1.1 | WFM48: =IRR(WFM42:WHL42) ->  | WFN48: =IRRm(WFM42:WHL42) -> 1.1 | WFQ48: =IRR(WFQ42:WHP42) ->  | WFR48: =IRRm(WFQ42:WHP42) -> 1.1 | WFU48: =IRR(WFU42:WHT42) ->  | WFV48: =IRRm(WFU42:WHT42) -> 1.1 | WFY48: =IRR(WFY42:WHX42) ->  | WFZ48: =IRRm(WFY42:WHX42) -> 1.1 | WGC48: =IRR(WGC42:WIB42) ->  | WGD48: =IRRm(WGC42:WIB42) -> 1.1 | WGG48: =IRR(WGG42:WIF42) ->  | WGH48: =IRRm(WGG42:WIF42) -> 1.1 | WGK48: =IRR(WGK42:WIJ42) ->  | WGL48: =IRRm(WGK42:WIJ42) -> 1.1 | WGO48: =IRR(WGO42:WIN42) ->  | WGP48: =IRRm(WGO42:WIN42) -> 1.1 | WGS48: =IRR(WGS42:WIR42) ->  | WGT48: =IRRm(WGS42:WIR42) -> 1.1 | WGW48: =IRR(WGW42:WIV42) ->  | WGX48: =IRRm(WGW42:WIV42) -> 1.1 | WHA48: =IRR(WHA42:WIZ42) ->  | WHB48: =IRRm(WHA42:WIZ42) -> 1.1 | WHE48: =IRR(WHE42:WJD42) ->  | WHF48: =IRRm(WHE42:WJD42) -> 1.1 | WHI48: =IRR(WHI42:WJH42) ->  | WHJ48: =IRRm(WHI42:WJH42) -> 1.1 | WHM48: =IRR(WHM42:WJL42) ->  | WHN48: =IRRm(WHM42:WJL42) -> 1.1 | WHQ48: =IRR(WHQ42:WJP42) ->  | WHR48: =IRRm(WHQ42:WJP42) -> 1.1 | WHU48: =IRR(WHU42:WJT42) ->  | WHV48: =IRRm(WHU42:WJT42) -> 1.1 | WHY48: =IRR(WHY42:WJX42) ->  | WHZ48: =IRRm(WHY42:WJX42) -> 1.1 | WIC48: =IRR(WIC42:WKB42) ->  | WID48: =IRRm(WIC42:WKB42) -> 1.1 | WIG48: =IRR(WIG42:WKF42) ->  | WIH48: =IRRm(WIG42:WKF42) -> 1.1 | WIK48: =IRR(WIK42:WKJ42) ->  | WIL48: =IRRm(WIK42:WKJ42) -> 1.1 | WIO48: =IRR(WIO42:WKN42) ->  | WIP48: =IRRm(WIO42:WKN42) -> 1.1 | WIS48: =IRR(WIS42:WKR42) ->  | WIT48: =IRRm(WIS42:WKR42) -> 1.1 | WIW48: =IRR(WIW42:WKV42) ->  | WIX48: =IRRm(WIW42:WKV42) -> 1.1 | WJA48: =IRR(WJA42:WKZ42) ->  | WJB48: =IRRm(WJA42:WKZ42) -> 1.1 | WJE48: =IRR(WJE42:WLD42) ->  | WJF48: =IRRm(WJE42:WLD42) -> 1.1 | WJI48: =IRR(WJI42:WLH42) ->  | WJJ48: =IRRm(WJI42:WLH42) -> 1.1 | WJM48: =IRR(WJM42:WLL42) ->  | WJN48: =IRRm(WJM42:WLL42) -> 1.1 | WJQ48: =IRR(WJQ42:WLP42) ->  | WJR48: =IRRm(WJQ42:WLP42) -> 1.1 | WJU48: =IRR(WJU42:WLT42) ->  | WJV48: =IRRm(WJU42:WLT42) -> 1.1 | WJY48: =IRR(WJY42:WLX42) ->  | WJZ48: =IRRm(WJY42:WLX42) -> 1.1 | WKC48: =IRR(WKC42:WMB42) ->  | WKD48: =IRRm(WKC42:WMB42) -> 1.1 | WKG48: =IRR(WKG42:WMF42) ->  | WKH48: =IRRm(WKG42:WMF42) -> 1.1 | WKK48: =IRR(WKK42:WMJ42) ->  | WKL48: =IRRm(WKK42:WMJ42) -> 1.1 | WKO48: =IRR(WKO42:WMN42) ->  | WKP48: =IRRm(WKO42:WMN42) -> 1.1 | WKS48: =IRR(WKS42:WMR42) ->  | WKT48: =IRRm(WKS42:WMR42) -> 1.1 | WKW48: =IRR(WKW42:WMV42) ->  | WKX48: =IRRm(WKW42:WMV42) -> 1.1 | WLA48: =IRR(WLA42:WMZ42) ->  | WLB48: =IRRm(WLA42:WMZ42) -> 1.1 | WLE48: =IRR(WLE42:WND42) ->  | WLF48: =IRRm(WLE42:WND42) -> 1.1 | WLI48: =IRR(WLI42:WNH42) ->  | WLJ48: =IRRm(WLI42:WNH42) -> 1.1 | WLM48: =IRR(WLM42:WNL42) ->  | WLN48: =IRRm(WLM42:WNL42) -> 1.1 | WLQ48: =IRR(WLQ42:WNP42) ->  | WLR48: =IRRm(WLQ42:WNP42) -> 1.1 | WLU48: =IRR(WLU42:WNT42) ->  | WLV48: =IRRm(WLU42:WNT42) -> 1.1 | WLY48: =IRR(WLY42:WNX42) ->  | WLZ48: =IRRm(WLY42:WNX42) -> 1.1 | WMC48: =IRR(WMC42:WOB42) ->  | WMD48: =IRRm(WMC42:WOB42) -> 1.1 | WMG48: =IRR(WMG42:WOF42) ->  | WMH48: =IRRm(WMG42:WOF42) -> 1.1 | WMK48: =IRR(WMK42:WOJ42) ->  | WML48: =IRRm(WMK42:WOJ42) -> 1.1 | WMO48: =IRR(WMO42:WON42) ->  | WMP48: =IRRm(WMO42:WON42) -> 1.1 | WMS48: =IRR(WMS42:WOR42) ->  | WMT48: =IRRm(WMS42:WOR42) -> 1.1 | WMW48: =IRR(WMW42:WOV42) ->  | WMX48: =IRRm(WMW42:WOV42) -> 1.1 | WNA48: =IRR(WNA42:WOZ42) ->  | WNB48: =IRRm(WNA42:WOZ42) -> 1.1 | WNE48: =IRR(WNE42:WPD42) ->  | WNF48: =IRRm(WNE42:WPD42) -> 1.1 | WNI48: =IRR(WNI42:WPH42) ->  | WNJ48: =IRRm(WNI42:WPH42) -> 1.1 | WNM48: =IRR(WNM42:WPL42) ->  | WNN48: =IRRm(WNM42:WPL42) -> 1.1 | WNQ48: =IRR(WNQ42:WPP42) ->  | WNR48: =IRRm(WNQ42:WPP42) -> 1.1 | WNU48: =IRR(WNU42:WPT42) ->  | WNV48: =IRRm(WNU42:WPT42) -> 1.1 | WNY48: =IRR(WNY42:WPX42) ->  | WNZ48: =IRRm(WNY42:WPX42) -> 1.1 | WOC48: =IRR(WOC42:WQB42) ->  | WOD48: =IRRm(WOC42:WQB42) -> 1.1 | WOG48: =IRR(WOG42:WQF42) ->  | WOH48: =IRRm(WOG42:WQF42) -> 1.1 | WOK48: =IRR(WOK42:WQJ42) ->  | WOL48: =IRRm(WOK42:WQJ42) -> 1.1 | WOO48: =IRR(WOO42:WQN42) ->  | WOP48: =IRRm(WOO42:WQN42) -> 1.1 | WOS48: =IRR(WOS42:WQR42) ->  | WOT48: =IRRm(WOS42:WQR42) -> 1.1 | WOW48: =IRR(WOW42:WQV42) ->  | WOX48: =IRRm(WOW42:WQV42) -> 1.1 | WPA48: =IRR(WPA42:WQZ42) ->  | WPB48: =IRRm(WPA42:WQZ42) -> 1.1 | WPE48: =IRR(WPE42:WRD42) ->  | WPF48: =IRRm(WPE42:WRD42) -> 1.1 | WPI48: =IRR(WPI42:WRH42) ->  | WPJ48: =IRRm(WPI42:WRH42) -> 1.1 | WPM48: =IRR(WPM42:WRL42) ->  | WPN48: =IRRm(WPM42:WRL42) -> 1.1 | WPQ48: =IRR(WPQ42:WRP42) ->  | WPR48: =IRRm(WPQ42:WRP42) -> 1.1 | WPU48: =IRR(WPU42:WRT42) ->  | WPV48: =IRRm(WPU42:WRT42) -> 1.1 | WPY48: =IRR(WPY42:WRX42) ->  | WPZ48: =IRRm(WPY42:WRX42) -> 1.1 | WQC48: =IRR(WQC42:WSB42) ->  | WQD48: =IRRm(WQC42:WSB42) -> 1.1 | WQG48: =IRR(WQG42:WSF42) ->  | WQH48: =IRRm(WQG42:WSF42) -> 1.1 | WQK48: =IRR(WQK42:WSJ42) ->  | WQL48: =IRRm(WQK42:WSJ42) -> 1.1 | WQO48: =IRR(WQO42:WSN42) ->  | WQP48: =IRRm(WQO42:WSN42) -> 1.1 | WQS48: =IRR(WQS42:WSR42) ->  | WQT48: =IRRm(WQS42:WSR42) -> 1.1 | WQW48: =IRR(WQW42:WSV42) ->  | WQX48: =IRRm(WQW42:WSV42) -> 1.1 | WRA48: =IRR(WRA42:WSZ42) ->  | WRB48: =IRRm(WRA42:WSZ42) -> 1.1 | WRE48: =IRR(WRE42:WTD42) ->  | WRF48: =IRRm(WRE42:WTD42) -> 1.1 | WRI48: =IRR(WRI42:WTH42) ->  | WRJ48: =IRRm(WRI42:WTH42) -> 1.1 | WRM48: =IRR(WRM42:WTL42) ->  | WRN48: =IRRm(WRM42:WTL42) -> 1.1 | WRQ48: =IRR(WRQ42:WTP42) ->  | WRR48: =IRRm(WRQ42:WTP42) -> 1.1 | WRU48: =IRR(WRU42:WTT42) ->  | WRV48: =IRRm(WRU42:WTT42) -> 1.1 | WRY48: =IRR(WRY42:WTX42) ->  | WRZ48: =IRRm(WRY42:WTX42) -> 1.1 | WSC48: =IRR(WSC42:WUB42) ->  | WSD48: =IRRm(WSC42:WUB42) -> 1.1 | WSG48: =IRR(WSG42:WUF42) ->  | WSH48: =IRRm(WSG42:WUF42) -> 1.1 | WSK48: =IRR(WSK42:WUJ42) ->  | WSL48: =IRRm(WSK42:WUJ42) -> 1.1 | WSO48: =IRR(WSO42:WUN42) ->  | WSP48: =IRRm(WSO42:WUN42) -> 1.1 | WSS48: =IRR(WSS42:WUR42) ->  | WST48: =IRRm(WSS42:WUR42) -> 1.1 | WSW48: =IRR(WSW42:WUV42) ->  | WSX48: =IRRm(WSW42:WUV42) -> 1.1 | WTA48: =IRR(WTA42:WUZ42) ->  | WTB48: =IRRm(WTA42:WUZ42) -> 1.1 | WTE48: =IRR(WTE42:WVD42) ->  | WTF48: =IRRm(WTE42:WVD42) -> 1.1 | WTI48: =IRR(WTI42:WVH42) ->  | WTJ48: =IRRm(WTI42:WVH42) -> 1.1 | WTM48: =IRR(WTM42:WVL42) ->  | WTN48: =IRRm(WTM42:WVL42) -> 1.1 | WTQ48: =IRR(WTQ42:WVP42) ->  | WTR48: =IRRm(WTQ42:WVP42) -> 1.1 | WTU48: =IRR(WTU42:WVT42) ->  | WTV48: =IRRm(WTU42:WVT42) -> 1.1 | WTY48: =IRR(WTY42:WVX42) ->  | WTZ48: =IRRm(WTY42:WVX42) -> 1.1 | WUC48: =IRR(WUC42:WWB42) ->  | WUD48: =IRRm(WUC42:WWB42) -> 1.1 | WUG48: =IRR(WUG42:WWF42) ->  | WUH48: =IRRm(WUG42:WWF42) -> 1.1 | WUK48: =IRR(WUK42:WWJ42) ->  | WUL48: =IRRm(WUK42:WWJ42) -> 1.1 | WUO48: =IRR(WUO42:WWN42) ->  | WUP48: =IRRm(WUO42:WWN42) -> 1.1 | WUS48: =IRR(WUS42:WWR42) ->  | WUT48: =IRRm(WUS42:WWR42) -> 1.1 | WUW48: =IRR(WUW42:WWV42) ->  | WUX48: =IRRm(WUW42:WWV42) -> 1.1 | WVA48: =IRR(WVA42:WWZ42) ->  | WVB48: =IRRm(WVA42:WWZ42) -> 1.1 | WVE48: =IRR(WVE42:WXD42) ->  | WVF48: =IRRm(WVE42:WXD42) -> 1.1 | WVI48: =IRR(WVI42:WXH42) ->  | WVJ48: =IRRm(WVI42:WXH42) -> 1.1 | WVM48: =IRR(WVM42:WXL42) ->  | WVN48: =IRRm(WVM42:WXL42) -> 1.1 | WVQ48: =IRR(WVQ42:WXP42) ->  | WVR48: =IRRm(WVQ42:WXP42) -> 1.1 | WVU48: =IRR(WVU42:WXT42) ->  | WVV48: =IRRm(WVU42:WXT42) -> 1.1 | WVY48: =IRR(WVY42:WXX42) ->  | WVZ48: =IRRm(WVY42:WXX42) -> 1.1 | WWC48: =IRR(WWC42:WYB42) ->  | WWD48: =IRRm(WWC42:WYB42) -> 1.1 | WWG48: =IRR(WWG42:WYF42) ->  | WWH48: =IRRm(WWG42:WYF42) -> 1.1 | WWK48: =IRR(WWK42:WYJ42) ->  | WWL48: =IRRm(WWK42:WYJ42) -> 1.1 | WWO48: =IRR(WWO42:WYN42) ->  | WWP48: =IRRm(WWO42:WYN42) -> 1.1 | WWS48: =IRR(WWS42:WYR42) ->  | WWT48: =IRRm(WWS42:WYR42) -> 1.1 | WWW48: =IRR(WWW42:WYV42) ->  | WWX48: =IRRm(WWW42:WYV42) -> 1.1 | WXA48: =IRR(WXA42:WYZ42) ->  | WXB48: =IRRm(WXA42:WYZ42) -> 1.1 | WXE48: =IRR(WXE42:WZD42) ->  | WXF48: =IRRm(WXE42:WZD42) -> 1.1 | WXI48: =IRR(WXI42:WZH42) ->  | WXJ48: =IRRm(WXI42:WZH42) -> 1.1 | WXM48: =IRR(WXM42:WZL42) ->  | WXN48: =IRRm(WXM42:WZL42) -> 1.1 | WXQ48: =IRR(WXQ42:WZP42) ->  | WXR48: =IRRm(WXQ42:WZP42) -> 1.1 | WXU48: =IRR(WXU42:WZT42) ->  | WXV48: =IRRm(WXU42:WZT42) -> 1.1 | WXY48: =IRR(WXY42:WZX42) ->  | WXZ48: =IRRm(WXY42:WZX42) -> 1.1 | WYC48: =IRR(WYC42:XAB42) ->  | WYD48: =IRRm(WYC42:XAB42) -> 1.1 | WYG48: =IRR(WYG42:XAF42) ->  | WYH48: =IRRm(WYG42:XAF42) -> 1.1 | WYK48: =IRR(WYK42:XAJ42) ->  | WYL48: =IRRm(WYK42:XAJ42) -> 1.1 | WYO48: =IRR(WYO42:XAN42) ->  | WYP48: =IRRm(WYO42:XAN42) -> 1.1 | WYS48: =IRR(WYS42:XAR42) ->  | WYT48: =IRRm(WYS42:XAR42) -> 1.1 | WYW48: =IRR(WYW42:XAV42) ->  | WYX48: =IRRm(WYW42:XAV42) -> 1.1 | WZA48: =IRR(WZA42:XAZ42) ->  | WZB48: =IRRm(WZA42:XAZ42) -> 1.1 | WZE48: =IRR(WZE42:XBD42) ->  | WZF48: =IRRm(WZE42:XBD42) -> 1.1 | WZI48: =IRR(WZI42:XBH42) ->  | WZJ48: =IRRm(WZI42:XBH42) -> 1.1 | WZM48: =IRR(WZM42:XBL42) ->  | WZN48: =IRRm(WZM42:XBL42) -> 1.1 | WZQ48: =IRR(WZQ42:XBP42) ->  | WZR48: =IRRm(WZQ42:XBP42) -> 1.1 | WZU48: =IRR(WZU42:XBT42) ->  | WZV48: =IRRm(WZU42:XBT42) -> 1.1 | WZY48: =IRR(WZY42:XBX42) ->  | WZZ48: =IRRm(WZY42:XBX42) -> 1.1 | XAC48: =IRR(XAC42:XCB42) ->  | XAD48: =IRRm(XAC42:XCB42) -> 1.1 | XAG48: =IRR(XAG42:XCF42) ->  | XAH48: =IRRm(XAG42:XCF42) -> 1.1 | XAK48: =IRR(XAK42:XCJ42) ->  | XAL48: =IRRm(XAK42:XCJ42) -> 1.1 | XAO48: =IRR(XAO42:XCN42) ->  | XAP48: =IRRm(XAO42:XCN42) -> 1.1 | XAS48: =IRR(XAS42:XCR42) ->  | XAT48: =IRRm(XAS42:XCR42) -> 1.1 | XAW48: =IRR(XAW42:XCV42) ->  | XAX48: =IRRm(XAW42:XCV42) -> 1.1 | XBA48: =IRR(XBA42:XCZ42) ->  | XBB48: =IRRm(XBA42:XCZ42) -> 1.1 | XBE48: =IRR(XBE42:XDD42) ->  | XBF48: =IRRm(XBE42:XDD42) -> 1.1 | XBI48: =IRR(XBI42:XDH42) ->  | XBJ48: =IRRm(XBI42:XDH42) -> 1.1 | XBM48: =IRR(XBM42:XDL42) ->  | XBN48: =IRRm(XBM42:XDL42) -> 1.1 | XBQ48: =IRR(XBQ42:XDP42) ->  | XBR48: =IRRm(XBQ42:XDP42) -> 1.1 | XBU48: =IRR(XBU42:XDT42) ->  | XBV48: =IRRm(XBU42:XDT42) -> 1.1 | XBY48: =IRR(XBY42:XDX42) ->  | XBZ48: =IRRm(XBY42:XDX42) -> 1.1 | XCC48: =IRR(XCC42:XEB42) ->  | XCD48: =IRRm(XCC42:XEB42) -> 1.1 | XCG48: =IRR(XCG42:XEF42) ->  | XCH48: =IRRm(XCG42:XEF42) -> 1.1 | XCK48: =IRR(XCK42:XEJ42) ->  | XCL48: =IRRm(XCK42:XEJ42) -> 1.1 | XCO48: =IRR(XCO42:XEN42) ->  | XCP48: =IRRm(XCO42:XEN42) -> 1.1 | XCS48: =IRR(XCS42:XER42) ->  | XCT48: =IRRm(XCS42:XER42) -> 1.1 | XCW48: =IRR(XCW42:XEV42) ->  | XCX48: =IRRm(XCW42:XEV42) -> 1.1 | XDA48: =IRR(XDA42:XEZ42) ->  | XDB48: =IRRm(XDA42:XEZ42) -> 1.1 | XDE48: =IRR(XDE42:XFD42) ->  | XDF48: =IRRm(XDE42:XFD42) -> 1.1 | XDI48: =IRR(#REF!) ->  | XDJ48: =IRRm(#REF!) ->  | XDM48: =IRR(#REF!) ->  | XDN48: =IRRm(#REF!) ->  | XDQ48: =IRR(#REF!) ->  | XDR48: =IRRm(#REF!) ->  | XDU48: =IRR(#REF!) ->  | XDV48: =IRRm(#REF!) ->  | XDY48: =IRR(#REF!) ->  | XDZ48: =IRRm(#REF!) ->  | XEC48: =IRR(#REF!) ->  | XED48: =IRRm(#REF!) ->  | XEG48: =IRR(#REF!) ->  | XEH48: =IRRm(#REF!) ->  | XEK48: =IRR(#REF!) ->  | XEL48: =IRRm(#REF!) ->  | XEO48: =IRR(#REF!) ->  | XEP48: =IRRm(#REF!) ->  | XES48: =IRR(#REF!) ->  | XET48: =IRRm(#REF!) ->  | XEW48: =IRR(#REF!) ->  | XEX48: =IRRm(#REF!) ->  | XFA48: =IRR(#REF!) ->  | XFB48: =IRRm(#REF!) -> 
A49: IRR | B49: =IRRm(B43:BA43) -> 0.2727739334
A50: INDEX RENTABILITY | B50: =(SUM(C43:BA43))/(-B43) -> 14.55642671
A51: REH | B51: =B47*((1/B46)-(1/(B46*(1+B46)^50)))^(-1) -> 2417439399 | C51: =C47*((1/C46)-(1/(C46*(1+C46)^50)))^(-1) -> 4059096785 | D51: =D47*((1/D46)-(1/(D46*(1+D46)^50)))^(-1) -> 5529116068 | E51: =E47*((1/E46)-(1/(E46*(1+E46)^50)))^(-1) -> 6516549546
A52: REH | B52: =ROUND(B51,-6) -> 2417000000 | C52: =ROUND(C51,-6) -> 4059000000 | D52: 5529000000 | E52: 6517000000
A55: Investiční akce ([Kč], zaokrouhleno na celá čísla) | B55: =SUM(W4:AH4) -> 2.5e+10
A56: Investiční akce/blok ([Kč], zaokrouhleno na celá čísla) | B56: =B55/4 -> 6250000000

Sheet Temelín
A1: Roky | B1: 2001 | C1: 2002 | D1: 2003 | E1: 2004 | F1: 2005 | G1: 2006 | H1: 2007 | I1: 2008 | J1: 2009 | K1: 2010 | L1: 2011 | M1: 2012 | N1: 2013 | O1: 2014 | P1: 2015 | Q1: 2016 | R1: 2017 | S1: 2018 | T1: 2019 | U1: 2020 | V1: 2021 | W1: 2022 | X1: 2023 | Y1: 2024 | Z1: 2025 | AA1: 2026 | AB1: 2027 | AC1: 2028 | AD1: 2029 | AE1: 2030 | AF1: 2031 | AG1: 2032 | AH1: 2033 | AI1: 2034 | AJ1: 2035 | AK1: 2036 | AL1: 2037 | AM1: 2038 | AN1: 2039 | AO1: 2040 | AP1: 2041 | AQ1: 2042 | AR1: 2043 | AS1: 2044 | AT1: 2045 | AU1: 2046 | AV1: 2047 | AW1: 2048 | AX1: 2049 | AY1: 2050 | AZ1: 2051 | BA1: 2052
A2: Stav | B2: kurzy - 1USD=24,01/1EUR=27,04 | C2: SPOUŠTĚNÍ | E2: PLNÝ PROVOZ
A3: INVESTIČNÍ NÁKLADY ([Kč], zaokrouhleno na celá čísla)
A4: Investice do DHM | B4: 98000000000 | C4: 0 | D4: 0 | E4: 0 | F4: 0 | G4: 0 | H4: =4500000000/9 -> 500000000 | I4: =4500000000/9 -> 500000000 | J4: 500000000 | K4: 500000000 | L4: 500000000 | M4: 500000000 | N4: 500000000 | O4: 500000000 | P4: 500000000 | Z4: =500000000 -> 500000000 | AJ4: =$B$59/10 -> 491666666.7 | AK4: 491666666.7 | AL4: 491666666.7 | AM4: 491666666.7 | AN4: 491666666.7 | AO4: 491666666.7 | AP4: 491666666.7 | AQ4: 491666666.7 | AR4: 491666666.7 | AS4: 491666666.7
A5: Odepisování DHM:
A6: Odpisy poč.inv. | C6: =$B$4/51 -> 1921568627 | D6: =$B$4/51 -> 1921568627 | E6: 1921568627 | F6: 1921568627 | G6: 1921568627 | H6: 1921568627 | I6: 1921568627 | J6: 1921568627 | K6: 1921568627 | L6: 1921568627 | M6: 1921568627 | N6: 1921568627 | O6: 1921568627 | P6: 1921568627 | Q6: 1921568627 | R6: 1921568627 | S6: 1921568627 | T6: 1921568627 | U6: 1921568627 | V6: 1921568627 | W6: 1921568627 | X6: 1921568627 | Y6: 1921568627 | Z6: 1921568627 | AA6: 1921568627 | AB6: 1921568627 | AC6: 1921568627 | AD6: 1921568627 | AE6: 1921568627 | AF6: 1921568627 | AG6: 1921568627 | AH6: 1921568627 | AI6: 1921568627 | AJ6: 1921568627 | AK6: 1921568627 | AL6: 1921568627 | AM6: 1921568627 | AN6: 1921568627 | AO6: 1921568627 | AP6: 1921568627 | AQ6: 1921568627 | AR6: 1921568627 | AS6: 1921568627 | AT6: 1921568627 | AU6: 1921568627 | AV6: 1921568627 | AW6: 1921568627 | AX6: 1921568627 | AY6: 1921568627 | AZ6: 1921568627 | BA6: 1921568627
A7: Odpisy průb.inv. | I7: =($H$4/27) -> 18518518.52 | J7: =I7+($I$4/26) -> 37749287.75 | K7: =J7+($J$4/25) -> 57749287.75 | L7: =K7+($K$4/24) -> 78582621.08 | M7: =L7+($L$4/23) -> 100321751.5 | N7: =M7+($M$4/22) -> 123049024.2 | O7: =N7+($N$4/21) -> 146858548.1 | P7: =O7+($O$4/20) -> 171858548.1 | Q7: =P7+($P$4/19) -> 198174337.5 | R7: =Q7 -> 198174337.5 | S7: =R7 -> 198174337.5 | T7: 198174337.5 | U7: 198174337.5 | V7: 198174337.5 | W7: 198174337.5 | X7: 198174337.5 | Y7: 198174337.5 | Z7: 198174337.5 | AA7: =Z7+($Z$4/9) -> 253729893.1 | AB7: 253729893.1 | AC7: 253729893.1 | AD7: 253729893.1 | AE7: 253729893.1 | AF7: 253729893.1 | AG7: 253729893.1 | AH7: 253729893.1 | AI7: 253729893.1 | AJ7: 0 | AK7: =($AJ$4/17) -> 28921568.63 | AL7: =AK7+($AK$4/16) -> 59650735.29 | AM7: =AL7+($AL$4/15) -> 92428513.07 | AN7: =AM7+($AM$4/14) -> 127547560.7 | AO7: =AN7+($AN$4/13) -> 165368073.5 | AP7: =AO7+($AO$4/12) -> 206340295.7 | AQ7: =AP7+($AP$4/11) -> 251037265.4 | AR7: =AQ7+($AQ$4/10) -> 300203932.1 | AS7: =AR7+($AR$4/9) -> 354833561.7 | AT7: =AS7+($AS$4/8) -> 416291895.1 | AU7: =AT7 -> 416291895.1 | AV7: =AU7 -> 416291895.1 | AW7: 416291895.1 | AX7: 416291895.1 | AY7: 416291895.1 | AZ7: 416291895.1 | BA7: 416291895.1
A8: Odpisy | C8: =C6+C7 -> 1921568627 | D8: =D6+D7 -> 1921568627 | E8: 1921568627 | F8: 1921568627 | G8: 1921568627 | H8: 1921568627 | I8: 1940087146 | J8: 1959317915 | K8: 1979317915 | L8: 2000151249 | M8: 2021890379 | N8: 2044617652 | O8: 2068427176 | P8: 2093427176 | Q8: 2119742965 | R8: 2119742965 | S8: 2119742965 | T8: 2119742965 | U8: 2119742965 | V8: 2119742965 | W8: 2119742965 | X8: 2119742965 | Y8: 2119742965 | Z8: 2119742965 | AA8: 2175298521 | AB8: 2175298521 | AC8: 2175298521 | AD8: 2175298521 | AE8: 2175298521 | AF8: 2175298521 | AG8: 2175298521 | AH8: 2175298521 | AI8: 2175298521 | AJ8: 1921568627 | AK8: 1950490196 | AL8: 1981219363 | AM8: 2013997141 | AN8: 2049116188 | AO8: 2086936701 | AP8: 2127908923 | AQ8: 2172605893 | AR8: 2221772560 | AS8: 2276402189 | AT8: 2337860523 | AU8: 2337860523 | AV8: 2337860523 | AW8: 2337860523 | AX8: 2337860523 | AY8: 2337860523 | AZ8: 2337860523 | BA8: 2337860523
A9: Zůstatková hodnota celk.DHM | C9: =B4-C8 -> 9.607843137e+10 | D9: =(C9+D4)-D8 -> 9.415686275e+10 | E9: =(D9+E4)-E8 -> 9.223529412e+10 | F9: =(E9+F4)-F8 -> 9.031372549e+10 | G9: 8.839215686e+10 | H9: 8.697058824e+10 | I9: 8.553050109e+10 | J9: 8.407118317e+10 | K9: 8.259186526e+10 | L9: 8.109171401e+10 | M9: 7.956982363e+10 | N9: 7.802520598e+10 | O9: 7.64567788e+10 | P9: 7.486335163e+10 | Q9: 7.274360866e+10 | R9: 7.06238657e+10 | S9: 6.850412273e+10 | T9: 6.638437977e+10 | U9: 6.42646368e+10 | V9: 6.214489384e+10 | W9: 6.002515087e+10 | X9: 5.790540791e+10 | Y9: 5.578566494e+10 | Z9: 5.416592198e+10 | AA9: 5.199062346e+10 | AB9: 4.981532494e+10 | AC9: 4.764002642e+10 | AD9: 4.54647279e+10 | AE9: 4.328942938e+10 | AF9: 4.111413086e+10 | AG9: 3.893883234e+10 | AH9: 3.676353381e+10 | AI9: 3.458823529e+10 | AJ9: 3.315833333e+10 | AK9: 3.16995098e+10 | AL9: 3.020995711e+10 | AM9: 2.868762663e+10 | AN9: 2.713017711e+10 | AO9: 2.553490708e+10 | AP9: 2.389866482e+10 | AQ9: 2.22177256e+10 | AR9: 2.04876197e+10 | AS9: 1.870288418e+10 | AT9: 1.636502366e+10 | AU9: 1.402716314e+10 | AV9: 1.168930261e+10 | AW9: 9351442090 | AX9: 7013581568 | AY9: 4675721045 | AZ9: 2337860523 | BA9: -1.621246338e-05
A11: PROVOZNÍ NÁKLADY
A12: Vyrobená elektřina [GWh] | C12: 5830 | D12: 12117 | E12: 12577 | F12: 10945 | G12: 11878 | H12: 12217 | I12: 12055 | J12: 13204 | K12: 13628 | L12: 13836 | M12: 15058 | N12: 15034 | O12: 14928 | P12: 14154 | Q12: =(7500*2*1080)/1000 -> 16200 | R12: =(7500*2*1080)/1000 -> 16200 | S12: 16200 | T12: 16200 | U12: 16200 | V12: 16200 | W12: 16200 | X12: 16200 | Y12: 16200 | Z12: 16200 | AA12: 16200 | AB12: 16200 | AC12: 16200 | AD12: 16200 | AE12: 16200 | AF12: 16200 | AG12: 16200 | AH12: 16200 | AI12: 16200 | AJ12: 16200 | AK12: 16200 | AL12: 16200 | AM12: 16200 | AN12: 16200 | AO12: 16200 | AP12: 16200 | AQ12: 16200 | AR12: 16200 | AS12: 16200 | AT12: 16200 | AU12: 16200 | AV12: 16200 | AW12: 16200 | AX12: 16200 | AY12: 16200 | AZ12: 16200 | BA12: 16200
A13: NÁKLADY NA PALIVO ([Kč], zaokrouhleno na celá čísla)
A14: Cena za 1kg rudy | C14: 561.41 | D14: 636 | E14: 1063.5 | F14: 1612.9 | G14: 2593.6 | H14: 4791 | I14: 4333.8 | J14: 3460.8 | K14: 3219.5 | L14: 3527.8 | M14: 3179.03 | N14: 2858.03 | O14: 2453.8 | P14: 2444.89 | Q14: 2318.11 | R14: 3176.603458 | S14: 3208.796021 | T14: 3241.314833 | U14: 3274.163199 | V14: 3307.34446 | W14: 3340.861989 | X14: 3374.719193 | Y14: 3408.919515 | Z14: 3443.466433 | AA14: 3478.363459 | AB14: 3513.61414 | AC14: 3549.222062 | AD14: 3585.190844 | AE14: 3621.524143 | AF14: 3658.225654 | AG14: 3695.299108 | AH14: 3732.748275 | AI14: 3770.576962 | AJ14: 3808.789014 | AK14: 3847.388318 | AL14: 3886.378798 | AM14: 3925.764418 | AN14: 3965.549183 | AO14: 4005.737137 | AP14: 4046.332367 | AQ14: 4087.339 | AR14: 4128.761206 | AS14: 4170.603195 | AT14: 4212.869223 | AU14: 4255.563585 | AV14: 4298.690625 | AW14: 4342.254725 | AX14: 4386.260316 | AY14: 4430.711871 | AZ14: 4475.613911 | BA14: 4520.971
A15: Kg rudy na výrobu elektřiny | B15: z 8,9kg rudy je 0,360GWh | C15: =(C12/0.36)*8.9 -> 144130.5556 | D15: =(D12/0.36)*8.9 -> 299559.1667 | E15: 310931.3889 | F15: 270584.7222 | G15: 293650.5556 | H15: 302031.3889 | I15: 298026.3889 | J15: 326432.2222 | K15: 336914.4444 | L15: 342056.6667 | M15: 372267.2222 | N15: 371673.8889 | O15: 369053.3333 | P15: 349918.3333 | Q15: 400500 | R15: 400500 | S15: 400500 | T15: 400500 | U15: 400500 | V15: 400500 | W15: 400500 | X15: 400500 | Y15: 400500 | Z15: 400500 | AA15: 400500 | AB15: 400500 | AC15: 400500 | AD15: 400500 | AE15: 400500 | AF15: 400500 | AG15: 400500 | AH15: 400500 | AI15: 400500 | AJ15: 400500 | AK15: 400500 | AL15: 400500 | AM15: 400500 | AN15: 400500 | AO15: 400500 | AP15: 400500 | AQ15: 400500 | AR15: 400500 | AS15: 400500 | AT15: 400500 | AU15: 400500 | AV15: 400500 | AW15: 400500 | AX15: 400500 | AY15: 400500 | AZ15: 400500 | BA15: 400500
A16: Cena za rudu na výrobu | B16: 46% ceny paliva | C16: =C15*C14 -> 80916335.19 | D16: =D15*D14 -> 190519630 | E16: 330675532.1 | F16: 436426098.5 | G16: 761612080.9 | H16: 1447032384 | I16: 1291586764 | J16: 1129716635 | K16: 1084696054 | L16: 1206707509 | M16: 1183448667 | N16: 1062255125 | O16: 905583069.3 | P16: 855511834 | Q16: 928403055 | R16: 1272229685 | S16: 1285122807 | T16: 1298146591 | U16: 1311302361 | V16: 1324591456 | W16: 1338015226 | X16: 1351575037 | Y16: 1365272266 | Z16: 1379108306 | AA16: 1393084565 | AB16: 1407202463 | AC16: 1421463436 | AD16: 1435868933 | AE16: 1450420419 | AF16: 1465119375 | AG16: 1479967293 | AH16: 1494965684 | AI16: 1510116073 | AJ16: 1525420000 | AK16: 1540879022 | AL16: 1556494709 | AM16: 1572268650 | AN16: 1588202448 | AO16: 1604297724 | AP16: 1620556113 | AQ16: 1636979270 | AR16: 1653568863 | AS16: 1670326580 | AT16: 1687254124 | AU16: 1704353216 | AV16: 1721625595 | AW16: 1739073017 | AX16: 1756697256 | AY16: 1774500104 | AZ16: 1792483371 | BA16: 1810648885
A17: Cena za palivo | C17: =(100/46)*C16 -> 175905076.5 | D17: =(100/46)*D16 -> 414173108.7 | E17: 718859852.4 | F17: 948752388 | G17: 1655678437 | H17: 3145722574 | I17: 2807797313 | J17: 2455905728 | K17: 2358034900 | L17: 2623277193 | M17: 2572714494 | N17: 2309250271 | O17: 1968658846 | P17: 1859808335 | Q17: 2018267511 | R17: 2765716706 | S17: 2793745232 | T17: 2822057806 | U17: 2850657307 | V17: 2879546644 | W17: 2908728753 | X17: 2938206602 | Y17: 2967983187 | Z17: 2998061536 | AA17: 3028444707 | AB17: 3059135790 | AC17: 3090137904 | AD17: 3121454202 | AE17: 3153087868 | AF17: 3185042119 | AG17: 3217320202 | AH17: 3249925400 | AI17: 3282861028 | AJ17: 3316130435 | AK17: 3349737003 | AL17: 3383684149 | AM17: 3417975325 | AN17: 3452614017 | AO17: 3487603747 | AP17: 3522948072 | AQ17: 3558650586 | AR17: 3594714919 | AS17: 3631144738 | AT17: 3667943747 | AU17: 3705115687 | AV17: 3742664337 | AW17: 3780593516 | AX17: 3818907079 | AY17: 3857608923 | AZ17: 3896702981 | BA17: 3936193229
A19: ODVODY NA JADERNÝ ÚČET ([Kč], zaokrouhleno na celá čísla) | B19: =50 -> 50 | C19: =$B$19*C12*1000 -> 291500000 | D19: 605850000 | E19: 628850000 | F19: 547250000 | G19: 593900000 | H19: 610850000 | I19: 602750000 | J19: 660200000 | K19: 681400000 | L19: 691800000 | M19: 752900000 | N19: 751700000 | O19: 746400000 | P19: 707700000 | Q19: 810000000 | R19: 810000000 | S19: 810000000 | T19: 810000000 | U19: 810000000 | V19: 810000000 | W19: 810000000 | X19: 810000000 | Y19: 810000000 | Z19: 810000000 | AA19: 810000000 | AB19: 810000000 | AC19: 810000000 | AD19: 810000000 | AE19: 810000000 | AF19: 810000000 | AG19: 810000000 | AH19: 810000000 | AI19: =$B$19*AI12*1000 -> 810000000 | AJ19: 810000000 | AK19: 810000000 | AL19: 810000000 | AM19: 810000000 | AN19: 810000000 | AO19: 810000000 | AP19: 810000000 | AQ19: 810000000 | AR19: 810000000 | AS19: 810000000 | AT19: 810000000 | AU19: 810000000 | AV19: 810000000 | AW19: 810000000 | AX19: 810000000 | AY19: 810000000 | AZ19: 810000000 | BA19: 810000000
A21: REŽIE ([Kč], zaokrouhleno na celá čísla) | B21: 0.23 | C21: =(0.23/0.13)*C17 -> 311216673.8 | D21: 732767807.7 | E21: 1271828970 | F21: 1678561917 | G21: 2929277234 | H21: 5565509170 | I21: 4967641401 | J21: 4345063979 | K21: 4171907900 | L21: 4641182726 | M21: 4551725644 | N21: 4085596633 | O21: 3483011805 | P21: 3290430131 | Q21: 3570780981 | R21: 4893191095 | S21: 4942780025 | T21: 4992871503 | U21: 5043470621 | V21: 5094582524 | W21: 5146212409 | X21: 5198365526 | Y21: 5251047177 | Z21: 5304262717 | AA21: 5358017559 | AB21: 5412317166 | AC21: 5467167061 | AD21: 5522572819 | AE21: 5578540075 | AF21: 5635074518 | AG21: 5692181896 | AH21: 5749868016 | AI21: =(0.23/0.13)*AI17 -> 5808138743 | AJ21: 5867000001 | AK21: 5926457775 | AL21: 5986518111 | AM21: 6047187114 | AN21: 6108470953 | AO21: 6170375860 | AP21: 6232908127 | AQ21: 6296074114 | AR21: 6359880242 | AS21: 6424332999 | AT21: 6489438937 | AU21: 6555204677 | AV21: 6621636904 | AW21: 6688742374 | AX21: 6756527909 | AY21: 6825000401 | AZ21: 6894166812 | BA21: 6964034174
A23: POJIŠTĚNÍ ([Kč], zaokrouhleno na celá čísla) | B23: 0.01 | C23: =(0.01/0.13)*C17 -> 13531159.73 | D23: 31859469.9 | E23: 55296911.72 | F23: 72980952.92 | G23: 127359879.7 | H23: 241978659.6 | I23: 215984408.7 | J23: 188915825.2 | K23: 181387300 | L23: 201790553.3 | M23: 197901115 | N23: 177634636.2 | O23: 151435295.9 | P23: 143062179.6 | Q23: 155251347 | R23: 212747438.9 | S23: 214903479.3 | T23: 217081369.7 | U23: 219281331.3 | V23: 221503588 | W23: 223748365.6 | X23: 226015892.4 | Y23: 228306399 | Z23: 230620118.1 | AA23: 232957285.2 | AB23: 235318137.7 | AC23: 237702915.7 | AD23: 240111861.7 | AE23: 242545220.6 | AF23: 245003239.9 | AG23: 247486169.4 | AH23: 249994261.6 | AI23: =(0.01/0.13)*AI17 -> 252527771.4 | AJ23: 255086956.6 | AK23: 257672077.2 | AL23: 260283396.1 | AM23: 262921178.9 | AN23: 265585693.6 | AO23: 268277211.3 | AP23: 270996005.5 | AQ23: 273742352.8 | AR23: 276516532.3 | AS23: 279318826 | AT23: 282149519 | AU23: 285008899 | AV23: 287897256.7 | AW23: 290814885.8 | AX23: 293762083 | AY23: 296739147.9 | AZ23: 299746383.1 | BA23: 302784094.5
A25: ODVOD/REZERVA NA VYŘAZOVÁNÍ A SKLADOVÁNÍ ([Kč], zaokrouhleno na celá čísla) | B25: 0.06 | C25: =(0.06/0.13)*C17 -> 81186958.39 | D25: 191156819.4 | E25: 331781470.3 | F25: 437885717.5 | G25: 764159278.5 | H25: 1451871957 | I25: 1295906452 | J25: 1133494951 | K25: 1088323800 | L25: 1210743320 | M25: 1187406690 | N25: 1065807817 | O25: 908611775.3 | P25: 858373077.6 | Q25: 931508081.9 | R25: 1276484634 | S25: 1289420876 | T25: 1302488218 | U25: 1315687988 | V25: 1329021528 | W25: 1342490194 | X25: 1356095355 | Y25: 1369838394 | Z25: 1383720709 | AA25: 1397743711 | AB25: 1411908826 | AC25: 1426217494 | AD25: 1440671170 | AE25: 1455271324 | AF25: 1470019439 | AG25: 1484917016 | AH25: 1499965569 | AI25: =(0.06/0.13)*AI17 -> 1515166629 | AJ25: 1530521739 | AK25: 1546032463 | AL25: 1561700377 | AM25: 1577527073 | AN25: 1593514162 | AO25: 1609663268 | AP25: 1625976033 | AQ25: 1642454117 | AR25: 1659099194 | AS25: 1675912956 | AT25: 1692897114 | AU25: 1710053394 | AV25: 1727383540 | AW25: 1744889315 | AX25: 1762572498 | AY25: 1780434887 | AZ25: 1798478299 | BA25: 1816704567
A27: PERSONÁLNÍ NÁKLADY ([Kč], zaokrouhleno na celá čísla) | B27: 0.05 | C27: =(0.05/0.13)*C17 -> 67655798.66 | D27: 159297349.5 | E27: 276484558.6 | F27: 364904764.6 | G27: 636799398.7 | H27: 1209893298 | I27: 1079922044 | J27: 944579126 | K27: 906936499.9 | L27: 1008952766 | M27: 989505574.8 | N27: 888173181.2 | O27: 757176479.4 | P27: 715310898 | Q27: 776256734.9 | R27: 1063737195 | S27: 1074517397 | T27: 1085406848 | U27: 1096406657 | V27: 1107517940 | W27: 1118741828 | X27: 1130079462 | Y27: 1141531995 | Z27: 1153100591 | AA27: 1164786426 | AB27: 1176590688 | AC27: 1188514578 | AD27: 1200559309 | AE27: 1212726103 | AF27: 1225016200 | AG27: 1237430847 | AH27: 1249971308 | AI27: =(0.05/0.13)*AI17 -> 1262638857 | AJ27: 1275434783 | AK27: 1288360386 | AL27: 1301416981 | AM27: 1314605894 | AN27: 1327928468 | AO27: 1341386056 | AP27: 1354980028 | AQ27: 1368711764 | AR27: 1382582661 | AS27: 1396594130 | AT27: 1410747595 | AU27: 1425044495 | AV27: 1439486284 | AW27: 1454074429 | AX27: 1468810415 | AY27: 1483695739 | AZ27: 1498731916 | BA27: 1513920473
A29: SLUŽBY, MATERIÁL, ÚDRŽBA ([Kč], zaokrouhleno na celá čísla) | B29: 0.06 | C29: =(0.06/0.13)*C17 -> 81186958.39 | D29: 191156819.4 | E29: 331781470.3 | F29: 437885717.5 | G29: 764159278.5 | H29: 1451871957 | I29: 1295906452 | J29: 1133494951 | K29: 1088323800 | L29: 1210743320 | M29: 1187406690 | N29: 1065807817 | O29: 908611775.3 | P29: 858373077.6 | Q29: 931508081.9 | R29: 1276484634 | S29: 1289420876 | T29: 1302488218 | U29: 1315687988 | V29: 1329021528 | W29: 1342490194 | X29: 1356095355 | Y29: 1369838394 | Z29: 1383720709 | AA29: 1397743711 | AB29: 1411908826 | AC29: 1426217494 | AD29: 1440671170 | AE29: 1455271324 | AF29: 1470019439 | AG29: 1484917016 | AH29: 1499965569 | AI29: =(0.06/0.13)*AI17 -> 1515166629 | AJ29: 1530521739 | AK29: 1546032463 | AL29: 1561700377 | AM29: 1577527073 | AN29: 1593514162 | AO29: 1609663268 | AP29: 1625976033 | AQ29: 1642454117 | AR29: 1659099194 | AS29: 1675912956 | AT29: 1692897114 | AU29: 1710053394 | AV29: 1727383540 | AW29: 1744889315 | AX29: 1762572498 | AY29: 1780434887 | AZ29: 1798478299 | BA29: 1816704567
A31: OSTATNÍ ([Kč], zaokrouhleno na celá čísla) | B31: 0.02 | C31: =(0.02/0.13)*C17 -> 27062319.46 | D31: 63718939.8 | E31: 110593823.4 | F31: 145961905.8 | G31: 254719759.5 | H31: 483957319.1 | I31: 431968817.4 | J31: 377831650.4 | K31: 362774600 | L31: 403581106.6 | M31: 395802229.9 | N31: 355269272.5 | O31: 302870591.8 | P31: 286124359.2 | Q31: 310502694 | R31: 425494877.8 | S31: 429806958.7 | T31: 434162739.4 | U31: 438562662.7 | V31: 443007176 | W31: 447496731.3 | X31: 452031784.9 | Y31: 456612798 | Z31: 461240236.3 | AA31: 465914570.3 | AB31: 470636275.3 | AC31: 475405831.4 | AD31: 480223723.4 | AE31: 485090441.3 | AF31: 490006479.8 | AG31: 494972338.8 | AH31: 499988523.1 | AI31: =(0.02/0.13)*AI17 -> 505055542.8 | AJ31: 510173913.1 | AK31: 515344154.4 | AL31: 520566792.2 | AM31: 525842357.7 | AN31: 531171387.2 | AO31: 536554422.6 | AP31: 541992011.1 | AQ31: 547484705.6 | AR31: 553033064.5 | AS31: 558637652.1 | AT31: 564299038 | AU31: 570017798 | AV31: 575794513.4 | AW31: 581629771.7 | AX31: 587524166 | AY31: 593478295.8 | AZ31: 599492766.3 | BA31: 605568189.1
A33: VÝNOSY ([Kč], zaokrouhleno na celá čísla)
A34: CENA ZA 1MWh ELEKTŘINY | C34: 1091.37895 | D34: 1102.439281 | E34: 1113.611701 | F34: 1124.897345 | G34: 1136.297361 | H34: 1147.812907 | I34: 1741.6464 | J34: 1022.112 | K34: 1346.592 | L34: 1514.24 | M34: 1338.48 | N34: 993.4496 | O34: 891.2384 | P34: 873.9328 | Q34: 713.3152 | R34: 1171.195288 | S34: 1183.0645 | T34: 1195.053997 | U34: 1207.165 | V34: 1219.398738 | W34: 1231.756457 | X34: 1244.239412 | Y34: 1256.848873 | Z34: 1269.586121 | AA34: 1282.452452 | AB34: 1295.449174 | AC34: 1308.577609 | AD34: 1321.83909 | AE34: 1335.234967 | AF34: 1348.766601 | AG34: 1362.435369 | AH34: 1376.24266 | AI34: 1390.189877 | AJ34: 1404.27844 | AK34: 1418.50978 | AL34: 1432.885344 | AM34: 1447.406594 | AN34: 1462.075006 | AO34: 1476.892072 | AP34: 1491.859298 | AQ34: 1506.978206 | AR34: 1522.250333 | AS34: 1537.677232 | AT34: 1553.260471 | AU34: 1569.001635 | AV34: 1584.902325 | AW34: 1600.964156 | AX34: 1617.188763 | AY34: 1633.577793 | AZ34: 1650.132915 | BA34: 1666.855811
A36: UTRŽENO ZA ELEKTŘINU | C36: =C34*1000*C12 -> 6362739280 | D36: 1.335825677e+10 | E36: 1.400589436e+10 | F36: 1.231200144e+10 | G36: 1.349694005e+10 | H36: 1.402283029e+10 | I36: 20995547352 | J36: 1.349596685e+10 | K36: 1.835135578e+10 | L36: 20951024640 | M36: 20154831840 | N36: 1.493552129e+10 | O36: 1.330440684e+10 | P36: 1.236964485e+10 | Q36: 11555706240 | R36: 1.897336367e+10 | S36: 1.91656449e+10 | T36: 1.935987476e+10 | U36: 1.9556073e+10 | V36: 1.975425956e+10 | W36: 1.99544546e+10 | X36: 2.015667847e+10 | Y36: 2.036095174e+10 | Z36: 2.056729516e+10 | AA36: 2.077572972e+10 | AB36: 2.098627662e+10 | AC36: 2.119895726e+10 | AD36: 2.141379326e+10 | AE36: 2.163080647e+10 | AF36: 2.185001894e+10 | AG36: 2.207145298e+10 | AH36: 2.229513109e+10 | AI36: =AI34*1000*AI12 -> 2.252107601e+10 | AJ36: 2.274931073e+10 | AK36: 2.297985843e+10 | AL36: 2.321274257e+10 | AM36: 2.344798681e+10 | AN36: 2.368561509e+10 | AO36: 2.392565156e+10 | AP36: 2.416812062e+10 | AQ36: 2.441304693e+10 | AR36: 2.466045539e+10 | AS36: 2.491037116e+10 | AT36: 2.516281963e+10 | AU36: 2.541782649e+10 | AV36: 2.567541766e+10 | AW36: 2.593561933e+10 | AX36: 2.619845795e+10 | AY36: 2.646396025e+10 | AZ36: 2.673215323e+10 | BA36: 2.700306414e+10
A38: PROVOZNÍ CASH FLOW (POČÍTÁNO PŘED ZDANĚNÍM) ([Kč], zaokrouhleno na celá čísla) | C38: =C36-(SUM(C17:C31)) -> 5313494335 | D38: =D36-(SUM(D17:D31)) -> 1.096827646e+10 | E38: 1.028041731e+10 | F38: 7677818077 | G38: 5770886784 | H38: -138824647.1 | I38: 8297670463 | J38: 2256480637 | K38: 7512266977 | L38: 8958953656 | M38: 8319469402 | N38: 4236281657 | O38: 4077630266 | P38: 3650462794 | Q38: 2051630809 | R38: 6249507089 | S38: 6321050055 | T38: 6393318056 | U38: 6466318441 | V38: 6540058632 | W38: 6614546125 | X38: 6689788496 | Y38: 6765793393 | Z38: 6842568544 | AA38: 6920121756 | AB38: 6998460913 | AC38: 7077593980 | AD38: 7157529003 | AE38: 7238274110 | AF38: 7319837509 | AG38: 7402227494 | AH38: 7485452442 | AI38: 7569520814 | AJ38: 7654441158 | AK38: 7740222107 | AL38: 7826872384 | AM38: 7914400799 | AN38: 8002816250 | AO38: 8092127728 | AP38: 8182344312 | AQ38: 8273475176 | AR38: 8365529584 | AS38: 8458516897 | AT38: 8552446569 | AU38: 8647328150 | AV38: 8743171286 | AW38: 8839985723 | AX38: 8937781304 | AY38: 9036567972 | AZ38: 9136355770 | BA38: 9237154846
A40: INVESTIČNÍ CASH FLOW ([Kč], zaokrouhleno na celá čísla) | C40: =-C4 -> 0 | D40: 0 | E40: 0 | F40: 0 | G40: 0 | H40: -500000000 | I40: -500000000 | J40: -500000000 | K40: -500000000 | L40: -500000000 | M40: -500000000 | N40: -500000000 | O40: -500000000 | P40: -500000000 | Q40: 0 | R40: 0 | S40: 0 | T40: 0 | U40: 0 | V40: 0 | W40: 0 | X40: 0 | Y40: 0 | Z40: -500000000 | AA40: 0 | AB40: 0 | AC40: 0 | AD40: 0 | AE40: 0 | AF40: 0 | AG40: 0 | AH40: 0 | AI40: =-AI4 -> 0 | AJ40: -491666666.7 | AK40: -491666666.7 | AL40: -491666666.7 | AM40: -491666666.7 | AN40: -491666666.7 | AO40: -491666666.7 | AP40: -491666666.7 | AQ40: -491666666.7 | AR40: -491666666.7 | AS40: -491666666.7 | AT40: 0 | AU40: 0 | AV40: 0 | AW40: 0 | AX40: 0 | AY40: 0 | AZ40: 0 | BA40: 0
A42: CELKOVÉ CASH FLOW ([Kč], zaokrouhleno na celá čísla) | B42: =-B4 -> -98000000000 | C42: =C38+C40 -> 5313494335 | D42: =D38+D40 -> 1.096827646e+10 | E42: 1.028041731e+10 | F42: 7677818077 | G42: 5770886784 | H42: -638824647.1 | I42: 7797670463 | J42: 1756480637 | K42: 7012266977 | L42: 8458953656 | M42: 7819469402 | N42: 3736281657 | O42: 3577630266 | P42: 3150462794 | Q42: 2051630809 | R42: 6249507089 | S42: 6321050055 | T42: 6393318056 | U42: 6466318441 | V42: 6540058632 | W42: 6614546125 | X42: 6689788496 | Y42: 6765793393 | Z42: 6342568544 | AA42: 6920121756 | AB42: 6998460913 | AC42: 7077593980 | AD42: 7157529003 | AE42: 7238274110 | AF42: 7319837509 | AG42: 7402227494 | AH42: 7485452442 | AI42: 7569520814 | AJ42: 7162774491 | AK42: 7248555441 | AL42: 7335205718 | AM42: 7422734132 | AN42: 7511149583 | AO42: 7600461061 | AP42: 7690677645 | AQ42: 7781808509 | AR42: 7873862918 | AS42: 7966850231 | AT42: 8552446569 | AU42: 8647328150 | AV42: 8743171286 | AW42: 8839985723 | AX42: 8937781304 | AY42: 9036567972 | AZ42: 9136355770 | BA42: 9237154846
A47: DISKONT | B47: 0.2 | C47: 0.15 | D47: 0.1 | E47: 0.05
A48: NPV | B48: =NPV(B47,$C$42:$BA$42)-$B$4 -> -6.45691756e+10 | C48: =NPV(C47,$C$42:$BA$42)-$B$4 -> -5.465242756e+10 | D48: =NPV(D47,$C$42:$BA$42)-$B$4 -> -3.469609021e+10 | E48: =NPV(E47,$C$42:$BA$42)-$B$4 -> 2.049816286e+10
A49: NPV | B49: =ROUND(B48,-6) -> -64569000000 | C49: =ROUND(C48,-6) -> -54652000000 | D49: -34696000000 | E49: 20498000000
A50: IRR | B50: =IRRm(B42:BA42) -> 0.06241073608
A51: INDEX RENTABILITY | B51: =(SUM(C42:BA42))/(-B42) -> 3.622548502
